{"text_format":"2","workbook":"xlsx","n_sheets":14,"sheets":["Intro","Objectives","Strategic","Financial","Operational","Compliance","Reputational","Reporting","Graph","Lists","Scales","Scoring","ForPrint","Export"],"not_rendered":{"charts":1,"images":60,"macros":0,"external_links":0,"defined_names":56,"comments":0,"pivot_tables":0},"unopened":[],"bounds":{"document_bytes":16777216,"sheet_cells":100000,"run_cost":"one","rows_first":2000,"rows_last":500,"rows_between":2000,"halvings":0,"cell_chars":16384,"cell_head_chars":4096},"cells_cut":0,"cells_raw":0,"read":"whole","date_system":"1900"}

{"sheet":"Intro","index":0,"n_rows":46,"n_cols":6,"rows_kept":46,"cut":false,"hidden":false,"merged":[[1,1,2,8],[3,1,3,8],[45,1,46,2],[14,5,14,8],[13,5,13,8],[12,5,12,8],[11,5,11,8],[4,5,8,8],[9,5,9,8],[10,5,10,8],[16,1,44,9]]}
[]
[null,"Program Risk Review Using ERM"]
[]
[null,"Project Information"]
[{"$nulls":4},"Project/Initiative description:","To explore new worlds, to go where no one has gone before."]
[]
[]
[]
[]
[{"$nulls":4},"Organization:"]
[{"$nulls":4},"Department:"]
[{"$nulls":4},"Person(s) completing this workbook:","John Doe"]
[{"$nulls":5},"Jane Doe"]
[]
[{"$nulls":4},"Date workbook completed:",{"$f":"TODAY()","v":"2022-11-02"}]
[]
[null,"Welcome to the Program Risk Review Using ERM tool. This tool will help you consider the strategic, financial, compliance, operational, reputational, and reporting risks associated with ongoing programs. This tool will not make decisions for you, but it will help you organize your thinking as you consider your initiative or project's enterprise risk management implications. Not all programs will have objectives in all of these areas, (e.g. - not all programs will have compliance objectives) but each category should be considered. \n\nIdentify the following for each set of objectives:\n■ Risks associated with each set of objectives\n■ Controls used to monitor risks such as reports and dashboards\n■ Frequency of the monitoring of controls\n■ Strategies for mitigating or otherwise addressing those risks\n■ Individual/department(s) responsible for executing the strategies identified\n\nBefore you begin, please complete the identifying information at the top of this page and save this tool in a secure location with an appropriate, unique name. This will minimize confusion if multiple tools are completed. Use the button below to get started. \n\nUse the buttons at the left of each page to navigate through the tool. Start by reviewing the pre-set definitions for the scales of risk impact and risk likelihood. You may modify these to suit your organization's needs and preferences. \n\nThe results of any risk management decision will only be as effective as the accuracy of the data provided by the user. Inaccurate data or other information not provided by the user will naturally affect any results, decisions or recommendations. This tool is simply a way to assist the user to make informed decisions. Final decisions should be made independently by each organization using this tool. Since any final decision must be made by the user, the authors of this tool cannot be responsible for the results or consequences of these decisions."]
{"$rows_empty":28}
[null,"Get Started!"]

{"sheet":"Objectives","index":1,"n_rows":43,"n_cols":6,"rows_kept":43,"cut":false,"hidden":false,"merged":[[23,4,23,5],[30,4,30,5],[37,4,37,5],[0,1,1,2],[2,4,2,5],[9,4,9,5],[16,4,16,5]]}
[null,"Describe Objectives"]
[]
[{"$nulls":4},"Strategic Objectives"]
[{"$nulls":4},"1.","National and International Leader in in transforming educational experiences."]
[{"$nulls":4},"2.","Recruit a larger and increasingly diverse student body."]
[{"$nulls":4},"3.","Improve graduation success of all students."]
[{"$nulls":4},"4.","Recruit, Retain, and Support talented and diverse faculty."]
[{"$nulls":4},"5."]
[]
[{"$nulls":4},"Financial Objectives"]
[{"$nulls":4},"1.","Demonstrate value through efficiency of resource allocation."]
[{"$nulls":4},"2.","Improve overall productivity (doing more with existing resources)."]
[{"$nulls":4},"3.","Develop new revenue generation programs."]
[{"$nulls":4},"4.","Expenditures are aligned with budgets."]
[{"$nulls":4},"5.","Implement new marketing strategies."]
[]
[{"$nulls":4},"Operational Objectives"]
[{"$nulls":4},"1.","Implement a comprehensive strategic enrollment plan."]
[{"$nulls":4},"2.","To continually improve internal process to realize efficiencies."]
[{"$nulls":4},"3.","Capitalize on physical facilities (location, capacity, etc.)."]
[{"$nulls":4},"4.","Redirect or restructure available resources."]
[{"$nulls":4},"5.","Develop programs to support faculty and students."]
[]
[{"$nulls":4},"Compliance Objectives"]
[{"$nulls":4},"1.","Adhere to legal and policy obligations."]
[{"$nulls":4},"2.","Respond to all required audits in a timely manner."]
[{"$nulls":4},"3.","Reduce time to remediate detected issues."]
[{"$nulls":4},"4.","Reduce the time required for detecting, documenting, and fixing exceptions."]
[{"$nulls":4},"5."]
[]
[{"$nulls":4},"Reputational Objectives"]
[{"$nulls":4},"1.","Increase community outreach."]
[{"$nulls":4},"2.","Improve marketing, advertising and public relations."]
[{"$nulls":4},"3.","Optimize messaging to achieve strategic and other objectives"]
[{"$nulls":4},"4.","Enhance relationships with alumni, professors emeriti, friends"]
[{"$nulls":4},"5."]
[]
[{"$nulls":4},"Reporting Objectives"]
[{"$nulls":4},"1.","Complete and accurate social responsibility reporting to reputational stakeholders."]
[{"$nulls":4},"2.","Complete and accurate environmental reporting."]
[{"$nulls":4},"3.","Complete and accurate sustainable development reporting to environmental and reputational stakeholders."]
[{"$nulls":4},"4.","Timely health, safety, and environment reporting to OSHA and internal stakeholders."]
[{"$nulls":4},"5."]

{"sheet":"Strategic","index":2,"n_rows":20,"n_cols":11,"rows_kept":20,"cut":false,"hidden":false,"merged":[[2,1,22,1]]}
[]
[null,"Assess Strategic Risks"]
[null,"The objectives you entered are shown at right. Below them are spaces to list the risks which could impair accomplishing those objectives. \n\nOnce you have listed the risks, assess the impact and likelihood of each, and describe the risk management and mitigation activities prescribed by management. Next, identify how frequently the controls are implemented and their effectiveness. \n\nThen, under \"Dashboards, Monitoring, & Reporting,\" describe how the control activities are being monitored and identify the person in your organization who is accountable for monitoring those controls.\n\nIf you want to change the options shown on the menus for \"Risk Impact\", \"Risk Likelihood\", or \"Control Effectiveness\" you can change them by clicking \"Customize Scales\" below."]
[]
[null,null,null,"Strategic Risks","Risk Impact","Risk Likelihood","Management and Mitigation","Frequency of Controls","Control Effectiveness","Dashboards, Monitoring, & Reporting","Accountable\nPerson/Department"]
[null,null,null,"Budget impairment","Low","Very High","External financing program; Budget Officers","Semi-annually","Minor","Leveraging Wisdom & WISER systems","Senior leadership, Deans, Administration"]
[null,null,null,"Ineffective auxiliary management","High","Unsure/Don't Know","Auxiliary departments have programs focused on operational excellence","Monthly","None","Reported on department websites","Vice Chancellor of Student Affairs and CBO"]
[null,null,null,"Insufficient oversight over third-party vendors","Unsure/Don't know","Unsure/Don't Know","Business Contracts unit and  Purchasing; Separation of Duties on vendor payments; Accounts Payable reviews","Daily","Moderate","Utilizing strategic sourcing","Administrative Affairs"]
[null,null,null,"Employee recruitment and retention","Very low","Very low","Retention Issues and Solutions Initiative; Programs: Principles of Community, Work-Life Balance, Wellness,  and Training & Development; Online Recruitment Systems;  Statement of Ethical Values and Standards of Ethical Conduct","Semi-annually","Significant","Business Intelligence System (OBEI)","Human Resources & Diversity"]
[null,null,null,"Decrease in international students to ","High","Moderate","Office of International Program advising  service","Monthly","Minor","Evaluate student inquiry data, applicants and starting students to assess change in composition of international student population","Administration, Student Affairs and Enrollment Management, Office of International Programs"]
[null,null,null,"Resiliency (our ability or inability to recover)","Very High","High","Mission Continuity Plan Rollout; Disaster Recovery Plans; System wide and local backup and recovery policies and procedures; Electronic Information Security: Incident Response Planning and Notification Procedures","Semi-annually","None","Emergency plan testing","Administrative Affairs - Risk Mangement, University Campus Police Department"]
[null,null,null,"Bureaucracy over-controlled; creates inefficiency ","Moderate","High"," Policy and Requirements, Lean process improvement (enhance data transparency, procedure review and simplification) meetings. Note: greater consistency among UWS on interpretation of policies  The level of bureaucracy writing the policies and systems needs to be streamlined to mitigate our risk in this area.","Ad-Hoc",null,"Improved access to data","System UW, Chancellor's Office "]
[null,null,null,"Individual college goals not in alignment with the greater University goals","Low","Moderate"," Strategic Plan; Note: Problematic organizationally when sub-units work in different directions than larger organization and effectiveness is unknown. ","Ad-Hoc","Low","None","Senior Leadership"]
[null,null,null,"Provide additional services to assist students in graduating","High ","High","Chancellor's Office funding for increased advising; Student Success and Graduation Initiative;  Advising Services; Student Success Program","Unsure/Don't know","Moderate","Reports and Analysis/Studies published on campus websites","Student Affairs & Enrollment Management "]
[null,null,null,"Lack of necessary counseling resources to improve success rates of academic \"at-risk\" students","Moderate","Moderate","Campus Student Success Plan;\n","Ad-Hoc","Moderate"," Student Graduation rates;\nAnnual Student Satisfaction Survey (Housing)","Senior Leadership"]
[null,null,null,"Course \"bottleneck\" results in student graduation delays","Moderate","Moderate","Campus Student Success Plan","Ad-Hoc","Moderate","Advising Services Reports, IRP Reports","Senior Leadership"]
[null,null,null,"Ineffective database for monitoring and addressing student progress towards graduation","Moderate","Moderate","Campus Student Success Plan","Ad-Hoc","Moderate","Advising Services Reports, IRP Reports, EAB Programs","Senior Leadership"]
[null,null,null,"Increased legislative, UWS and campus-wide initiatives addressing a wide range of areas, from retention and graduation rates to increased math requirements for incoming students.","Moderate","Moderate","While most of the initiatives coming from the campus, UWS and Wisconsin legislature have positive intentions, there seems to be a lack of coordination and communication between these overarching systems in the development of these initiatives, thus resulting in high administrative work for campus units, with little time and space for creativity in addressing the needs of each campus community.  Additionally, the proposal to increase math requirements for incoming students could have an inequitable effect on underrepresented student groups who do not have access to K-12 educational systems that can provide the additional math courses.    Continue discussions with the Student Affairs and Enrollment Management division on how to administratively manage these initiatives","Annually","Minor",null,"VP, AVPs and Directors within Student Affairs and Enrollment Management"]
[null,null,null,"Continued increase in mental health challenges of incoming and current students ","Very High","Very high","This is an area of concern because students continue to enter college with identified mental health needs and often are underprepared in terms of mental health care treatment plans to support their success.  An additional area of concern is that staffing levels within the Counseling and Psychological Services Center do not meet the accreditation standards for counselor to student ratio, and this often results in long waiting lists for mental health services. Unclear how to address this within the division.  Some suggestions would be to fill open positions as soon as possible, increase salaries to attract candidates for counselor positions, and create more counselor faculty positions.","Monthly","Minor",null,"AVP of Student Affairs and Director of CPSC to manage HR needs for the unit with support from the Student Affairs and Enrollment Management Executive Council"]
[null,null,null,"Strategic Enrollment Management  - The University has no strategic enrollment management plan or articulated goal","Moderate","Moderate","The Strategic Enrollment Management Taskforce continues to meet to discuss the development and implementation of a campus wide Strategic Enrollment Plan.  Need to assess and monitor","Monthly","Minor","As a campus wide collaboration, creation of a 3-5 year Strategic Enrollment Plan, Monitor Plan Documentation","Student Affairs & Enrollment Management  (Enrollment Management Technology), SEM Task Force,  Sr. Leadership"]

{"sheet":"Financial","index":3,"n_rows":16,"n_cols":11,"rows_kept":16,"cut":false,"hidden":false,"merged":[[2,1,19,1]]}
[]
[null,"Assess Financial Risks"]
[null,"The objectives you entered are shown at right. Below them are spaces to list the risks which could impair accomplishing those objectives. \n\nOnce you have listed the risks, assess the impact and likelihood of each, and describe the risk management and mitigation activities prescribed by management. Next, identify how frequently the controls are implemented and their effectiveness. \n\nThen, under \"Dashboards, Monitoring, & Reporting,\" describe how the control activities are being monitored and identify the person in your organization who is accountable for monitoring those controls.\n\nIf you want to change the options shown on the menus for \"Risk Impact\", \"Risk Likelihood\", or \"Control Effectiveness\" you can change them by clicking \"Customize Scales\" below."]
[]
[null,null,null,"Financial Risks","Risk Impact","Risk Likelihood","Management and Mitigation","Frequency of Controls","Control Effectiveness","Dashboards, Monitoring, & Reporting","Accountable\nPerson/Department"]
[null,null,null,"Budget Impairment","Low","Very Low","Budget Officers Meetings; Financial Plan; Conversations with Governor and Legislature","Annually","Significant","Leveraging Wisdom & WISER systems","Campus Budget Offices, Senior leadership"]
[null,null,null,"Ineffective service center/auxiliary management","High","Unsure/Don't know","All departments have programs focused on operational excellence,  Bylaws and Constitutions; open meetings; long range plans","Monthly","None","Reported on department websites","Senior Leadership"]
[null,null,null,"Non-compliant cost transfers","Very low","Very low","Extramural Funds Accounting Units; Operating Guidance; Financial Systems separating roles of initiator, approver and ledger reviewer; Self Assessment Tool; Internal Control Program; Department Training Programs; Administrative Responsibilities Handbook - Finance","Annually","Significant","Ledger Review; General and Payroll Ledger Reviews; Reported at department level (Documentation Requirements); PI Ledger Review; Audit Reports","Administration"]
[null,null,null,"Insufficient oversight over third-party vendors leading to increased expense and delivery failure","Unsure/Don't know","Unsure/Don't know","Strategic Sourcing Initiative; Business Contracts unit and Material Management; Separation of Duties on vendor payments; Accounts Payable reviews","Daily","Moderate","Utilizing strategic sourcing","Administration"]
[null,null,null,"Improper governmental activities including fraud, embezzlement, or misuse of university resources","Very high","Very high","Whistle Blower system, Policies and Hotlines; Department Designated Officials; Investigations Work Groups; Audit, Risk, Compliance & Ethics Program; Internal Control Program; ","Annually","Moderate","Losses reported in claims system; Whistle Blower system; Internal Audit Quarterly and Annual Reports; Investigations","Administration"]
[null,null,null,"Management of Trust Fund Accounts and Transactions","Moderate","Moderate","Wisconsin Retirement System; Wisconsin Department of Employee Trust Funds","Unsure","Moderate","Accounting monitoring; Internal Audit Reviews; External financial audit reports; Business Intelligence variance reporting ","Human Resources & Diversity"]
[null,null,null,"Leasing Activity","High","Moderate","Management sublease tenants and academic partners; meetings with University Property Management team regarding revenue from subleasing downtown campus; Internal Audit. Proposed mitigation: need investigation of controls ","Monthly","Moderate","Monthly meetings, Audit reports","University Housing, Senior Leadership"]
[null,null,null,"Liability claims","Moderate","Very low","Innovation Access Programs connecting research and industry; Intellectual Property Management Policies and Programs","Ad-hoc","Minor","Business Intelligence System","Counsel's office"]
[null,null,null,"Workers' compensation claims","Moderate","Moderate","Make Safety Happen Program; Claims Management (TPA); Policies ","Semi-annually","Significant","Business Intelligence System; Retroactive Reviews","Risk Management"]
[null,null,null,"Technology Acquisition Redundancy ","Very High","High","Drafted a cloud computing practice directive; developed and implemented a Technology Acquisition Review process to review all IT acquisitions for Security and Accessibility compliance; duplicative acquisitions are deterred. Proposed mitigation: be more coordinated - effort on tools that are used on campus; better stakeholder involvement in selection process, too many systems; should be streamlined to eliminate redundancy. ","Daily","Significant","Ticketing system records all technology acquisition reviews. Reports can be prepared using criteria","Information Technology Services, Procurement, Accounts Payable, Disability Programs and Resource Center"]
[null,null,null,"Capacity for Project Enforcement ","Moderate","Moderate","Capital Planning unit; Project management team; Internal Audit; Admin Affairs Town Hall Presentation; Campus Master Plan; ","Unsure/Don't know","Moderate","Reports on campus websites; Audit review ","Capital Planning, Physical Planning & Development"]

{"sheet":"Operational","index":4,"n_rows":20,"n_cols":11,"rows_kept":20,"cut":false,"hidden":false,"merged":[[2,1,19,1]]}
[]
[null,"Assess Operational Risks"]
[null,"The objectives you entered are shown at right. Below them are spaces to list the risks which could impair accomplishing those objectives. \n\nOnce you have listed the risks, assess the impact and likelihood of each, and describe the risk management and mitigation activities prescribed by management. Next, identify how frequently the controls are implemented and their effectiveness. \n\nThen, under \"Dashboards, Monitoring, & Reporting,\" describe how the control activities are being monitored and identify the person in your organization who is accountable for monitoring those controls.\n\nIf you want to change the options shown on the menus for \"Risk Impact\", \"Risk Likelihood\", or \"Control Effectiveness\" you can change them by clicking \"Customize Scales\" below."]
[]
[null,null,null,"Operational Risks","Risk Impact","Risk Likelihood","Management and Mitigation","Frequency of Controls","Control Effectiveness","Dashboards, Monitoring, & Reporting","Accountable\nPerson/Department"]
[null,null,null,"Catastrophic natural event (tornado, fire, etc.)","Very high","Moderate","Mission continuity; emergency management; Concern re utility systems, lack generator connections to buildings, also risk of flooding, ice and accessibility challenges.","Semi-annually","Moderate","Capital Planning documents; Regular University wide participation drills, documentation thereof.","Risk Management/ARCE"]
[null,null,null,"Pandemic","Moderate","Low","Mission continuity; emergency management; lack of masks and IC supplies; No Pandemic plan","Ad-hoc","Minor","Communication and tracking program","Risk Management/ARCE"]
[null,null,null,"Domestic terrorism (animal rights activists, eco-terrorists, stem-cell research opponents, etc.)","Moderate","Very low","Campus PD liaison with law enforcement; additional training of campus law enforcement; improved security measures; hardening of buildings; communication and response protocols","Ad-hoc","None","Tracked in claims system"," Police"]
[null,null,null,"Facilities, grounds, and pedestrian safety","High","High","Building Maintenance Services; Grounds and Landscape Service; Backlog, but program to reduce walkway ADA grading issues is part of annual Deferred Maintenance program.","Daily","Significant","Independent documentation and inspection records needed","Facilities Planning Management and Risk Management"]
[null,null,null,"Laboratory Safety","High","High","IIPP Policy; ARCE Program; Lab Safety Committee","Annually","Minor","Self-Assessment Tool","Lab Safety Committee, Risk Management, ORSP"]
[null,null,null,"Safety concerns regarding cash transportation to/from off campus events  ","High","Low","UWS and  Cashiering and Handling Guideline; UCorp Fundraising Policy; Associated Students, Inc. Cash and Check Receipt Handling Policy; University Police Department provides services on-campus event. Note: Associated Students, Inc. Cash and Check receipt Handling Policy is reviewed annually","Annually","Minor",null,"Administration"]
[null,null,null,"Campus Building Fire Safety","Very High","Moderate","State Fire Marshal inspection and approval; installation of fire alarms, sprinklers, centralized fire alarm connection system to campus buildings; Internal and External Audit Review",null,null,"Audit reviews and reports","Physical Planning & Development"]
[null,null,null,"Equipment/facility malfunction","Very high","Moderate","Equipment inventory database system-wide; Building Maintenance Services. Many building subsystems and equipment are well beyond industry standard renewal intervals.  Elevator systems, although well maintained, are beyond obsolescence dates, and cannot be repaired in a timely manner upon failure.","Semi-annually","Minor","Maintenance database; Claims system","Facilities Planning and Management & Risk Management"]
[null,null,null,"Key stakeholder is unclear of details pertaining to campus/utility infrastructure","Moderate","Low"," Campus Master Plan; Focused Tiered Draft Environmental Impact Report; Routine & emergency maintenance/repair service; Campus sustainable initiative. ","Unsure","Moderate","Reports on campus websites","Physical Planning & Development, Administration, Facilities and Service Enterprises"]
[null,null,null,"Insufficient oversight over third-party vendors","Very low","Low","Contractual obligations for all third-party vendors within leased and rented space","Weekly","Significant","Working with lessor and sub-lessors","University Property Management Business Development"]
[null,null,null,"Employee designation as Emergency Service Workers","Low","Low","Per Wisconsin statute, University employees should be noticed & confirmed that they are all disaster Service Workers, and may be called in to work during designated emergencies.  Such notice has not occurred.","Annually","None","Position descriptions should be updated to include this requirement","HR & Diversity"]
[null,null,null,"Campus Physical Security","High","Very Low","Campus lacks perimeter fence that can be closed up. Campus lacks remote locking ability of all exterior doors. For use in active shooter, or mass civil unrest","Ad-hoc","Minor","System installation, monitoring and regular testing. Recommendation on feasibility of increased physical security and hardening.","PP&D/University Police Department"]
[null,null,null,"Active Threats - Injuries to persons: Loss of Life","Very High","Moderate","Equip and train University Police Department personnel.  Train students/faculty/staff  on what to do in the event of active threat. On going engagement/dialogue regarding this potential scenario.","Monthly","Significant","University Police Department represented in the Action Crisis Team as conduit for early tracking and notification of potential indication of violent behavior. Direct reporting of active threats to University Police Department.  University Police Department is a 24/7/365 operation. Use of email for campus-wide notification.","University Police Department"]
[null,null,null,"Emergency Planning & Preparedness - Immanent threat to public safety; damage to property; disruptions to university programs and public services","Moderate","Moderate","Activation of the Emergency Operations Plan and the Emergency Operations Center. assigned personnel to serve as the E-Prep Coordinator.","Monthly","Significant","The EOC is under the direction of University Police Department. University Police Department is a 24/7/365 operation. Use of email for campus-wide notification.","University Police Department"]
[null,null,null,"Inability to recover from system loss or extended downtime","Moderate","Very low","Mission Continuity Plan Rollout; Disaster Recovery Plans; System wide and local backup and recovery policies and procedures; Electronic Information Security: Incident Response Planning and Notification Procedures","Semi-annually","Minor","Emergency plan testing documentation","Administrative Affairs"]

{"sheet":"Compliance","index":5,"n_rows":23,"n_cols":11,"rows_kept":23,"cut":false,"hidden":false,"merged":[[2,1,19,1]]}
[]
[null,"Assess Compliance Risks"]
[null,"The objectives you entered are shown at right. Below them are spaces to list the risks which could impair accomplishing those objectives. \n\nOnce you have listed the risks, assess the impact and likelihood of each, and describe the risk management and mitigation activities prescribed by management. Next, identify how frequently the controls are implemented and their effectiveness. \n\nThen, under \"Dashboards, Monitoring, & Reporting,\" describe how the control activities are being monitored and identify the person in your organization who is accountable for monitoring those controls.\n\nIf you want to change the options shown on the menus for \"Risk Impact\", \"Risk Likelihood\", or \"Control Effectiveness\" you can change them by clicking \"Customize Scales\" below."]
[]
[null,null,null,"Compliance Risks","Risk Impact","Risk Likelihood","Management and Mitigation","Frequency of Controls","Control Effectiveness","Dashboards, Monitoring, & Reporting","Accountable\nPerson/Department"]
[null,null,null,"Conflicts of interest in financial transactions and agreements","Very low","Low","Annual system wide Outside Activities Reporting (OAR)/Conflict of Interest (COI) Reporting for Designated Officials; Business Contract Policies; Whistle Blower system; Employee Handbook (Ch. 8 Code of Ethics)","Annually","Minor","Annual Outside Activities Reporting (OAR)/Conflict of Interest (COI) Reports by Designated Officials; Whistle blower system; Code of Ethics","Administration"]
[null,null,null,"Handling of Native American Graves Protection and Repatriation Act artifacts","Moderate","High","NAGPRA Federal Register; ","Ad-Hoc","Moderate","NAGPRA Federal Register","American Indians Department, Associated Students, Inc. "]
[null,null,null,"Cost sharing procedures are not compliant with federal requirements","Unsure/Don't know","Very low","Cost Sharing Procedures; Effort Reporting and Cost Share Tracking System","Semi-annually","Minor","Cost Sharing System (CSS)","Administration"]
[null,null,null,"Noncompliance with UWS requirements for auxiliary organization policies and procedures","Moderate","Moderate","Associated Students Business & Finance Department; Corp.; UWS Audit Department","Annually","Moderate","UWS Auxiliary Organization Audit; Associated Students Board Governance Policy","Associated Students Board of Directors; UCorp Board and Leadership"]
[null,null,null,"Agreement terms and conditions not met, but funds used","Very low","Very low","Whistle Blower system; Ethics Compliance and Audit Program; Extramural Funds Accounting: Award Closeout Procedures and Checklist","Semi-annually","Nearly complete","Reported at department level; Project Closeout Reviews; General and Payroll Ledger Reviews ","Administration"]
[null,null,null,"General Regulatory fines or penalties","Moderate","Unsure/Don't know","Sponsored projects offices and extramural funds accounting offices; Whistle Blower system; Ethics Compliance and Audit Program; Internal Control Program; Administrative Responsibilities Handbook - Principles of Regulatory Compliance","Quarterly","Moderate","Working on including in Business Intelligence System; ","Administration"]
[null,null,null,"Intellectual property infringement","Low","Very low","Office of Research and Sponsored Programs: Divisions of Innovation Access and Research Technology & Industrial Alliances, and Intellectual Property Officers; Industry collaboration guides; Web-based resources; Administrative Responsibilities Handbook -Research Affairs: Intellectual Property; Regent Policy Documents","Annually","Minor","Claims System; Web-based resources","University Counsel"]
[null,null,null,"Resignation of Sr. Deputy Title IX Coordinator for Employees and Third Parties resulting in EP&C having a larger role in responding to employee and third party Executive Order 1096 matters","High","High","Duties were re-assigned to EP&C, and Executive Order 1096 investigations were no longer assigned to Labor Relations. Risk will be mitigated with the hiring of the Dean of Equity Initiatives who will serve in the Sr. Deputy capacity. ","Daily ","Significant","Internal tracking by EP&C, and reported to the Title IX Coordinator and DHR Administrator","Student Affairs & Enrollment Management (Equity Programs & Compliance), Human Resources"]
[null,null,null,"Title IX  and sexual violence prevention efforts  - An area of concern is that the new federal administration may reinterpret Title IX to include a higher standard of proof for investigations of sexual misconduct, as well as the invalidation of campus judicial hearings for sexual misconduct situations in favor of civil court proceedings for all cases.","Moderate","High","Monitor federal guidelines related to Title IX","Monthly","Moderate",null,"Title IX Office, Equity Programs & Compliance, and Health Promotion and Wellness"]
[null,null,null,"Effort reports inaccurate, insufficient, or incomplete","Very low","Very high","Effort Report Compliance Initiative; Effort Reporting and Cost Share Tracking System","Annually","Minor","Effort Reporting System (ERS); OMB Circular A-133 audits performed annually by external auditors","Individual Pis"]
[null,null,null,"Food Safety Violations","Very low","Very low","Routine equipment maintenance/repair and health and safety inspection; partner with EHS; Food service guidelines and operating standard. Note: compliance issues with lack of controls. Note: EHS is inspecting the Vista Room every semester - post notices to ensure people know about it. ","Multiple times daily","Moderate","Risk Management, EHS Monitors and Reports, Dining","Risk Management, Dining Services"]
[null,null,null,"Student Organization Activities","High","High","Student Activities and Events unit; Student Organization Handbook; Student Organization Conducts and Policies; Funding Requests; Fundraising Event Guideline; Student Event Planning Policies and Procedures; Internal Audit on-going review. We will also coordinate with associated Students to bring awareness of food safety to  students.","Unsure/Don't know","Low","Records of Students Activities/Events on campus website,  Student Organization Directory","Student Affairs, Environmental Health and Safety, Student Activities and Events "]
[null,null,null,"Moving to Medical Records - Concern for the confidentiality of students psychological records without adequate IT services when needed","Very High","Moderate","Concern is for breaching HIPPA and FERPA requirement if IT doesn't protect fire walls regularly.","Unsure/Don't know","Nearly complete","IT support is will be responsible for  monitoring and reporting the system.","Student Affairs & Enrollment Management  (Counseling and Psychological Services) and IT"]
[null,null,null,"Clarification needed about campus policy on departments paying for costs of hiring an international faculty","High","Moderate","Fiscal Affairs and Professional Development unit; Faculty Manual; Faculty Recruitment and Hiring Handbook; Retention, Tenure, and Promotion Policy. Note: lack of consistency with guidelines (Homeland Security Process with Office of International Programs), complicated and expensive rules on what can be paid. ","Unsure/Don't know","Minor","Faculty Recruitment and Hiring Handbook","HR, Faculty Affairs, Office of International Programs"]
[null,null,null,"Disclosure of confidential information (personally identifying information (PII) or health care info)","Very low","Unsure/Don't know","Electronic Information Security; Encryption of sensitive information, especially on laptops; Department policies limiting downloads and storage of personal information; Removal of partial information (e.g., partial SSNs); Audit, Risk, Compliance and Ethics Program; Export Controls","Weekly","Minor","Monitored and reported at department level.  Notifications to impacted parties generated in compliance with policy; Health Compliance Monitoring","HR&D, ORSP, iCIT"]
[null,null,null,"Employment Practices such as: Inconsistent management of faculty/department MOUs, tenure approval inconsistency, Affirmative Action ability to report on, ","High","Moderate","University Retention, Tenure & Promotion Policy; Business Contract policies; Whistle Blower system; Administrative Responsibilities Handbook, retention, Tenure & Promotion Handbook, Affirmative Action Capabilities are unknown, ","Ad-Hoc","Low","Concern regarding ability to report on Affirmative Action","Faculty Affairs"]
[null,null,null,"Human Resources - Expectations around exempt and non-exempt employees","Moderate","High","Continue training and developing managers to understand how to structure work accordingly.  Also implement consistent procedures within the units in compliance with the requirements of exempt and non exempt employee classifications","Quarterly","Moderate","Access structure and completion of department work flows to determine that staff is appropriating sufficient time to meet operational and functional needs.  ","Student Affairs & Enrollment Management (Enrollment Management) and Human Resources "]
[null,null,null,"Lack of comfort with third-party vendor system security","Moderate","Unsure/Don't know","Contract Language; Indemnity requirements; Certificates of insurance; Electronic Information Security: Third Party Agreements; Systems Development and Maintenance Standards: Vendor Package Purchase  ","Monthly","Nearly complete","Insurance Tracker; Monitoring to ensure systems meet requirements and are appropriately secure","iCIT"]

{"sheet":"Reputational","index":6,"n_rows":15,"n_cols":11,"rows_kept":15,"cut":false,"hidden":false,"merged":[[2,1,20,1]]}
[]
[null,"Assess Reputational Risks"]
[null,"The objectives you entered are shown at right. Below them are spaces to list the risks which could impair accomplishing those objectives. \n\nOnce you have listed the risks, assess the impact and likelihood of each, and describe the risk management and mitigation activities prescribed by management. Next, identify how frequently the controls are implemented and their effectiveness. \n\nThen, under \"Dashboards, Monitoring, & Reporting,\" describe how the control activities are being monitored and identify the person in your organization who is accountable for monitoring those controls.\n\nIf you want to change the options shown on the menus for \"Risk Impact\", \"Risk Likelihood\", or \"Control Effectiveness\" you can change them by clicking \"Customize Scales\" below."]
[]
[null,null,null,"Reputational Risks","Risk Impact","Risk Likelihood","Management and Mitigation","Frequency of Controls","Control Effectiveness","Dashboards, Monitoring, & Reporting","Accountable\nPerson/Department"]
[null,null,null,"Research misconduct, such as falsification of data or results, or non-disclosure of research dangers","Very low","Moderate","Research Compliance and Integrity Offices; Research Compliance Policies (Certifications and Manuals); ARCE; Internal Control Program; Whistle Blower Program; Mandatory Ethics Training","Weekly","Significant","Whistle blower system; Claims System; Investigations of allegations of research misconduct","Individual Pis"]
[null,null,null,"Unethical/unapproved human/animal subject research","Moderate","Moderate","Whistle Blower Program; Institutional Review Boards (IRBs); Institutional Animal Care and Use Policies and Committees; Centers for Animal Alternatives; Education Certification in use of animals or human subjects","Weekly","Minor","Protocol review and approval process for human and animal subjects.  Claims System for misusing Human Subject or Animals","Counsel's office"]
[null,null,null,"Personnel issues or workplace violence","Very low","Very low","Police services; Threat Management Teams and Programs; Employee assistance programs; Mediation Services; Workplace Violence Prevention programs; Policies and training","Annually","None","Security alarm monitoring; Claims systems; Law Enforcement Systems; Clery Crime Statistics; Other Crime Statistics","HR&D,  Police"]
[null,null,null,"Sports/public event disturbances","Moderate","Low","Safety & Security programs; Emergency Management; Safety programs such as Safe Party Initiatives, and Community Safety Programs","Weekly","Significant","Campus Police Departments; Claims System"," Police"]
[null,null,null,"Student mental health - changing emotional climate","Very low","Unsure/Don't know","Student Health Clinics; Threat Management Team; Student Affairs","Multiple times daily","Moderate","Reported at a department level","Medical services, Dean of Students, Student Affairs"]
[null,null,null,"Inappropriate athletic recruiting","Very low","Low","Conflict of Interest Policies; NCAA Regulations; Internal Audit Review","Ad-hoc","Nearly complete","Claims System,  Action","Sports and Recreation, HR&D"]
[null,null,null,"Protest Response by University","Very High","Moderate"," Police Department Policies;  Police Department personnel are trained and equipped for civil unrest. Work collaboratively with other  departments, such as Student Affairs.","Monthly","Significant"," Police Department Security and Fire Safety Annual Report.  Police Department is a 24/7/365 operation. Direct reporting of civil unrest to  Police Department."," Police, Student Affairs"]
[null,null,null,"General safety and security OFF campus, i.e. International Field Research, Foreign Travel","High","High","Safety & Security programs; Emergency Management; Travel Insurance Program","Ad-hoc","Significant"," Travel system","Risk Management"]
[null,null,null,"General safety and security, on campus","High","High","Safety & Security programs; Emergency Management; Make Safety Happen Programs; Background checks; Safety programs such as Safe Party Initiatives, and Community Safety Programs","Ad-hoc","Significant","Business Intelligence System; looking to deploy People Locator System wide; Claims and Incident Reporting System"," Police, Risk Management"]
[null,null,null,"Minors on Campus and Off Campus","High","Moderate","For summer camps and similar events maintain due diligence, pre-departure orientation, appropriate Risk Management procedure (insurance, waiver, etc.) and background check chaperones.","Annually","Significant","Records maintained by  Camps and Conferences.  Students may not depart until they participate in the orientation, purchase the required insurance, and their parents/guardians signed the Release of Liability Form."," Police, Risk Management, Continuing Education"]

{"sheet":"Reporting","index":7,"n_rows":12,"n_cols":11,"rows_kept":12,"cut":false,"hidden":false,"merged":[[2,1,25,1]]}
[]
[null,"Assess Reporting Risks"]
[null,"The objectives you entered are shown at right. Below them are spaces to list the risks which could impair accomplishing those objectives. \n\nOnce you have listed the risks, assess the impact and likelihood of each, and describe the risk management and mitigation activities prescribed by management. Next, identify how frequently the controls are implemented and their effectiveness. \n\nThen, under \"Dashboards, Monitoring, & Reporting,\" describe how the control activities are being monitored and identify the person in your organization who is accountable for monitoring those controls.\n\nIf you want to change the options shown on the menus for \"Risk Impact\", \"Risk Likelihood\", or \"Control Effectiveness\" you can change them by clicking \"Customize Scales\" below."]
[]
[null,null,null,"Reporting Risks","Risk Impact","Risk Likelihood","Management and Mitigation","Frequency of Controls","Control Effectiveness","Dashboards, Monitoring, & Reporting","Accountable\nPerson/Department"]
[null,null,null,"Failure to maintain equipment inventories","Unsure/Don't know","Very low","Equipment Management Policies; Internal Audit Review ","Weekly","Nearly complete","Maintenance Insurance Program; looking to deploy the included equipment inventory database system-wide; Periodic physical inventories and certifications of equipment","Individual Pis"]
[null,null,null,"Sub-recipients not managed appropriately","Unsure/Don't know","Very high"," Operating Guidance (Contracts and Grants Manual on Subrecipient Monitoring); Training and Best Practices documents; Internal Audit Review;","Ad-hoc","Nearly complete","Reported at department level; OMB Circular A-133 Audit performed annually by external auditors","Administration"]
[null,null,null,"Obsolescence of systems/technology","Moderate","High","Institutional Data Management and Governance Initiative; Local computer replacement cycles; Systems life cycle management. Aged electrical infrastructure with many single failure points exist.  Battery backup has insufficient time for \"graceful shutdown\" should single generator fail to function.  system lacks rental generator connection point.","Weekly","None","Reported at department level; Help Desk reports; system performance monitoring","iCIT"]
[null,null,null,"Intellectual property infringement","Unsure/Don't know","Very low","Industry collaboration guides; Web-based resources; Administrative Responsibilities Handbook -Research Affairs: Intellectual Property","Annually","Minor","Claims System; Web-based resources ","Counsel's office"]
[null,null,null,"Unauthorized modification of data","Moderate","Very low","Management Guide for Information Security Guidelines and iCIT Policies; Electronic Information Security policy; Cyber-Safety Programs and work groups; Internal Control Program;  Network Security Programs including firewall services; User training and roles management; Web application security (e.g., standard coding practices)","Daily","None","Reported at local level; Annual Security Reports; Monitoring of activities by application super users, database administrators and systems administrators; General and Payroll Ledger Reviews; Systems logs monitoring; Intrusion Detection Systems","iCIT"]
[null,null,null,"Decentralization of systems leading to data inconsistencies and fragmentation","Moderate","Very low","iCIT implementation of the Shared Drive system","Multiple times daily","None","Reported at local level; Programming quality assurance and testing; Approvals by programming managers and users before moving new systems or changes to production","iCIT"]
[null,null,null,"Lack of common data definitions","Very low","Very low","Institutional Data Management and Governance Initiative; UWSA Systems Development and Maintenance Standards; Electronic Information Security: Change Management ","Ad-hoc","Significant","Reported at local level; Systems Development reviews and approvals; Audit Reports","iCIT"]

{"sheet":"Graph","index":8,"n_rows":139,"n_cols":17,"rows_kept":139,"cut":false,"hidden":false,"merged":[[0,1,1,2],[2,1,10,2]]}
[null,"Chart of Risks",{"$nulls":12},"Frequency","Severity","Impact"]
[{"$nulls":13},"Strategic",{"$f":"J35","v":3.2142857142857144},{"$f":"K35","v":3.4666666666666668},{"$f":"H35","v":15}]
[null,"This chart illustrates the aggregate frequency and severity of the risks associated with each different group of objectives. Each bubble's size increases with the number of risks identified for that set of objectives.",{"$nulls":11},"Financial",{"$f":"J52","v":3.3636363636363638},{"$f":"K52","v":2.9090909090909092},{"$f":"H52","v":11}]
[{"$nulls":13},"Compliance",{"$f":"J69","v":2.6666666666666665},{"$f":"K69","v":2.9333333333333331},{"$f":"H69","v":15}]
[{"$nulls":13},"Reputational",{"$f":"J86","v":2.7},{"$f":"K86","v":2.9},{"$f":"H86","v":10}]
[{"$nulls":13},"Operational",{"$f":"J103","v":3.6},{"$f":"K103","v":2.4},{"$f":"H103","v":15}]
[{"$nulls":13},"Reporting",{"$f":"J120","v":3.1428571428571428},{"$f":"K120","v":2},{"$f":"H120","v":7}]
{"$rows_empty":11}
[{"$nulls":7},"Likelihood","Likelihood","Likelihood","Severity"]
[{"$nulls":7},{"$f":"Strategic!E6","v":"Low"},{"$f":"Strategic!F6","v":"Very High"},{"$f":"IF(ISNA(VLOOKUP(H20,$M$20:$N$25,2,FALSE)),0,VLOOKUP(H20,$M$20:$N$25,2,FALSE))","v":2},{"$f":"IF(ISNA(VLOOKUP(I20,$M$20:$N$25,2,FALSE)),0,VLOOKUP(I20,$M$20:$N$25,2,FALSE))","v":5},null,"Very high",5]
[{"$nulls":7},{"$f":"Strategic!E7","v":"High"},{"$f":"Strategic!F7","v":"Unsure/Don't Know"},4,4,null,"High",4]
[{"$nulls":7},{"$f":"Strategic!E8","v":"Unsure/Don't know"},{"$f":"Strategic!F8","v":"Unsure/Don't Know"},4,4,null,"Moderate",3]
[{"$nulls":7},{"$f":"Strategic!E9","v":"Very low"},{"$f":"Strategic!F9","v":"Very low"},1,1,null,"Low",2]
[{"$nulls":7},{"$f":"Strategic!E10","v":"High"},{"$f":"Strategic!F10","v":"Moderate"},4,3,null,"Very low",1]
[{"$nulls":7},{"$f":"Strategic!E11","v":"Very High"},{"$f":"Strategic!F11","v":"High"},5,4,null,"Unsure/Don't know",4]
[{"$nulls":7},{"$f":"Strategic!E12","v":"Moderate"},{"$f":"Strategic!F12","v":"High"},3,4]
[{"$nulls":7},{"$f":"Strategic!E13","v":"Low"},{"$f":"Strategic!F13","v":"Moderate"},2,3]
[{"$nulls":7},{"$f":"Strategic!E14","v":"High "},{"$f":"Strategic!F14","v":"High"},0,4]
[{"$nulls":7},{"$f":"Strategic!E15","v":"Moderate"},{"$f":"Strategic!F15","v":"Moderate"},3,3]
[{"$nulls":7},{"$f":"Strategic!E16","v":"Moderate"},{"$f":"Strategic!F16","v":"Moderate"},3,3]
[{"$nulls":7},{"$f":"Strategic!E17","v":"Moderate"},{"$f":"Strategic!F17","v":"Moderate"},3,3]
[{"$nulls":7},{"$f":"Strategic!E18","v":"Moderate"},{"$f":"Strategic!F18","v":"Moderate"},3,3]
[{"$nulls":7},{"$f":"Strategic!E19","v":"Very High"},{"$f":"Strategic!F19","v":"Very high"},5,5]
[{"$nulls":7},{"$f":"Strategic!E20","v":"Moderate"},{"$f":"Strategic!F20","v":"Moderate"},3,3]
[{"$nulls":7},{"$f":"15-COUNTIF(H20:H34,0)","v":15},null,{"$f":"IF(ISERR(AVERAGEIF(J20:J34,\"<>0\")),0,AVERAGEIF(J20:J34,\"<>0\"))","v":3.2142857142857144},{"$f":"IF(ISERR(AVERAGEIF(K20:K34,\"<>0\")),0,AVERAGEIF(K20:K34,\"<>0\"))","v":3.4666666666666668}]
[{"$nulls":7},"Likelihood","Likelihood","Likelihood","Severity"]
[{"$nulls":7},{"$f":"Financial!E6","v":"Low"},{"$f":"Financial!F6","v":"Very Low"},{"$f":"IF(ISNA(VLOOKUP(H37,$M$20:$N$25,2,FALSE)),0,VLOOKUP(H37,$M$20:$N$25,2,FALSE))","v":2},{"$f":"IF(ISNA(VLOOKUP(I37,$M$20:$N$25,2,FALSE)),0,VLOOKUP(I37,$M$20:$N$25,2,FALSE))","v":1}]
[{"$nulls":7},{"$f":"Financial!E7","v":"High"},{"$f":"Financial!F7","v":"Unsure/Don't know"},{"$f":"IF(ISNA(VLOOKUP(H38,$M$20:$N$25,2,FALSE)),0,VLOOKUP(H38,$M$20:$N$25,2,FALSE))","v":4},{"$f":"IF(ISNA(VLOOKUP(I38,$M$20:$N$25,2,FALSE)),0,VLOOKUP(I38,$M$20:$N$25,2,FALSE))","v":4}]
[{"$nulls":7},{"$f":"Financial!E8","v":"Very low"},{"$f":"Financial!F8","v":"Very low"},1,1]
[{"$nulls":7},{"$f":"Financial!E9","v":"Unsure/Don't know"},{"$f":"Financial!F9","v":"Unsure/Don't know"},{"$f":"IF(ISNA(VLOOKUP(H40,$M$20:$N$25,2,FALSE)),0,VLOOKUP(H40,$M$20:$N$25,2,FALSE))","v":4},{"$f":"IF(ISNA(VLOOKUP(I40,$M$20:$N$25,2,FALSE)),0,VLOOKUP(I40,$M$20:$N$25,2,FALSE))","v":4}]
[{"$nulls":7},{"$f":"Financial!E10","v":"Very high"},{"$f":"Financial!F10","v":"Very high"},5,5]
[{"$nulls":7},{"$f":"Financial!E11","v":"Moderate"},{"$f":"Financial!F11","v":"Moderate"},3,3]
[{"$nulls":7},{"$f":"Financial!E12","v":"High"},{"$f":"Financial!F12","v":"Moderate"},4,3]
[{"$nulls":7},{"$f":"Financial!E13","v":"Moderate"},{"$f":"Financial!F13","v":"Very low"},3,1]
[{"$nulls":7},{"$f":"Financial!E14","v":"Moderate"},{"$f":"Financial!F14","v":"Moderate"},3,3]
[{"$nulls":7},{"$f":"Financial!E15","v":"Very High"},{"$f":"Financial!F15","v":"High"},5,4]
[{"$nulls":7},{"$f":"Financial!E16","v":"Moderate"},{"$f":"Financial!F16","v":"Moderate"},3,3]
[{"$nulls":7},{"$f":"Financial!E17","v":0},{"$f":"Financial!F17","v":0},0,0]
[{"$nulls":7},{"$f":"Financial!E18","v":0},{"$f":"Financial!F18","v":0},0,0]
[{"$nulls":7},{"$f":"Financial!E19","v":0},{"$f":"Financial!F19","v":0},0,0]
[{"$nulls":7},{"$f":"Financial!E20","v":0},{"$f":"Financial!F20","v":0},0,0]
[{"$nulls":7},{"$f":"15-COUNTIF(H37:H51,0)","v":11},null,{"$f":"IF(ISERR(AVERAGEIF(J37:J51,\"<>0\")),0,AVERAGEIF(J37:J51,\"<>0\"))","v":3.3636363636363638},{"$f":"IF(ISERR(AVERAGEIF(K37:K51,\"<>0\")),0,AVERAGEIF(K37:K51,\"<>0\"))","v":2.9090909090909092}]
[{"$nulls":7},"Likelihood","Likelihood","Likelihood","Severity"]
[{"$nulls":7},{"$f":"Compliance!E6","v":"Very low"},{"$f":"Compliance!F6","v":"Low"},{"$f":"IF(ISNA(VLOOKUP(H54,$M$20:$N$25,2,FALSE)),0,VLOOKUP(H54,$M$20:$N$25,2,FALSE))","v":1},{"$f":"IF(ISNA(VLOOKUP(I54,$M$20:$N$25,2,FALSE)),0,VLOOKUP(I54,$M$20:$N$25,2,FALSE))","v":2}]
[{"$nulls":7},{"$f":"Compliance!E7","v":"Moderate"},{"$f":"Compliance!F7","v":"High"},3,4]
[{"$nulls":7},{"$f":"Compliance!E8","v":"Unsure/Don't know"},{"$f":"Compliance!F8","v":"Very low"},4,1]
[{"$nulls":7},{"$f":"Compliance!E9","v":"Moderate"},{"$f":"Compliance!F9","v":"Moderate"},3,3]
[{"$nulls":7},{"$f":"Compliance!E10","v":"Very low"},{"$f":"Compliance!F10","v":"Very low"},1,1]
[{"$nulls":7},{"$f":"Compliance!E11","v":"Moderate"},{"$f":"Compliance!F11","v":"Unsure/Don't know"},3,4]
[{"$nulls":7},{"$f":"Compliance!E12","v":"Low"},{"$f":"Compliance!F12","v":"Very low"},2,1]
[{"$nulls":7},{"$f":"Compliance!E13","v":"High"},{"$f":"Compliance!F13","v":"High"},4,4]
[{"$nulls":7},{"$f":"Compliance!E14","v":"Moderate"},{"$f":"Compliance!F14","v":"High"},3,4]
[{"$nulls":7},{"$f":"Compliance!E15","v":"Very low"},{"$f":"Compliance!F15","v":"Very high"},1,5]
[{"$nulls":7},{"$f":"Compliance!E16","v":"Very low"},{"$f":"Compliance!F16","v":"Very low"},1,1]
[{"$nulls":7},{"$f":"Compliance!E17","v":"High"},{"$f":"Compliance!F17","v":"High"},4,4]
[{"$nulls":7},{"$f":"Compliance!E18","v":"Very High"},{"$f":"Compliance!F18","v":"Moderate"},5,3]
[{"$nulls":7},{"$f":"Compliance!E19","v":"High"},{"$f":"Compliance!F19","v":"Moderate"},4,3]
[{"$nulls":7},{"$f":"Compliance!E20","v":"Very low"},{"$f":"Compliance!F20","v":"Unsure/Don't know"},1,4]
[{"$nulls":7},{"$f":"15-COUNTIF(H54:H68,0)","v":15},null,{"$f":"IF(ISERR(AVERAGEIF(J54:J68,\"<>0\")),0,AVERAGEIF(J54:J68,\"<>0\"))","v":2.6666666666666665},{"$f":"IF(ISERR(AVERAGEIF(K54:K68,\"<>0\")),0,AVERAGEIF(K54:K68,\"<>0\"))","v":2.9333333333333331}]
[{"$nulls":7},"Likelihood","Likelihood","Likelihood","Severity"]
[{"$nulls":7},{"$f":"Reputational!E6","v":"Very low"},{"$f":"Reputational!F6","v":"Moderate"},{"$f":"IF(ISNA(VLOOKUP(H71,$M$20:$N$25,2,FALSE)),0,VLOOKUP(H71,$M$20:$N$25,2,FALSE))","v":1},{"$f":"IF(ISNA(VLOOKUP(I71,$M$20:$N$25,2,FALSE)),0,VLOOKUP(I71,$M$20:$N$25,2,FALSE))","v":3}]
[{"$nulls":7},{"$f":"Reputational!E7","v":"Moderate"},{"$f":"Reputational!F7","v":"Moderate"},3,3]
[{"$nulls":7},{"$f":"Reputational!E8","v":"Very low"},{"$f":"Reputational!F8","v":"Very low"},1,1]
[{"$nulls":7},{"$f":"Reputational!E9","v":"Moderate"},{"$f":"Reputational!F9","v":"Low"},3,2]
[{"$nulls":7},{"$f":"Reputational!E10","v":"Very low"},{"$f":"Reputational!F10","v":"Unsure/Don't know"},1,4]
[{"$nulls":7},{"$f":"Reputational!E11","v":"Very low"},{"$f":"Reputational!F11","v":"Low"},1,2]
[{"$nulls":7},{"$f":"Reputational!E12","v":"Very High"},{"$f":"Reputational!F12","v":"Moderate"},5,3]
[{"$nulls":7},{"$f":"Reputational!E13","v":"High"},{"$f":"Reputational!F13","v":"High"},4,4]
[{"$nulls":7},{"$f":"Reputational!E14","v":"High"},{"$f":"Reputational!F14","v":"High"},4,4]
[{"$nulls":7},{"$f":"Reputational!E15","v":"High"},{"$f":"Reputational!F15","v":"Moderate"},4,3]
[{"$nulls":7},{"$f":"Reputational!E16","v":0},{"$f":"Reputational!F16","v":0},0,0]
[{"$nulls":7},{"$f":"Reputational!E17","v":0},{"$f":"Reputational!F17","v":0},0,0]
[{"$nulls":7},{"$f":"Reputational!E18","v":0},{"$f":"Reputational!F18","v":0},0,0]
[{"$nulls":7},{"$f":"Reputational!E19","v":0},{"$f":"Reputational!F19","v":0},0,0]
[{"$nulls":7},{"$f":"Reputational!E20","v":0},{"$f":"Reputational!F20","v":0},0,0]
[{"$nulls":7},{"$f":"15-COUNTIF(H71:H85,0)","v":10},null,{"$f":"IF(ISERR(AVERAGEIF(J71:J85,\"<>0\")),0,AVERAGEIF(J71:J85,\"<>0\"))","v":2.7},{"$f":"IF(ISERR(AVERAGEIF(K71:K85,\"<>0\")),0,AVERAGEIF(K71:K85,\"<>0\"))","v":2.9}]
[{"$nulls":7},"Likelihood","Likelihood","Likelihood","Severity"]
[{"$nulls":7},{"$f":"Operational!E6","v":"Very high"},{"$f":"Operational!F6","v":"Moderate"},{"$f":"IF(ISNA(VLOOKUP(H88,$M$20:$N$25,2,FALSE)),0,VLOOKUP(H88,$M$20:$N$25,2,FALSE))","v":5},{"$f":"IF(ISNA(VLOOKUP(I88,$M$20:$N$25,2,FALSE)),0,VLOOKUP(I88,$M$20:$N$25,2,FALSE))","v":3}]
[{"$nulls":7},{"$f":"Operational!E7","v":"Moderate"},{"$f":"Operational!F7","v":"Low"},3,2]
[{"$nulls":7},{"$f":"Operational!E8","v":"Moderate"},{"$f":"Operational!F8","v":"Very low"},3,1]
[{"$nulls":7},{"$f":"Operational!E9","v":"High"},{"$f":"Operational!F9","v":"High"},4,4]
[{"$nulls":7},{"$f":"Operational!E10","v":"High"},{"$f":"Operational!F10","v":"High"},4,4]
[{"$nulls":7},{"$f":"Operational!E11","v":"High"},{"$f":"Operational!F11","v":"Low"},4,2]
[{"$nulls":7},{"$f":"Operational!E12","v":"Very High"},{"$f":"Operational!F12","v":"Moderate"},5,3]
[{"$nulls":7},{"$f":"Operational!E13","v":"Very high"},{"$f":"Operational!F13","v":"Moderate"},5,3]
[{"$nulls":7},{"$f":"Operational!E14","v":"Moderate"},{"$f":"Operational!F14","v":"Low"},3,2]
[{"$nulls":7},{"$f":"Operational!E15","v":"Very low"},{"$f":"Operational!F15","v":"Low"},1,2]
[{"$nulls":7},{"$f":"Operational!E16","v":"Low"},{"$f":"Operational!F16","v":"Low"},2,2]
[{"$nulls":7},{"$f":"Operational!E17","v":"High"},{"$f":"Operational!F17","v":"Very Low"},4,1]
[{"$nulls":7},{"$f":"Operational!E18","v":"Very High"},{"$f":"Operational!F18","v":"Moderate"},5,3]
[{"$nulls":7},{"$f":"Operational!E19","v":"Moderate"},{"$f":"Operational!F19","v":"Moderate"},3,3]
[{"$nulls":7},{"$f":"Operational!E20","v":"Moderate"},{"$f":"Operational!F20","v":"Very low"},3,1]
[{"$nulls":7},{"$f":"15-COUNTIF(H88:H102,0)","v":15},null,{"$f":"IF(ISERR(AVERAGEIF(J88:J102,\"<>0\")),0,AVERAGEIF(J88:J102,\"<>0\"))","v":3.6},{"$f":"IF(ISERR(AVERAGEIF(K88:K102,\"<>0\")),0,AVERAGEIF(K88:K102,\"<>0\"))","v":2.4}]
[{"$nulls":7},"Likelihood","Likelihood","Likelihood","Severity"]
[{"$nulls":7},{"$f":"Reporting!E6","v":"Unsure/Don't know"},{"$f":"Reporting!F6","v":"Very low"},{"$f":"IF(ISNA(VLOOKUP(H105,$M$20:$N$25,2,FALSE)),0,VLOOKUP(H105,$M$20:$N$25,2,FALSE))","v":4},{"$f":"IF(ISNA(VLOOKUP(I105,$M$20:$N$25,2,FALSE)),0,VLOOKUP(I105,$M$20:$N$25,2,FALSE))","v":1}]
[{"$nulls":7},{"$f":"Reporting!E7","v":"Unsure/Don't know"},{"$f":"Reporting!F7","v":"Very high"},4,5]
[{"$nulls":7},{"$f":"Reporting!E8","v":"Moderate"},{"$f":"Reporting!F8","v":"High"},3,4]
[{"$nulls":7},{"$f":"Reporting!E9","v":"Unsure/Don't know"},{"$f":"Reporting!F9","v":"Very low"},4,1]
[{"$nulls":7},{"$f":"Reporting!E10","v":"Moderate"},{"$f":"Reporting!F10","v":"Very low"},3,1]
[{"$nulls":7},{"$f":"Reporting!E11","v":"Moderate"},{"$f":"Reporting!F11","v":"Very low"},3,1]
[{"$nulls":7},{"$f":"Reporting!E12","v":"Very low"},{"$f":"Reporting!F12","v":"Very low"},1,1]
[{"$nulls":7},{"$f":"Reporting!E13","v":0},{"$f":"Reporting!F13","v":0},0,0]
[{"$nulls":7},{"$f":"Reporting!E14","v":0},{"$f":"Reporting!F14","v":0},0,0]
[{"$nulls":7},{"$f":"Reporting!E15","v":0},{"$f":"Reporting!F15","v":0},0,0]
[{"$nulls":7},{"$f":"Reporting!E16","v":0},{"$f":"Reporting!F16","v":0},0,0]
[{"$nulls":7},{"$f":"Reporting!E17","v":0},{"$f":"Reporting!F17","v":0},0,0]
[{"$nulls":7},{"$f":"Reporting!E18","v":0},{"$f":"Reporting!F18","v":0},0,0]
[{"$nulls":7},{"$f":"Reporting!E19","v":0},{"$f":"Reporting!F19","v":0},0,0]
[{"$nulls":7},{"$f":"Reporting!E20","v":0},{"$f":"Reporting!F20","v":0},0,0]
[{"$nulls":7},{"$f":"15-COUNTIF(H105:H119,0)","v":7},null,{"$f":"IF(ISERR(AVERAGEIF(J105:J119,\"<>0\")),0,AVERAGEIF(J105:J119,\"<>0\"))","v":3.1428571428571428},{"$f":"IF(ISERR(AVERAGEIF(K105:K119,\"<>0\")),0,AVERAGEIF(K105:K119,\"<>0\"))","v":2}]
{"$rows_empty":18}
[{"$nulls":4},"Return to Introduction"]

{"sheet":"Lists","index":9,"n_rows":57,"n_cols":17,"rows_kept":57,"cut":false,"hidden":false,"merged":[[35,6,50,9],[35,11,50,14],[35,16,54,16],[56,16,61,16]]}
["Location","ID"]
["UC Berkeley",1]
["UC San Francisco",2]
["UC Davis",3]
["UC Los Angeles",4]
["UC Riverside",5]
["UC San Diego",6]
["UC Santa Cruz",7]
["UC Santa Barbara",8]
["UC Irvine",9]
["UC Merced",10]
["UC San Francisco Medical Center",11]
["UC Davis Medical Center",12]
["UC Los Angeles Medical Center",13]
["UC San Diego Medical Center",14]
["UC Irvine Medical Center",15]
["Office of the President",16]
["Agriculture and Natural Resources",18]
["Other/Not Listed",17]
[]
["Very high"]
["High"]
["Moderate"]
["Low"]
["Very low"]
["Unsure/Don't know"]
[]
[null,null,"Step 1: Describe Objectives"]
["Multiple times daily",null,"Step 2: Assess Strategic Risks"]
["Daily",null,"Step 3: Assess Financial Risks"]
["Weekly",null,"Step 4: Assess Operational Risks"]
["Monthly",null,"Step 5: Assess Compliance Risks"]
["Quarterly",null,"Step 6: Assess Reputational Risks"]
["Semi-annually",null,"Step 7: Assess Reporting Risks",null,null,"Reports"]
["Annually",null,"Return to Introduction",null,null,"Describing Objectives and Assessing Risks"]
["Ad-hoc",null,"Customize Scales",null,null,null,"Before you begin reviewing the program and evaluating the risks involved, it's necessary to set some common definitions for the varying degrees of a risk's impact and likelihood. It's also important to set common parameters for evaluating the effectiveness of controls. \n\nSample definitions are provided, but they can be modified to suit your needs. When you've completed this step, begin describing the program's objectives and assessing its risks on the pages linked below.\n\nYou can return to this page any time by clicking the \"Customize Scales\" button on any page.",{"$nulls":4},"Use the spaces on this page to describe strategic, financial, compliance, reputational, operational, reputational, and reporting objectives of your organization. \n\nThese objectives will appear at the top of the assessment page for the appropriate type of risk. If you would like to make changes to these objectives as you are assessing the risks associated with them, double click them and you will be brought back to this page. You can return to this page using the button for Step 1 on each page, too.",{"$nulls":4},"This page summarizes each of the entries made in Steps 1 - 7 in a printer-friendly format."]
["Unsure/Don't know",null,"Chart of Risks"]
[null,null,"Ratings and Summary"]
[null,null,null,"You can change the weighting of the impact and likelihood factors above by changing the numbers above. These two numbers must add up to 100%."]
[]
[]
[null,null,"Error in weighting:",{"$f":"IF(SUM(Scales!I5:J5)=1,\"\",\"Error, weighting is not 100% total!\")","v":""}]
{"$rows_empty":14}
[{"$nulls":16},"Use the button below to create a .csv-format file containing the data you entered. The .csv is compatible with the UC Enterprise Risk Management Information System."]

{"sheet":"Scales","index":10,"n_rows":28,"n_cols":10,"rows_kept":28,"cut":false,"hidden":false,"merged":[[0,1,1,2],[2,4,2,5],[11,4,11,5],[20,4,20,5],[2,8,2,9]]}
[null,"Customize Scales",{"$nulls":4},"HIDE"]
[]
[{"$nulls":4},"Risk Impact",null,null,null,"Weighting"]
[{"$nulls":4},"Scale","Definition","Factor",null,"Risk Impact","Risk Likelihood"]
[{"$nulls":4},"Very high","Program operations are threatened or significantly affected in the immediate and long term",10,null,0.5,0.5]
[{"$nulls":4},"High","Program operations in the immediate term are significantly reduced or impacted, long term operations are potentially impaired.",8]
[{"$nulls":4},"Moderate","Program operations avoid suspension or long-term impairment, but modifications to operations must be implemented.",6]
[{"$nulls":4},"Low","Program impairments are limited to short-term consequences with few or no long-term effect. Minimal change to current operations.",4]
[{"$nulls":4},"Very low","Program remains mostly unchanged in the immediate or long terms, but risk awareness and monitoring remains worthwhile.",2]
[{"$nulls":4},"Unsure/Don't Know",null,{"$f":"0.5*G5","v":5}]
[]
[{"$nulls":4},"Risk Likelihood"]
[{"$nulls":4},"Scale","Definition","Factor"]
[{"$nulls":4},"Very high","Certain to occur",10]
[{"$nulls":4},"High","Almost certain to occur",8]
[{"$nulls":4},"Moderate","May occur within the year",6]
[{"$nulls":4},"Low","Not likely to occur within the year",4]
[{"$nulls":4},"Very low","Not likely to occur within the next 10 years",2]
[{"$nulls":4},"Unsure/Don't Know",null,{"$f":"0.5*G14","v":5}]
[]
[{"$nulls":4},"Control Effectiveness"]
[{"$nulls":4},"Scale","Definition","Factor"]
[{"$nulls":4},"Nearly complete","The controls reduce the risk's combined likelihood and severity by 95%.",0.95]
[{"$nulls":4},"Significant","The controls reduce the risk's combined likelihood and severity by 90%.",0.75]
[{"$nulls":4},"Moderate","The controls reduce the risk's combined likelihood and severity by 50%.",0.5]
[{"$nulls":4},"Minor","The controls reduce the risk's combined likelihood and severity by 30%.",0.25]
[{"$nulls":4},"None","The controls do not reduce the risk's likelihood or severity at all.",0]
[{"$nulls":4},"Unsure/Don't Know",null,0]

{"sheet":"Scoring","index":11,"n_rows":25,"n_cols":11,"rows_kept":25,"cut":false,"hidden":false,"merged":[]}
[]
[null,"Severity Scales"]
[null,{"$f":"Scales!E5","v":"Very high"},null,null,null,"risk score","control"]
[null,{"$f":"Scales!E6","v":"High"},{"$nulls":4},{"$f":"B25","v":"None"},{"$f":"B24","v":"Minor"},{"$f":"B23","v":"Moderate"},{"$f":"B22","v":"Significant"},{"$f":"B21","v":"Nearly complete"}]
[null,{"$f":"Scales!E7","v":"Moderate"},null,null,null,2,"Adequately controlled","Adequately controlled","Potentially over-controlled","Potentially over-controlled","Potentially over-controlled"]
[null,{"$f":"Scales!E8","v":"Low"},null,null,null,{"$f":"F5+1","v":3},"Potentially poorly controlled","Adequately controlled","Potentially over-controlled","Potentially over-controlled","Potentially over-controlled"]
[null,{"$f":"Scales!E9","v":"Very low"},null,null,null,{"$f":"F6+1","v":4},"Potentially poorly controlled","Adequately controlled","Potentially over-controlled","Potentially over-controlled","Potentially over-controlled"]
[null,{"$f":"Scales!E10","v":"Unsure/Don't Know"},null,null,null,5,"Poorly controlled","Potentially poorly controlled","Adequately controlled","Potentially over-controlled","Potentially over-controlled"]
[{"$nulls":5},6,"Poorly controlled","Potentially poorly controlled","Adequately controlled","Adequately controlled","Potentially over-controlled"]
[{"$nulls":5},7,"Poorly controlled","Poorly controlled","Potentially poorly controlled","Adequately controlled","Potentially over-controlled"]
[null,"Frequency Scales",null,null,null,8,"Poorly controlled","Poorly controlled","Potentially poorly controlled","Adequately controlled","Adequately controlled"]
[null,{"$f":"Scales!E14","v":"Very high"},null,null,null,9,"Poorly controlled","Poorly controlled","Poorly controlled","Potentially poorly controlled","Adequately controlled"]
[null,{"$f":"Scales!E15","v":"High"},null,null,null,10,"Poorly controlled","Poorly controlled","Poorly controlled","Potentially poorly controlled","Adequately controlled"]
[null,{"$f":"Scales!E16","v":"Moderate"}]
[null,{"$f":"Scales!E17","v":"Low"}]
[null,{"$f":"Scales!E18","v":"Very low"}]
[null,{"$f":"Scales!E19","v":"Unsure/Don't Know"}]
[]
[]
[null,"Controls"]
[null,{"$f":"Scales!E23","v":"Nearly complete"}]
[null,{"$f":"Scales!E24","v":"Significant"}]
[null,{"$f":"Scales!E25","v":"Moderate"}]
[null,{"$f":"Scales!E26","v":"Minor"}]
[null,{"$f":"Scales!E27","v":"None"}]

{"sheet":"ForPrint","index":12,"n_rows":164,"n_cols":17,"rows_kept":164,"cut":false,"hidden":false,"merged":[[1,0,1,1]]}
[]
["Ratings and Summary"]
{"$rows_empty":10}
[null,null,null,{"$f":"Strategic!$D$5","v":"Strategic Risks"},"Management & Mitigation","Dashboards, Monitoring, & Accountability","Accountable Person/Department","Risk Rating"]
[null,null,null,{"$f":"IF(Strategic!$D$6=\"\",\"\",Strategic!$D$6)","v":"Budget impairment"},{"$f":"IF(Strategic!$G$6=\"\",\"\",Strategic!$G$6)","v":"External financing program; Budget Officers"},{"$f":"IF(Strategic!$J$6=\"\",\"\",Strategic!$J$6)","v":"Leveraging Wisdom & WISER systems"},{"$f":"IF(Strategic!$K$6=\"\",\"\",Strategic!$K$6)","v":"Senior leadership, Deans, Administration"},{"$f":"IF(Strategic!E6=\"\",\"\",IF(Strategic!F6=\"\",\"\",IF(Strategic!I6=\"\",\"\",INDEX(Scoring!$G$5:$K$13,MATCH(O14,Scoring!$F$5:$F$13,0),MATCH(P14,Scoring!$G$4:$K$4,0)))))","v":"Poorly controlled"},null,null,{"$f":"IF(Strategic!E6=\"\",\"\",IF(Strategic!F6=\"\",\"\",IF(Strategic!I6=\"\",\"\",(VLOOKUP(Strategic!E6,Scales!$E$5:$G$10,3,FALSE)))))","v":4},{"$f":"IF(K14=\"\",\"\",(VLOOKUP(Strategic!F6,Scales!$E$14:$G$19,3,FALSE)))","v":10},{"$f":"Scales!$I$5","v":0.5},{"$f":"Scales!$J$5","v":0.5},{"$f":"IF(K14=\"\",\"\",IF(L14=\"\",\"\",ROUND(SUMPRODUCT(K14:L14*M14:N14),0)))","v":7},{"$f":"Strategic!I6","v":"Minor"},{"$f":"IF(K14=\"\",\"\",IF(L14=\"\",\"\",IF(P14=\"\",\"\",K14*L14*(1-VLOOKUP(P14,Scales!$E$23:$G$27,3,FALSE)))))","v":30}]
[null,null,null,{"$f":"IF(Strategic!$D$7=\"\",\"\",Strategic!$D$7)","v":"Ineffective auxiliary management"},{"$f":"IF(Strategic!$G$7=\"\",\"\",Strategic!$G$7)","v":"Auxiliary departments have programs focused on operational excellence"},{"$f":"IF(Strategic!$J$7=\"\",\"\",Strategic!$J$7)","v":"Reported on department websites"},{"$f":"IF(Strategic!$K$7=\"\",\"\",Strategic!$K$7)","v":"Vice Chancellor of Student Affairs and CBO"},{"$f":"IF(Strategic!E7=\"\",\"\",IF(Strategic!F7=\"\",\"\",IF(Strategic!I7=\"\",\"\",INDEX(Scoring!$G$5:$K$13,MATCH(O15,Scoring!$F$5:$F$13,0),MATCH(P15,Scoring!$G$4:$K$4,0)))))","v":"Poorly controlled"},null,null,{"$f":"IF(Strategic!E7=\"\",\"\",IF(Strategic!F7=\"\",\"\",IF(Strategic!I7=\"\",\"\",(VLOOKUP(Strategic!E7,Scales!$E$5:$G$10,3,FALSE)))))","v":8},{"$f":"IF(K15=\"\",\"\",(VLOOKUP(Strategic!F7,Scales!$E$14:$G$19,3,FALSE)))","v":5},{"$f":"Scales!$I$5","v":0.5},{"$f":"Scales!$J$5","v":0.5},{"$f":"IF(K15=\"\",\"\",IF(L15=\"\",\"\",ROUND(SUMPRODUCT(K15:L15*M15:N15),0)))","v":7},{"$f":"Strategic!I7","v":"None"},{"$f":"IF(K15=\"\",\"\",IF(L15=\"\",\"\",IF(P15=\"\",\"\",K15*L15*(1-VLOOKUP(P15,Scales!$E$23:$G$27,3,FALSE)))))","v":40}]
[null,null,null,{"$f":"IF(Strategic!$D$8=\"\",\"\",Strategic!$D$8)","v":"Insufficient oversight over third-party vendors"},{"$f":"IF(Strategic!$G$8=\"\",\"\",Strategic!$G$8)","v":"Business Contracts unit and  Purchasing; Separation of Duties on vendor payments; Accounts Payable reviews"},{"$f":"IF(Strategic!$J$8=\"\",\"\",Strategic!$J$8)","v":"Utilizing strategic sourcing"},{"$f":"IF(Strategic!$K$8=\"\",\"\",Strategic!$K$8)","v":"Administrative Affairs"},{"$f":"IF(Strategic!E8=\"\",\"\",IF(Strategic!F8=\"\",\"\",IF(Strategic!I8=\"\",\"\",INDEX(Scoring!$G$5:$K$13,MATCH(O16,Scoring!$F$5:$F$13,0),MATCH(P16,Scoring!$G$4:$K$4,0)))))","v":"Adequately controlled"},null,null,{"$f":"IF(Strategic!E8=\"\",\"\",IF(Strategic!F8=\"\",\"\",IF(Strategic!I8=\"\",\"\",(VLOOKUP(Strategic!E8,Scales!$E$5:$G$10,3,FALSE)))))","v":5},{"$f":"IF(K16=\"\",\"\",(VLOOKUP(Strategic!F8,Scales!$E$14:$G$19,3,FALSE)))","v":5},{"$f":"Scales!$I$5","v":0.5},{"$f":"Scales!$J$5","v":0.5},5,{"$f":"Strategic!I8","v":"Moderate"},{"$f":"IF(K16=\"\",\"\",IF(L16=\"\",\"\",IF(P16=\"\",\"\",K16*L16*(1-VLOOKUP(P16,Scales!$E$23:$G$27,3,FALSE)))))","v":12.5}]
[null,null,null,{"$f":"IF(Strategic!$D$9=\"\",\"\",Strategic!$D$9)","v":"Employee recruitment and retention"},{"$f":"IF(Strategic!$G$9=\"\",\"\",Strategic!$G$9)","v":"Retention Issues and Solutions Initiative; Programs: Principles of Community, Work-Life Balance, Wellness,  and Training & Development; Online Recruitment Systems;  Statement of Ethical Values and Standards of Ethical Conduct"},{"$f":"IF(Strategic!$J$9=\"\",\"\",Strategic!$J$9)","v":"Business Intelligence System (OBEI)"},{"$f":"IF(Strategic!$K$9=\"\",\"\",Strategic!$K$9)","v":"Human Resources & Diversity"},{"$f":"IF(Strategic!E9=\"\",\"\",IF(Strategic!F9=\"\",\"\",IF(Strategic!I9=\"\",\"\",INDEX(Scoring!$G$5:$K$13,MATCH(O17,Scoring!$F$5:$F$13,0),MATCH(P17,Scoring!$G$4:$K$4,0)))))","v":"Potentially over-controlled"},null,null,{"$f":"IF(Strategic!E9=\"\",\"\",IF(Strategic!F9=\"\",\"\",IF(Strategic!I9=\"\",\"\",(VLOOKUP(Strategic!E9,Scales!$E$5:$G$10,3,FALSE)))))","v":2},{"$f":"IF(K17=\"\",\"\",(VLOOKUP(Strategic!F9,Scales!$E$14:$G$19,3,FALSE)))","v":2},{"$f":"Scales!$I$5","v":0.5},{"$f":"Scales!$J$5","v":0.5},2,{"$f":"Strategic!I9","v":"Significant"},{"$f":"IF(K17=\"\",\"\",IF(L17=\"\",\"\",IF(P17=\"\",\"\",K17*L17*(1-VLOOKUP(P17,Scales!$E$23:$G$27,3,FALSE)))))","v":1}]
[null,null,null,{"$f":"IF(Strategic!$D$10=\"\",\"\",Strategic!$D$10)","v":"Decrease in international students to "},{"$f":"IF(Strategic!$G$10=\"\",\"\",Strategic!$G$10)","v":"Office of International Program advising  service"},{"$f":"IF(Strategic!$J$10=\"\",\"\",Strategic!$J$10)","v":"Evaluate student inquiry data, applicants and starting students to assess change in composition of international student population"},{"$f":"IF(Strategic!$K$10=\"\",\"\",Strategic!$K$10)","v":"Administration, Student Affairs and Enrollment Management, Office of International Programs"},{"$f":"IF(Strategic!E10=\"\",\"\",IF(Strategic!F10=\"\",\"\",IF(Strategic!I10=\"\",\"\",INDEX(Scoring!$G$5:$K$13,MATCH(O18,Scoring!$F$5:$F$13,0),MATCH(P18,Scoring!$G$4:$K$4,0)))))","v":"Poorly controlled"},null,null,{"$f":"IF(Strategic!E10=\"\",\"\",IF(Strategic!F10=\"\",\"\",IF(Strategic!I10=\"\",\"\",(VLOOKUP(Strategic!E10,Scales!$E$5:$G$10,3,FALSE)))))","v":8},{"$f":"IF(K18=\"\",\"\",(VLOOKUP(Strategic!F10,Scales!$E$14:$G$19,3,FALSE)))","v":6},{"$f":"Scales!$I$5","v":0.5},{"$f":"Scales!$J$5","v":0.5},7,{"$f":"Strategic!I10","v":"Minor"},{"$f":"IF(K18=\"\",\"\",IF(L18=\"\",\"\",IF(P18=\"\",\"\",K18*L18*(1-VLOOKUP(P18,Scales!$E$23:$G$27,3,FALSE)))))","v":36}]
[null,null,null,{"$f":"IF(Strategic!$D$11=\"\",\"\",Strategic!$D$11)","v":"Resiliency (our ability or inability to recover)"},{"$f":"IF(Strategic!$G$11=\"\",\"\",Strategic!$G$11)","v":"Mission Continuity Plan Rollout; Disaster Recovery Plans; System wide and local backup and recovery policies and procedures; Electronic Information Security: Incident Response Planning and Notification Procedures"},{"$f":"IF(Strategic!$J$11=\"\",\"\",Strategic!$J$11)","v":"Emergency plan testing"},{"$f":"IF(Strategic!$K$11=\"\",\"\",Strategic!$K$11)","v":"Administrative Affairs - Risk Mangement, University Campus Police Department"},{"$f":"IF(Strategic!E11=\"\",\"\",IF(Strategic!F11=\"\",\"\",IF(Strategic!I11=\"\",\"\",INDEX(Scoring!$G$5:$K$13,MATCH(O19,Scoring!$F$5:$F$13,0),MATCH(P19,Scoring!$G$4:$K$4,0)))))","v":"Poorly controlled"},null,null,{"$f":"IF(Strategic!E11=\"\",\"\",IF(Strategic!F11=\"\",\"\",IF(Strategic!I11=\"\",\"\",(VLOOKUP(Strategic!E11,Scales!$E$5:$G$10,3,FALSE)))))","v":10},{"$f":"IF(K19=\"\",\"\",(VLOOKUP(Strategic!F11,Scales!$E$14:$G$19,3,FALSE)))","v":8},{"$f":"Scales!$I$5","v":0.5},{"$f":"Scales!$J$5","v":0.5},9,{"$f":"Strategic!I11","v":"None"},{"$f":"IF(K19=\"\",\"\",IF(L19=\"\",\"\",IF(P19=\"\",\"\",K19*L19*(1-VLOOKUP(P19,Scales!$E$23:$G$27,3,FALSE)))))","v":80}]
[null,null,null,{"$f":"IF(Strategic!$D$12=\"\",\"\",Strategic!$D$12)","v":"Bureaucracy over-controlled; creates inefficiency "},{"$f":"IF(Strategic!$G$12=\"\",\"\",Strategic!$G$12)","v":" Policy and Requirements, Lean process improvement (enhance data transparency, procedure review and simplification) meetings. Note: greater consistency among UWS on interpretation of policies  The level of bureaucracy writing the policies and systems needs to be streamlined to mitigate our risk in this area."},{"$f":"IF(Strategic!$J$12=\"\",\"\",Strategic!$J$12)","v":"Improved access to data"},{"$f":"IF(Strategic!$K$12=\"\",\"\",Strategic!$K$12)","v":"System UW, Chancellor's Office "},{"$f":"IF(Strategic!E12=\"\",\"\",IF(Strategic!F12=\"\",\"\",IF(Strategic!I12=\"\",\"\",INDEX(Scoring!$G$5:$K$13,MATCH(O20,Scoring!$F$5:$F$13,0),MATCH(P20,Scoring!$G$4:$K$4,0)))))","v":""},null,null,{"$f":"IF(Strategic!E12=\"\",\"\",IF(Strategic!F12=\"\",\"\",IF(Strategic!I12=\"\",\"\",(VLOOKUP(Strategic!E12,Scales!$E$5:$G$10,3,FALSE)))))","v":""},{"$f":"IF(K20=\"\",\"\",(VLOOKUP(Strategic!F12,Scales!$E$14:$G$19,3,FALSE)))","v":""},{"$f":"Scales!$I$5","v":0.5},{"$f":"Scales!$J$5","v":0.5},"",{"$f":"Strategic!I12","v":0},{"$f":"IF(K20=\"\",\"\",IF(L20=\"\",\"\",IF(P20=\"\",\"\",K20*L20*(1-VLOOKUP(P20,Scales!$E$23:$G$27,3,FALSE)))))","v":""}]
[null,null,null,{"$f":"IF(Strategic!$D$13=\"\",\"\",Strategic!$D$13)","v":"Individual college goals not in alignment with the greater University goals"},{"$f":"IF(Strategic!$G$13=\"\",\"\",Strategic!$G$13)","v":" Strategic Plan; Note: Problematic organizationally when sub-units work in different directions than larger organization and effectiveness is unknown. "},{"$f":"IF(Strategic!$J$13=\"\",\"\",Strategic!$J$13)","v":"None"},{"$f":"IF(Strategic!$K$13=\"\",\"\",Strategic!$K$13)","v":"Senior Leadership"},{"$f":"IF(Strategic!E13=\"\",\"\",IF(Strategic!F13=\"\",\"\",IF(Strategic!I13=\"\",\"\",INDEX(Scoring!$G$5:$K$13,MATCH(O21,Scoring!$F$5:$F$13,0),MATCH(P21,Scoring!$G$4:$K$4,0)))))","v":{"$error":"#N/A"}},null,null,{"$f":"IF(Strategic!E13=\"\",\"\",IF(Strategic!F13=\"\",\"\",IF(Strategic!I13=\"\",\"\",(VLOOKUP(Strategic!E13,Scales!$E$5:$G$10,3,FALSE)))))","v":4},{"$f":"IF(K21=\"\",\"\",(VLOOKUP(Strategic!F13,Scales!$E$14:$G$19,3,FALSE)))","v":6},{"$f":"Scales!$I$5","v":0.5},{"$f":"Scales!$J$5","v":0.5},5,{"$f":"Strategic!I13","v":"Low"},{"$f":"IF(K21=\"\",\"\",IF(L21=\"\",\"\",IF(P21=\"\",\"\",K21*L21*(1-VLOOKUP(P21,Scales!$E$23:$G$27,3,FALSE)))))","v":{"$error":"#N/A"}}]
[null,null,null,{"$f":"IF(Strategic!$D$14=\"\",\"\",Strategic!$D$14)","v":"Provide additional services to assist students in graduating"},{"$f":"IF(Strategic!$G$14=\"\",\"\",Strategic!$G$14)","v":"Chancellor's Office funding for increased advising; Student Success and Graduation Initiative;  Advising Services; Student Success Program"},{"$f":"IF(Strategic!$J$14=\"\",\"\",Strategic!$J$14)","v":"Reports and Analysis/Studies published on campus websites"},{"$f":"IF(Strategic!$K$14=\"\",\"\",Strategic!$K$14)","v":"Student Affairs & Enrollment Management "},{"$f":"IF(Strategic!E14=\"\",\"\",IF(Strategic!F14=\"\",\"\",IF(Strategic!I14=\"\",\"\",INDEX(Scoring!$G$5:$K$13,MATCH(O22,Scoring!$F$5:$F$13,0),MATCH(P22,Scoring!$G$4:$K$4,0)))))","v":{"$error":"#N/A"}},null,null,{"$f":"IF(Strategic!E14=\"\",\"\",IF(Strategic!F14=\"\",\"\",IF(Strategic!I14=\"\",\"\",(VLOOKUP(Strategic!E14,Scales!$E$5:$G$10,3,FALSE)))))","v":{"$error":"#N/A"}},{"$f":"IF(K22=\"\",\"\",(VLOOKUP(Strategic!F14,Scales!$E$14:$G$19,3,FALSE)))","v":{"$error":"#N/A"}},{"$f":"Scales!$I$5","v":0.5},{"$f":"Scales!$J$5","v":0.5},{"$error":"#N/A"},{"$f":"Strategic!I14","v":"Moderate"},{"$f":"IF(K22=\"\",\"\",IF(L22=\"\",\"\",IF(P22=\"\",\"\",K22*L22*(1-VLOOKUP(P22,Scales!$E$23:$G$27,3,FALSE)))))","v":{"$error":"#N/A"}}]
[null,null,null,{"$f":"IF(Strategic!$D$15=\"\",\"\",Strategic!$D$15)","v":"Lack of necessary counseling resources to improve success rates of academic \"at-risk\" students"},{"$f":"IF(Strategic!$G$15=\"\",\"\",Strategic!$G$15)","v":"Campus Student Success Plan;\n"},{"$f":"IF(Strategic!$J$15=\"\",\"\",Strategic!$J$15)","v":" Student Graduation rates;\nAnnual Student Satisfaction Survey (Housing)"},{"$f":"IF(Strategic!$K$15=\"\",\"\",Strategic!$K$15)","v":"Senior Leadership"},{"$f":"IF(Strategic!E15=\"\",\"\",IF(Strategic!F15=\"\",\"\",IF(Strategic!I15=\"\",\"\",INDEX(Scoring!$G$5:$K$13,MATCH(O23,Scoring!$F$5:$F$13,0),MATCH(P23,Scoring!$G$4:$K$4,0)))))","v":"Adequately controlled"},null,null,{"$f":"IF(Strategic!E15=\"\",\"\",IF(Strategic!F15=\"\",\"\",IF(Strategic!I15=\"\",\"\",(VLOOKUP(Strategic!E15,Scales!$E$5:$G$10,3,FALSE)))))","v":6},{"$f":"IF(K23=\"\",\"\",(VLOOKUP(Strategic!F15,Scales!$E$14:$G$19,3,FALSE)))","v":6},{"$f":"Scales!$I$5","v":0.5},{"$f":"Scales!$J$5","v":0.5},6,{"$f":"Strategic!I15","v":"Moderate"},{"$f":"IF(K23=\"\",\"\",IF(L23=\"\",\"\",IF(P23=\"\",\"\",K23*L23*(1-VLOOKUP(P23,Scales!$E$23:$G$27,3,FALSE)))))","v":18}]
[null,null,null,{"$f":"IF(Strategic!$D$16=\"\",\"\",Strategic!$D$16)","v":"Course \"bottleneck\" results in student graduation delays"},{"$f":"IF(Strategic!$G$16=\"\",\"\",Strategic!$G$16)","v":"Campus Student Success Plan"},{"$f":"IF(Strategic!$J$16=\"\",\"\",Strategic!$J$16)","v":"Advising Services Reports, IRP Reports"},{"$f":"IF(Strategic!$K$16=\"\",\"\",Strategic!$K$16)","v":"Senior Leadership"},{"$f":"IF(Strategic!E16=\"\",\"\",IF(Strategic!F16=\"\",\"\",IF(Strategic!I16=\"\",\"\",INDEX(Scoring!$G$5:$K$13,MATCH(O24,Scoring!$F$5:$F$13,0),MATCH(P24,Scoring!$G$4:$K$4,0)))))","v":"Adequately controlled"},null,null,{"$f":"IF(Strategic!E16=\"\",\"\",IF(Strategic!F16=\"\",\"\",IF(Strategic!I16=\"\",\"\",(VLOOKUP(Strategic!E16,Scales!$E$5:$G$10,3,FALSE)))))","v":6},{"$f":"IF(K24=\"\",\"\",(VLOOKUP(Strategic!F16,Scales!$E$14:$G$19,3,FALSE)))","v":6},{"$f":"Scales!$I$5","v":0.5},{"$f":"Scales!$J$5","v":0.5},6,{"$f":"Strategic!I16","v":"Moderate"},{"$f":"IF(K24=\"\",\"\",IF(L24=\"\",\"\",IF(P24=\"\",\"\",K24*L24*(1-VLOOKUP(P24,Scales!$E$23:$G$27,3,FALSE)))))","v":18}]
[null,null,null,{"$f":"IF(Strategic!$D$17=\"\",\"\",Strategic!$D$17)","v":"Ineffective database for monitoring and addressing student progress towards graduation"},{"$f":"IF(Strategic!$G$17=\"\",\"\",Strategic!$G$17)","v":"Campus Student Success Plan"},{"$f":"IF(Strategic!$J$17=\"\",\"\",Strategic!$J$17)","v":"Advising Services Reports, IRP Reports, EAB Programs"},{"$f":"IF(Strategic!$K$17=\"\",\"\",Strategic!$K$17)","v":"Senior Leadership"},{"$f":"IF(Strategic!E17=\"\",\"\",IF(Strategic!F17=\"\",\"\",IF(Strategic!I17=\"\",\"\",INDEX(Scoring!$G$5:$K$13,MATCH(O25,Scoring!$F$5:$F$13,0),MATCH(P25,Scoring!$G$4:$K$4,0)))))","v":"Adequately controlled"},null,null,{"$f":"IF(Strategic!E17=\"\",\"\",IF(Strategic!F17=\"\",\"\",IF(Strategic!I17=\"\",\"\",(VLOOKUP(Strategic!E17,Scales!$E$5:$G$10,3,FALSE)))))","v":6},{"$f":"IF(K25=\"\",\"\",(VLOOKUP(Strategic!F17,Scales!$E$14:$G$19,3,FALSE)))","v":6},{"$f":"Scales!$I$5","v":0.5},{"$f":"Scales!$J$5","v":0.5},6,{"$f":"Strategic!I17","v":"Moderate"},{"$f":"IF(K25=\"\",\"\",IF(L25=\"\",\"\",IF(P25=\"\",\"\",K25*L25*(1-VLOOKUP(P25,Scales!$E$23:$G$27,3,FALSE)))))","v":18}]
[null,null,null,{"$f":"IF(Strategic!$D$18=\"\",\"\",Strategic!$D$18)","v":"Increased legislative, UWS and campus-wide initiatives addressing a wide range of areas, from retention and graduation rates to increased math requirements for incoming students."},{"$f":"IF(Strategic!$G$18=\"\",\"\",Strategic!$G$18)","v":"While most of the initiatives coming from the campus, UWS and Wisconsin legislature have positive intentions, there seems to be a lack of coordination and communication between these overarching systems in the development of these initiatives, thus resulting in high administrative work for campus units, with little time and space for creativity in addressing the needs of each campus community.  Additionally, the proposal to increase math requirements for incoming students could have an inequitable effect on underrepresented student groups who do not have access to K-12 educational systems that can provide the additional math courses.    Continue discussions with the Student Affairs and Enrollment Management division on how to administratively manage these initiatives"},{"$f":"IF(Strategic!$J$18=\"\",\"\",Strategic!$J$18)","v":""},{"$f":"IF(Strategic!$K$18=\"\",\"\",Strategic!$K$18)","v":"VP, AVPs and Directors within Student Affairs and Enrollment Management"},{"$f":"IF(Strategic!E18=\"\",\"\",IF(Strategic!F18=\"\",\"\",IF(Strategic!I18=\"\",\"\",INDEX(Scoring!$G$5:$K$13,MATCH(O26,Scoring!$F$5:$F$13,0),MATCH(P26,Scoring!$G$4:$K$4,0)))))","v":"Potentially poorly controlled"},null,null,{"$f":"IF(Strategic!E18=\"\",\"\",IF(Strategic!F18=\"\",\"\",IF(Strategic!I18=\"\",\"\",(VLOOKUP(Strategic!E18,Scales!$E$5:$G$10,3,FALSE)))))","v":6},{"$f":"IF(K26=\"\",\"\",(VLOOKUP(Strategic!F18,Scales!$E$14:$G$19,3,FALSE)))","v":6},{"$f":"Scales!$I$5","v":0.5},{"$f":"Scales!$J$5","v":0.5},6,{"$f":"Strategic!I18","v":"Minor"},{"$f":"IF(K26=\"\",\"\",IF(L26=\"\",\"\",IF(P26=\"\",\"\",K26*L26*(1-VLOOKUP(P26,Scales!$E$23:$G$27,3,FALSE)))))","v":27}]
[null,null,null,{"$f":"IF(Strategic!$D$19=\"\",\"\",Strategic!$D$19)","v":"Continued increase in mental health challenges of incoming and current students "},{"$f":"IF(Strategic!$G$19=\"\",\"\",Strategic!$G$19)","v":"This is an area of concern because students continue to enter college with identified mental health needs and often are underprepared in terms of mental health care treatment plans to support their success.  An additional area of concern is that staffing levels within the Counseling and Psychological Services Center do not meet the accreditation standards for counselor to student ratio, and this often results in long waiting lists for mental health services. Unclear how to address this within the division.  Some suggestions would be to fill open positions as soon as possible, increase salaries to attract candidates for counselor positions, and create more counselor faculty positions."},{"$f":"IF(Strategic!$J$19=\"\",\"\",Strategic!$J$19)","v":""},{"$f":"IF(Strategic!$K$19=\"\",\"\",Strategic!$K$19)","v":"AVP of Student Affairs and Director of CPSC to manage HR needs for the unit with support from the Student Affairs and Enrollment Management Executive Council"},{"$f":"IF(Strategic!E19=\"\",\"\",IF(Strategic!F19=\"\",\"\",IF(Strategic!I19=\"\",\"\",INDEX(Scoring!$G$5:$K$13,MATCH(O27,Scoring!$F$5:$F$13,0),MATCH(P27,Scoring!$G$4:$K$4,0)))))","v":"Poorly controlled"},null,null,{"$f":"IF(Strategic!E19=\"\",\"\",IF(Strategic!F19=\"\",\"\",IF(Strategic!I19=\"\",\"\",(VLOOKUP(Strategic!E19,Scales!$E$5:$G$10,3,FALSE)))))","v":10},{"$f":"IF(K27=\"\",\"\",(VLOOKUP(Strategic!F19,Scales!$E$14:$G$19,3,FALSE)))","v":10},{"$f":"Scales!$I$5","v":0.5},{"$f":"Scales!$J$5","v":0.5},10,{"$f":"Strategic!I19","v":"Minor"},{"$f":"IF(K27=\"\",\"\",IF(L27=\"\",\"\",IF(P27=\"\",\"\",K27*L27*(1-VLOOKUP(P27,Scales!$E$23:$G$27,3,FALSE)))))","v":75}]
[null,null,null,{"$f":"IF(Strategic!$D$20=\"\",\"\",Strategic!$D$20)","v":"Strategic Enrollment Management  - The University has no strategic enrollment management plan or articulated goal"},{"$f":"IF(Strategic!$G$20=\"\",\"\",Strategic!$G$20)","v":"The Strategic Enrollment Management Taskforce continues to meet to discuss the development and implementation of a campus wide Strategic Enrollment Plan.  Need to assess and monitor"},{"$f":"IF(Strategic!$J$20=\"\",\"\",Strategic!$J$20)","v":"As a campus wide collaboration, creation of a 3-5 year Strategic Enrollment Plan, Monitor Plan Documentation"},{"$f":"IF(Strategic!$K$20=\"\",\"\",Strategic!$K$20)","v":"Student Affairs & Enrollment Management  (Enrollment Management Technology), SEM Task Force,  Sr. Leadership"},{"$f":"IF(Strategic!E20=\"\",\"\",IF(Strategic!F20=\"\",\"\",IF(Strategic!I20=\"\",\"\",INDEX(Scoring!$G$5:$K$13,MATCH(O28,Scoring!$F$5:$F$13,0),MATCH(P28,Scoring!$G$4:$K$4,0)))))","v":"Potentially poorly controlled"},null,null,{"$f":"IF(Strategic!E20=\"\",\"\",IF(Strategic!F20=\"\",\"\",IF(Strategic!I20=\"\",\"\",(VLOOKUP(Strategic!E20,Scales!$E$5:$G$10,3,FALSE)))))","v":6},{"$f":"IF(K28=\"\",\"\",(VLOOKUP(Strategic!F20,Scales!$E$14:$G$19,3,FALSE)))","v":6},{"$f":"Scales!$I$5","v":0.5},{"$f":"Scales!$J$5","v":0.5},6,{"$f":"Strategic!I20","v":"Minor"},{"$f":"IF(K28=\"\",\"\",IF(L28=\"\",\"\",IF(P28=\"\",\"\",K28*L28*(1-VLOOKUP(P28,Scales!$E$23:$G$27,3,FALSE)))))","v":27}]
{"$rows_empty":12}
[null,null,null,{"$f":"Financial!$D$5","v":"Financial Risks"},"Management & Mitigation","Dashboards, Monitoring, & Accountability","Accountable Person/Department",{"$f":"H13","v":"Risk Rating"}]
[null,null,null,{"$f":"IF(Financial!$D$6=\"\",\"\",Financial!$D$6)","v":"Budget Impairment"},{"$f":"IF(Financial!$G$6=\"\",\"\",Financial!$G$6)","v":"Budget Officers Meetings; Financial Plan; Conversations with Governor and Legislature"},{"$f":"IF(Financial!$J$6=\"\",\"\",Financial!$J$6)","v":"Leveraging Wisdom & WISER systems"},{"$f":"IF(Financial!$K$6=\"\",\"\",Financial!$K$6)","v":"Campus Budget Offices, Senior leadership"},{"$f":"IF(Financial!E6=\"\",\"\",IF(Financial!F6=\"\",\"\",IF(Financial!I6=\"\",\"\",INDEX(Scoring!$G$5:$K$13,MATCH(O42,Scoring!$F$5:$F$13,0),MATCH(P42,Scoring!$G$4:$K$4,0)))))","v":"Potentially over-controlled"},null,null,{"$f":"IF(Financial!E6=\"\",\"\",IF(Financial!F6=\"\",\"\",IF(Financial!I6=\"\",\"\",(VLOOKUP(Financial!E6,Scales!$E$5:$G$10,3,FALSE)))))","v":4},{"$f":"IF(K42=\"\",\"\",(VLOOKUP(Financial!F6,Scales!$E$14:$G$19,3,FALSE)))","v":2},{"$f":"Scales!$I$5","v":0.5},{"$f":"Scales!$J$5","v":0.5},{"$f":"IF(K42=\"\",\"\",IF(L42=\"\",\"\",ROUND(SUMPRODUCT(K42:L42*M42:N42),0)))","v":3},{"$f":"Financial!I6","v":"Significant"},{"$f":"IF(K42=\"\",\"\",IF(L42=\"\",\"\",IF(P42=\"\",\"\",K42*L42*(1-VLOOKUP(P42,Scales!$E$23:$G$27,3,FALSE)))))","v":2}]
[null,null,null,{"$f":"IF(Financial!$D$7=\"\",\"\",Financial!$D$7)","v":"Ineffective service center/auxiliary management"},{"$f":"IF(Financial!$G$7=\"\",\"\",Financial!$G$7)","v":"All departments have programs focused on operational excellence,  Bylaws and Constitutions; open meetings; long range plans"},{"$f":"IF(Financial!$J$7=\"\",\"\",Financial!$J$7)","v":"Reported on department websites"},{"$f":"IF(Financial!$K$7=\"\",\"\",Financial!$K$7)","v":"Senior Leadership"},{"$f":"IF(Financial!E7=\"\",\"\",IF(Financial!F7=\"\",\"\",IF(Financial!I7=\"\",\"\",INDEX(Scoring!$G$5:$K$13,MATCH(O43,Scoring!$F$5:$F$13,0),MATCH(P43,Scoring!$G$4:$K$4,0)))))","v":"Poorly controlled"},null,null,{"$f":"IF(Financial!E7=\"\",\"\",IF(Financial!F7=\"\",\"\",IF(Financial!I7=\"\",\"\",(VLOOKUP(Financial!E7,Scales!$E$5:$G$10,3,FALSE)))))","v":8},{"$f":"IF(K43=\"\",\"\",(VLOOKUP(Financial!F7,Scales!$E$14:$G$19,3,FALSE)))","v":5},{"$f":"Scales!$I$5","v":0.5},{"$f":"Scales!$J$5","v":0.5},{"$f":"IF(K43=\"\",\"\",IF(L43=\"\",\"\",ROUND(SUMPRODUCT(K43:L43*M43:N43),0)))","v":7},{"$f":"Financial!I7","v":"None"},{"$f":"IF(K43=\"\",\"\",IF(L43=\"\",\"\",IF(P43=\"\",\"\",K43*L43*(1-VLOOKUP(P43,Scales!$E$23:$G$27,3,FALSE)))))","v":40}]
[null,null,null,{"$f":"IF(Financial!$D$8=\"\",\"\",Financial!$D$8)","v":"Non-compliant cost transfers"},{"$f":"IF(Financial!$G$8=\"\",\"\",Financial!$G$8)","v":"Extramural Funds Accounting Units; Operating Guidance; Financial Systems separating roles of initiator, approver and ledger reviewer; Self Assessment Tool; Internal Control Program; Department Training Programs; Administrative Responsibilities Handbook - Finance"},{"$f":"IF(Financial!$J$8=\"\",\"\",Financial!$J$8)","v":"Ledger Review; General and Payroll Ledger Reviews; Reported at department level (Documentation Requirements); PI Ledger Review; Audit Reports"},{"$f":"IF(Financial!$K$8=\"\",\"\",Financial!$K$8)","v":"Administration"},{"$f":"IF(Financial!E8=\"\",\"\",IF(Financial!F8=\"\",\"\",IF(Financial!I8=\"\",\"\",INDEX(Scoring!$G$5:$K$13,MATCH(O44,Scoring!$F$5:$F$13,0),MATCH(P44,Scoring!$G$4:$K$4,0)))))","v":"Potentially over-controlled"},null,null,{"$f":"IF(Financial!E8=\"\",\"\",IF(Financial!F8=\"\",\"\",IF(Financial!I8=\"\",\"\",(VLOOKUP(Financial!E8,Scales!$E$5:$G$10,3,FALSE)))))","v":2},{"$f":"IF(K44=\"\",\"\",(VLOOKUP(Financial!F8,Scales!$E$14:$G$19,3,FALSE)))","v":2},{"$f":"Scales!$I$5","v":0.5},{"$f":"Scales!$J$5","v":0.5},2,{"$f":"Financial!I8","v":"Significant"},{"$f":"IF(K44=\"\",\"\",IF(L44=\"\",\"\",IF(P44=\"\",\"\",K44*L44*(1-VLOOKUP(P44,Scales!$E$23:$G$27,3,FALSE)))))","v":1}]
[null,null,null,{"$f":"IF(Financial!$D$9=\"\",\"\",Financial!$D$9)","v":"Insufficient oversight over third-party vendors leading to increased expense and delivery failure"},{"$f":"IF(Financial!$G$9=\"\",\"\",Financial!$G$9)","v":"Strategic Sourcing Initiative; Business Contracts unit and Material Management; Separation of Duties on vendor payments; Accounts Payable reviews"},{"$f":"IF(Financial!$J$9=\"\",\"\",Financial!$J$9)","v":"Utilizing strategic sourcing"},{"$f":"IF(Financial!$K$9=\"\",\"\",Financial!$K$9)","v":"Administration"},{"$f":"IF(Financial!E9=\"\",\"\",IF(Financial!F9=\"\",\"\",IF(Financial!I9=\"\",\"\",INDEX(Scoring!$G$5:$K$13,MATCH(O45,Scoring!$F$5:$F$13,0),MATCH(P45,Scoring!$G$4:$K$4,0)))))","v":"Adequately controlled"},null,null,{"$f":"IF(Financial!E9=\"\",\"\",IF(Financial!F9=\"\",\"\",IF(Financial!I9=\"\",\"\",(VLOOKUP(Financial!E9,Scales!$E$5:$G$10,3,FALSE)))))","v":5},{"$f":"IF(K45=\"\",\"\",(VLOOKUP(Financial!F9,Scales!$E$14:$G$19,3,FALSE)))","v":5},{"$f":"Scales!$I$5","v":0.5},{"$f":"Scales!$J$5","v":0.5},5,{"$f":"Financial!I9","v":"Moderate"},{"$f":"IF(K45=\"\",\"\",IF(L45=\"\",\"\",IF(P45=\"\",\"\",K45*L45*(1-VLOOKUP(P45,Scales!$E$23:$G$27,3,FALSE)))))","v":12.5}]
[null,null,null,{"$f":"IF(Financial!$D$10=\"\",\"\",Financial!$D$10)","v":"Improper governmental activities including fraud, embezzlement, or misuse of university resources"},{"$f":"IF(Financial!$G$10=\"\",\"\",Financial!$G$10)","v":"Whistle Blower system, Policies and Hotlines; Department Designated Officials; Investigations Work Groups; Audit, Risk, Compliance & Ethics Program; Internal Control Program; "},{"$f":"IF(Financial!$J$10=\"\",\"\",Financial!$J$10)","v":"Losses reported in claims system; Whistle Blower system; Internal Audit Quarterly and Annual Reports; Investigations"},{"$f":"IF(Financial!$K$10=\"\",\"\",Financial!$K$10)","v":"Administration"},{"$f":"IF(Financial!E10=\"\",\"\",IF(Financial!F10=\"\",\"\",IF(Financial!I10=\"\",\"\",INDEX(Scoring!$G$5:$K$13,MATCH(O46,Scoring!$F$5:$F$13,0),MATCH(P46,Scoring!$G$4:$K$4,0)))))","v":"Poorly controlled"},null,null,{"$f":"IF(Financial!E10=\"\",\"\",IF(Financial!F10=\"\",\"\",IF(Financial!I10=\"\",\"\",(VLOOKUP(Financial!E10,Scales!$E$5:$G$10,3,FALSE)))))","v":10},{"$f":"IF(K46=\"\",\"\",(VLOOKUP(Financial!F10,Scales!$E$14:$G$19,3,FALSE)))","v":10},{"$f":"Scales!$I$5","v":0.5},{"$f":"Scales!$J$5","v":0.5},10,{"$f":"Financial!I10","v":"Moderate"},{"$f":"IF(K46=\"\",\"\",IF(L46=\"\",\"\",IF(P46=\"\",\"\",K46*L46*(1-VLOOKUP(P46,Scales!$E$23:$G$27,3,FALSE)))))","v":50}]
[null,null,null,{"$f":"IF(Financial!$D$11=\"\",\"\",Financial!$D$11)","v":"Management of Trust Fund Accounts and Transactions"},{"$f":"IF(Financial!$G$11=\"\",\"\",Financial!$G$11)","v":"Wisconsin Retirement System; Wisconsin Department of Employee Trust Funds"},{"$f":"IF(Financial!$J$11=\"\",\"\",Financial!$J$11)","v":"Accounting monitoring; Internal Audit Reviews; External financial audit reports; Business Intelligence variance reporting "},{"$f":"IF(Financial!$K$11=\"\",\"\",Financial!$K$11)","v":"Human Resources & Diversity"},{"$f":"IF(Financial!E11=\"\",\"\",IF(Financial!F11=\"\",\"\",IF(Financial!I11=\"\",\"\",INDEX(Scoring!$G$5:$K$13,MATCH(O47,Scoring!$F$5:$F$13,0),MATCH(P47,Scoring!$G$4:$K$4,0)))))","v":"Adequately controlled"},null,null,{"$f":"IF(Financial!E11=\"\",\"\",IF(Financial!F11=\"\",\"\",IF(Financial!I11=\"\",\"\",(VLOOKUP(Financial!E11,Scales!$E$5:$G$10,3,FALSE)))))","v":6},{"$f":"IF(K47=\"\",\"\",(VLOOKUP(Financial!F11,Scales!$E$14:$G$19,3,FALSE)))","v":6},{"$f":"Scales!$I$5","v":0.5},{"$f":"Scales!$J$5","v":0.5},6,{"$f":"Financial!I11","v":"Moderate"},{"$f":"IF(K47=\"\",\"\",IF(L47=\"\",\"\",IF(P47=\"\",\"\",K47*L47*(1-VLOOKUP(P47,Scales!$E$23:$G$27,3,FALSE)))))","v":18}]
[null,null,null,{"$f":"IF(Financial!$D$12=\"\",\"\",Financial!$D$12)","v":"Leasing Activity"},{"$f":"IF(Financial!$G$12=\"\",\"\",Financial!$G$12)","v":"Management sublease tenants and academic partners; meetings with University Property Management team regarding revenue from subleasing downtown campus; Internal Audit. Proposed mitigation: need investigation of controls "},{"$f":"IF(Financial!$J$12=\"\",\"\",Financial!$J$12)","v":"Monthly meetings, Audit reports"},{"$f":"IF(Financial!$K$12=\"\",\"\",Financial!$K$12)","v":"University Housing, Senior Leadership"},{"$f":"IF(Financial!E12=\"\",\"\",IF(Financial!F12=\"\",\"\",IF(Financial!I12=\"\",\"\",INDEX(Scoring!$G$5:$K$13,MATCH(O48,Scoring!$F$5:$F$13,0),MATCH(P48,Scoring!$G$4:$K$4,0)))))","v":"Potentially poorly controlled"},null,null,{"$f":"IF(Financial!E12=\"\",\"\",IF(Financial!F12=\"\",\"\",IF(Financial!I12=\"\",\"\",(VLOOKUP(Financial!E12,Scales!$E$5:$G$10,3,FALSE)))))","v":8},{"$f":"IF(K48=\"\",\"\",(VLOOKUP(Financial!F12,Scales!$E$14:$G$19,3,FALSE)))","v":6},{"$f":"Scales!$I$5","v":0.5},{"$f":"Scales!$J$5","v":0.5},7,{"$f":"Financial!I12","v":"Moderate"},{"$f":"IF(K48=\"\",\"\",IF(L48=\"\",\"\",IF(P48=\"\",\"\",K48*L48*(1-VLOOKUP(P48,Scales!$E$23:$G$27,3,FALSE)))))","v":24}]
[null,null,null,{"$f":"IF(Financial!$D$13=\"\",\"\",Financial!$D$13)","v":"Liability claims"},{"$f":"IF(Financial!$G$13=\"\",\"\",Financial!$G$13)","v":"Innovation Access Programs connecting research and industry; Intellectual Property Management Policies and Programs"},{"$f":"IF(Financial!$J$13=\"\",\"\",Financial!$J$13)","v":"Business Intelligence System"},{"$f":"IF(Financial!$K$13=\"\",\"\",Financial!$K$13)","v":"Counsel's office"},{"$f":"IF(Financial!E13=\"\",\"\",IF(Financial!F13=\"\",\"\",IF(Financial!I13=\"\",\"\",INDEX(Scoring!$G$5:$K$13,MATCH(O49,Scoring!$F$5:$F$13,0),MATCH(P49,Scoring!$G$4:$K$4,0)))))","v":"Adequately controlled"},null,null,{"$f":"IF(Financial!E13=\"\",\"\",IF(Financial!F13=\"\",\"\",IF(Financial!I13=\"\",\"\",(VLOOKUP(Financial!E13,Scales!$E$5:$G$10,3,FALSE)))))","v":6},{"$f":"IF(K49=\"\",\"\",(VLOOKUP(Financial!F13,Scales!$E$14:$G$19,3,FALSE)))","v":2},{"$f":"Scales!$I$5","v":0.5},{"$f":"Scales!$J$5","v":0.5},4,{"$f":"Financial!I13","v":"Minor"},{"$f":"IF(K49=\"\",\"\",IF(L49=\"\",\"\",IF(P49=\"\",\"\",K49*L49*(1-VLOOKUP(P49,Scales!$E$23:$G$27,3,FALSE)))))","v":9}]
[null,null,null,{"$f":"IF(Financial!$D$14=\"\",\"\",Financial!$D$14)","v":"Workers' compensation claims"},{"$f":"IF(Financial!$G$14=\"\",\"\",Financial!$G$14)","v":"Make Safety Happen Program; Claims Management (TPA); Policies "},{"$f":"IF(Financial!$J$14=\"\",\"\",Financial!$J$14)","v":"Business Intelligence System; Retroactive Reviews"},{"$f":"IF(Financial!$K$14=\"\",\"\",Financial!$K$14)","v":"Risk Management"},{"$f":"IF(Financial!E14=\"\",\"\",IF(Financial!F14=\"\",\"\",IF(Financial!I14=\"\",\"\",INDEX(Scoring!$G$5:$K$13,MATCH(O50,Scoring!$F$5:$F$13,0),MATCH(P50,Scoring!$G$4:$K$4,0)))))","v":"Adequately controlled"},null,null,{"$f":"IF(Financial!E14=\"\",\"\",IF(Financial!F14=\"\",\"\",IF(Financial!I14=\"\",\"\",(VLOOKUP(Financial!E14,Scales!$E$5:$G$10,3,FALSE)))))","v":6},{"$f":"IF(K50=\"\",\"\",(VLOOKUP(Financial!F14,Scales!$E$14:$G$19,3,FALSE)))","v":6},{"$f":"Scales!$I$5","v":0.5},{"$f":"Scales!$J$5","v":0.5},6,{"$f":"Financial!I14","v":"Significant"},{"$f":"IF(K50=\"\",\"\",IF(L50=\"\",\"\",IF(P50=\"\",\"\",K50*L50*(1-VLOOKUP(P50,Scales!$E$23:$G$27,3,FALSE)))))","v":9}]
[null,null,null,{"$f":"IF(Financial!$D$15=\"\",\"\",Financial!$D$15)","v":"Technology Acquisition Redundancy "},{"$f":"IF(Financial!$G$15=\"\",\"\",Financial!$G$15)","v":"Drafted a cloud computing practice directive; developed and implemented a Technology Acquisition Review process to review all IT acquisitions for Security and Accessibility compliance; duplicative acquisitions are deterred. Proposed mitigation: be more coordinated - effort on tools that are used on campus; better stakeholder involvement in selection process, too many systems; should be streamlined to eliminate redundancy. "},{"$f":"IF(Financial!$J$15=\"\",\"\",Financial!$J$15)","v":"Ticketing system records all technology acquisition reviews. Reports can be prepared using criteria"},{"$f":"IF(Financial!$K$15=\"\",\"\",Financial!$K$15)","v":"Information Technology Services, Procurement, Accounts Payable, Disability Programs and Resource Center"},{"$f":"IF(Financial!E15=\"\",\"\",IF(Financial!F15=\"\",\"\",IF(Financial!I15=\"\",\"\",INDEX(Scoring!$G$5:$K$13,MATCH(O51,Scoring!$F$5:$F$13,0),MATCH(P51,Scoring!$G$4:$K$4,0)))))","v":"Potentially poorly controlled"},null,null,{"$f":"IF(Financial!E15=\"\",\"\",IF(Financial!F15=\"\",\"\",IF(Financial!I15=\"\",\"\",(VLOOKUP(Financial!E15,Scales!$E$5:$G$10,3,FALSE)))))","v":10},{"$f":"IF(K51=\"\",\"\",(VLOOKUP(Financial!F15,Scales!$E$14:$G$19,3,FALSE)))","v":8},{"$f":"Scales!$I$5","v":0.5},{"$f":"Scales!$J$5","v":0.5},9,{"$f":"Financial!I15","v":"Significant"},{"$f":"IF(K51=\"\",\"\",IF(L51=\"\",\"\",IF(P51=\"\",\"\",K51*L51*(1-VLOOKUP(P51,Scales!$E$23:$G$27,3,FALSE)))))","v":20}]
[null,null,null,{"$f":"IF(Financial!$D$16=\"\",\"\",Financial!$D$16)","v":"Capacity for Project Enforcement "},{"$f":"IF(Financial!$G$16=\"\",\"\",Financial!$G$16)","v":"Capital Planning unit; Project management team; Internal Audit; Admin Affairs Town Hall Presentation; Campus Master Plan; "},{"$f":"IF(Financial!$J$16=\"\",\"\",Financial!$J$16)","v":"Reports on campus websites; Audit review "},{"$f":"IF(Financial!$K$16=\"\",\"\",Financial!$K$16)","v":"Capital Planning, Physical Planning & Development"},{"$f":"IF(Financial!E16=\"\",\"\",IF(Financial!F16=\"\",\"\",IF(Financial!I16=\"\",\"\",INDEX(Scoring!$G$5:$K$13,MATCH(O52,Scoring!$F$5:$F$13,0),MATCH(P52,Scoring!$G$4:$K$4,0)))))","v":"Adequately controlled"},null,null,{"$f":"IF(Financial!E16=\"\",\"\",IF(Financial!F16=\"\",\"\",IF(Financial!I16=\"\",\"\",(VLOOKUP(Financial!E16,Scales!$E$5:$G$10,3,FALSE)))))","v":6},{"$f":"IF(K52=\"\",\"\",(VLOOKUP(Financial!F16,Scales!$E$14:$G$19,3,FALSE)))","v":6},{"$f":"Scales!$I$5","v":0.5},{"$f":"Scales!$J$5","v":0.5},6,{"$f":"Financial!I16","v":"Moderate"},{"$f":"IF(K52=\"\",\"\",IF(L52=\"\",\"\",IF(P52=\"\",\"\",K52*L52*(1-VLOOKUP(P52,Scales!$E$23:$G$27,3,FALSE)))))","v":18}]
[null,null,null,{"$f":"IF(Financial!$D$17=\"\",\"\",Financial!$D$17)","v":""},{"$f":"IF(Financial!$G$17=\"\",\"\",Financial!$G$17)","v":""},{"$f":"IF(Financial!$J$17=\"\",\"\",Financial!$J$17)","v":""},{"$f":"IF(Financial!$K$17=\"\",\"\",Financial!$K$17)","v":""},{"$f":"IF(Financial!E17=\"\",\"\",IF(Financial!F17=\"\",\"\",IF(Financial!I17=\"\",\"\",INDEX(Scoring!$G$5:$K$13,MATCH(O53,Scoring!$F$5:$F$13,0),MATCH(P53,Scoring!$G$4:$K$4,0)))))","v":""},null,null,{"$f":"IF(Financial!E17=\"\",\"\",IF(Financial!F17=\"\",\"\",IF(Financial!I17=\"\",\"\",(VLOOKUP(Financial!E17,Scales!$E$5:$G$10,3,FALSE)))))","v":""},{"$f":"IF(K53=\"\",\"\",(VLOOKUP(Financial!F17,Scales!$E$14:$G$19,3,FALSE)))","v":""},{"$f":"Scales!$I$5","v":0.5},{"$f":"Scales!$J$5","v":0.5},"",{"$f":"Financial!I17","v":0},{"$f":"IF(K53=\"\",\"\",IF(L53=\"\",\"\",IF(P53=\"\",\"\",K53*L53*(1-VLOOKUP(P53,Scales!$E$23:$G$27,3,FALSE)))))","v":""}]
[null,null,null,{"$f":"IF(Financial!$D$18=\"\",\"\",Financial!$D$18)","v":""},{"$f":"IF(Financial!$G$18=\"\",\"\",Financial!$G$18)","v":""},{"$f":"IF(Financial!$J$18=\"\",\"\",Financial!$J$18)","v":""},{"$f":"IF(Financial!$K$18=\"\",\"\",Financial!$K$18)","v":""},{"$f":"IF(Financial!E18=\"\",\"\",IF(Financial!F18=\"\",\"\",IF(Financial!I18=\"\",\"\",INDEX(Scoring!$G$5:$K$13,MATCH(O54,Scoring!$F$5:$F$13,0),MATCH(P54,Scoring!$G$4:$K$4,0)))))","v":""},null,null,{"$f":"IF(Financial!E18=\"\",\"\",IF(Financial!F18=\"\",\"\",IF(Financial!I18=\"\",\"\",(VLOOKUP(Financial!E18,Scales!$E$5:$G$10,3,FALSE)))))","v":""},{"$f":"IF(K54=\"\",\"\",(VLOOKUP(Financial!F18,Scales!$E$14:$G$19,3,FALSE)))","v":""},{"$f":"Scales!$I$5","v":0.5},{"$f":"Scales!$J$5","v":0.5},"",{"$f":"Financial!I18","v":0},{"$f":"IF(K54=\"\",\"\",IF(L54=\"\",\"\",IF(P54=\"\",\"\",K54*L54*(1-VLOOKUP(P54,Scales!$E$23:$G$27,3,FALSE)))))","v":""}]
[null,null,null,{"$f":"IF(Financial!$D$19=\"\",\"\",Financial!$D$19)","v":""},{"$f":"IF(Financial!$G$19=\"\",\"\",Financial!$G$19)","v":""},{"$f":"IF(Financial!$J$19=\"\",\"\",Financial!$J$19)","v":""},{"$f":"IF(Financial!$K$19=\"\",\"\",Financial!$K$19)","v":""},{"$f":"IF(Financial!E19=\"\",\"\",IF(Financial!F19=\"\",\"\",IF(Financial!I19=\"\",\"\",INDEX(Scoring!$G$5:$K$13,MATCH(O55,Scoring!$F$5:$F$13,0),MATCH(P55,Scoring!$G$4:$K$4,0)))))","v":""},null,null,{"$f":"IF(Financial!E19=\"\",\"\",IF(Financial!F19=\"\",\"\",IF(Financial!I19=\"\",\"\",(VLOOKUP(Financial!E19,Scales!$E$5:$G$10,3,FALSE)))))","v":""},{"$f":"IF(K55=\"\",\"\",(VLOOKUP(Financial!F19,Scales!$E$14:$G$19,3,FALSE)))","v":""},{"$f":"Scales!$I$5","v":0.5},{"$f":"Scales!$J$5","v":0.5},"",{"$f":"Financial!I19","v":0},{"$f":"IF(K55=\"\",\"\",IF(L55=\"\",\"\",IF(P55=\"\",\"\",K55*L55*(1-VLOOKUP(P55,Scales!$E$23:$G$27,3,FALSE)))))","v":""}]
[null,null,null,{"$f":"IF(Financial!$D$20=\"\",\"\",Financial!$D$20)","v":""},{"$f":"IF(Financial!$G$20=\"\",\"\",Financial!$G$20)","v":""},{"$f":"IF(Financial!$J$20=\"\",\"\",Financial!$J$20)","v":""},{"$f":"IF(Financial!$K$20=\"\",\"\",Financial!$K$20)","v":""},{"$f":"IF(Financial!E20=\"\",\"\",IF(Financial!F20=\"\",\"\",IF(Financial!I20=\"\",\"\",INDEX(Scoring!$G$5:$K$13,MATCH(O56,Scoring!$F$5:$F$13,0),MATCH(P56,Scoring!$G$4:$K$4,0)))))","v":""},null,null,{"$f":"IF(Financial!E20=\"\",\"\",IF(Financial!F20=\"\",\"\",IF(Financial!I20=\"\",\"\",(VLOOKUP(Financial!E20,Scales!$E$5:$G$10,3,FALSE)))))","v":""},{"$f":"IF(K56=\"\",\"\",(VLOOKUP(Financial!F20,Scales!$E$14:$G$19,3,FALSE)))","v":""},{"$f":"Scales!$I$5","v":0.5},{"$f":"Scales!$J$5","v":0.5},"",{"$f":"Financial!I20","v":0},{"$f":"IF(K56=\"\",\"\",IF(L56=\"\",\"\",IF(P56=\"\",\"\",K56*L56*(1-VLOOKUP(P56,Scales!$E$23:$G$27,3,FALSE)))))","v":""}]
{"$rows_empty":11}
[null,null,null,{"$f":"Operational!$D$5","v":"Operational Risks"},"Management & Mitigation","Dashboards, Monitoring, & Accountability","Accountable Person/Department",{"$f":"H41","v":"Risk Rating"}]
[null,null,null,{"$f":"IF(Operational!$D$6=\"\",\"\",Operational!$D$6)","v":"Catastrophic natural event (tornado, fire, etc.)"},{"$f":"IF(Operational!$G$6=\"\",\"\",Operational!$G$6)","v":"Mission continuity; emergency management; Concern re utility systems, lack generator connections to buildings, also risk of flooding, ice and accessibility challenges."},{"$f":"IF(Operational!$J$6=\"\",\"\",Operational!$J$6)","v":"Capital Planning documents; Regular University wide participation drills, documentation thereof."},{"$f":"IF(Operational!$K$6=\"\",\"\",Operational!$K$6)","v":"Risk Management/ARCE"},{"$f":"IF(Operational!E6=\"\",\"\",IF(Operational!F6=\"\",\"\",IF(Operational!I6=\"\",\"\",INDEX(Scoring!$G$5:$K$13,MATCH(O69,Scoring!$F$5:$F$13,0),MATCH(P69,Scoring!$G$4:$K$4,0)))))","v":"Potentially poorly controlled"},null,null,{"$f":"IF(Operational!E6=\"\",\"\",IF(Operational!F6=\"\",\"\",IF(Operational!I6=\"\",\"\",(VLOOKUP(Operational!E6,Scales!$E$5:$G$10,3,FALSE)))))","v":10},{"$f":"IF(K69=\"\",\"\",(VLOOKUP(Operational!F6,Scales!$E$14:$G$19,3,FALSE)))","v":6},{"$f":"Scales!$I$5","v":0.5},{"$f":"Scales!$J$5","v":0.5},{"$f":"IF(K69=\"\",\"\",IF(L69=\"\",\"\",ROUND(SUMPRODUCT(K69:L69*M69:N69),0)))","v":8},{"$f":"Operational!I6","v":"Moderate"},{"$f":"IF(K69=\"\",\"\",IF(L69=\"\",\"\",IF(P69=\"\",\"\",K69*L69*(1-VLOOKUP(P69,Scales!$E$23:$G$27,3,FALSE)))))","v":30}]
[null,null,null,{"$f":"IF(Operational!$D$7=\"\",\"\",Operational!$D$7)","v":"Pandemic"},{"$f":"IF(Operational!$G$7=\"\",\"\",Operational!$G$7)","v":"Mission continuity; emergency management; lack of masks and IC supplies; No Pandemic plan"},{"$f":"IF(Operational!$J$7=\"\",\"\",Operational!$J$7)","v":"Communication and tracking program"},{"$f":"IF(Operational!$K$7=\"\",\"\",Operational!$K$7)","v":"Risk Management/ARCE"},{"$f":"IF(Operational!E7=\"\",\"\",IF(Operational!F7=\"\",\"\",IF(Operational!I7=\"\",\"\",INDEX(Scoring!$G$5:$K$13,MATCH(O70,Scoring!$F$5:$F$13,0),MATCH(P70,Scoring!$G$4:$K$4,0)))))","v":"Potentially poorly controlled"},null,null,{"$f":"IF(Operational!E7=\"\",\"\",IF(Operational!F7=\"\",\"\",IF(Operational!I7=\"\",\"\",(VLOOKUP(Operational!E7,Scales!$E$5:$G$10,3,FALSE)))))","v":6},{"$f":"IF(K70=\"\",\"\",(VLOOKUP(Operational!F7,Scales!$E$14:$G$19,3,FALSE)))","v":4},{"$f":"Scales!$I$5","v":0.5},{"$f":"Scales!$J$5","v":0.5},{"$f":"IF(K70=\"\",\"\",IF(L70=\"\",\"\",ROUND(SUMPRODUCT(K70:L70*M70:N70),0)))","v":5},{"$f":"Operational!I7","v":"Minor"},{"$f":"IF(K70=\"\",\"\",IF(L70=\"\",\"\",IF(P70=\"\",\"\",K70*L70*(1-VLOOKUP(P70,Scales!$E$23:$G$27,3,FALSE)))))","v":18}]
[null,null,null,{"$f":"IF(Operational!$D$8=\"\",\"\",Operational!$D$8)","v":"Domestic terrorism (animal rights activists, eco-terrorists, stem-cell research opponents, etc.)"},{"$f":"IF(Operational!$G$8=\"\",\"\",Operational!$G$8)","v":"Campus PD liaison with law enforcement; additional training of campus law enforcement; improved security measures; hardening of buildings; communication and response protocols"},{"$f":"IF(Operational!$J$8=\"\",\"\",Operational!$J$8)","v":"Tracked in claims system"},{"$f":"IF(Operational!$K$8=\"\",\"\",Operational!$K$8)","v":" Police"},{"$f":"IF(Operational!E8=\"\",\"\",IF(Operational!F8=\"\",\"\",IF(Operational!I8=\"\",\"\",INDEX(Scoring!$G$5:$K$13,MATCH(O71,Scoring!$F$5:$F$13,0),MATCH(P71,Scoring!$G$4:$K$4,0)))))","v":"Potentially poorly controlled"},null,null,{"$f":"IF(Operational!E8=\"\",\"\",IF(Operational!F8=\"\",\"\",IF(Operational!I8=\"\",\"\",(VLOOKUP(Operational!E8,Scales!$E$5:$G$10,3,FALSE)))))","v":6},{"$f":"IF(K71=\"\",\"\",(VLOOKUP(Operational!F8,Scales!$E$14:$G$19,3,FALSE)))","v":2},{"$f":"Scales!$I$5","v":0.5},{"$f":"Scales!$J$5","v":0.5},4,{"$f":"Operational!I8","v":"None"},{"$f":"IF(K71=\"\",\"\",IF(L71=\"\",\"\",IF(P71=\"\",\"\",K71*L71*(1-VLOOKUP(P71,Scales!$E$23:$G$27,3,FALSE)))))","v":12}]
[null,null,null,{"$f":"IF(Operational!$D$9=\"\",\"\",Operational!$D$9)","v":"Facilities, grounds, and pedestrian safety"},{"$f":"IF(Operational!$G$9=\"\",\"\",Operational!$G$9)","v":"Building Maintenance Services; Grounds and Landscape Service; Backlog, but program to reduce walkway ADA grading issues is part of annual Deferred Maintenance program."},{"$f":"IF(Operational!$J$9=\"\",\"\",Operational!$J$9)","v":"Independent documentation and inspection records needed"},{"$f":"IF(Operational!$K$9=\"\",\"\",Operational!$K$9)","v":"Facilities Planning Management and Risk Management"},{"$f":"IF(Operational!E9=\"\",\"\",IF(Operational!F9=\"\",\"\",IF(Operational!I9=\"\",\"\",INDEX(Scoring!$G$5:$K$13,MATCH(O72,Scoring!$F$5:$F$13,0),MATCH(P72,Scoring!$G$4:$K$4,0)))))","v":"Adequately controlled"},null,null,{"$f":"IF(Operational!E9=\"\",\"\",IF(Operational!F9=\"\",\"\",IF(Operational!I9=\"\",\"\",(VLOOKUP(Operational!E9,Scales!$E$5:$G$10,3,FALSE)))))","v":8},{"$f":"IF(K72=\"\",\"\",(VLOOKUP(Operational!F9,Scales!$E$14:$G$19,3,FALSE)))","v":8},{"$f":"Scales!$I$5","v":0.5},{"$f":"Scales!$J$5","v":0.5},8,{"$f":"Operational!I9","v":"Significant"},{"$f":"IF(K72=\"\",\"\",IF(L72=\"\",\"\",IF(P72=\"\",\"\",K72*L72*(1-VLOOKUP(P72,Scales!$E$23:$G$27,3,FALSE)))))","v":16}]
[null,null,null,{"$f":"IF(Operational!$D$10=\"\",\"\",Operational!$D$10)","v":"Laboratory Safety"},{"$f":"IF(Operational!$G$10=\"\",\"\",Operational!$G$10)","v":"IIPP Policy; ARCE Program; Lab Safety Committee"},{"$f":"IF(Operational!$J$10=\"\",\"\",Operational!$J$10)","v":"Self-Assessment Tool"},{"$f":"IF(Operational!$K$10=\"\",\"\",Operational!$K$10)","v":"Lab Safety Committee, Risk Management, ORSP"},{"$f":"IF(Operational!E10=\"\",\"\",IF(Operational!F10=\"\",\"\",IF(Operational!I10=\"\",\"\",INDEX(Scoring!$G$5:$K$13,MATCH(O73,Scoring!$F$5:$F$13,0),MATCH(P73,Scoring!$G$4:$K$4,0)))))","v":"Poorly controlled"},null,null,{"$f":"IF(Operational!E10=\"\",\"\",IF(Operational!F10=\"\",\"\",IF(Operational!I10=\"\",\"\",(VLOOKUP(Operational!E10,Scales!$E$5:$G$10,3,FALSE)))))","v":8},{"$f":"IF(K73=\"\",\"\",(VLOOKUP(Operational!F10,Scales!$E$14:$G$19,3,FALSE)))","v":8},{"$f":"Scales!$I$5","v":0.5},{"$f":"Scales!$J$5","v":0.5},8,{"$f":"Operational!I10","v":"Minor"},{"$f":"IF(K73=\"\",\"\",IF(L73=\"\",\"\",IF(P73=\"\",\"\",K73*L73*(1-VLOOKUP(P73,Scales!$E$23:$G$27,3,FALSE)))))","v":48}]
[null,null,null,{"$f":"IF(Operational!$D$11=\"\",\"\",Operational!$D$11)","v":"Safety concerns regarding cash transportation to/from off campus events  "},{"$f":"IF(Operational!$G$11=\"\",\"\",Operational!$G$11)","v":"UWS and  Cashiering and Handling Guideline; UCorp Fundraising Policy; Associated Students, Inc. Cash and Check Receipt Handling Policy; University Police Department provides services on-campus event. Note: Associated Students, Inc. Cash and Check receipt Handling Policy is reviewed annually"},{"$f":"IF(Operational!$J$11=\"\",\"\",Operational!$J$11)","v":""},{"$f":"IF(Operational!$K$11=\"\",\"\",Operational!$K$11)","v":"Administration"},{"$f":"IF(Operational!E11=\"\",\"\",IF(Operational!F11=\"\",\"\",IF(Operational!I11=\"\",\"\",INDEX(Scoring!$G$5:$K$13,MATCH(O74,Scoring!$F$5:$F$13,0),MATCH(P74,Scoring!$G$4:$K$4,0)))))","v":"Potentially poorly controlled"},null,null,{"$f":"IF(Operational!E11=\"\",\"\",IF(Operational!F11=\"\",\"\",IF(Operational!I11=\"\",\"\",(VLOOKUP(Operational!E11,Scales!$E$5:$G$10,3,FALSE)))))","v":8},{"$f":"IF(K74=\"\",\"\",(VLOOKUP(Operational!F11,Scales!$E$14:$G$19,3,FALSE)))","v":4},{"$f":"Scales!$I$5","v":0.5},{"$f":"Scales!$J$5","v":0.5},6,{"$f":"Operational!I11","v":"Minor"},{"$f":"IF(K74=\"\",\"\",IF(L74=\"\",\"\",IF(P74=\"\",\"\",K74*L74*(1-VLOOKUP(P74,Scales!$E$23:$G$27,3,FALSE)))))","v":24}]
[null,null,null,{"$f":"IF(Operational!$D$12=\"\",\"\",Operational!$D$12)","v":"Campus Building Fire Safety"},{"$f":"IF(Operational!$G$12=\"\",\"\",Operational!$G$12)","v":"State Fire Marshal inspection and approval; installation of fire alarms, sprinklers, centralized fire alarm connection system to campus buildings; Internal and External Audit Review"},{"$f":"IF(Operational!$J$12=\"\",\"\",Operational!$J$12)","v":"Audit reviews and reports"},{"$f":"IF(Operational!$K$12=\"\",\"\",Operational!$K$12)","v":"Physical Planning & Development"},{"$f":"IF(Operational!E12=\"\",\"\",IF(Operational!F12=\"\",\"\",IF(Operational!I12=\"\",\"\",INDEX(Scoring!$G$5:$K$13,MATCH(O75,Scoring!$F$5:$F$13,0),MATCH(P75,Scoring!$G$4:$K$4,0)))))","v":""},null,null,{"$f":"IF(Operational!E12=\"\",\"\",IF(Operational!F12=\"\",\"\",IF(Operational!I12=\"\",\"\",(VLOOKUP(Operational!E12,Scales!$E$5:$G$10,3,FALSE)))))","v":""},{"$f":"IF(K75=\"\",\"\",(VLOOKUP(Operational!F12,Scales!$E$14:$G$19,3,FALSE)))","v":""},{"$f":"Scales!$I$5","v":0.5},{"$f":"Scales!$J$5","v":0.5},"",{"$f":"Operational!I12","v":0},{"$f":"IF(K75=\"\",\"\",IF(L75=\"\",\"\",IF(P75=\"\",\"\",K75*L75*(1-VLOOKUP(P75,Scales!$E$23:$G$27,3,FALSE)))))","v":""}]
[null,null,null,{"$f":"IF(Operational!$D$13=\"\",\"\",Operational!$D$13)","v":"Equipment/facility malfunction"},{"$f":"IF(Operational!$G$13=\"\",\"\",Operational!$G$13)","v":"Equipment inventory database system-wide; Building Maintenance Services. Many building subsystems and equipment are well beyond industry standard renewal intervals.  Elevator systems, although well maintained, are beyond obsolescence dates, and cannot be repaired in a timely manner upon failure."},{"$f":"IF(Operational!$J$13=\"\",\"\",Operational!$J$13)","v":"Maintenance database; Claims system"},{"$f":"IF(Operational!$K$13=\"\",\"\",Operational!$K$13)","v":"Facilities Planning and Management & Risk Management"},{"$f":"IF(Operational!E13=\"\",\"\",IF(Operational!F13=\"\",\"\",IF(Operational!I13=\"\",\"\",INDEX(Scoring!$G$5:$K$13,MATCH(O76,Scoring!$F$5:$F$13,0),MATCH(P76,Scoring!$G$4:$K$4,0)))))","v":"Poorly controlled"},null,null,{"$f":"IF(Operational!E13=\"\",\"\",IF(Operational!F13=\"\",\"\",IF(Operational!I13=\"\",\"\",(VLOOKUP(Operational!E13,Scales!$E$5:$G$10,3,FALSE)))))","v":10},{"$f":"IF(K76=\"\",\"\",(VLOOKUP(Operational!F13,Scales!$E$14:$G$19,3,FALSE)))","v":6},{"$f":"Scales!$I$5","v":0.5},{"$f":"Scales!$J$5","v":0.5},8,{"$f":"Operational!I13","v":"Minor"},{"$f":"IF(K76=\"\",\"\",IF(L76=\"\",\"\",IF(P76=\"\",\"\",K76*L76*(1-VLOOKUP(P76,Scales!$E$23:$G$27,3,FALSE)))))","v":45}]
[null,null,null,{"$f":"IF(Operational!$D$14=\"\",\"\",Operational!$D$14)","v":"Key stakeholder is unclear of details pertaining to campus/utility infrastructure"},{"$f":"IF(Operational!$G$14=\"\",\"\",Operational!$G$14)","v":" Campus Master Plan; Focused Tiered Draft Environmental Impact Report; Routine & emergency maintenance/repair service; Campus sustainable initiative. "},{"$f":"IF(Operational!$J$14=\"\",\"\",Operational!$J$14)","v":"Reports on campus websites"},{"$f":"IF(Operational!$K$14=\"\",\"\",Operational!$K$14)","v":"Physical Planning & Development, Administration, Facilities and Service Enterprises"},{"$f":"IF(Operational!E14=\"\",\"\",IF(Operational!F14=\"\",\"\",IF(Operational!I14=\"\",\"\",INDEX(Scoring!$G$5:$K$13,MATCH(O77,Scoring!$F$5:$F$13,0),MATCH(P77,Scoring!$G$4:$K$4,0)))))","v":"Adequately controlled"},null,null,{"$f":"IF(Operational!E14=\"\",\"\",IF(Operational!F14=\"\",\"\",IF(Operational!I14=\"\",\"\",(VLOOKUP(Operational!E14,Scales!$E$5:$G$10,3,FALSE)))))","v":6},{"$f":"IF(K77=\"\",\"\",(VLOOKUP(Operational!F14,Scales!$E$14:$G$19,3,FALSE)))","v":4},{"$f":"Scales!$I$5","v":0.5},{"$f":"Scales!$J$5","v":0.5},5,{"$f":"Operational!I14","v":"Moderate"},{"$f":"IF(K77=\"\",\"\",IF(L77=\"\",\"\",IF(P77=\"\",\"\",K77*L77*(1-VLOOKUP(P77,Scales!$E$23:$G$27,3,FALSE)))))","v":12}]
[null,null,null,{"$f":"IF(Operational!$D$15=\"\",\"\",Operational!$D$15)","v":"Insufficient oversight over third-party vendors"},{"$f":"IF(Operational!$G$15=\"\",\"\",Operational!$G$15)","v":"Contractual obligations for all third-party vendors within leased and rented space"},{"$f":"IF(Operational!$J$15=\"\",\"\",Operational!$J$15)","v":"Working with lessor and sub-lessors"},{"$f":"IF(Operational!$K$15=\"\",\"\",Operational!$K$15)","v":"University Property Management Business Development"},{"$f":"IF(Operational!E15=\"\",\"\",IF(Operational!F15=\"\",\"\",IF(Operational!I15=\"\",\"\",INDEX(Scoring!$G$5:$K$13,MATCH(O78,Scoring!$F$5:$F$13,0),MATCH(P78,Scoring!$G$4:$K$4,0)))))","v":"Potentially over-controlled"},null,null,{"$f":"IF(Operational!E15=\"\",\"\",IF(Operational!F15=\"\",\"\",IF(Operational!I15=\"\",\"\",(VLOOKUP(Operational!E15,Scales!$E$5:$G$10,3,FALSE)))))","v":2},{"$f":"IF(K78=\"\",\"\",(VLOOKUP(Operational!F15,Scales!$E$14:$G$19,3,FALSE)))","v":4},{"$f":"Scales!$I$5","v":0.5},{"$f":"Scales!$J$5","v":0.5},3,{"$f":"Operational!I15","v":"Significant"},{"$f":"IF(K78=\"\",\"\",IF(L78=\"\",\"\",IF(P78=\"\",\"\",K78*L78*(1-VLOOKUP(P78,Scales!$E$23:$G$27,3,FALSE)))))","v":2}]
[null,null,null,{"$f":"IF(Operational!$D$16=\"\",\"\",Operational!$D$16)","v":"Employee designation as Emergency Service Workers"},{"$f":"IF(Operational!$G$16=\"\",\"\",Operational!$G$16)","v":"Per Wisconsin statute, University employees should be noticed & confirmed that they are all disaster Service Workers, and may be called in to work during designated emergencies.  Such notice has not occurred."},{"$f":"IF(Operational!$J$16=\"\",\"\",Operational!$J$16)","v":"Position descriptions should be updated to include this requirement"},{"$f":"IF(Operational!$K$16=\"\",\"\",Operational!$K$16)","v":"HR & Diversity"},{"$f":"IF(Operational!E16=\"\",\"\",IF(Operational!F16=\"\",\"\",IF(Operational!I16=\"\",\"\",INDEX(Scoring!$G$5:$K$13,MATCH(O79,Scoring!$F$5:$F$13,0),MATCH(P79,Scoring!$G$4:$K$4,0)))))","v":"Potentially poorly controlled"},null,null,{"$f":"IF(Operational!E16=\"\",\"\",IF(Operational!F16=\"\",\"\",IF(Operational!I16=\"\",\"\",(VLOOKUP(Operational!E16,Scales!$E$5:$G$10,3,FALSE)))))","v":4},{"$f":"IF(K79=\"\",\"\",(VLOOKUP(Operational!F16,Scales!$E$14:$G$19,3,FALSE)))","v":4},{"$f":"Scales!$I$5","v":0.5},{"$f":"Scales!$J$5","v":0.5},4,{"$f":"Operational!I16","v":"None"},{"$f":"IF(K79=\"\",\"\",IF(L79=\"\",\"\",IF(P79=\"\",\"\",K79*L79*(1-VLOOKUP(P79,Scales!$E$23:$G$27,3,FALSE)))))","v":16}]
[null,null,null,{"$f":"IF(Operational!$D$17=\"\",\"\",Operational!$D$17)","v":"Campus Physical Security"},{"$f":"IF(Operational!$G$17=\"\",\"\",Operational!$G$17)","v":"Campus lacks perimeter fence that can be closed up. Campus lacks remote locking ability of all exterior doors. For use in active shooter, or mass civil unrest"},{"$f":"IF(Operational!$J$17=\"\",\"\",Operational!$J$17)","v":"System installation, monitoring and regular testing. Recommendation on feasibility of increased physical security and hardening."},{"$f":"IF(Operational!$K$17=\"\",\"\",Operational!$K$17)","v":"PP&D/University Police Department"},{"$f":"IF(Operational!E17=\"\",\"\",IF(Operational!F17=\"\",\"\",IF(Operational!I17=\"\",\"\",INDEX(Scoring!$G$5:$K$13,MATCH(O80,Scoring!$F$5:$F$13,0),MATCH(P80,Scoring!$G$4:$K$4,0)))))","v":"Potentially poorly controlled"},null,null,{"$f":"IF(Operational!E17=\"\",\"\",IF(Operational!F17=\"\",\"\",IF(Operational!I17=\"\",\"\",(VLOOKUP(Operational!E17,Scales!$E$5:$G$10,3,FALSE)))))","v":8},{"$f":"IF(K80=\"\",\"\",(VLOOKUP(Operational!F17,Scales!$E$14:$G$19,3,FALSE)))","v":2},{"$f":"Scales!$I$5","v":0.5},{"$f":"Scales!$J$5","v":0.5},5,{"$f":"Operational!I17","v":"Minor"},{"$f":"IF(K80=\"\",\"\",IF(L80=\"\",\"\",IF(P80=\"\",\"\",K80*L80*(1-VLOOKUP(P80,Scales!$E$23:$G$27,3,FALSE)))))","v":12}]
[null,null,null,{"$f":"IF(Operational!$D$18=\"\",\"\",Operational!$D$18)","v":"Active Threats - Injuries to persons: Loss of Life"},{"$f":"IF(Operational!$G$18=\"\",\"\",Operational!$G$18)","v":"Equip and train University Police Department personnel.  Train students/faculty/staff  on what to do in the event of active threat. On going engagement/dialogue regarding this potential scenario."},{"$f":"IF(Operational!$J$18=\"\",\"\",Operational!$J$18)","v":"University Police Department represented in the Action Crisis Team as conduit for early tracking and notification of potential indication of violent behavior. Direct reporting of active threats to University Police Department.  University Police Department is a 24/7/365 operation. Use of email for campus-wide notification."},{"$f":"IF(Operational!$K$18=\"\",\"\",Operational!$K$18)","v":"University Police Department"},{"$f":"IF(Operational!E18=\"\",\"\",IF(Operational!F18=\"\",\"\",IF(Operational!I18=\"\",\"\",INDEX(Scoring!$G$5:$K$13,MATCH(O81,Scoring!$F$5:$F$13,0),MATCH(P81,Scoring!$G$4:$K$4,0)))))","v":"Adequately controlled"},null,null,{"$f":"IF(Operational!E18=\"\",\"\",IF(Operational!F18=\"\",\"\",IF(Operational!I18=\"\",\"\",(VLOOKUP(Operational!E18,Scales!$E$5:$G$10,3,FALSE)))))","v":10},{"$f":"IF(K81=\"\",\"\",(VLOOKUP(Operational!F18,Scales!$E$14:$G$19,3,FALSE)))","v":6},{"$f":"Scales!$I$5","v":0.5},{"$f":"Scales!$J$5","v":0.5},8,{"$f":"Operational!I18","v":"Significant"},{"$f":"IF(K81=\"\",\"\",IF(L81=\"\",\"\",IF(P81=\"\",\"\",K81*L81*(1-VLOOKUP(P81,Scales!$E$23:$G$27,3,FALSE)))))","v":15}]
[null,null,null,{"$f":"IF(Operational!$D$19=\"\",\"\",Operational!$D$19)","v":"Emergency Planning & Preparedness - Immanent threat to public safety; damage to property; disruptions to university programs and public services"},{"$f":"IF(Operational!$G$19=\"\",\"\",Operational!$G$19)","v":"Activation of the Emergency Operations Plan and the Emergency Operations Center. assigned personnel to serve as the E-Prep Coordinator."},{"$f":"IF(Operational!$J$19=\"\",\"\",Operational!$J$19)","v":"The EOC is under the direction of University Police Department. University Police Department is a 24/7/365 operation. Use of email for campus-wide notification."},{"$f":"IF(Operational!$K$19=\"\",\"\",Operational!$K$19)","v":"University Police Department"},{"$f":"IF(Operational!E19=\"\",\"\",IF(Operational!F19=\"\",\"\",IF(Operational!I19=\"\",\"\",INDEX(Scoring!$G$5:$K$13,MATCH(O82,Scoring!$F$5:$F$13,0),MATCH(P82,Scoring!$G$4:$K$4,0)))))","v":"Adequately controlled"},null,null,{"$f":"IF(Operational!E19=\"\",\"\",IF(Operational!F19=\"\",\"\",IF(Operational!I19=\"\",\"\",(VLOOKUP(Operational!E19,Scales!$E$5:$G$10,3,FALSE)))))","v":6},{"$f":"IF(K82=\"\",\"\",(VLOOKUP(Operational!F19,Scales!$E$14:$G$19,3,FALSE)))","v":6},{"$f":"Scales!$I$5","v":0.5},{"$f":"Scales!$J$5","v":0.5},6,{"$f":"Operational!I19","v":"Significant"},{"$f":"IF(K82=\"\",\"\",IF(L82=\"\",\"\",IF(P82=\"\",\"\",K82*L82*(1-VLOOKUP(P82,Scales!$E$23:$G$27,3,FALSE)))))","v":9}]
[null,null,null,{"$f":"IF(Operational!$D$20=\"\",\"\",Operational!$D$20)","v":"Inability to recover from system loss or extended downtime"},{"$f":"IF(Operational!$G$20=\"\",\"\",Operational!$G$20)","v":"Mission Continuity Plan Rollout; Disaster Recovery Plans; System wide and local backup and recovery policies and procedures; Electronic Information Security: Incident Response Planning and Notification Procedures"},{"$f":"IF(Operational!$J$20=\"\",\"\",Operational!$J$20)","v":"Emergency plan testing documentation"},{"$f":"IF(Operational!$K$20=\"\",\"\",Operational!$K$20)","v":"Administrative Affairs"},{"$f":"IF(Operational!E20=\"\",\"\",IF(Operational!F20=\"\",\"\",IF(Operational!I20=\"\",\"\",INDEX(Scoring!$G$5:$K$13,MATCH(O83,Scoring!$F$5:$F$13,0),MATCH(P83,Scoring!$G$4:$K$4,0)))))","v":"Adequately controlled"},null,null,{"$f":"IF(Operational!E20=\"\",\"\",IF(Operational!F20=\"\",\"\",IF(Operational!I20=\"\",\"\",(VLOOKUP(Operational!E20,Scales!$E$5:$G$10,3,FALSE)))))","v":6},{"$f":"IF(K83=\"\",\"\",(VLOOKUP(Operational!F20,Scales!$E$14:$G$19,3,FALSE)))","v":2},{"$f":"Scales!$I$5","v":0.5},{"$f":"Scales!$J$5","v":0.5},4,{"$f":"Operational!I20","v":"Minor"},{"$f":"IF(K83=\"\",\"\",IF(L83=\"\",\"\",IF(P83=\"\",\"\",K83*L83*(1-VLOOKUP(P83,Scales!$E$23:$G$27,3,FALSE)))))","v":9}]
{"$rows_empty":11}
[null,null,null,{"$f":"Compliance!$D$5","v":"Compliance Risks"},"Management & Mitigation","Dashboards, Monitoring, & Accountability","Accountable Person/Department",{"$f":"H68","v":"Risk Rating"}]
[null,null,null,{"$f":"IF(Compliance!$D$6=\"\",\"\",Compliance!$D$6)","v":"Conflicts of interest in financial transactions and agreements"},{"$f":"IF(Compliance!$G$6=\"\",\"\",Compliance!$G$6)","v":"Annual system wide Outside Activities Reporting (OAR)/Conflict of Interest (COI) Reporting for Designated Officials; Business Contract Policies; Whistle Blower system; Employee Handbook (Ch. 8 Code of Ethics)"},{"$f":"IF(Compliance!$J$6=\"\",\"\",Compliance!$J$6)","v":"Annual Outside Activities Reporting (OAR)/Conflict of Interest (COI) Reports by Designated Officials; Whistle blower system; Code of Ethics"},{"$f":"IF(Compliance!$K$6=\"\",\"\",Compliance!$K$6)","v":"Administration"},{"$f":"IF(Compliance!E6=\"\",\"\",IF(Compliance!F6=\"\",\"\",IF(Compliance!I6=\"\",\"\",INDEX(Scoring!$G$5:$K$13,MATCH(O96,Scoring!$F$5:$F$13,0),MATCH(P96,Scoring!$G$4:$K$4,0)))))","v":"Adequately controlled"},null,null,{"$f":"IF(Compliance!E6=\"\",\"\",IF(Compliance!F6=\"\",\"\",IF(Compliance!I6=\"\",\"\",(VLOOKUP(Compliance!E6,Scales!$E$5:$G$10,3,FALSE)))))","v":2},{"$f":"IF(K96=\"\",\"\",(VLOOKUP(Compliance!F6,Scales!$E$14:$G$19,3,FALSE)))","v":4},{"$f":"Scales!$I$5","v":0.5},{"$f":"Scales!$J$5","v":0.5},{"$f":"IF(K96=\"\",\"\",IF(L96=\"\",\"\",ROUND(SUMPRODUCT(K96:L96*M96:N96),0)))","v":3},{"$f":"Compliance!I6","v":"Minor"},{"$f":"IF(K96=\"\",\"\",IF(L96=\"\",\"\",IF(P96=\"\",\"\",K96*L96*(1-VLOOKUP(P96,Scales!$E$23:$G$27,3,FALSE)))))","v":6}]
[null,null,null,{"$f":"IF(Compliance!$D$7=\"\",\"\",Compliance!$D$7)","v":"Handling of Native American Graves Protection and Repatriation Act artifacts"},{"$f":"IF(Compliance!$G$7=\"\",\"\",Compliance!$G$7)","v":"NAGPRA Federal Register; "},{"$f":"IF(Compliance!$J$7=\"\",\"\",Compliance!$J$7)","v":"NAGPRA Federal Register"},{"$f":"IF(Compliance!$K$7=\"\",\"\",Compliance!$K$7)","v":"American Indians Department, Associated Students, Inc. "},{"$f":"IF(Compliance!E7=\"\",\"\",IF(Compliance!F7=\"\",\"\",IF(Compliance!I7=\"\",\"\",INDEX(Scoring!$G$5:$K$13,MATCH(O97,Scoring!$F$5:$F$13,0),MATCH(P97,Scoring!$G$4:$K$4,0)))))","v":"Potentially poorly controlled"},null,null,{"$f":"IF(Compliance!E7=\"\",\"\",IF(Compliance!F7=\"\",\"\",IF(Compliance!I7=\"\",\"\",(VLOOKUP(Compliance!E7,Scales!$E$5:$G$10,3,FALSE)))))","v":6},{"$f":"IF(K97=\"\",\"\",(VLOOKUP(Compliance!F7,Scales!$E$14:$G$19,3,FALSE)))","v":8},{"$f":"Scales!$I$5","v":0.5},{"$f":"Scales!$J$5","v":0.5},{"$f":"IF(K97=\"\",\"\",IF(L97=\"\",\"\",ROUND(SUMPRODUCT(K97:L97*M97:N97),0)))","v":7},{"$f":"Compliance!I7","v":"Moderate"},{"$f":"IF(K97=\"\",\"\",IF(L97=\"\",\"\",IF(P97=\"\",\"\",K97*L97*(1-VLOOKUP(P97,Scales!$E$23:$G$27,3,FALSE)))))","v":24}]
[null,null,null,{"$f":"IF(Compliance!$D$8=\"\",\"\",Compliance!$D$8)","v":"Cost sharing procedures are not compliant with federal requirements"},{"$f":"IF(Compliance!$G$8=\"\",\"\",Compliance!$G$8)","v":"Cost Sharing Procedures; Effort Reporting and Cost Share Tracking System"},{"$f":"IF(Compliance!$J$8=\"\",\"\",Compliance!$J$8)","v":"Cost Sharing System (CSS)"},{"$f":"IF(Compliance!$K$8=\"\",\"\",Compliance!$K$8)","v":"Administration"},{"$f":"IF(Compliance!E8=\"\",\"\",IF(Compliance!F8=\"\",\"\",IF(Compliance!I8=\"\",\"\",INDEX(Scoring!$G$5:$K$13,MATCH(O98,Scoring!$F$5:$F$13,0),MATCH(P98,Scoring!$G$4:$K$4,0)))))","v":"Adequately controlled"},null,null,{"$f":"IF(Compliance!E8=\"\",\"\",IF(Compliance!F8=\"\",\"\",IF(Compliance!I8=\"\",\"\",(VLOOKUP(Compliance!E8,Scales!$E$5:$G$10,3,FALSE)))))","v":5},{"$f":"IF(K98=\"\",\"\",(VLOOKUP(Compliance!F8,Scales!$E$14:$G$19,3,FALSE)))","v":2},{"$f":"Scales!$I$5","v":0.5},{"$f":"Scales!$J$5","v":0.5},4,{"$f":"Compliance!I8","v":"Minor"},{"$f":"IF(K98=\"\",\"\",IF(L98=\"\",\"\",IF(P98=\"\",\"\",K98*L98*(1-VLOOKUP(P98,Scales!$E$23:$G$27,3,FALSE)))))","v":7.5}]
[null,null,null,{"$f":"IF(Compliance!$D$9=\"\",\"\",Compliance!$D$9)","v":"Noncompliance with UWS requirements for auxiliary organization policies and procedures"},{"$f":"IF(Compliance!$G$9=\"\",\"\",Compliance!$G$9)","v":"Associated Students Business & Finance Department; Corp.; UWS Audit Department"},{"$f":"IF(Compliance!$J$9=\"\",\"\",Compliance!$J$9)","v":"UWS Auxiliary Organization Audit; Associated Students Board Governance Policy"},{"$f":"IF(Compliance!$K$9=\"\",\"\",Compliance!$K$9)","v":"Associated Students Board of Directors; UCorp Board and Leadership"},{"$f":"IF(Compliance!E9=\"\",\"\",IF(Compliance!F9=\"\",\"\",IF(Compliance!I9=\"\",\"\",INDEX(Scoring!$G$5:$K$13,MATCH(O99,Scoring!$F$5:$F$13,0),MATCH(P99,Scoring!$G$4:$K$4,0)))))","v":"Adequately controlled"},null,null,{"$f":"IF(Compliance!E9=\"\",\"\",IF(Compliance!F9=\"\",\"\",IF(Compliance!I9=\"\",\"\",(VLOOKUP(Compliance!E9,Scales!$E$5:$G$10,3,FALSE)))))","v":6},{"$f":"IF(K99=\"\",\"\",(VLOOKUP(Compliance!F9,Scales!$E$14:$G$19,3,FALSE)))","v":6},{"$f":"Scales!$I$5","v":0.5},{"$f":"Scales!$J$5","v":0.5},6,{"$f":"Compliance!I9","v":"Moderate"},{"$f":"IF(K99=\"\",\"\",IF(L99=\"\",\"\",IF(P99=\"\",\"\",K99*L99*(1-VLOOKUP(P99,Scales!$E$23:$G$27,3,FALSE)))))","v":18}]
[null,null,null,{"$f":"IF(Compliance!$D$10=\"\",\"\",Compliance!$D$10)","v":"Agreement terms and conditions not met, but funds used"},{"$f":"IF(Compliance!$G$10=\"\",\"\",Compliance!$G$10)","v":"Whistle Blower system; Ethics Compliance and Audit Program; Extramural Funds Accounting: Award Closeout Procedures and Checklist"},{"$f":"IF(Compliance!$J$10=\"\",\"\",Compliance!$J$10)","v":"Reported at department level; Project Closeout Reviews; General and Payroll Ledger Reviews "},{"$f":"IF(Compliance!$K$10=\"\",\"\",Compliance!$K$10)","v":"Administration"},{"$f":"IF(Compliance!E10=\"\",\"\",IF(Compliance!F10=\"\",\"\",IF(Compliance!I10=\"\",\"\",INDEX(Scoring!$G$5:$K$13,MATCH(O100,Scoring!$F$5:$F$13,0),MATCH(P100,Scoring!$G$4:$K$4,0)))))","v":"Potentially over-controlled"},null,null,{"$f":"IF(Compliance!E10=\"\",\"\",IF(Compliance!F10=\"\",\"\",IF(Compliance!I10=\"\",\"\",(VLOOKUP(Compliance!E10,Scales!$E$5:$G$10,3,FALSE)))))","v":2},{"$f":"IF(K100=\"\",\"\",(VLOOKUP(Compliance!F10,Scales!$E$14:$G$19,3,FALSE)))","v":2},{"$f":"Scales!$I$5","v":0.5},{"$f":"Scales!$J$5","v":0.5},2,{"$f":"Compliance!I10","v":"Nearly complete"},{"$f":"IF(K100=\"\",\"\",IF(L100=\"\",\"\",IF(P100=\"\",\"\",K100*L100*(1-VLOOKUP(P100,Scales!$E$23:$G$27,3,FALSE)))))","v":0.20000000000000018}]
[null,null,null,{"$f":"IF(Compliance!$D$11=\"\",\"\",Compliance!$D$11)","v":"General Regulatory fines or penalties"},{"$f":"IF(Compliance!$G$11=\"\",\"\",Compliance!$G$11)","v":"Sponsored projects offices and extramural funds accounting offices; Whistle Blower system; Ethics Compliance and Audit Program; Internal Control Program; Administrative Responsibilities Handbook - Principles of Regulatory Compliance"},{"$f":"IF(Compliance!$J$11=\"\",\"\",Compliance!$J$11)","v":"Working on including in Business Intelligence System; "},{"$f":"IF(Compliance!$K$11=\"\",\"\",Compliance!$K$11)","v":"Administration"},{"$f":"IF(Compliance!E11=\"\",\"\",IF(Compliance!F11=\"\",\"\",IF(Compliance!I11=\"\",\"\",INDEX(Scoring!$G$5:$K$13,MATCH(O101,Scoring!$F$5:$F$13,0),MATCH(P101,Scoring!$G$4:$K$4,0)))))","v":"Adequately controlled"},null,null,{"$f":"IF(Compliance!E11=\"\",\"\",IF(Compliance!F11=\"\",\"\",IF(Compliance!I11=\"\",\"\",(VLOOKUP(Compliance!E11,Scales!$E$5:$G$10,3,FALSE)))))","v":6},{"$f":"IF(K101=\"\",\"\",(VLOOKUP(Compliance!F11,Scales!$E$14:$G$19,3,FALSE)))","v":5},{"$f":"Scales!$I$5","v":0.5},{"$f":"Scales!$J$5","v":0.5},6,{"$f":"Compliance!I11","v":"Moderate"},{"$f":"IF(K101=\"\",\"\",IF(L101=\"\",\"\",IF(P101=\"\",\"\",K101*L101*(1-VLOOKUP(P101,Scales!$E$23:$G$27,3,FALSE)))))","v":15}]
[null,null,null,{"$f":"IF(Compliance!$D$12=\"\",\"\",Compliance!$D$12)","v":"Intellectual property infringement"},{"$f":"IF(Compliance!$G$12=\"\",\"\",Compliance!$G$12)","v":"Office of Research and Sponsored Programs: Divisions of Innovation Access and Research Technology & Industrial Alliances, and Intellectual Property Officers; Industry collaboration guides; Web-based resources; Administrative Responsibilities Handbook -Research Affairs: Intellectual Property; Regent Policy Documents"},{"$f":"IF(Compliance!$J$12=\"\",\"\",Compliance!$J$12)","v":"Claims System; Web-based resources"},{"$f":"IF(Compliance!$K$12=\"\",\"\",Compliance!$K$12)","v":"University Counsel"},{"$f":"IF(Compliance!E12=\"\",\"\",IF(Compliance!F12=\"\",\"\",IF(Compliance!I12=\"\",\"\",INDEX(Scoring!$G$5:$K$13,MATCH(O102,Scoring!$F$5:$F$13,0),MATCH(P102,Scoring!$G$4:$K$4,0)))))","v":"Adequately controlled"},null,null,{"$f":"IF(Compliance!E12=\"\",\"\",IF(Compliance!F12=\"\",\"\",IF(Compliance!I12=\"\",\"\",(VLOOKUP(Compliance!E12,Scales!$E$5:$G$10,3,FALSE)))))","v":4},{"$f":"IF(K102=\"\",\"\",(VLOOKUP(Compliance!F12,Scales!$E$14:$G$19,3,FALSE)))","v":2},{"$f":"Scales!$I$5","v":0.5},{"$f":"Scales!$J$5","v":0.5},3,{"$f":"Compliance!I12","v":"Minor"},{"$f":"IF(K102=\"\",\"\",IF(L102=\"\",\"\",IF(P102=\"\",\"\",K102*L102*(1-VLOOKUP(P102,Scales!$E$23:$G$27,3,FALSE)))))","v":6}]
[null,null,null,{"$f":"IF(Compliance!$D$13=\"\",\"\",Compliance!$D$13)","v":"Resignation of Sr. Deputy Title IX Coordinator for Employees and Third Parties resulting in EP&C having a larger role in responding to employee and third party Executive Order 1096 matters"},{"$f":"IF(Compliance!$G$13=\"\",\"\",Compliance!$G$13)","v":"Duties were re-assigned to EP&C, and Executive Order 1096 investigations were no longer assigned to Labor Relations. Risk will be mitigated with the hiring of the Dean of Equity Initiatives who will serve in the Sr. Deputy capacity. "},{"$f":"IF(Compliance!$J$13=\"\",\"\",Compliance!$J$13)","v":"Internal tracking by EP&C, and reported to the Title IX Coordinator and DHR Administrator"},{"$f":"IF(Compliance!$K$13=\"\",\"\",Compliance!$K$13)","v":"Student Affairs & Enrollment Management (Equity Programs & Compliance), Human Resources"},{"$f":"IF(Compliance!E13=\"\",\"\",IF(Compliance!F13=\"\",\"\",IF(Compliance!I13=\"\",\"\",INDEX(Scoring!$G$5:$K$13,MATCH(O103,Scoring!$F$5:$F$13,0),MATCH(P103,Scoring!$G$4:$K$4,0)))))","v":"Adequately controlled"},null,null,{"$f":"IF(Compliance!E13=\"\",\"\",IF(Compliance!F13=\"\",\"\",IF(Compliance!I13=\"\",\"\",(VLOOKUP(Compliance!E13,Scales!$E$5:$G$10,3,FALSE)))))","v":8},{"$f":"IF(K103=\"\",\"\",(VLOOKUP(Compliance!F13,Scales!$E$14:$G$19,3,FALSE)))","v":8},{"$f":"Scales!$I$5","v":0.5},{"$f":"Scales!$J$5","v":0.5},8,{"$f":"Compliance!I13","v":"Significant"},{"$f":"IF(K103=\"\",\"\",IF(L103=\"\",\"\",IF(P103=\"\",\"\",K103*L103*(1-VLOOKUP(P103,Scales!$E$23:$G$27,3,FALSE)))))","v":16}]
[null,null,null,{"$f":"IF(Compliance!$D$14=\"\",\"\",Compliance!$D$14)","v":"Title IX  and sexual violence prevention efforts  - An area of concern is that the new federal administration may reinterpret Title IX to include a higher standard of proof for investigations of sexual misconduct, as well as the invalidation of campus judicial hearings for sexual misconduct situations in favor of civil court proceedings for all cases."},{"$f":"IF(Compliance!$G$14=\"\",\"\",Compliance!$G$14)","v":"Monitor federal guidelines related to Title IX"},{"$f":"IF(Compliance!$J$14=\"\",\"\",Compliance!$J$14)","v":""},{"$f":"IF(Compliance!$K$14=\"\",\"\",Compliance!$K$14)","v":"Title IX Office, Equity Programs & Compliance, and Health Promotion and Wellness"},{"$f":"IF(Compliance!E14=\"\",\"\",IF(Compliance!F14=\"\",\"\",IF(Compliance!I14=\"\",\"\",INDEX(Scoring!$G$5:$K$13,MATCH(O104,Scoring!$F$5:$F$13,0),MATCH(P104,Scoring!$G$4:$K$4,0)))))","v":"Potentially poorly controlled"},null,null,{"$f":"IF(Compliance!E14=\"\",\"\",IF(Compliance!F14=\"\",\"\",IF(Compliance!I14=\"\",\"\",(VLOOKUP(Compliance!E14,Scales!$E$5:$G$10,3,FALSE)))))","v":6},{"$f":"IF(K104=\"\",\"\",(VLOOKUP(Compliance!F14,Scales!$E$14:$G$19,3,FALSE)))","v":8},{"$f":"Scales!$I$5","v":0.5},{"$f":"Scales!$J$5","v":0.5},7,{"$f":"Compliance!I14","v":"Moderate"},{"$f":"IF(K104=\"\",\"\",IF(L104=\"\",\"\",IF(P104=\"\",\"\",K104*L104*(1-VLOOKUP(P104,Scales!$E$23:$G$27,3,FALSE)))))","v":24}]
[null,null,null,{"$f":"IF(Compliance!$D$15=\"\",\"\",Compliance!$D$15)","v":"Effort reports inaccurate, insufficient, or incomplete"},{"$f":"IF(Compliance!$G$15=\"\",\"\",Compliance!$G$15)","v":"Effort Report Compliance Initiative; Effort Reporting and Cost Share Tracking System"},{"$f":"IF(Compliance!$J$15=\"\",\"\",Compliance!$J$15)","v":"Effort Reporting System (ERS); OMB Circular A-133 audits performed annually by external auditors"},{"$f":"IF(Compliance!$K$15=\"\",\"\",Compliance!$K$15)","v":"Individual Pis"},{"$f":"IF(Compliance!E15=\"\",\"\",IF(Compliance!F15=\"\",\"\",IF(Compliance!I15=\"\",\"\",INDEX(Scoring!$G$5:$K$13,MATCH(O105,Scoring!$F$5:$F$13,0),MATCH(P105,Scoring!$G$4:$K$4,0)))))","v":"Potentially poorly controlled"},null,null,{"$f":"IF(Compliance!E15=\"\",\"\",IF(Compliance!F15=\"\",\"\",IF(Compliance!I15=\"\",\"\",(VLOOKUP(Compliance!E15,Scales!$E$5:$G$10,3,FALSE)))))","v":2},{"$f":"IF(K105=\"\",\"\",(VLOOKUP(Compliance!F15,Scales!$E$14:$G$19,3,FALSE)))","v":10},{"$f":"Scales!$I$5","v":0.5},{"$f":"Scales!$J$5","v":0.5},6,{"$f":"Compliance!I15","v":"Minor"},{"$f":"IF(K105=\"\",\"\",IF(L105=\"\",\"\",IF(P105=\"\",\"\",K105*L105*(1-VLOOKUP(P105,Scales!$E$23:$G$27,3,FALSE)))))","v":15}]
[null,null,null,{"$f":"IF(Compliance!$D$16=\"\",\"\",Compliance!$D$16)","v":"Food Safety Violations"},{"$f":"IF(Compliance!$G$16=\"\",\"\",Compliance!$G$16)","v":"Routine equipment maintenance/repair and health and safety inspection; partner with EHS; Food service guidelines and operating standard. Note: compliance issues with lack of controls. Note: EHS is inspecting the Vista Room every semester - post notices to ensure people know about it. "},{"$f":"IF(Compliance!$J$16=\"\",\"\",Compliance!$J$16)","v":"Risk Management, EHS Monitors and Reports, Dining"},{"$f":"IF(Compliance!$K$16=\"\",\"\",Compliance!$K$16)","v":"Risk Management, Dining Services"},{"$f":"IF(Compliance!E16=\"\",\"\",IF(Compliance!F16=\"\",\"\",IF(Compliance!I16=\"\",\"\",INDEX(Scoring!$G$5:$K$13,MATCH(O106,Scoring!$F$5:$F$13,0),MATCH(P106,Scoring!$G$4:$K$4,0)))))","v":"Potentially over-controlled"},null,null,{"$f":"IF(Compliance!E16=\"\",\"\",IF(Compliance!F16=\"\",\"\",IF(Compliance!I16=\"\",\"\",(VLOOKUP(Compliance!E16,Scales!$E$5:$G$10,3,FALSE)))))","v":2},{"$f":"IF(K106=\"\",\"\",(VLOOKUP(Compliance!F16,Scales!$E$14:$G$19,3,FALSE)))","v":2},{"$f":"Scales!$I$5","v":0.5},{"$f":"Scales!$J$5","v":0.5},2,{"$f":"Compliance!I16","v":"Moderate"},{"$f":"IF(K106=\"\",\"\",IF(L106=\"\",\"\",IF(P106=\"\",\"\",K106*L106*(1-VLOOKUP(P106,Scales!$E$23:$G$27,3,FALSE)))))","v":2}]
[null,null,null,{"$f":"IF(Compliance!$D$17=\"\",\"\",Compliance!$D$17)","v":"Student Organization Activities"},{"$f":"IF(Compliance!$G$17=\"\",\"\",Compliance!$G$17)","v":"Student Activities and Events unit; Student Organization Handbook; Student Organization Conducts and Policies; Funding Requests; Fundraising Event Guideline; Student Event Planning Policies and Procedures; Internal Audit on-going review. We will also coordinate with associated Students to bring awareness of food safety to  students."},{"$f":"IF(Compliance!$J$17=\"\",\"\",Compliance!$J$17)","v":"Records of Students Activities/Events on campus website,  Student Organization Directory"},{"$f":"IF(Compliance!$K$17=\"\",\"\",Compliance!$K$17)","v":"Student Affairs, Environmental Health and Safety, Student Activities and Events "},{"$f":"IF(Compliance!E17=\"\",\"\",IF(Compliance!F17=\"\",\"\",IF(Compliance!I17=\"\",\"\",INDEX(Scoring!$G$5:$K$13,MATCH(O107,Scoring!$F$5:$F$13,0),MATCH(P107,Scoring!$G$4:$K$4,0)))))","v":{"$error":"#N/A"}},null,null,{"$f":"IF(Compliance!E17=\"\",\"\",IF(Compliance!F17=\"\",\"\",IF(Compliance!I17=\"\",\"\",(VLOOKUP(Compliance!E17,Scales!$E$5:$G$10,3,FALSE)))))","v":8},{"$f":"IF(K107=\"\",\"\",(VLOOKUP(Compliance!F17,Scales!$E$14:$G$19,3,FALSE)))","v":8},{"$f":"Scales!$I$5","v":0.5},{"$f":"Scales!$J$5","v":0.5},8,{"$f":"Compliance!I17","v":"Low"},{"$f":"IF(K107=\"\",\"\",IF(L107=\"\",\"\",IF(P107=\"\",\"\",K107*L107*(1-VLOOKUP(P107,Scales!$E$23:$G$27,3,FALSE)))))","v":{"$error":"#N/A"}}]
[null,null,null,{"$f":"IF(Compliance!$D$18=\"\",\"\",Compliance!$D$18)","v":"Moving to Medical Records - Concern for the confidentiality of students psychological records without adequate IT services when needed"},{"$f":"IF(Compliance!$G$18=\"\",\"\",Compliance!$G$18)","v":"Concern is for breaching HIPPA and FERPA requirement if IT doesn't protect fire walls regularly."},{"$f":"IF(Compliance!$J$18=\"\",\"\",Compliance!$J$18)","v":"IT support is will be responsible for  monitoring and reporting the system."},{"$f":"IF(Compliance!$K$18=\"\",\"\",Compliance!$K$18)","v":"Student Affairs & Enrollment Management  (Counseling and Psychological Services) and IT"},{"$f":"IF(Compliance!E18=\"\",\"\",IF(Compliance!F18=\"\",\"\",IF(Compliance!I18=\"\",\"\",INDEX(Scoring!$G$5:$K$13,MATCH(O108,Scoring!$F$5:$F$13,0),MATCH(P108,Scoring!$G$4:$K$4,0)))))","v":"Adequately controlled"},null,null,{"$f":"IF(Compliance!E18=\"\",\"\",IF(Compliance!F18=\"\",\"\",IF(Compliance!I18=\"\",\"\",(VLOOKUP(Compliance!E18,Scales!$E$5:$G$10,3,FALSE)))))","v":10},{"$f":"IF(K108=\"\",\"\",(VLOOKUP(Compliance!F18,Scales!$E$14:$G$19,3,FALSE)))","v":6},{"$f":"Scales!$I$5","v":0.5},{"$f":"Scales!$J$5","v":0.5},8,{"$f":"Compliance!I18","v":"Nearly complete"},{"$f":"IF(K108=\"\",\"\",IF(L108=\"\",\"\",IF(P108=\"\",\"\",K108*L108*(1-VLOOKUP(P108,Scales!$E$23:$G$27,3,FALSE)))))","v":3.0000000000000027}]
[null,null,null,{"$f":"IF(Compliance!$D$19=\"\",\"\",Compliance!$D$19)","v":"Clarification needed about campus policy on departments paying for costs of hiring an international faculty"},{"$f":"IF(Compliance!$G$19=\"\",\"\",Compliance!$G$19)","v":"Fiscal Affairs and Professional Development unit; Faculty Manual; Faculty Recruitment and Hiring Handbook; Retention, Tenure, and Promotion Policy. Note: lack of consistency with guidelines (Homeland Security Process with Office of International Programs), complicated and expensive rules on what can be paid. "},{"$f":"IF(Compliance!$J$19=\"\",\"\",Compliance!$J$19)","v":"Faculty Recruitment and Hiring Handbook"},{"$f":"IF(Compliance!$K$19=\"\",\"\",Compliance!$K$19)","v":"HR, Faculty Affairs, Office of International Programs"},{"$f":"IF(Compliance!E19=\"\",\"\",IF(Compliance!F19=\"\",\"\",IF(Compliance!I19=\"\",\"\",INDEX(Scoring!$G$5:$K$13,MATCH(O109,Scoring!$F$5:$F$13,0),MATCH(P109,Scoring!$G$4:$K$4,0)))))","v":"Poorly controlled"},null,null,{"$f":"IF(Compliance!E19=\"\",\"\",IF(Compliance!F19=\"\",\"\",IF(Compliance!I19=\"\",\"\",(VLOOKUP(Compliance!E19,Scales!$E$5:$G$10,3,FALSE)))))","v":8},{"$f":"IF(K109=\"\",\"\",(VLOOKUP(Compliance!F19,Scales!$E$14:$G$19,3,FALSE)))","v":6},{"$f":"Scales!$I$5","v":0.5},{"$f":"Scales!$J$5","v":0.5},7,{"$f":"Compliance!I19","v":"Minor"},{"$f":"IF(K109=\"\",\"\",IF(L109=\"\",\"\",IF(P109=\"\",\"\",K109*L109*(1-VLOOKUP(P109,Scales!$E$23:$G$27,3,FALSE)))))","v":36}]
[null,null,null,{"$f":"IF(Compliance!$D$20=\"\",\"\",Compliance!$D$20)","v":"Disclosure of confidential information (personally identifying information (PII) or health care info)"},{"$f":"IF(Compliance!$G$20=\"\",\"\",Compliance!$G$20)","v":"Electronic Information Security; Encryption of sensitive information, especially on laptops; Department policies limiting downloads and storage of personal information; Removal of partial information (e.g., partial SSNs); Audit, Risk, Compliance and Ethics Program; Export Controls"},{"$f":"IF(Compliance!$J$20=\"\",\"\",Compliance!$J$20)","v":"Monitored and reported at department level.  Notifications to impacted parties generated in compliance with policy; Health Compliance Monitoring"},{"$f":"IF(Compliance!$K$20=\"\",\"\",Compliance!$K$20)","v":"HR&D, ORSP, iCIT"},{"$f":"IF(Compliance!E20=\"\",\"\",IF(Compliance!F20=\"\",\"\",IF(Compliance!I20=\"\",\"\",INDEX(Scoring!$G$5:$K$13,MATCH(O110,Scoring!$F$5:$F$13,0),MATCH(P110,Scoring!$G$4:$K$4,0)))))","v":"Adequately controlled"},null,null,{"$f":"IF(Compliance!E20=\"\",\"\",IF(Compliance!F20=\"\",\"\",IF(Compliance!I20=\"\",\"\",(VLOOKUP(Compliance!E20,Scales!$E$5:$G$10,3,FALSE)))))","v":2},{"$f":"IF(K110=\"\",\"\",(VLOOKUP(Compliance!F20,Scales!$E$14:$G$19,3,FALSE)))","v":5},{"$f":"Scales!$I$5","v":0.5},{"$f":"Scales!$J$5","v":0.5},4,{"$f":"Compliance!I20","v":"Minor"},{"$f":"IF(K110=\"\",\"\",IF(L110=\"\",\"\",IF(P110=\"\",\"\",K110*L110*(1-VLOOKUP(P110,Scales!$E$23:$G$27,3,FALSE)))))","v":7.5}]
{"$rows_empty":11}
[null,null,null,{"$f":"Reputational!$D$5","v":"Reputational Risks"},"Management & Mitigation","Dashboards, Monitoring, & Accountability","Accountable Person/Department",{"$f":"H95","v":"Risk Rating"}]
[null,null,null,{"$f":"IF(Reputational!$D$6=\"\",\"\",Reputational!$D$6)","v":"Research misconduct, such as falsification of data or results, or non-disclosure of research dangers"},{"$f":"IF(Reputational!$G$6=\"\",\"\",Reputational!$G$6)","v":"Research Compliance and Integrity Offices; Research Compliance Policies (Certifications and Manuals); ARCE; Internal Control Program; Whistle Blower Program; Mandatory Ethics Training"},{"$f":"IF(Reputational!$J$6=\"\",\"\",Reputational!$J$6)","v":"Whistle blower system; Claims System; Investigations of allegations of research misconduct"},{"$f":"IF(Reputational!$K$6=\"\",\"\",Reputational!$K$6)","v":"Individual Pis"},{"$f":"IF(Reputational!E6=\"\",\"\",IF(Reputational!F6=\"\",\"\",IF(Reputational!I6=\"\",\"\",INDEX(Scoring!$G$5:$K$13,MATCH(O123,Scoring!$F$5:$F$13,0),MATCH(P123,Scoring!$G$4:$K$4,0)))))","v":"Potentially over-controlled"},null,null,{"$f":"IF(Reputational!E6=\"\",\"\",IF(Reputational!F6=\"\",\"\",IF(Reputational!I6=\"\",\"\",(VLOOKUP(Reputational!E6,Scales!$E$5:$G$10,3,FALSE)))))","v":2},{"$f":"IF(K123=\"\",\"\",(VLOOKUP(Reputational!F6,Scales!$E$14:$G$19,3,FALSE)))","v":6},{"$f":"Scales!$I$5","v":0.5},{"$f":"Scales!$J$5","v":0.5},{"$f":"IF(K123=\"\",\"\",IF(L123=\"\",\"\",ROUND(SUMPRODUCT(K123:L123*M123:N123),0)))","v":4},{"$f":"Reputational!I6","v":"Significant"},{"$f":"IF(K123=\"\",\"\",IF(L123=\"\",\"\",IF(P123=\"\",\"\",K123*L123*(1-VLOOKUP(P123,Scales!$E$23:$G$27,3,FALSE)))))","v":3}]
[null,null,null,{"$f":"IF(Reputational!$D$7=\"\",\"\",Reputational!$D$7)","v":"Unethical/unapproved human/animal subject research"},{"$f":"IF(Reputational!$G$7=\"\",\"\",Reputational!$G$7)","v":"Whistle Blower Program; Institutional Review Boards (IRBs); Institutional Animal Care and Use Policies and Committees; Centers for Animal Alternatives; Education Certification in use of animals or human subjects"},{"$f":"IF(Reputational!$J$7=\"\",\"\",Reputational!$J$7)","v":"Protocol review and approval process for human and animal subjects.  Claims System for misusing Human Subject or Animals"},{"$f":"IF(Reputational!$K$7=\"\",\"\",Reputational!$K$7)","v":"Counsel's office"},{"$f":"IF(Reputational!E7=\"\",\"\",IF(Reputational!F7=\"\",\"\",IF(Reputational!I7=\"\",\"\",INDEX(Scoring!$G$5:$K$13,MATCH(O124,Scoring!$F$5:$F$13,0),MATCH(P124,Scoring!$G$4:$K$4,0)))))","v":"Potentially poorly controlled"},null,null,{"$f":"IF(Reputational!E7=\"\",\"\",IF(Reputational!F7=\"\",\"\",IF(Reputational!I7=\"\",\"\",(VLOOKUP(Reputational!E7,Scales!$E$5:$G$10,3,FALSE)))))","v":6},{"$f":"IF(K124=\"\",\"\",(VLOOKUP(Reputational!F7,Scales!$E$14:$G$19,3,FALSE)))","v":6},{"$f":"Scales!$I$5","v":0.5},{"$f":"Scales!$J$5","v":0.5},{"$f":"IF(K124=\"\",\"\",IF(L124=\"\",\"\",ROUND(SUMPRODUCT(K124:L124*M124:N124),0)))","v":6},{"$f":"Reputational!I7","v":"Minor"},{"$f":"IF(K124=\"\",\"\",IF(L124=\"\",\"\",IF(P124=\"\",\"\",K124*L124*(1-VLOOKUP(P124,Scales!$E$23:$G$27,3,FALSE)))))","v":27}]
[null,null,null,{"$f":"IF(Reputational!$D$8=\"\",\"\",Reputational!$D$8)","v":"Personnel issues or workplace violence"},{"$f":"IF(Reputational!$G$8=\"\",\"\",Reputational!$G$8)","v":"Police services; Threat Management Teams and Programs; Employee assistance programs; Mediation Services; Workplace Violence Prevention programs; Policies and training"},{"$f":"IF(Reputational!$J$8=\"\",\"\",Reputational!$J$8)","v":"Security alarm monitoring; Claims systems; Law Enforcement Systems; Clery Crime Statistics; Other Crime Statistics"},{"$f":"IF(Reputational!$K$8=\"\",\"\",Reputational!$K$8)","v":"HR&D,  Police"},{"$f":"IF(Reputational!E8=\"\",\"\",IF(Reputational!F8=\"\",\"\",IF(Reputational!I8=\"\",\"\",INDEX(Scoring!$G$5:$K$13,MATCH(O125,Scoring!$F$5:$F$13,0),MATCH(P125,Scoring!$G$4:$K$4,0)))))","v":"Adequately controlled"},null,null,{"$f":"IF(Reputational!E8=\"\",\"\",IF(Reputational!F8=\"\",\"\",IF(Reputational!I8=\"\",\"\",(VLOOKUP(Reputational!E8,Scales!$E$5:$G$10,3,FALSE)))))","v":2},{"$f":"IF(K125=\"\",\"\",(VLOOKUP(Reputational!F8,Scales!$E$14:$G$19,3,FALSE)))","v":2},{"$f":"Scales!$I$5","v":0.5},{"$f":"Scales!$J$5","v":0.5},2,{"$f":"Reputational!I8","v":"None"},{"$f":"IF(K125=\"\",\"\",IF(L125=\"\",\"\",IF(P125=\"\",\"\",K125*L125*(1-VLOOKUP(P125,Scales!$E$23:$G$27,3,FALSE)))))","v":4}]
[null,null,null,{"$f":"IF(Reputational!$D$9=\"\",\"\",Reputational!$D$9)","v":"Sports/public event disturbances"},{"$f":"IF(Reputational!$G$9=\"\",\"\",Reputational!$G$9)","v":"Safety & Security programs; Emergency Management; Safety programs such as Safe Party Initiatives, and Community Safety Programs"},{"$f":"IF(Reputational!$J$9=\"\",\"\",Reputational!$J$9)","v":"Campus Police Departments; Claims System"},{"$f":"IF(Reputational!$K$9=\"\",\"\",Reputational!$K$9)","v":" Police"},{"$f":"IF(Reputational!E9=\"\",\"\",IF(Reputational!F9=\"\",\"\",IF(Reputational!I9=\"\",\"\",INDEX(Scoring!$G$5:$K$13,MATCH(O126,Scoring!$F$5:$F$13,0),MATCH(P126,Scoring!$G$4:$K$4,0)))))","v":"Potentially over-controlled"},null,null,{"$f":"IF(Reputational!E9=\"\",\"\",IF(Reputational!F9=\"\",\"\",IF(Reputational!I9=\"\",\"\",(VLOOKUP(Reputational!E9,Scales!$E$5:$G$10,3,FALSE)))))","v":6},{"$f":"IF(K126=\"\",\"\",(VLOOKUP(Reputational!F9,Scales!$E$14:$G$19,3,FALSE)))","v":4},{"$f":"Scales!$I$5","v":0.5},{"$f":"Scales!$J$5","v":0.5},5,{"$f":"Reputational!I9","v":"Significant"},{"$f":"IF(K126=\"\",\"\",IF(L126=\"\",\"\",IF(P126=\"\",\"\",K126*L126*(1-VLOOKUP(P126,Scales!$E$23:$G$27,3,FALSE)))))","v":6}]
[null,null,null,{"$f":"IF(Reputational!$D$10=\"\",\"\",Reputational!$D$10)","v":"Student mental health - changing emotional climate"},{"$f":"IF(Reputational!$G$10=\"\",\"\",Reputational!$G$10)","v":"Student Health Clinics; Threat Management Team; Student Affairs"},{"$f":"IF(Reputational!$J$10=\"\",\"\",Reputational!$J$10)","v":"Reported at a department level"},{"$f":"IF(Reputational!$K$10=\"\",\"\",Reputational!$K$10)","v":"Medical services, Dean of Students, Student Affairs"},{"$f":"IF(Reputational!E10=\"\",\"\",IF(Reputational!F10=\"\",\"\",IF(Reputational!I10=\"\",\"\",INDEX(Scoring!$G$5:$K$13,MATCH(O127,Scoring!$F$5:$F$13,0),MATCH(P127,Scoring!$G$4:$K$4,0)))))","v":"Potentially over-controlled"},null,null,{"$f":"IF(Reputational!E10=\"\",\"\",IF(Reputational!F10=\"\",\"\",IF(Reputational!I10=\"\",\"\",(VLOOKUP(Reputational!E10,Scales!$E$5:$G$10,3,FALSE)))))","v":2},{"$f":"IF(K127=\"\",\"\",(VLOOKUP(Reputational!F10,Scales!$E$14:$G$19,3,FALSE)))","v":5},{"$f":"Scales!$I$5","v":0.5},{"$f":"Scales!$J$5","v":0.5},4,{"$f":"Reputational!I10","v":"Moderate"},{"$f":"IF(K127=\"\",\"\",IF(L127=\"\",\"\",IF(P127=\"\",\"\",K127*L127*(1-VLOOKUP(P127,Scales!$E$23:$G$27,3,FALSE)))))","v":5}]
[null,null,null,{"$f":"IF(Reputational!$D$11=\"\",\"\",Reputational!$D$11)","v":"Inappropriate athletic recruiting"},{"$f":"IF(Reputational!$G$11=\"\",\"\",Reputational!$G$11)","v":"Conflict of Interest Policies; NCAA Regulations; Internal Audit Review"},{"$f":"IF(Reputational!$J$11=\"\",\"\",Reputational!$J$11)","v":"Claims System,  Action"},{"$f":"IF(Reputational!$K$11=\"\",\"\",Reputational!$K$11)","v":"Sports and Recreation, HR&D"},{"$f":"IF(Reputational!E11=\"\",\"\",IF(Reputational!F11=\"\",\"\",IF(Reputational!I11=\"\",\"\",INDEX(Scoring!$G$5:$K$13,MATCH(O128,Scoring!$F$5:$F$13,0),MATCH(P128,Scoring!$G$4:$K$4,0)))))","v":"Potentially over-controlled"},null,null,{"$f":"IF(Reputational!E11=\"\",\"\",IF(Reputational!F11=\"\",\"\",IF(Reputational!I11=\"\",\"\",(VLOOKUP(Reputational!E11,Scales!$E$5:$G$10,3,FALSE)))))","v":2},{"$f":"IF(K128=\"\",\"\",(VLOOKUP(Reputational!F11,Scales!$E$14:$G$19,3,FALSE)))","v":4},{"$f":"Scales!$I$5","v":0.5},{"$f":"Scales!$J$5","v":0.5},3,{"$f":"Reputational!I11","v":"Nearly complete"},{"$f":"IF(K128=\"\",\"\",IF(L128=\"\",\"\",IF(P128=\"\",\"\",K128*L128*(1-VLOOKUP(P128,Scales!$E$23:$G$27,3,FALSE)))))","v":0.40000000000000036}]
[null,null,null,{"$f":"IF(Reputational!$D$12=\"\",\"\",Reputational!$D$12)","v":"Protest Response by University"},{"$f":"IF(Reputational!$G$12=\"\",\"\",Reputational!$G$12)","v":" Police Department Policies;  Police Department personnel are trained and equipped for civil unrest. Work collaboratively with other  departments, such as Student Affairs."},{"$f":"IF(Reputational!$J$12=\"\",\"\",Reputational!$J$12)","v":" Police Department Security and Fire Safety Annual Report.  Police Department is a 24/7/365 operation. Direct reporting of civil unrest to  Police Department."},{"$f":"IF(Reputational!$K$12=\"\",\"\",Reputational!$K$12)","v":" Police, Student Affairs"},{"$f":"IF(Reputational!E12=\"\",\"\",IF(Reputational!F12=\"\",\"\",IF(Reputational!I12=\"\",\"\",INDEX(Scoring!$G$5:$K$13,MATCH(O129,Scoring!$F$5:$F$13,0),MATCH(P129,Scoring!$G$4:$K$4,0)))))","v":"Adequately controlled"},null,null,{"$f":"IF(Reputational!E12=\"\",\"\",IF(Reputational!F12=\"\",\"\",IF(Reputational!I12=\"\",\"\",(VLOOKUP(Reputational!E12,Scales!$E$5:$G$10,3,FALSE)))))","v":10},{"$f":"IF(K129=\"\",\"\",(VLOOKUP(Reputational!F12,Scales!$E$14:$G$19,3,FALSE)))","v":6},{"$f":"Scales!$I$5","v":0.5},{"$f":"Scales!$J$5","v":0.5},8,{"$f":"Reputational!I12","v":"Significant"},{"$f":"IF(K129=\"\",\"\",IF(L129=\"\",\"\",IF(P129=\"\",\"\",K129*L129*(1-VLOOKUP(P129,Scales!$E$23:$G$27,3,FALSE)))))","v":15}]
[null,null,null,{"$f":"IF(Reputational!$D$13=\"\",\"\",Reputational!$D$13)","v":"General safety and security OFF campus, i.e. International Field Research, Foreign Travel"},{"$f":"IF(Reputational!$G$13=\"\",\"\",Reputational!$G$13)","v":"Safety & Security programs; Emergency Management; Travel Insurance Program"},{"$f":"IF(Reputational!$J$13=\"\",\"\",Reputational!$J$13)","v":" Travel system"},{"$f":"IF(Reputational!$K$13=\"\",\"\",Reputational!$K$13)","v":"Risk Management"},{"$f":"IF(Reputational!E13=\"\",\"\",IF(Reputational!F13=\"\",\"\",IF(Reputational!I13=\"\",\"\",INDEX(Scoring!$G$5:$K$13,MATCH(O130,Scoring!$F$5:$F$13,0),MATCH(P130,Scoring!$G$4:$K$4,0)))))","v":"Adequately controlled"},null,null,{"$f":"IF(Reputational!E13=\"\",\"\",IF(Reputational!F13=\"\",\"\",IF(Reputational!I13=\"\",\"\",(VLOOKUP(Reputational!E13,Scales!$E$5:$G$10,3,FALSE)))))","v":8},{"$f":"IF(K130=\"\",\"\",(VLOOKUP(Reputational!F13,Scales!$E$14:$G$19,3,FALSE)))","v":8},{"$f":"Scales!$I$5","v":0.5},{"$f":"Scales!$J$5","v":0.5},8,{"$f":"Reputational!I13","v":"Significant"},{"$f":"IF(K130=\"\",\"\",IF(L130=\"\",\"\",IF(P130=\"\",\"\",K130*L130*(1-VLOOKUP(P130,Scales!$E$23:$G$27,3,FALSE)))))","v":16}]
[null,null,null,{"$f":"IF(Reputational!$D$14=\"\",\"\",Reputational!$D$14)","v":"General safety and security, on campus"},{"$f":"IF(Reputational!$G$14=\"\",\"\",Reputational!$G$14)","v":"Safety & Security programs; Emergency Management; Make Safety Happen Programs; Background checks; Safety programs such as Safe Party Initiatives, and Community Safety Programs"},{"$f":"IF(Reputational!$J$14=\"\",\"\",Reputational!$J$14)","v":"Business Intelligence System; looking to deploy People Locator System wide; Claims and Incident Reporting System"},{"$f":"IF(Reputational!$K$14=\"\",\"\",Reputational!$K$14)","v":" Police, Risk Management"},{"$f":"IF(Reputational!E14=\"\",\"\",IF(Reputational!F14=\"\",\"\",IF(Reputational!I14=\"\",\"\",INDEX(Scoring!$G$5:$K$13,MATCH(O131,Scoring!$F$5:$F$13,0),MATCH(P131,Scoring!$G$4:$K$4,0)))))","v":"Adequately controlled"},null,null,{"$f":"IF(Reputational!E14=\"\",\"\",IF(Reputational!F14=\"\",\"\",IF(Reputational!I14=\"\",\"\",(VLOOKUP(Reputational!E14,Scales!$E$5:$G$10,3,FALSE)))))","v":8},{"$f":"IF(K131=\"\",\"\",(VLOOKUP(Reputational!F14,Scales!$E$14:$G$19,3,FALSE)))","v":8},{"$f":"Scales!$I$5","v":0.5},{"$f":"Scales!$J$5","v":0.5},8,{"$f":"Reputational!I14","v":"Significant"},{"$f":"IF(K131=\"\",\"\",IF(L131=\"\",\"\",IF(P131=\"\",\"\",K131*L131*(1-VLOOKUP(P131,Scales!$E$23:$G$27,3,FALSE)))))","v":16}]
[null,null,null,{"$f":"IF(Reputational!$D$15=\"\",\"\",Reputational!$D$15)","v":"Minors on Campus and Off Campus"},{"$f":"IF(Reputational!$G$15=\"\",\"\",Reputational!$G$15)","v":"For summer camps and similar events maintain due diligence, pre-departure orientation, appropriate Risk Management procedure (insurance, waiver, etc.) and background check chaperones."},{"$f":"IF(Reputational!$J$15=\"\",\"\",Reputational!$J$15)","v":"Records maintained by  Camps and Conferences.  Students may not depart until they participate in the orientation, purchase the required insurance, and their parents/guardians signed the Release of Liability Form."},{"$f":"IF(Reputational!$K$15=\"\",\"\",Reputational!$K$15)","v":" Police, Risk Management, Continuing Education"},{"$f":"IF(Reputational!E15=\"\",\"\",IF(Reputational!F15=\"\",\"\",IF(Reputational!I15=\"\",\"\",INDEX(Scoring!$G$5:$K$13,MATCH(O132,Scoring!$F$5:$F$13,0),MATCH(P132,Scoring!$G$4:$K$4,0)))))","v":"Adequately controlled"},null,null,{"$f":"IF(Reputational!E15=\"\",\"\",IF(Reputational!F15=\"\",\"\",IF(Reputational!I15=\"\",\"\",(VLOOKUP(Reputational!E15,Scales!$E$5:$G$10,3,FALSE)))))","v":8},{"$f":"IF(K132=\"\",\"\",(VLOOKUP(Reputational!F15,Scales!$E$14:$G$19,3,FALSE)))","v":6},{"$f":"Scales!$I$5","v":0.5},{"$f":"Scales!$J$5","v":0.5},7,{"$f":"Reputational!I15","v":"Significant"},{"$f":"IF(K132=\"\",\"\",IF(L132=\"\",\"\",IF(P132=\"\",\"\",K132*L132*(1-VLOOKUP(P132,Scales!$E$23:$G$27,3,FALSE)))))","v":12}]
[null,null,null,{"$f":"IF(Reputational!$D$16=\"\",\"\",Reputational!$D$16)","v":""},{"$f":"IF(Reputational!$G$16=\"\",\"\",Reputational!$G$16)","v":""},{"$f":"IF(Reputational!$J$16=\"\",\"\",Reputational!$J$16)","v":""},{"$f":"IF(Reputational!$K$16=\"\",\"\",Reputational!$K$16)","v":""},{"$f":"IF(Reputational!E16=\"\",\"\",IF(Reputational!F16=\"\",\"\",IF(Reputational!I16=\"\",\"\",INDEX(Scoring!$G$5:$K$13,MATCH(O133,Scoring!$F$5:$F$13,0),MATCH(P133,Scoring!$G$4:$K$4,0)))))","v":""},null,null,{"$f":"IF(Reputational!E16=\"\",\"\",IF(Reputational!F16=\"\",\"\",IF(Reputational!I16=\"\",\"\",(VLOOKUP(Reputational!E16,Scales!$E$5:$G$10,3,FALSE)))))","v":""},{"$f":"IF(K133=\"\",\"\",(VLOOKUP(Reputational!F16,Scales!$E$14:$G$19,3,FALSE)))","v":""},{"$f":"Scales!$I$5","v":0.5},{"$f":"Scales!$J$5","v":0.5},"",{"$f":"Reputational!I16","v":0},{"$f":"IF(K133=\"\",\"\",IF(L133=\"\",\"\",IF(P133=\"\",\"\",K133*L133*(1-VLOOKUP(P133,Scales!$E$23:$G$27,3,FALSE)))))","v":""}]
[null,null,null,{"$f":"IF(Reputational!$D$17=\"\",\"\",Reputational!$D$17)","v":""},{"$f":"IF(Reputational!$G$17=\"\",\"\",Reputational!$G$17)","v":""},{"$f":"IF(Reputational!$J$17=\"\",\"\",Reputational!$J$17)","v":""},{"$f":"IF(Reputational!$K$17=\"\",\"\",Reputational!$K$17)","v":""},{"$f":"IF(Reputational!E17=\"\",\"\",IF(Reputational!F17=\"\",\"\",IF(Reputational!I17=\"\",\"\",INDEX(Scoring!$G$5:$K$13,MATCH(O134,Scoring!$F$5:$F$13,0),MATCH(P134,Scoring!$G$4:$K$4,0)))))","v":""},null,null,{"$f":"IF(Reputational!E17=\"\",\"\",IF(Reputational!F17=\"\",\"\",IF(Reputational!I17=\"\",\"\",(VLOOKUP(Reputational!E17,Scales!$E$5:$G$10,3,FALSE)))))","v":""},{"$f":"IF(K134=\"\",\"\",(VLOOKUP(Reputational!F17,Scales!$E$14:$G$19,3,FALSE)))","v":""},{"$f":"Scales!$I$5","v":0.5},{"$f":"Scales!$J$5","v":0.5},"",{"$f":"Reputational!I17","v":0},{"$f":"IF(K134=\"\",\"\",IF(L134=\"\",\"\",IF(P134=\"\",\"\",K134*L134*(1-VLOOKUP(P134,Scales!$E$23:$G$27,3,FALSE)))))","v":""}]
[null,null,null,{"$f":"IF(Reputational!$D$18=\"\",\"\",Reputational!$D$18)","v":""},{"$f":"IF(Reputational!$G$18=\"\",\"\",Reputational!$G$18)","v":""},{"$f":"IF(Reputational!$J$18=\"\",\"\",Reputational!$J$18)","v":""},{"$f":"IF(Reputational!$K$18=\"\",\"\",Reputational!$K$18)","v":""},{"$f":"IF(Reputational!E18=\"\",\"\",IF(Reputational!F18=\"\",\"\",IF(Reputational!I18=\"\",\"\",INDEX(Scoring!$G$5:$K$13,MATCH(O135,Scoring!$F$5:$F$13,0),MATCH(P135,Scoring!$G$4:$K$4,0)))))","v":""},null,null,{"$f":"IF(Reputational!E18=\"\",\"\",IF(Reputational!F18=\"\",\"\",IF(Reputational!I18=\"\",\"\",(VLOOKUP(Reputational!E18,Scales!$E$5:$G$10,3,FALSE)))))","v":""},{"$f":"IF(K135=\"\",\"\",(VLOOKUP(Reputational!F18,Scales!$E$14:$G$19,3,FALSE)))","v":""},{"$f":"Scales!$I$5","v":0.5},{"$f":"Scales!$J$5","v":0.5},"",{"$f":"Reputational!I18","v":0},{"$f":"IF(K135=\"\",\"\",IF(L135=\"\",\"\",IF(P135=\"\",\"\",K135*L135*(1-VLOOKUP(P135,Scales!$E$23:$G$27,3,FALSE)))))","v":""}]
[null,null,null,{"$f":"IF(Reputational!$D$19=\"\",\"\",Reputational!$D$19)","v":""},{"$f":"IF(Reputational!$G$19=\"\",\"\",Reputational!$G$19)","v":""},{"$f":"IF(Reputational!$J$19=\"\",\"\",Reputational!$J$19)","v":""},{"$f":"IF(Reputational!$K$19=\"\",\"\",Reputational!$K$19)","v":""},{"$f":"IF(Reputational!E19=\"\",\"\",IF(Reputational!F19=\"\",\"\",IF(Reputational!I19=\"\",\"\",INDEX(Scoring!$G$5:$K$13,MATCH(O136,Scoring!$F$5:$F$13,0),MATCH(P136,Scoring!$G$4:$K$4,0)))))","v":""},null,null,{"$f":"IF(Reputational!E19=\"\",\"\",IF(Reputational!F19=\"\",\"\",IF(Reputational!I19=\"\",\"\",(VLOOKUP(Reputational!E19,Scales!$E$5:$G$10,3,FALSE)))))","v":""},{"$f":"IF(K136=\"\",\"\",(VLOOKUP(Reputational!F19,Scales!$E$14:$G$19,3,FALSE)))","v":""},{"$f":"Scales!$I$5","v":0.5},{"$f":"Scales!$J$5","v":0.5},"",{"$f":"Reputational!I19","v":0},{"$f":"IF(K136=\"\",\"\",IF(L136=\"\",\"\",IF(P136=\"\",\"\",K136*L136*(1-VLOOKUP(P136,Scales!$E$23:$G$27,3,FALSE)))))","v":""}]
[null,null,null,{"$f":"IF(Reputational!$D$20=\"\",\"\",Reputational!$D$20)","v":""},{"$f":"IF(Reputational!$G$20=\"\",\"\",Reputational!$G$20)","v":""},{"$f":"IF(Reputational!$J$20=\"\",\"\",Reputational!$J$20)","v":""},{"$f":"IF(Reputational!$K$20=\"\",\"\",Reputational!$K$20)","v":""},{"$f":"IF(Reputational!E20=\"\",\"\",IF(Reputational!F20=\"\",\"\",IF(Reputational!I20=\"\",\"\",INDEX(Scoring!$G$5:$K$13,MATCH(O137,Scoring!$F$5:$F$13,0),MATCH(P137,Scoring!$G$4:$K$4,0)))))","v":""},null,null,{"$f":"IF(Reputational!E20=\"\",\"\",IF(Reputational!F20=\"\",\"\",IF(Reputational!I20=\"\",\"\",(VLOOKUP(Reputational!E20,Scales!$E$5:$G$10,3,FALSE)))))","v":""},{"$f":"IF(K137=\"\",\"\",(VLOOKUP(Reputational!F20,Scales!$E$14:$G$19,3,FALSE)))","v":""},{"$f":"Scales!$I$5","v":0.5},{"$f":"Scales!$J$5","v":0.5},"",{"$f":"Reputational!I20","v":0},{"$f":"IF(K137=\"\",\"\",IF(L137=\"\",\"\",IF(P137=\"\",\"\",K137*L137*(1-VLOOKUP(P137,Scales!$E$23:$G$27,3,FALSE)))))","v":""}]
{"$rows_empty":11}
[null,null,null,{"$f":"Reporting!$D$5","v":"Reporting Risks"},"Management & Mitigation","Dashboards, Monitoring, & Accountability","Accountable Person/Department",{"$f":"H122","v":"Risk Rating"}]
[null,null,null,{"$f":"IF(Reporting!$D$6=\"\",\"\",Reporting!$D$6)","v":"Failure to maintain equipment inventories"},{"$f":"IF(Reporting!$G$6=\"\",\"\",Reporting!$G$6)","v":"Equipment Management Policies; Internal Audit Review "},{"$f":"IF(Reporting!$J$6=\"\",\"\",Reporting!$J$6)","v":"Maintenance Insurance Program; looking to deploy the included equipment inventory database system-wide; Periodic physical inventories and certifications of equipment"},{"$f":"IF(Reporting!$K$6=\"\",\"\",Reporting!$K$6)","v":"Individual Pis"},{"$f":"IF(Reporting!E6=\"\",\"\",IF(Reporting!F6=\"\",\"\",IF(Reporting!I6=\"\",\"\",INDEX(Scoring!$G$5:$K$13,MATCH(O150,Scoring!$F$5:$F$13,0),MATCH(P150,Scoring!$G$4:$K$4,0)))))","v":"Potentially over-controlled"},null,null,{"$f":"IF(Reporting!E6=\"\",\"\",IF(Reporting!F6=\"\",\"\",IF(Reporting!I6=\"\",\"\",(VLOOKUP(Reporting!E6,Scales!$E$5:$G$10,3,FALSE)))))","v":5},{"$f":"IF(K150=\"\",\"\",(VLOOKUP(Reporting!F6,Scales!$E$14:$G$19,3,FALSE)))","v":2},{"$f":"Scales!$I$5","v":0.5},{"$f":"Scales!$J$5","v":0.5},{"$f":"IF(K150=\"\",\"\",IF(L150=\"\",\"\",ROUND(SUMPRODUCT(K150:L150*M150:N150),0)))","v":4},{"$f":"Reporting!I6","v":"Nearly complete"},{"$f":"IF(K150=\"\",\"\",IF(L150=\"\",\"\",IF(P150=\"\",\"\",K150*L150*(1-VLOOKUP(P150,Scales!$E$23:$G$27,3,FALSE)))))","v":0.50000000000000044}]
[null,null,null,{"$f":"IF(Reporting!$D$7=\"\",\"\",Reporting!$D$7)","v":"Sub-recipients not managed appropriately"},{"$f":"IF(Reporting!$G$7=\"\",\"\",Reporting!$G$7)","v":" Operating Guidance (Contracts and Grants Manual on Subrecipient Monitoring); Training and Best Practices documents; Internal Audit Review;"},{"$f":"IF(Reporting!$J$7=\"\",\"\",Reporting!$J$7)","v":"Reported at department level; OMB Circular A-133 Audit performed annually by external auditors"},{"$f":"IF(Reporting!$K$7=\"\",\"\",Reporting!$K$7)","v":"Administration"},{"$f":"IF(Reporting!E7=\"\",\"\",IF(Reporting!F7=\"\",\"\",IF(Reporting!I7=\"\",\"\",INDEX(Scoring!$G$5:$K$13,MATCH(O151,Scoring!$F$5:$F$13,0),MATCH(P151,Scoring!$G$4:$K$4,0)))))","v":"Adequately controlled"},null,null,{"$f":"IF(Reporting!E7=\"\",\"\",IF(Reporting!F7=\"\",\"\",IF(Reporting!I7=\"\",\"\",(VLOOKUP(Reporting!E7,Scales!$E$5:$G$10,3,FALSE)))))","v":5},{"$f":"IF(K151=\"\",\"\",(VLOOKUP(Reporting!F7,Scales!$E$14:$G$19,3,FALSE)))","v":10},{"$f":"Scales!$I$5","v":0.5},{"$f":"Scales!$J$5","v":0.5},{"$f":"IF(K151=\"\",\"\",IF(L151=\"\",\"\",ROUND(SUMPRODUCT(K151:L151*M151:N151),0)))","v":8},{"$f":"Reporting!I7","v":"Nearly complete"},{"$f":"IF(K151=\"\",\"\",IF(L151=\"\",\"\",IF(P151=\"\",\"\",K151*L151*(1-VLOOKUP(P151,Scales!$E$23:$G$27,3,FALSE)))))","v":2.5000000000000022}]
[null,null,null,{"$f":"IF(Reporting!$D$8=\"\",\"\",Reporting!$D$8)","v":"Obsolescence of systems/technology"},{"$f":"IF(Reporting!$G$8=\"\",\"\",Reporting!$G$8)","v":"Institutional Data Management and Governance Initiative; Local computer replacement cycles; Systems life cycle management. Aged electrical infrastructure with many single failure points exist.  Battery backup has insufficient time for \"graceful shutdown\" should single generator fail to function.  system lacks rental generator connection point."},{"$f":"IF(Reporting!$J$8=\"\",\"\",Reporting!$J$8)","v":"Reported at department level; Help Desk reports; system performance monitoring"},{"$f":"IF(Reporting!$K$8=\"\",\"\",Reporting!$K$8)","v":"iCIT"},{"$f":"IF(Reporting!E8=\"\",\"\",IF(Reporting!F8=\"\",\"\",IF(Reporting!I8=\"\",\"\",INDEX(Scoring!$G$5:$K$13,MATCH(O152,Scoring!$F$5:$F$13,0),MATCH(P152,Scoring!$G$4:$K$4,0)))))","v":"Poorly controlled"},null,null,{"$f":"IF(Reporting!E8=\"\",\"\",IF(Reporting!F8=\"\",\"\",IF(Reporting!I8=\"\",\"\",(VLOOKUP(Reporting!E8,Scales!$E$5:$G$10,3,FALSE)))))","v":6},{"$f":"IF(K152=\"\",\"\",(VLOOKUP(Reporting!F8,Scales!$E$14:$G$19,3,FALSE)))","v":8},{"$f":"Scales!$I$5","v":0.5},{"$f":"Scales!$J$5","v":0.5},7,{"$f":"Reporting!I8","v":"None"},{"$f":"IF(K152=\"\",\"\",IF(L152=\"\",\"\",IF(P152=\"\",\"\",K152*L152*(1-VLOOKUP(P152,Scales!$E$23:$G$27,3,FALSE)))))","v":48}]
[null,null,null,{"$f":"IF(Reporting!$D$9=\"\",\"\",Reporting!$D$9)","v":"Intellectual property infringement"},{"$f":"IF(Reporting!$G$9=\"\",\"\",Reporting!$G$9)","v":"Industry collaboration guides; Web-based resources; Administrative Responsibilities Handbook -Research Affairs: Intellectual Property"},{"$f":"IF(Reporting!$J$9=\"\",\"\",Reporting!$J$9)","v":"Claims System; Web-based resources "},{"$f":"IF(Reporting!$K$9=\"\",\"\",Reporting!$K$9)","v":"Counsel's office"},{"$f":"IF(Reporting!E9=\"\",\"\",IF(Reporting!F9=\"\",\"\",IF(Reporting!I9=\"\",\"\",INDEX(Scoring!$G$5:$K$13,MATCH(O153,Scoring!$F$5:$F$13,0),MATCH(P153,Scoring!$G$4:$K$4,0)))))","v":"Adequately controlled"},null,null,{"$f":"IF(Reporting!E9=\"\",\"\",IF(Reporting!F9=\"\",\"\",IF(Reporting!I9=\"\",\"\",(VLOOKUP(Reporting!E9,Scales!$E$5:$G$10,3,FALSE)))))","v":5},{"$f":"IF(K153=\"\",\"\",(VLOOKUP(Reporting!F9,Scales!$E$14:$G$19,3,FALSE)))","v":2},{"$f":"Scales!$I$5","v":0.5},{"$f":"Scales!$J$5","v":0.5},4,{"$f":"Reporting!I9","v":"Minor"},{"$f":"IF(K153=\"\",\"\",IF(L153=\"\",\"\",IF(P153=\"\",\"\",K153*L153*(1-VLOOKUP(P153,Scales!$E$23:$G$27,3,FALSE)))))","v":7.5}]
[null,null,null,{"$f":"IF(Reporting!$D$10=\"\",\"\",Reporting!$D$10)","v":"Unauthorized modification of data"},{"$f":"IF(Reporting!$G$10=\"\",\"\",Reporting!$G$10)","v":"Management Guide for Information Security Guidelines and iCIT Policies; Electronic Information Security policy; Cyber-Safety Programs and work groups; Internal Control Program;  Network Security Programs including firewall services; User training and roles management; Web application security (e.g., standard coding practices)"},{"$f":"IF(Reporting!$J$10=\"\",\"\",Reporting!$J$10)","v":"Reported at local level; Annual Security Reports; Monitoring of activities by application super users, database administrators and systems administrators; General and Payroll Ledger Reviews; Systems logs monitoring; Intrusion Detection Systems"},{"$f":"IF(Reporting!$K$10=\"\",\"\",Reporting!$K$10)","v":"iCIT"},{"$f":"IF(Reporting!E10=\"\",\"\",IF(Reporting!F10=\"\",\"\",IF(Reporting!I10=\"\",\"\",INDEX(Scoring!$G$5:$K$13,MATCH(O154,Scoring!$F$5:$F$13,0),MATCH(P154,Scoring!$G$4:$K$4,0)))))","v":"Potentially poorly controlled"},null,null,{"$f":"IF(Reporting!E10=\"\",\"\",IF(Reporting!F10=\"\",\"\",IF(Reporting!I10=\"\",\"\",(VLOOKUP(Reporting!E10,Scales!$E$5:$G$10,3,FALSE)))))","v":6},{"$f":"IF(K154=\"\",\"\",(VLOOKUP(Reporting!F10,Scales!$E$14:$G$19,3,FALSE)))","v":2},{"$f":"Scales!$I$5","v":0.5},{"$f":"Scales!$J$5","v":0.5},4,{"$f":"Reporting!I10","v":"None"},{"$f":"IF(K154=\"\",\"\",IF(L154=\"\",\"\",IF(P154=\"\",\"\",K154*L154*(1-VLOOKUP(P154,Scales!$E$23:$G$27,3,FALSE)))))","v":12}]
[null,null,null,{"$f":"IF(Reporting!$D$11=\"\",\"\",Reporting!$D$11)","v":"Decentralization of systems leading to data inconsistencies and fragmentation"},{"$f":"IF(Reporting!$G$11=\"\",\"\",Reporting!$G$11)","v":"iCIT implementation of the Shared Drive system"},{"$f":"IF(Reporting!$J$11=\"\",\"\",Reporting!$J$11)","v":"Reported at local level; Programming quality assurance and testing; Approvals by programming managers and users before moving new systems or changes to production"},{"$f":"IF(Reporting!$K$11=\"\",\"\",Reporting!$K$11)","v":"iCIT"},{"$f":"IF(Reporting!E11=\"\",\"\",IF(Reporting!F11=\"\",\"\",IF(Reporting!I11=\"\",\"\",INDEX(Scoring!$G$5:$K$13,MATCH(O155,Scoring!$F$5:$F$13,0),MATCH(P155,Scoring!$G$4:$K$4,0)))))","v":"Potentially poorly controlled"},null,null,{"$f":"IF(Reporting!E11=\"\",\"\",IF(Reporting!F11=\"\",\"\",IF(Reporting!I11=\"\",\"\",(VLOOKUP(Reporting!E11,Scales!$E$5:$G$10,3,FALSE)))))","v":6},{"$f":"IF(K155=\"\",\"\",(VLOOKUP(Reporting!F11,Scales!$E$14:$G$19,3,FALSE)))","v":2},{"$f":"Scales!$I$5","v":0.5},{"$f":"Scales!$J$5","v":0.5},4,{"$f":"Reporting!I11","v":"None"},{"$f":"IF(K155=\"\",\"\",IF(L155=\"\",\"\",IF(P155=\"\",\"\",K155*L155*(1-VLOOKUP(P155,Scales!$E$23:$G$27,3,FALSE)))))","v":12}]
[null,null,null,{"$f":"IF(Reporting!$D$12=\"\",\"\",Reporting!$D$12)","v":"Lack of common data definitions"},{"$f":"IF(Reporting!$G$12=\"\",\"\",Reporting!$G$12)","v":"Institutional Data Management and Governance Initiative; UWSA Systems Development and Maintenance Standards; Electronic Information Security: Change Management "},{"$f":"IF(Reporting!$J$12=\"\",\"\",Reporting!$J$12)","v":"Reported at local level; Systems Development reviews and approvals; Audit Reports"},{"$f":"IF(Reporting!$K$12=\"\",\"\",Reporting!$K$12)","v":"iCIT"},{"$f":"IF(Reporting!E12=\"\",\"\",IF(Reporting!F12=\"\",\"\",IF(Reporting!I12=\"\",\"\",INDEX(Scoring!$G$5:$K$13,MATCH(O156,Scoring!$F$5:$F$13,0),MATCH(P156,Scoring!$G$4:$K$4,0)))))","v":"Potentially over-controlled"},null,null,{"$f":"IF(Reporting!E12=\"\",\"\",IF(Reporting!F12=\"\",\"\",IF(Reporting!I12=\"\",\"\",(VLOOKUP(Reporting!E12,Scales!$E$5:$G$10,3,FALSE)))))","v":2},{"$f":"IF(K156=\"\",\"\",(VLOOKUP(Reporting!F12,Scales!$E$14:$G$19,3,FALSE)))","v":2},{"$f":"Scales!$I$5","v":0.5},{"$f":"Scales!$J$5","v":0.5},2,{"$f":"Reporting!I12","v":"Significant"},{"$f":"IF(K156=\"\",\"\",IF(L156=\"\",\"\",IF(P156=\"\",\"\",K156*L156*(1-VLOOKUP(P156,Scales!$E$23:$G$27,3,FALSE)))))","v":1}]
[null,null,null,{"$f":"IF(Reporting!$D$13=\"\",\"\",Reporting!$D$13)","v":""},{"$f":"IF(Reporting!$G$13=\"\",\"\",Reporting!$G$13)","v":""},{"$f":"IF(Reporting!$J$13=\"\",\"\",Reporting!$J$13)","v":""},{"$f":"IF(Reporting!$K$13=\"\",\"\",Reporting!$K$13)","v":""},{"$f":"IF(Reporting!E13=\"\",\"\",IF(Reporting!F13=\"\",\"\",IF(Reporting!I13=\"\",\"\",INDEX(Scoring!$G$5:$K$13,MATCH(O157,Scoring!$F$5:$F$13,0),MATCH(P157,Scoring!$G$4:$K$4,0)))))","v":""},null,null,{"$f":"IF(Reporting!E13=\"\",\"\",IF(Reporting!F13=\"\",\"\",IF(Reporting!I13=\"\",\"\",(VLOOKUP(Reporting!E13,Scales!$E$5:$G$10,3,FALSE)))))","v":""},{"$f":"IF(K157=\"\",\"\",(VLOOKUP(Reporting!F13,Scales!$E$14:$G$19,3,FALSE)))","v":""},{"$f":"Scales!$I$5","v":0.5},{"$f":"Scales!$J$5","v":0.5},"",{"$f":"Reporting!I13","v":0},{"$f":"IF(K157=\"\",\"\",IF(L157=\"\",\"\",IF(P157=\"\",\"\",K157*L157*(1-VLOOKUP(P157,Scales!$E$23:$G$27,3,FALSE)))))","v":""}]
[null,null,null,{"$f":"IF(Reporting!$D$14=\"\",\"\",Reporting!$D$14)","v":""},{"$f":"IF(Reporting!$G$14=\"\",\"\",Reporting!$G$14)","v":""},{"$f":"IF(Reporting!$J$14=\"\",\"\",Reporting!$J$14)","v":""},{"$f":"IF(Reporting!$K$14=\"\",\"\",Reporting!$K$14)","v":""},{"$f":"IF(Reporting!E14=\"\",\"\",IF(Reporting!F14=\"\",\"\",IF(Reporting!I14=\"\",\"\",INDEX(Scoring!$G$5:$K$13,MATCH(O158,Scoring!$F$5:$F$13,0),MATCH(P158,Scoring!$G$4:$K$4,0)))))","v":""},null,null,{"$f":"IF(Reporting!E14=\"\",\"\",IF(Reporting!F14=\"\",\"\",IF(Reporting!I14=\"\",\"\",(VLOOKUP(Reporting!E14,Scales!$E$5:$G$10,3,FALSE)))))","v":""},{"$f":"IF(K158=\"\",\"\",(VLOOKUP(Reporting!F14,Scales!$E$14:$G$19,3,FALSE)))","v":""},{"$f":"Scales!$I$5","v":0.5},{"$f":"Scales!$J$5","v":0.5},"",{"$f":"Reporting!I14","v":0},{"$f":"IF(K158=\"\",\"\",IF(L158=\"\",\"\",IF(P158=\"\",\"\",K158*L158*(1-VLOOKUP(P158,Scales!$E$23:$G$27,3,FALSE)))))","v":""}]
[null,null,null,{"$f":"IF(Reporting!$D$15=\"\",\"\",Reporting!$D$15)","v":""},{"$f":"IF(Reporting!$G$15=\"\",\"\",Reporting!$G$15)","v":""},{"$f":"IF(Reporting!$J$15=\"\",\"\",Reporting!$J$15)","v":""},{"$f":"IF(Reporting!$K$15=\"\",\"\",Reporting!$K$15)","v":""},{"$f":"IF(Reporting!E15=\"\",\"\",IF(Reporting!F15=\"\",\"\",IF(Reporting!I15=\"\",\"\",INDEX(Scoring!$G$5:$K$13,MATCH(O159,Scoring!$F$5:$F$13,0),MATCH(P159,Scoring!$G$4:$K$4,0)))))","v":""},null,null,{"$f":"IF(Reporting!E15=\"\",\"\",IF(Reporting!F15=\"\",\"\",IF(Reporting!I15=\"\",\"\",(VLOOKUP(Reporting!E15,Scales!$E$5:$G$10,3,FALSE)))))","v":""},{"$f":"IF(K159=\"\",\"\",(VLOOKUP(Reporting!F15,Scales!$E$14:$G$19,3,FALSE)))","v":""},{"$f":"Scales!$I$5","v":0.5},{"$f":"Scales!$J$5","v":0.5},"",{"$f":"Reporting!I15","v":0},{"$f":"IF(K159=\"\",\"\",IF(L159=\"\",\"\",IF(P159=\"\",\"\",K159*L159*(1-VLOOKUP(P159,Scales!$E$23:$G$27,3,FALSE)))))","v":""}]
[null,null,null,{"$f":"IF(Reporting!$D$16=\"\",\"\",Reporting!$D$16)","v":""},{"$f":"IF(Reporting!$G$16=\"\",\"\",Reporting!$G$16)","v":""},{"$f":"IF(Reporting!$J$16=\"\",\"\",Reporting!$J$16)","v":""},{"$f":"IF(Reporting!$K$16=\"\",\"\",Reporting!$K$16)","v":""},{"$f":"IF(Reporting!E16=\"\",\"\",IF(Reporting!F16=\"\",\"\",IF(Reporting!I16=\"\",\"\",INDEX(Scoring!$G$5:$K$13,MATCH(O160,Scoring!$F$5:$F$13,0),MATCH(P160,Scoring!$G$4:$K$4,0)))))","v":""},null,null,{"$f":"IF(Reporting!E16=\"\",\"\",IF(Reporting!F16=\"\",\"\",IF(Reporting!I16=\"\",\"\",(VLOOKUP(Reporting!E16,Scales!$E$5:$G$10,3,FALSE)))))","v":""},{"$f":"IF(K160=\"\",\"\",(VLOOKUP(Reporting!F16,Scales!$E$14:$G$19,3,FALSE)))","v":""},{"$f":"Scales!$I$5","v":0.5},{"$f":"Scales!$J$5","v":0.5},"",{"$f":"Reporting!I16","v":0},{"$f":"IF(K160=\"\",\"\",IF(L160=\"\",\"\",IF(P160=\"\",\"\",K160*L160*(1-VLOOKUP(P160,Scales!$E$23:$G$27,3,FALSE)))))","v":""}]
[null,null,null,{"$f":"IF(Reporting!$D$17=\"\",\"\",Reporting!$D$17)","v":""},{"$f":"IF(Reporting!$G$17=\"\",\"\",Reporting!$G$17)","v":""},{"$f":"IF(Reporting!$J$17=\"\",\"\",Reporting!$J$17)","v":""},{"$f":"IF(Reporting!$K$17=\"\",\"\",Reporting!$K$17)","v":""},{"$f":"IF(Reporting!E17=\"\",\"\",IF(Reporting!F17=\"\",\"\",IF(Reporting!I17=\"\",\"\",INDEX(Scoring!$G$5:$K$13,MATCH(O161,Scoring!$F$5:$F$13,0),MATCH(P161,Scoring!$G$4:$K$4,0)))))","v":""},null,null,{"$f":"IF(Reporting!E17=\"\",\"\",IF(Reporting!F17=\"\",\"\",IF(Reporting!I17=\"\",\"\",(VLOOKUP(Reporting!E17,Scales!$E$5:$G$10,3,FALSE)))))","v":""},{"$f":"IF(K161=\"\",\"\",(VLOOKUP(Reporting!F17,Scales!$E$14:$G$19,3,FALSE)))","v":""},{"$f":"Scales!$I$5","v":0.5},{"$f":"Scales!$J$5","v":0.5},"",{"$f":"Reporting!I17","v":0},{"$f":"IF(K161=\"\",\"\",IF(L161=\"\",\"\",IF(P161=\"\",\"\",K161*L161*(1-VLOOKUP(P161,Scales!$E$23:$G$27,3,FALSE)))))","v":""}]
[null,null,null,{"$f":"IF(Reporting!$D$18=\"\",\"\",Reporting!$D$18)","v":""},{"$f":"IF(Reporting!$G$18=\"\",\"\",Reporting!$G$18)","v":""},{"$f":"IF(Reporting!$J$18=\"\",\"\",Reporting!$J$18)","v":""},{"$f":"IF(Reporting!$K$18=\"\",\"\",Reporting!$K$18)","v":""},{"$f":"IF(Reporting!E18=\"\",\"\",IF(Reporting!F18=\"\",\"\",IF(Reporting!I18=\"\",\"\",INDEX(Scoring!$G$5:$K$13,MATCH(O162,Scoring!$F$5:$F$13,0),MATCH(P162,Scoring!$G$4:$K$4,0)))))","v":""},null,null,{"$f":"IF(Reporting!E18=\"\",\"\",IF(Reporting!F18=\"\",\"\",IF(Reporting!I18=\"\",\"\",(VLOOKUP(Reporting!E18,Scales!$E$5:$G$10,3,FALSE)))))","v":""},{"$f":"IF(K162=\"\",\"\",(VLOOKUP(Reporting!F18,Scales!$E$14:$G$19,3,FALSE)))","v":""},{"$f":"Scales!$I$5","v":0.5},{"$f":"Scales!$J$5","v":0.5},"",{"$f":"Reporting!I18","v":0},{"$f":"IF(K162=\"\",\"\",IF(L162=\"\",\"\",IF(P162=\"\",\"\",K162*L162*(1-VLOOKUP(P162,Scales!$E$23:$G$27,3,FALSE)))))","v":""}]
[null,null,null,{"$f":"IF(Reporting!$D$19=\"\",\"\",Reporting!$D$19)","v":""},{"$f":"IF(Reporting!$G$19=\"\",\"\",Reporting!$G$19)","v":""},{"$f":"IF(Reporting!$J$19=\"\",\"\",Reporting!$J$19)","v":""},{"$f":"IF(Reporting!$K$19=\"\",\"\",Reporting!$K$19)","v":""},{"$f":"IF(Reporting!E19=\"\",\"\",IF(Reporting!F19=\"\",\"\",IF(Reporting!I19=\"\",\"\",INDEX(Scoring!$G$5:$K$13,MATCH(O163,Scoring!$F$5:$F$13,0),MATCH(P163,Scoring!$G$4:$K$4,0)))))","v":""},null,null,{"$f":"IF(Reporting!E19=\"\",\"\",IF(Reporting!F19=\"\",\"\",IF(Reporting!I19=\"\",\"\",(VLOOKUP(Reporting!E19,Scales!$E$5:$G$10,3,FALSE)))))","v":""},{"$f":"IF(K163=\"\",\"\",(VLOOKUP(Reporting!F19,Scales!$E$14:$G$19,3,FALSE)))","v":""},{"$f":"Scales!$I$5","v":0.5},{"$f":"Scales!$J$5","v":0.5},"",{"$f":"Reporting!I19","v":0},{"$f":"IF(K163=\"\",\"\",IF(L163=\"\",\"\",IF(P163=\"\",\"\",K163*L163*(1-VLOOKUP(P163,Scales!$E$23:$G$27,3,FALSE)))))","v":""}]
[null,null,null,{"$f":"IF(Reporting!$D$20=\"\",\"\",Reporting!$D$20)","v":""},{"$f":"IF(Reporting!$G$20=\"\",\"\",Reporting!$G$20)","v":""},{"$f":"IF(Reporting!$J$20=\"\",\"\",Reporting!$J$20)","v":""},{"$f":"IF(Reporting!$K$20=\"\",\"\",Reporting!$K$20)","v":""},{"$f":"IF(Reporting!E20=\"\",\"\",IF(Reporting!F20=\"\",\"\",IF(Reporting!I20=\"\",\"\",INDEX(Scoring!$G$5:$K$13,MATCH(O164,Scoring!$F$5:$F$13,0),MATCH(P164,Scoring!$G$4:$K$4,0)))))","v":""},null,null,{"$f":"IF(Reporting!E20=\"\",\"\",IF(Reporting!F20=\"\",\"\",IF(Reporting!I20=\"\",\"\",(VLOOKUP(Reporting!E20,Scales!$E$5:$G$10,3,FALSE)))))","v":""},{"$f":"IF(K164=\"\",\"\",(VLOOKUP(Reporting!F20,Scales!$E$14:$G$19,3,FALSE)))","v":""},{"$f":"Scales!$I$5","v":0.5},{"$f":"Scales!$J$5","v":0.5},"",{"$f":"Reporting!I20","v":0},{"$f":"IF(K164=\"\",\"\",IF(L164=\"\",\"\",IF(P164=\"\",\"\",K164*L164*(1-VLOOKUP(P164,Scales!$E$23:$G$27,3,FALSE)))))","v":""}]

{"sheet":"Export","index":13,"n_rows":121,"n_cols":18,"rows_kept":121,"cut":false,"hidden":false,"merged":[]}
["UC Location ID","Department/College","Person1","Person2","Person3","Date","Risk Type","Objective","Risk","Likelihood","Severity","Management and Mitigation","Frequency of Controls","Control Effectiveness","Dashboards, Monitoring, & Reporting","Accountable\nPerson/Department","Rating","Residual"]
[{"$f":"IF(Intro!$F$10=\"\",\"\",VLOOKUP(Intro!$F$10,Lists!$A$1:$B$19,2,FALSE))","v":""},{"$f":"IF(Intro!$F$11=\"\",\"\",Intro!$F$11)","v":""},{"$f":"IF(Intro!$F$12=\"\",\"\",Intro!$F$12)","v":"John Doe"},{"$f":"IF(Intro!$F$13=\"\",\"\",Intro!$F$13)","v":"Jane Doe"},{"$f":"IF(Intro!$F$14=\"\",\"\",Intro!$F$14)","v":""},{"$f":"IF(Intro!$F$15=\"\",\"\",Intro!$F$15)","v":44867},{"$f":"IF(Intro!$F$5=\"\",\"\",\"Strategic\")","v":"Strategic"},{"$f":"IF(Objectives!F4=\"\",\"\",Objectives!F4)","v":"National and International Leader in in transforming educational experiences."}]
[{"$f":"IF(Intro!$F$10=\"\",\"\",VLOOKUP(Intro!$F$10,Lists!$A$1:$B$19,2,FALSE))","v":""},{"$f":"IF(Intro!$F$11=\"\",\"\",Intro!$F$11)","v":""},{"$f":"IF(Intro!$F$12=\"\",\"\",Intro!$F$12)","v":"John Doe"},{"$f":"IF(Intro!$F$13=\"\",\"\",Intro!$F$13)","v":"Jane Doe"},{"$f":"IF(Intro!$F$14=\"\",\"\",Intro!$F$14)","v":""},{"$f":"IF(Intro!$F$15=\"\",\"\",Intro!$F$15)","v":44867},{"$f":"IF(Intro!$F$5=\"\",\"\",\"Strategic\")","v":"Strategic"},{"$f":"IF(Objectives!F5=\"\",\"\",Objectives!F5)","v":"Recruit a larger and increasingly diverse student body."}]
[{"$f":"IF(Intro!$F$10=\"\",\"\",VLOOKUP(Intro!$F$10,Lists!$A$1:$B$19,2,FALSE))","v":""},{"$f":"IF(Intro!$F$11=\"\",\"\",Intro!$F$11)","v":""},{"$f":"IF(Intro!$F$12=\"\",\"\",Intro!$F$12)","v":"John Doe"},{"$f":"IF(Intro!$F$13=\"\",\"\",Intro!$F$13)","v":"Jane Doe"},{"$f":"IF(Intro!$F$14=\"\",\"\",Intro!$F$14)","v":""},{"$f":"IF(Intro!$F$15=\"\",\"\",Intro!$F$15)","v":44867},{"$f":"IF(Intro!$F$5=\"\",\"\",\"Strategic\")","v":"Strategic"},{"$f":"IF(Objectives!F6=\"\",\"\",Objectives!F6)","v":"Improve graduation success of all students."}]
[{"$f":"IF(Intro!$F$10=\"\",\"\",VLOOKUP(Intro!$F$10,Lists!$A$1:$B$19,2,FALSE))","v":""},{"$f":"IF(Intro!$F$11=\"\",\"\",Intro!$F$11)","v":""},{"$f":"IF(Intro!$F$12=\"\",\"\",Intro!$F$12)","v":"John Doe"},{"$f":"IF(Intro!$F$13=\"\",\"\",Intro!$F$13)","v":"Jane Doe"},{"$f":"IF(Intro!$F$14=\"\",\"\",Intro!$F$14)","v":""},{"$f":"IF(Intro!$F$15=\"\",\"\",Intro!$F$15)","v":44867},{"$f":"IF(Intro!$F$5=\"\",\"\",\"Strategic\")","v":"Strategic"},{"$f":"IF(Objectives!F7=\"\",\"\",Objectives!F7)","v":"Recruit, Retain, and Support talented and diverse faculty."}]
[{"$f":"IF(Intro!$F$10=\"\",\"\",VLOOKUP(Intro!$F$10,Lists!$A$1:$B$19,2,FALSE))","v":""},{"$f":"IF(Intro!$F$11=\"\",\"\",Intro!$F$11)","v":""},{"$f":"IF(Intro!$F$12=\"\",\"\",Intro!$F$12)","v":"John Doe"},{"$f":"IF(Intro!$F$13=\"\",\"\",Intro!$F$13)","v":"Jane Doe"},{"$f":"IF(Intro!$F$14=\"\",\"\",Intro!$F$14)","v":""},{"$f":"IF(Intro!$F$15=\"\",\"\",Intro!$F$15)","v":44867},{"$f":"IF(Intro!$F$5=\"\",\"\",\"Strategic\")","v":"Strategic"},{"$f":"IF(Objectives!F8=\"\",\"\",Objectives!F8)","v":""}]
[{"$f":"IF(Intro!$F$10=\"\",\"\",VLOOKUP(Intro!$F$10,Lists!$A$1:$B$19,2,FALSE))","v":""},{"$f":"IF(Intro!$F$11=\"\",\"\",Intro!$F$11)","v":""},{"$f":"IF(Intro!$F$12=\"\",\"\",Intro!$F$12)","v":"John Doe"},{"$f":"IF(Intro!$F$13=\"\",\"\",Intro!$F$13)","v":"Jane Doe"},{"$f":"IF(Intro!$F$14=\"\",\"\",Intro!$F$14)","v":""},{"$f":"IF(Intro!$F$15=\"\",\"\",Intro!$F$15)","v":44867},{"$f":"IF(Intro!$F$5=\"\",\"\",\"Strategic\")","v":"Strategic"},null,{"$f":"IF(Strategic!$D$6=\"\",\"\",Strategic!$D$6)","v":"Budget impairment"},{"$f":"IF(Strategic!$E$6=\"\",\"\",Strategic!$E$6)","v":"Low"},{"$f":"IF(Strategic!$F$6=\"\",\"\",Strategic!$F$6)","v":"Very High"},{"$f":"IF(Strategic!$G$6=\"\",\"\",Strategic!$G$6)","v":"External financing program; Budget Officers"},{"$f":"IF(Strategic!$H$6=\"\",\"\",Strategic!$H$6)","v":"Semi-annually"},{"$f":"IF(Strategic!I$6=\"\",\"\",Strategic!I$6)","v":"Minor"},{"$f":"IF(Strategic!J$6=\"\",\"\",Strategic!J$6)","v":"Leveraging Wisdom & WISER systems"},{"$f":"IF(Strategic!K$6=\"\",\"\",Strategic!K$6)","v":"Senior leadership, Deans, Administration"},{"$f":"IF(ForPrint!H14=\"\",\"\",ForPrint!H14)","v":"Poorly controlled"},{"$f":"IF(ForPrint!Q14=\"\",\"\",ForPrint!Q14)","v":30}]
[{"$f":"IF(Intro!$F$10=\"\",\"\",VLOOKUP(Intro!$F$10,Lists!$A$1:$B$19,2,FALSE))","v":""},{"$f":"IF(Intro!$F$11=\"\",\"\",Intro!$F$11)","v":""},{"$f":"IF(Intro!$F$12=\"\",\"\",Intro!$F$12)","v":"John Doe"},{"$f":"IF(Intro!$F$13=\"\",\"\",Intro!$F$13)","v":"Jane Doe"},{"$f":"IF(Intro!$F$14=\"\",\"\",Intro!$F$14)","v":""},{"$f":"IF(Intro!$F$15=\"\",\"\",Intro!$F$15)","v":44867},{"$f":"IF(Intro!$F$5=\"\",\"\",\"Strategic\")","v":"Strategic"},null,{"$f":"IF(Strategic!$D$7=\"\",\"\",Strategic!$D$7)","v":"Ineffective auxiliary management"},{"$f":"IF(Strategic!$E$7=\"\",\"\",Strategic!$E$7)","v":"High"},{"$f":"IF(Strategic!$F$7=\"\",\"\",Strategic!$F$7)","v":"Unsure/Don't Know"},{"$f":"IF(Strategic!$G$7=\"\",\"\",Strategic!$G$7)","v":"Auxiliary departments have programs focused on operational excellence"},{"$f":"IF(Strategic!$H$7=\"\",\"\",Strategic!$H$7)","v":"Monthly"},{"$f":"IF(Strategic!I$7=\"\",\"\",Strategic!I$7)","v":"None"},{"$f":"IF(Strategic!J$7=\"\",\"\",Strategic!J$7)","v":"Reported on department websites"},{"$f":"IF(Strategic!K$7=\"\",\"\",Strategic!K$7)","v":"Vice Chancellor of Student Affairs and CBO"},{"$f":"IF(ForPrint!H15=\"\",\"\",ForPrint!H15)","v":"Poorly controlled"},{"$f":"IF(ForPrint!Q15=\"\",\"\",ForPrint!Q15)","v":40}]
[{"$f":"IF(Intro!$F$10=\"\",\"\",VLOOKUP(Intro!$F$10,Lists!$A$1:$B$19,2,FALSE))","v":""},{"$f":"IF(Intro!$F$11=\"\",\"\",Intro!$F$11)","v":""},{"$f":"IF(Intro!$F$12=\"\",\"\",Intro!$F$12)","v":"John Doe"},{"$f":"IF(Intro!$F$13=\"\",\"\",Intro!$F$13)","v":"Jane Doe"},{"$f":"IF(Intro!$F$14=\"\",\"\",Intro!$F$14)","v":""},{"$f":"IF(Intro!$F$15=\"\",\"\",Intro!$F$15)","v":44867},{"$f":"IF(Intro!$F$5=\"\",\"\",\"Strategic\")","v":"Strategic"},null,{"$f":"IF(Strategic!$D$8=\"\",\"\",Strategic!$D$8)","v":"Insufficient oversight over third-party vendors"},{"$f":"IF(Strategic!$E$8=\"\",\"\",Strategic!$E$8)","v":"Unsure/Don't know"},{"$f":"IF(Strategic!$F$8=\"\",\"\",Strategic!$F$8)","v":"Unsure/Don't Know"},{"$f":"IF(Strategic!$G$8=\"\",\"\",Strategic!$G$8)","v":"Business Contracts unit and  Purchasing; Separation of Duties on vendor payments; Accounts Payable reviews"},{"$f":"IF(Strategic!$H$8=\"\",\"\",Strategic!$H$8)","v":"Daily"},{"$f":"IF(Strategic!I$8=\"\",\"\",Strategic!I$8)","v":"Moderate"},{"$f":"IF(Strategic!J$8=\"\",\"\",Strategic!J$8)","v":"Utilizing strategic sourcing"},{"$f":"IF(Strategic!K$8=\"\",\"\",Strategic!K$8)","v":"Administrative Affairs"},{"$f":"IF(ForPrint!H16=\"\",\"\",ForPrint!H16)","v":"Adequately controlled"},{"$f":"IF(ForPrint!Q16=\"\",\"\",ForPrint!Q16)","v":12.5}]
[{"$f":"IF(Intro!$F$10=\"\",\"\",VLOOKUP(Intro!$F$10,Lists!$A$1:$B$19,2,FALSE))","v":""},{"$f":"IF(Intro!$F$11=\"\",\"\",Intro!$F$11)","v":""},{"$f":"IF(Intro!$F$12=\"\",\"\",Intro!$F$12)","v":"John Doe"},{"$f":"IF(Intro!$F$13=\"\",\"\",Intro!$F$13)","v":"Jane Doe"},{"$f":"IF(Intro!$F$14=\"\",\"\",Intro!$F$14)","v":""},{"$f":"IF(Intro!$F$15=\"\",\"\",Intro!$F$15)","v":44867},{"$f":"IF(Intro!$F$5=\"\",\"\",\"Strategic\")","v":"Strategic"},null,{"$f":"IF(Strategic!$D$9=\"\",\"\",Strategic!$D$9)","v":"Employee recruitment and retention"},{"$f":"IF(Strategic!$E$9=\"\",\"\",Strategic!$E$9)","v":"Very low"},{"$f":"IF(Strategic!$F$9=\"\",\"\",Strategic!$F$9)","v":"Very low"},{"$f":"IF(Strategic!$G$9=\"\",\"\",Strategic!$G$9)","v":"Retention Issues and Solutions Initiative; Programs: Principles of Community, Work-Life Balance, Wellness,  and Training & Development; Online Recruitment Systems;  Statement of Ethical Values and Standards of Ethical Conduct"},{"$f":"IF(Strategic!$H$9=\"\",\"\",Strategic!$H$9)","v":"Semi-annually"},{"$f":"IF(Strategic!I$9=\"\",\"\",Strategic!I$9)","v":"Significant"},{"$f":"IF(Strategic!J$9=\"\",\"\",Strategic!J$9)","v":"Business Intelligence System (OBEI)"},{"$f":"IF(Strategic!K$9=\"\",\"\",Strategic!K$9)","v":"Human Resources & Diversity"},{"$f":"IF(ForPrint!H17=\"\",\"\",ForPrint!H17)","v":"Potentially over-controlled"},{"$f":"IF(ForPrint!Q17=\"\",\"\",ForPrint!Q17)","v":1}]
[{"$f":"IF(Intro!$F$10=\"\",\"\",VLOOKUP(Intro!$F$10,Lists!$A$1:$B$19,2,FALSE))","v":""},{"$f":"IF(Intro!$F$11=\"\",\"\",Intro!$F$11)","v":""},{"$f":"IF(Intro!$F$12=\"\",\"\",Intro!$F$12)","v":"John Doe"},{"$f":"IF(Intro!$F$13=\"\",\"\",Intro!$F$13)","v":"Jane Doe"},{"$f":"IF(Intro!$F$14=\"\",\"\",Intro!$F$14)","v":""},{"$f":"IF(Intro!$F$15=\"\",\"\",Intro!$F$15)","v":44867},{"$f":"IF(Intro!$F$5=\"\",\"\",\"Strategic\")","v":"Strategic"},null,{"$f":"IF(Strategic!$D$10=\"\",\"\",Strategic!$D$10)","v":"Decrease in international students to "},{"$f":"IF(Strategic!$E$10=\"\",\"\",Strategic!$E$10)","v":"High"},{"$f":"IF(Strategic!$F$10=\"\",\"\",Strategic!$F$10)","v":"Moderate"},{"$f":"IF(Strategic!$G$10=\"\",\"\",Strategic!$G$10)","v":"Office of International Program advising  service"},{"$f":"IF(Strategic!$H$10=\"\",\"\",Strategic!$H$10)","v":"Monthly"},{"$f":"IF(Strategic!I$10=\"\",\"\",Strategic!I$10)","v":"Minor"},{"$f":"IF(Strategic!J$10=\"\",\"\",Strategic!J$10)","v":"Evaluate student inquiry data, applicants and starting students to assess change in composition of international student population"},{"$f":"IF(Strategic!K$10=\"\",\"\",Strategic!K$10)","v":"Administration, Student Affairs and Enrollment Management, Office of International Programs"},{"$f":"IF(ForPrint!H18=\"\",\"\",ForPrint!H18)","v":"Poorly controlled"},{"$f":"IF(ForPrint!Q18=\"\",\"\",ForPrint!Q18)","v":36}]
[{"$f":"IF(Intro!$F$10=\"\",\"\",VLOOKUP(Intro!$F$10,Lists!$A$1:$B$19,2,FALSE))","v":""},{"$f":"IF(Intro!$F$11=\"\",\"\",Intro!$F$11)","v":""},{"$f":"IF(Intro!$F$12=\"\",\"\",Intro!$F$12)","v":"John Doe"},{"$f":"IF(Intro!$F$13=\"\",\"\",Intro!$F$13)","v":"Jane Doe"},{"$f":"IF(Intro!$F$14=\"\",\"\",Intro!$F$14)","v":""},{"$f":"IF(Intro!$F$15=\"\",\"\",Intro!$F$15)","v":44867},{"$f":"IF(Intro!$F$5=\"\",\"\",\"Strategic\")","v":"Strategic"},null,{"$f":"IF(Strategic!$D$11=\"\",\"\",Strategic!$D$11)","v":"Resiliency (our ability or inability to recover)"},{"$f":"IF(Strategic!$E$11=\"\",\"\",Strategic!$E$11)","v":"Very High"},{"$f":"IF(Strategic!$F$11=\"\",\"\",Strategic!$F$11)","v":"High"},{"$f":"IF(Strategic!$G$11=\"\",\"\",Strategic!$G$11)","v":"Mission Continuity Plan Rollout; Disaster Recovery Plans; System wide and local backup and recovery policies and procedures; Electronic Information Security: Incident Response Planning and Notification Procedures"},{"$f":"IF(Strategic!$H$11=\"\",\"\",Strategic!$H$11)","v":"Semi-annually"},{"$f":"IF(Strategic!I$11=\"\",\"\",Strategic!I$11)","v":"None"},{"$f":"IF(Strategic!J$11=\"\",\"\",Strategic!J$11)","v":"Emergency plan testing"},{"$f":"IF(Strategic!K$11=\"\",\"\",Strategic!K$11)","v":"Administrative Affairs - Risk Mangement, University Campus Police Department"},{"$f":"IF(ForPrint!H19=\"\",\"\",ForPrint!H19)","v":"Poorly controlled"},{"$f":"IF(ForPrint!Q19=\"\",\"\",ForPrint!Q19)","v":80}]
[{"$f":"IF(Intro!$F$10=\"\",\"\",VLOOKUP(Intro!$F$10,Lists!$A$1:$B$19,2,FALSE))","v":""},{"$f":"IF(Intro!$F$11=\"\",\"\",Intro!$F$11)","v":""},{"$f":"IF(Intro!$F$12=\"\",\"\",Intro!$F$12)","v":"John Doe"},{"$f":"IF(Intro!$F$13=\"\",\"\",Intro!$F$13)","v":"Jane Doe"},{"$f":"IF(Intro!$F$14=\"\",\"\",Intro!$F$14)","v":""},{"$f":"IF(Intro!$F$15=\"\",\"\",Intro!$F$15)","v":44867},{"$f":"IF(Intro!$F$5=\"\",\"\",\"Strategic\")","v":"Strategic"},null,{"$f":"IF(Strategic!$D$12=\"\",\"\",Strategic!$D$12)","v":"Bureaucracy over-controlled; creates inefficiency "},{"$f":"IF(Strategic!$E$12=\"\",\"\",Strategic!$E$12)","v":"Moderate"},{"$f":"IF(Strategic!$F$12=\"\",\"\",Strategic!$F$12)","v":"High"},{"$f":"IF(Strategic!$G$12=\"\",\"\",Strategic!$G$12)","v":" Policy and Requirements, Lean process improvement (enhance data transparency, procedure review and simplification) meetings. Note: greater consistency among UWS on interpretation of policies  The level of bureaucracy writing the policies and systems needs to be streamlined to mitigate our risk in this area."},{"$f":"IF(Strategic!$H$12=\"\",\"\",Strategic!$H$12)","v":"Ad-Hoc"},{"$f":"IF(Strategic!I$12=\"\",\"\",Strategic!I$12)","v":""},{"$f":"IF(Strategic!J$12=\"\",\"\",Strategic!J$12)","v":"Improved access to data"},{"$f":"IF(Strategic!K$12=\"\",\"\",Strategic!K$12)","v":"System UW, Chancellor's Office "},{"$f":"IF(ForPrint!H20=\"\",\"\",ForPrint!H20)","v":""},{"$f":"IF(ForPrint!Q20=\"\",\"\",ForPrint!Q20)","v":""}]
[{"$f":"IF(Intro!$F$10=\"\",\"\",VLOOKUP(Intro!$F$10,Lists!$A$1:$B$19,2,FALSE))","v":""},{"$f":"IF(Intro!$F$11=\"\",\"\",Intro!$F$11)","v":""},{"$f":"IF(Intro!$F$12=\"\",\"\",Intro!$F$12)","v":"John Doe"},{"$f":"IF(Intro!$F$13=\"\",\"\",Intro!$F$13)","v":"Jane Doe"},{"$f":"IF(Intro!$F$14=\"\",\"\",Intro!$F$14)","v":""},{"$f":"IF(Intro!$F$15=\"\",\"\",Intro!$F$15)","v":44867},{"$f":"IF(Intro!$F$5=\"\",\"\",\"Strategic\")","v":"Strategic"},null,{"$f":"IF(Strategic!$D$13=\"\",\"\",Strategic!$D$13)","v":"Individual college goals not in alignment with the greater University goals"},{"$f":"IF(Strategic!$E$13=\"\",\"\",Strategic!$E$13)","v":"Low"},{"$f":"IF(Strategic!$F$13=\"\",\"\",Strategic!$F$13)","v":"Moderate"},{"$f":"IF(Strategic!$G$13=\"\",\"\",Strategic!$G$13)","v":" Strategic Plan; Note: Problematic organizationally when sub-units work in different directions than larger organization and effectiveness is unknown. "},{"$f":"IF(Strategic!$H$13=\"\",\"\",Strategic!$H$13)","v":"Ad-Hoc"},{"$f":"IF(Strategic!I$13=\"\",\"\",Strategic!I$13)","v":"Low"},{"$f":"IF(Strategic!J$13=\"\",\"\",Strategic!J$13)","v":"None"},{"$f":"IF(Strategic!K$13=\"\",\"\",Strategic!K$13)","v":"Senior Leadership"},{"$f":"IF(ForPrint!H21=\"\",\"\",ForPrint!H21)","v":{"$error":"#N/A"}},{"$f":"IF(ForPrint!Q21=\"\",\"\",ForPrint!Q21)","v":{"$error":"#N/A"}}]
[{"$f":"IF(Intro!$F$10=\"\",\"\",VLOOKUP(Intro!$F$10,Lists!$A$1:$B$19,2,FALSE))","v":""},{"$f":"IF(Intro!$F$11=\"\",\"\",Intro!$F$11)","v":""},{"$f":"IF(Intro!$F$12=\"\",\"\",Intro!$F$12)","v":"John Doe"},{"$f":"IF(Intro!$F$13=\"\",\"\",Intro!$F$13)","v":"Jane Doe"},{"$f":"IF(Intro!$F$14=\"\",\"\",Intro!$F$14)","v":""},{"$f":"IF(Intro!$F$15=\"\",\"\",Intro!$F$15)","v":44867},{"$f":"IF(Intro!$F$5=\"\",\"\",\"Strategic\")","v":"Strategic"},null,{"$f":"IF(Strategic!$D$14=\"\",\"\",Strategic!$D$14)","v":"Provide additional services to assist students in graduating"},{"$f":"IF(Strategic!$E$14=\"\",\"\",Strategic!$E$14)","v":"High "},{"$f":"IF(Strategic!$F$14=\"\",\"\",Strategic!$F$14)","v":"High"},{"$f":"IF(Strategic!$G$14=\"\",\"\",Strategic!$G$14)","v":"Chancellor's Office funding for increased advising; Student Success and Graduation Initiative;  Advising Services; Student Success Program"},{"$f":"IF(Strategic!$H$14=\"\",\"\",Strategic!$H$14)","v":"Unsure/Don't know"},{"$f":"IF(Strategic!I$14=\"\",\"\",Strategic!I$14)","v":"Moderate"},{"$f":"IF(Strategic!J$14=\"\",\"\",Strategic!J$14)","v":"Reports and Analysis/Studies published on campus websites"},{"$f":"IF(Strategic!K$14=\"\",\"\",Strategic!K$14)","v":"Student Affairs & Enrollment Management "},{"$f":"IF(ForPrint!H22=\"\",\"\",ForPrint!H22)","v":{"$error":"#N/A"}},{"$f":"IF(ForPrint!Q22=\"\",\"\",ForPrint!Q22)","v":{"$error":"#N/A"}}]
[{"$f":"IF(Intro!$F$10=\"\",\"\",VLOOKUP(Intro!$F$10,Lists!$A$1:$B$19,2,FALSE))","v":""},{"$f":"IF(Intro!$F$11=\"\",\"\",Intro!$F$11)","v":""},{"$f":"IF(Intro!$F$12=\"\",\"\",Intro!$F$12)","v":"John Doe"},{"$f":"IF(Intro!$F$13=\"\",\"\",Intro!$F$13)","v":"Jane Doe"},{"$f":"IF(Intro!$F$14=\"\",\"\",Intro!$F$14)","v":""},{"$f":"IF(Intro!$F$15=\"\",\"\",Intro!$F$15)","v":44867},{"$f":"IF(Intro!$F$5=\"\",\"\",\"Strategic\")","v":"Strategic"},null,{"$f":"IF(Strategic!$D$15=\"\",\"\",Strategic!$D$15)","v":"Lack of necessary counseling resources to improve success rates of academic \"at-risk\" students"},{"$f":"IF(Strategic!$E$15=\"\",\"\",Strategic!$E$15)","v":"Moderate"},{"$f":"IF(Strategic!$F$15=\"\",\"\",Strategic!$F$15)","v":"Moderate"},{"$f":"IF(Strategic!$G$15=\"\",\"\",Strategic!$G$15)","v":"Campus Student Success Plan;\n"},{"$f":"IF(Strategic!$H$15=\"\",\"\",Strategic!$H$15)","v":"Ad-Hoc"},{"$f":"IF(Strategic!I$15=\"\",\"\",Strategic!I$15)","v":"Moderate"},{"$f":"IF(Strategic!J$15=\"\",\"\",Strategic!J$15)","v":" Student Graduation rates;\nAnnual Student Satisfaction Survey (Housing)"},{"$f":"IF(Strategic!K$15=\"\",\"\",Strategic!K$15)","v":"Senior Leadership"},{"$f":"IF(ForPrint!H23=\"\",\"\",ForPrint!H23)","v":"Adequately controlled"},{"$f":"IF(ForPrint!Q23=\"\",\"\",ForPrint!Q23)","v":18}]
[{"$f":"IF(Intro!$F$10=\"\",\"\",VLOOKUP(Intro!$F$10,Lists!$A$1:$B$19,2,FALSE))","v":""},{"$f":"IF(Intro!$F$11=\"\",\"\",Intro!$F$11)","v":""},{"$f":"IF(Intro!$F$12=\"\",\"\",Intro!$F$12)","v":"John Doe"},{"$f":"IF(Intro!$F$13=\"\",\"\",Intro!$F$13)","v":"Jane Doe"},{"$f":"IF(Intro!$F$14=\"\",\"\",Intro!$F$14)","v":""},{"$f":"IF(Intro!$F$15=\"\",\"\",Intro!$F$15)","v":44867},{"$f":"IF(Intro!$F$5=\"\",\"\",\"Strategic\")","v":"Strategic"},null,{"$f":"IF(Strategic!$D$16=\"\",\"\",Strategic!$D$16)","v":"Course \"bottleneck\" results in student graduation delays"},{"$f":"IF(Strategic!$E$16=\"\",\"\",Strategic!$E$16)","v":"Moderate"},{"$f":"IF(Strategic!$F$16=\"\",\"\",Strategic!$F$16)","v":"Moderate"},{"$f":"IF(Strategic!$G$16=\"\",\"\",Strategic!$G$16)","v":"Campus Student Success Plan"},{"$f":"IF(Strategic!$H$16=\"\",\"\",Strategic!$H$16)","v":"Ad-Hoc"},{"$f":"IF(Strategic!I$16=\"\",\"\",Strategic!I$16)","v":"Moderate"},{"$f":"IF(Strategic!J$16=\"\",\"\",Strategic!J$16)","v":"Advising Services Reports, IRP Reports"},{"$f":"IF(Strategic!K$16=\"\",\"\",Strategic!K$16)","v":"Senior Leadership"},{"$f":"IF(ForPrint!H24=\"\",\"\",ForPrint!H24)","v":"Adequately controlled"},{"$f":"IF(ForPrint!Q24=\"\",\"\",ForPrint!Q24)","v":18}]
[{"$f":"IF(Intro!$F$10=\"\",\"\",VLOOKUP(Intro!$F$10,Lists!$A$1:$B$19,2,FALSE))","v":""},{"$f":"IF(Intro!$F$11=\"\",\"\",Intro!$F$11)","v":""},{"$f":"IF(Intro!$F$12=\"\",\"\",Intro!$F$12)","v":"John Doe"},{"$f":"IF(Intro!$F$13=\"\",\"\",Intro!$F$13)","v":"Jane Doe"},{"$f":"IF(Intro!$F$14=\"\",\"\",Intro!$F$14)","v":""},{"$f":"IF(Intro!$F$15=\"\",\"\",Intro!$F$15)","v":44867},{"$f":"IF(Intro!$F$5=\"\",\"\",\"Strategic\")","v":"Strategic"},null,{"$f":"IF(Strategic!$D$17=\"\",\"\",Strategic!$D$17)","v":"Ineffective database for monitoring and addressing student progress towards graduation"},{"$f":"IF(Strategic!$E$17=\"\",\"\",Strategic!$E$17)","v":"Moderate"},{"$f":"IF(Strategic!$F$17=\"\",\"\",Strategic!$F$17)","v":"Moderate"},{"$f":"IF(Strategic!$G$17=\"\",\"\",Strategic!$G$17)","v":"Campus Student Success Plan"},{"$f":"IF(Strategic!$H$17=\"\",\"\",Strategic!$H$17)","v":"Ad-Hoc"},{"$f":"IF(Strategic!I$17=\"\",\"\",Strategic!I$17)","v":"Moderate"},{"$f":"IF(Strategic!J$17=\"\",\"\",Strategic!J$17)","v":"Advising Services Reports, IRP Reports, EAB Programs"},{"$f":"IF(Strategic!K$17=\"\",\"\",Strategic!K$17)","v":"Senior Leadership"},{"$f":"IF(ForPrint!H25=\"\",\"\",ForPrint!H25)","v":"Adequately controlled"},{"$f":"IF(ForPrint!Q25=\"\",\"\",ForPrint!Q25)","v":18}]
[{"$f":"IF(Intro!$F$10=\"\",\"\",VLOOKUP(Intro!$F$10,Lists!$A$1:$B$19,2,FALSE))","v":""},{"$f":"IF(Intro!$F$11=\"\",\"\",Intro!$F$11)","v":""},{"$f":"IF(Intro!$F$12=\"\",\"\",Intro!$F$12)","v":"John Doe"},{"$f":"IF(Intro!$F$13=\"\",\"\",Intro!$F$13)","v":"Jane Doe"},{"$f":"IF(Intro!$F$14=\"\",\"\",Intro!$F$14)","v":""},{"$f":"IF(Intro!$F$15=\"\",\"\",Intro!$F$15)","v":44867},{"$f":"IF(Intro!$F$5=\"\",\"\",\"Strategic\")","v":"Strategic"},null,{"$f":"IF(Strategic!$D$18=\"\",\"\",Strategic!$D$18)","v":"Increased legislative, UWS and campus-wide initiatives addressing a wide range of areas, from retention and graduation rates to increased math requirements for incoming students."},{"$f":"IF(Strategic!$E$18=\"\",\"\",Strategic!$E$18)","v":"Moderate"},{"$f":"IF(Strategic!$F$18=\"\",\"\",Strategic!$F$18)","v":"Moderate"},{"$f":"IF(Strategic!$G$18=\"\",\"\",Strategic!$G$18)","v":"While most of the initiatives coming from the campus, UWS and Wisconsin legislature have positive intentions, there seems to be a lack of coordination and communication between these overarching systems in the development of these initiatives, thus resulting in high administrative work for campus units, with little time and space for creativity in addressing the needs of each campus community.  Additionally, the proposal to increase math requirements for incoming students could have an inequitable effect on underrepresented student groups who do not have access to K-12 educational systems that can provide the additional math courses.    Continue discussions with the Student Affairs and Enrollment Management division on how to administratively manage these initiatives"},{"$f":"IF(Strategic!$H$18=\"\",\"\",Strategic!$H$18)","v":"Annually"},{"$f":"IF(Strategic!I$18=\"\",\"\",Strategic!I$18)","v":"Minor"},{"$f":"IF(Strategic!J$18=\"\",\"\",Strategic!J$18)","v":""},{"$f":"IF(Strategic!K$18=\"\",\"\",Strategic!K$18)","v":"VP, AVPs and Directors within Student Affairs and Enrollment Management"},{"$f":"IF(ForPrint!H26=\"\",\"\",ForPrint!H26)","v":"Potentially poorly controlled"},{"$f":"IF(ForPrint!Q26=\"\",\"\",ForPrint!Q26)","v":27}]
[{"$f":"IF(Intro!$F$10=\"\",\"\",VLOOKUP(Intro!$F$10,Lists!$A$1:$B$19,2,FALSE))","v":""},{"$f":"IF(Intro!$F$11=\"\",\"\",Intro!$F$11)","v":""},{"$f":"IF(Intro!$F$12=\"\",\"\",Intro!$F$12)","v":"John Doe"},{"$f":"IF(Intro!$F$13=\"\",\"\",Intro!$F$13)","v":"Jane Doe"},{"$f":"IF(Intro!$F$14=\"\",\"\",Intro!$F$14)","v":""},{"$f":"IF(Intro!$F$15=\"\",\"\",Intro!$F$15)","v":44867},{"$f":"IF(Intro!$F$5=\"\",\"\",\"Strategic\")","v":"Strategic"},null,{"$f":"IF(Strategic!$D$19=\"\",\"\",Strategic!$D$19)","v":"Continued increase in mental health challenges of incoming and current students "},{"$f":"IF(Strategic!$E$19=\"\",\"\",Strategic!$E$19)","v":"Very High"},{"$f":"IF(Strategic!$F$19=\"\",\"\",Strategic!$F$19)","v":"Very high"},{"$f":"IF(Strategic!$G$19=\"\",\"\",Strategic!$G$19)","v":"This is an area of concern because students continue to enter college with identified mental health needs and often are underprepared in terms of mental health care treatment plans to support their success.  An additional area of concern is that staffing levels within the Counseling and Psychological Services Center do not meet the accreditation standards for counselor to student ratio, and this often results in long waiting lists for mental health services. Unclear how to address this within the division.  Some suggestions would be to fill open positions as soon as possible, increase salaries to attract candidates for counselor positions, and create more counselor faculty positions."},{"$f":"IF(Strategic!$H$19=\"\",\"\",Strategic!$H$19)","v":"Monthly"},{"$f":"IF(Strategic!I$19=\"\",\"\",Strategic!I$19)","v":"Minor"},{"$f":"IF(Strategic!J$19=\"\",\"\",Strategic!J$19)","v":""},{"$f":"IF(Strategic!K$19=\"\",\"\",Strategic!K$19)","v":"AVP of Student Affairs and Director of CPSC to manage HR needs for the unit with support from the Student Affairs and Enrollment Management Executive Council"},{"$f":"IF(ForPrint!H27=\"\",\"\",ForPrint!H27)","v":"Poorly controlled"},{"$f":"IF(ForPrint!Q27=\"\",\"\",ForPrint!Q27)","v":75}]
[{"$f":"IF(Intro!$F$10=\"\",\"\",VLOOKUP(Intro!$F$10,Lists!$A$1:$B$19,2,FALSE))","v":""},{"$f":"IF(Intro!$F$11=\"\",\"\",Intro!$F$11)","v":""},{"$f":"IF(Intro!$F$12=\"\",\"\",Intro!$F$12)","v":"John Doe"},{"$f":"IF(Intro!$F$13=\"\",\"\",Intro!$F$13)","v":"Jane Doe"},{"$f":"IF(Intro!$F$14=\"\",\"\",Intro!$F$14)","v":""},{"$f":"IF(Intro!$F$15=\"\",\"\",Intro!$F$15)","v":44867},{"$f":"IF(Intro!$F$5=\"\",\"\",\"Strategic\")","v":"Strategic"},null,{"$f":"IF(Strategic!$D$20=\"\",\"\",Strategic!$D$20)","v":"Strategic Enrollment Management  - The University has no strategic enrollment management plan or articulated goal"},{"$f":"IF(Strategic!$E$20=\"\",\"\",Strategic!$E$20)","v":"Moderate"},{"$f":"IF(Strategic!$F$20=\"\",\"\",Strategic!$F$20)","v":"Moderate"},{"$f":"IF(Strategic!$G$20=\"\",\"\",Strategic!$G$20)","v":"The Strategic Enrollment Management Taskforce continues to meet to discuss the development and implementation of a campus wide Strategic Enrollment Plan.  Need to assess and monitor"},{"$f":"IF(Strategic!$H$20=\"\",\"\",Strategic!$H$20)","v":"Monthly"},{"$f":"IF(Strategic!I$20=\"\",\"\",Strategic!I$20)","v":"Minor"},{"$f":"IF(Strategic!J$20=\"\",\"\",Strategic!J$20)","v":"As a campus wide collaboration, creation of a 3-5 year Strategic Enrollment Plan, Monitor Plan Documentation"},{"$f":"IF(Strategic!K$20=\"\",\"\",Strategic!K$20)","v":"Student Affairs & Enrollment Management  (Enrollment Management Technology), SEM Task Force,  Sr. Leadership"},{"$f":"IF(ForPrint!H28=\"\",\"\",ForPrint!H28)","v":"Potentially poorly controlled"},{"$f":"IF(ForPrint!Q28=\"\",\"\",ForPrint!Q28)","v":27}]
[{"$f":"IF(Intro!$F$10=\"\",\"\",VLOOKUP(Intro!$F$10,Lists!$A$1:$B$19,2,FALSE))","v":""},{"$f":"IF(Intro!$F$11=\"\",\"\",Intro!$F$11)","v":""},{"$f":"IF(Intro!$F$12=\"\",\"\",Intro!$F$12)","v":"John Doe"},{"$f":"IF(Intro!$F$13=\"\",\"\",Intro!$F$13)","v":"Jane Doe"},{"$f":"IF(Intro!$F$14=\"\",\"\",Intro!$F$14)","v":""},{"$f":"IF(Intro!$F$15=\"\",\"\",Intro!$F$15)","v":44867},{"$f":"IF(Intro!$F$5=\"\",\"\",\"Financial\")","v":"Financial"},{"$f":"IF(Objectives!F11=\"\",\"\",Objectives!F11)","v":"Demonstrate value through efficiency of resource allocation."}]
[{"$f":"IF(Intro!$F$10=\"\",\"\",VLOOKUP(Intro!$F$10,Lists!$A$1:$B$19,2,FALSE))","v":""},{"$f":"IF(Intro!$F$11=\"\",\"\",Intro!$F$11)","v":""},{"$f":"IF(Intro!$F$12=\"\",\"\",Intro!$F$12)","v":"John Doe"},{"$f":"IF(Intro!$F$13=\"\",\"\",Intro!$F$13)","v":"Jane Doe"},{"$f":"IF(Intro!$F$14=\"\",\"\",Intro!$F$14)","v":""},{"$f":"IF(Intro!$F$15=\"\",\"\",Intro!$F$15)","v":44867},{"$f":"IF(Intro!$F$5=\"\",\"\",\"Financial\")","v":"Financial"},{"$f":"IF(Objectives!F12=\"\",\"\",Objectives!F12)","v":"Improve overall productivity (doing more with existing resources)."}]
[{"$f":"IF(Intro!$F$10=\"\",\"\",VLOOKUP(Intro!$F$10,Lists!$A$1:$B$19,2,FALSE))","v":""},{"$f":"IF(Intro!$F$11=\"\",\"\",Intro!$F$11)","v":""},{"$f":"IF(Intro!$F$12=\"\",\"\",Intro!$F$12)","v":"John Doe"},{"$f":"IF(Intro!$F$13=\"\",\"\",Intro!$F$13)","v":"Jane Doe"},{"$f":"IF(Intro!$F$14=\"\",\"\",Intro!$F$14)","v":""},{"$f":"IF(Intro!$F$15=\"\",\"\",Intro!$F$15)","v":44867},{"$f":"IF(Intro!$F$5=\"\",\"\",\"Financial\")","v":"Financial"},{"$f":"IF(Objectives!F13=\"\",\"\",Objectives!F13)","v":"Develop new revenue generation programs."}]
[{"$f":"IF(Intro!$F$10=\"\",\"\",VLOOKUP(Intro!$F$10,Lists!$A$1:$B$19,2,FALSE))","v":""},{"$f":"IF(Intro!$F$11=\"\",\"\",Intro!$F$11)","v":""},{"$f":"IF(Intro!$F$12=\"\",\"\",Intro!$F$12)","v":"John Doe"},{"$f":"IF(Intro!$F$13=\"\",\"\",Intro!$F$13)","v":"Jane Doe"},{"$f":"IF(Intro!$F$14=\"\",\"\",Intro!$F$14)","v":""},{"$f":"IF(Intro!$F$15=\"\",\"\",Intro!$F$15)","v":44867},{"$f":"IF(Intro!$F$5=\"\",\"\",\"Financial\")","v":"Financial"},{"$f":"IF(Objectives!F14=\"\",\"\",Objectives!F14)","v":"Expenditures are aligned with budgets."}]
[{"$f":"IF(Intro!$F$10=\"\",\"\",VLOOKUP(Intro!$F$10,Lists!$A$1:$B$19,2,FALSE))","v":""},{"$f":"IF(Intro!$F$11=\"\",\"\",Intro!$F$11)","v":""},{"$f":"IF(Intro!$F$12=\"\",\"\",Intro!$F$12)","v":"John Doe"},{"$f":"IF(Intro!$F$13=\"\",\"\",Intro!$F$13)","v":"Jane Doe"},{"$f":"IF(Intro!$F$14=\"\",\"\",Intro!$F$14)","v":""},{"$f":"IF(Intro!$F$15=\"\",\"\",Intro!$F$15)","v":44867},{"$f":"IF(Intro!$F$5=\"\",\"\",\"Financial\")","v":"Financial"},{"$f":"IF(Objectives!F15=\"\",\"\",Objectives!F15)","v":"Implement new marketing strategies."}]
[{"$f":"IF(Intro!$F$10=\"\",\"\",VLOOKUP(Intro!$F$10,Lists!$A$1:$B$19,2,FALSE))","v":""},{"$f":"IF(Intro!$F$11=\"\",\"\",Intro!$F$11)","v":""},{"$f":"IF(Intro!$F$12=\"\",\"\",Intro!$F$12)","v":"John Doe"},{"$f":"IF(Intro!$F$13=\"\",\"\",Intro!$F$13)","v":"Jane Doe"},{"$f":"IF(Intro!$F$14=\"\",\"\",Intro!$F$14)","v":""},{"$f":"IF(Intro!$F$15=\"\",\"\",Intro!$F$15)","v":44867},{"$f":"IF(Intro!$F$5=\"\",\"\",\"Financial\")","v":"Financial"},null,{"$f":"IF(Financial!$D$6=\"\",\"\",Financial!$D$6)","v":"Budget Impairment"},{"$f":"IF(Financial!$E$6=\"\",\"\",Financial!$E$6)","v":"Low"},{"$f":"IF(Financial!$F$6=\"\",\"\",Financial!$F$6)","v":"Very Low"},{"$f":"IF(Financial!$G$6=\"\",\"\",Financial!$G$6)","v":"Budget Officers Meetings; Financial Plan; Conversations with Governor and Legislature"},{"$f":"IF(Financial!$H$6=\"\",\"\",Financial!$H$6)","v":"Annually"},{"$f":"IF(Financial!I$6=\"\",\"\",Financial!I$6)","v":"Significant"},{"$f":"IF(Financial!J$6=\"\",\"\",Financial!J$6)","v":"Leveraging Wisdom & WISER systems"},{"$f":"IF(Financial!K$6=\"\",\"\",Financial!K$6)","v":"Campus Budget Offices, Senior leadership"},{"$f":"IF(ForPrint!H42=\"\",\"\",ForPrint!H42)","v":"Potentially over-controlled"},{"$f":"IF(ForPrint!Q42=\"\",\"\",ForPrint!Q42)","v":2}]
[{"$f":"IF(Intro!$F$10=\"\",\"\",VLOOKUP(Intro!$F$10,Lists!$A$1:$B$19,2,FALSE))","v":""},{"$f":"IF(Intro!$F$11=\"\",\"\",Intro!$F$11)","v":""},{"$f":"IF(Intro!$F$12=\"\",\"\",Intro!$F$12)","v":"John Doe"},{"$f":"IF(Intro!$F$13=\"\",\"\",Intro!$F$13)","v":"Jane Doe"},{"$f":"IF(Intro!$F$14=\"\",\"\",Intro!$F$14)","v":""},{"$f":"IF(Intro!$F$15=\"\",\"\",Intro!$F$15)","v":44867},{"$f":"IF(Intro!$F$5=\"\",\"\",\"Financial\")","v":"Financial"},null,{"$f":"IF(Financial!$D$7=\"\",\"\",Financial!$D$7)","v":"Ineffective service center/auxiliary management"},{"$f":"IF(Financial!$E$7=\"\",\"\",Financial!$E$7)","v":"High"},{"$f":"IF(Financial!$F$7=\"\",\"\",Financial!$F$7)","v":"Unsure/Don't know"},{"$f":"IF(Financial!$G$7=\"\",\"\",Financial!$G$7)","v":"All departments have programs focused on operational excellence,  Bylaws and Constitutions; open meetings; long range plans"},{"$f":"IF(Financial!$H$7=\"\",\"\",Financial!$H$7)","v":"Monthly"},{"$f":"IF(Financial!I$7=\"\",\"\",Financial!I$7)","v":"None"},{"$f":"IF(Financial!J$7=\"\",\"\",Financial!J$7)","v":"Reported on department websites"},{"$f":"IF(Financial!K$7=\"\",\"\",Financial!K$7)","v":"Senior Leadership"},{"$f":"IF(ForPrint!H43=\"\",\"\",ForPrint!H43)","v":"Poorly controlled"},{"$f":"IF(ForPrint!Q43=\"\",\"\",ForPrint!Q43)","v":40}]
[{"$f":"IF(Intro!$F$10=\"\",\"\",VLOOKUP(Intro!$F$10,Lists!$A$1:$B$19,2,FALSE))","v":""},{"$f":"IF(Intro!$F$11=\"\",\"\",Intro!$F$11)","v":""},{"$f":"IF(Intro!$F$12=\"\",\"\",Intro!$F$12)","v":"John Doe"},{"$f":"IF(Intro!$F$13=\"\",\"\",Intro!$F$13)","v":"Jane Doe"},{"$f":"IF(Intro!$F$14=\"\",\"\",Intro!$F$14)","v":""},{"$f":"IF(Intro!$F$15=\"\",\"\",Intro!$F$15)","v":44867},{"$f":"IF(Intro!$F$5=\"\",\"\",\"Financial\")","v":"Financial"},null,{"$f":"IF(Financial!$D$8=\"\",\"\",Financial!$D$8)","v":"Non-compliant cost transfers"},{"$f":"IF(Financial!$E$8=\"\",\"\",Financial!$E$8)","v":"Very low"},{"$f":"IF(Financial!$F$8=\"\",\"\",Financial!$F$8)","v":"Very low"},{"$f":"IF(Financial!$G$8=\"\",\"\",Financial!$G$8)","v":"Extramural Funds Accounting Units; Operating Guidance; Financial Systems separating roles of initiator, approver and ledger reviewer; Self Assessment Tool; Internal Control Program; Department Training Programs; Administrative Responsibilities Handbook - Finance"},{"$f":"IF(Financial!$H$8=\"\",\"\",Financial!$H$8)","v":"Annually"},{"$f":"IF(Financial!I$8=\"\",\"\",Financial!I$8)","v":"Significant"},{"$f":"IF(Financial!J$8=\"\",\"\",Financial!J$8)","v":"Ledger Review; General and Payroll Ledger Reviews; Reported at department level (Documentation Requirements); PI Ledger Review; Audit Reports"},{"$f":"IF(Financial!K$8=\"\",\"\",Financial!K$8)","v":"Administration"},{"$f":"IF(ForPrint!H44=\"\",\"\",ForPrint!H44)","v":"Potentially over-controlled"},{"$f":"IF(ForPrint!Q44=\"\",\"\",ForPrint!Q44)","v":1}]
[{"$f":"IF(Intro!$F$10=\"\",\"\",VLOOKUP(Intro!$F$10,Lists!$A$1:$B$19,2,FALSE))","v":""},{"$f":"IF(Intro!$F$11=\"\",\"\",Intro!$F$11)","v":""},{"$f":"IF(Intro!$F$12=\"\",\"\",Intro!$F$12)","v":"John Doe"},{"$f":"IF(Intro!$F$13=\"\",\"\",Intro!$F$13)","v":"Jane Doe"},{"$f":"IF(Intro!$F$14=\"\",\"\",Intro!$F$14)","v":""},{"$f":"IF(Intro!$F$15=\"\",\"\",Intro!$F$15)","v":44867},{"$f":"IF(Intro!$F$5=\"\",\"\",\"Financial\")","v":"Financial"},null,{"$f":"IF(Financial!$D$9=\"\",\"\",Financial!$D$9)","v":"Insufficient oversight over third-party vendors leading to increased expense and delivery failure"},{"$f":"IF(Financial!$E$9=\"\",\"\",Financial!$E$9)","v":"Unsure/Don't know"},{"$f":"IF(Financial!$F$9=\"\",\"\",Financial!$F$9)","v":"Unsure/Don't know"},{"$f":"IF(Financial!$G$9=\"\",\"\",Financial!$G$9)","v":"Strategic Sourcing Initiative; Business Contracts unit and Material Management; Separation of Duties on vendor payments; Accounts Payable reviews"},{"$f":"IF(Financial!$H$9=\"\",\"\",Financial!$H$9)","v":"Daily"},{"$f":"IF(Financial!I$9=\"\",\"\",Financial!I$9)","v":"Moderate"},{"$f":"IF(Financial!J$9=\"\",\"\",Financial!J$9)","v":"Utilizing strategic sourcing"},{"$f":"IF(Financial!K$9=\"\",\"\",Financial!K$9)","v":"Administration"},{"$f":"IF(ForPrint!H45=\"\",\"\",ForPrint!H45)","v":"Adequately controlled"},{"$f":"IF(ForPrint!Q45=\"\",\"\",ForPrint!Q45)","v":12.5}]
[{"$f":"IF(Intro!$F$10=\"\",\"\",VLOOKUP(Intro!$F$10,Lists!$A$1:$B$19,2,FALSE))","v":""},{"$f":"IF(Intro!$F$11=\"\",\"\",Intro!$F$11)","v":""},{"$f":"IF(Intro!$F$12=\"\",\"\",Intro!$F$12)","v":"John Doe"},{"$f":"IF(Intro!$F$13=\"\",\"\",Intro!$F$13)","v":"Jane Doe"},{"$f":"IF(Intro!$F$14=\"\",\"\",Intro!$F$14)","v":""},{"$f":"IF(Intro!$F$15=\"\",\"\",Intro!$F$15)","v":44867},{"$f":"IF(Intro!$F$5=\"\",\"\",\"Financial\")","v":"Financial"},null,{"$f":"IF(Financial!$D$10=\"\",\"\",Financial!$D$10)","v":"Improper governmental activities including fraud, embezzlement, or misuse of university resources"},{"$f":"IF(Financial!$E$10=\"\",\"\",Financial!$E$10)","v":"Very high"},{"$f":"IF(Financial!$F$10=\"\",\"\",Financial!$F$10)","v":"Very high"},{"$f":"IF(Financial!$G$10=\"\",\"\",Financial!$G$10)","v":"Whistle Blower system, Policies and Hotlines; Department Designated Officials; Investigations Work Groups; Audit, Risk, Compliance & Ethics Program; Internal Control Program; "},{"$f":"IF(Financial!$H$10=\"\",\"\",Financial!$H$10)","v":"Annually"},{"$f":"IF(Financial!I$10=\"\",\"\",Financial!I$10)","v":"Moderate"},{"$f":"IF(Financial!J$10=\"\",\"\",Financial!J$10)","v":"Losses reported in claims system; Whistle Blower system; Internal Audit Quarterly and Annual Reports; Investigations"},{"$f":"IF(Financial!K$10=\"\",\"\",Financial!K$10)","v":"Administration"},{"$f":"IF(ForPrint!H46=\"\",\"\",ForPrint!H46)","v":"Poorly controlled"},{"$f":"IF(ForPrint!Q46=\"\",\"\",ForPrint!Q46)","v":50}]
[{"$f":"IF(Intro!$F$10=\"\",\"\",VLOOKUP(Intro!$F$10,Lists!$A$1:$B$19,2,FALSE))","v":""},{"$f":"IF(Intro!$F$11=\"\",\"\",Intro!$F$11)","v":""},{"$f":"IF(Intro!$F$12=\"\",\"\",Intro!$F$12)","v":"John Doe"},{"$f":"IF(Intro!$F$13=\"\",\"\",Intro!$F$13)","v":"Jane Doe"},{"$f":"IF(Intro!$F$14=\"\",\"\",Intro!$F$14)","v":""},{"$f":"IF(Intro!$F$15=\"\",\"\",Intro!$F$15)","v":44867},{"$f":"IF(Intro!$F$5=\"\",\"\",\"Financial\")","v":"Financial"},null,{"$f":"IF(Financial!$D$11=\"\",\"\",Financial!$D$11)","v":"Management of Trust Fund Accounts and Transactions"},{"$f":"IF(Financial!$E$11=\"\",\"\",Financial!$E$11)","v":"Moderate"},{"$f":"IF(Financial!$F$11=\"\",\"\",Financial!$F$11)","v":"Moderate"},{"$f":"IF(Financial!$G$11=\"\",\"\",Financial!$G$11)","v":"Wisconsin Retirement System; Wisconsin Department of Employee Trust Funds"},{"$f":"IF(Financial!$H$11=\"\",\"\",Financial!$H$11)","v":"Unsure"},{"$f":"IF(Financial!I$11=\"\",\"\",Financial!I$11)","v":"Moderate"},{"$f":"IF(Financial!J$11=\"\",\"\",Financial!J$11)","v":"Accounting monitoring; Internal Audit Reviews; External financial audit reports; Business Intelligence variance reporting "},{"$f":"IF(Financial!K$11=\"\",\"\",Financial!K$11)","v":"Human Resources & Diversity"},{"$f":"IF(ForPrint!H47=\"\",\"\",ForPrint!H47)","v":"Adequately controlled"},{"$f":"IF(ForPrint!Q47=\"\",\"\",ForPrint!Q47)","v":18}]
[{"$f":"IF(Intro!$F$10=\"\",\"\",VLOOKUP(Intro!$F$10,Lists!$A$1:$B$19,2,FALSE))","v":""},{"$f":"IF(Intro!$F$11=\"\",\"\",Intro!$F$11)","v":""},{"$f":"IF(Intro!$F$12=\"\",\"\",Intro!$F$12)","v":"John Doe"},{"$f":"IF(Intro!$F$13=\"\",\"\",Intro!$F$13)","v":"Jane Doe"},{"$f":"IF(Intro!$F$14=\"\",\"\",Intro!$F$14)","v":""},{"$f":"IF(Intro!$F$15=\"\",\"\",Intro!$F$15)","v":44867},{"$f":"IF(Intro!$F$5=\"\",\"\",\"Financial\")","v":"Financial"},null,{"$f":"IF(Financial!$D$12=\"\",\"\",Financial!$D$12)","v":"Leasing Activity"},{"$f":"IF(Financial!$E$12=\"\",\"\",Financial!$E$12)","v":"High"},{"$f":"IF(Financial!$F$12=\"\",\"\",Financial!$F$12)","v":"Moderate"},{"$f":"IF(Financial!$G$12=\"\",\"\",Financial!$G$12)","v":"Management sublease tenants and academic partners; meetings with University Property Management team regarding revenue from subleasing downtown campus; Internal Audit. Proposed mitigation: need investigation of controls "},{"$f":"IF(Financial!$H$12=\"\",\"\",Financial!$H$12)","v":"Monthly"},{"$f":"IF(Financial!I$12=\"\",\"\",Financial!I$12)","v":"Moderate"},{"$f":"IF(Financial!J$12=\"\",\"\",Financial!J$12)","v":"Monthly meetings, Audit reports"},{"$f":"IF(Financial!K$12=\"\",\"\",Financial!K$12)","v":"University Housing, Senior Leadership"},{"$f":"IF(ForPrint!H48=\"\",\"\",ForPrint!H48)","v":"Potentially poorly controlled"},{"$f":"IF(ForPrint!Q48=\"\",\"\",ForPrint!Q48)","v":24}]
[{"$f":"IF(Intro!$F$10=\"\",\"\",VLOOKUP(Intro!$F$10,Lists!$A$1:$B$19,2,FALSE))","v":""},{"$f":"IF(Intro!$F$11=\"\",\"\",Intro!$F$11)","v":""},{"$f":"IF(Intro!$F$12=\"\",\"\",Intro!$F$12)","v":"John Doe"},{"$f":"IF(Intro!$F$13=\"\",\"\",Intro!$F$13)","v":"Jane Doe"},{"$f":"IF(Intro!$F$14=\"\",\"\",Intro!$F$14)","v":""},{"$f":"IF(Intro!$F$15=\"\",\"\",Intro!$F$15)","v":44867},{"$f":"IF(Intro!$F$5=\"\",\"\",\"Financial\")","v":"Financial"},null,{"$f":"IF(Financial!$D$13=\"\",\"\",Financial!$D$13)","v":"Liability claims"},{"$f":"IF(Financial!$E$13=\"\",\"\",Financial!$E$13)","v":"Moderate"},{"$f":"IF(Financial!$F$13=\"\",\"\",Financial!$F$13)","v":"Very low"},{"$f":"IF(Financial!$G$13=\"\",\"\",Financial!$G$13)","v":"Innovation Access Programs connecting research and industry; Intellectual Property Management Policies and Programs"},{"$f":"IF(Financial!$H$13=\"\",\"\",Financial!$H$13)","v":"Ad-hoc"},{"$f":"IF(Financial!I$13=\"\",\"\",Financial!I$13)","v":"Minor"},{"$f":"IF(Financial!J$13=\"\",\"\",Financial!J$13)","v":"Business Intelligence System"},{"$f":"IF(Financial!K$13=\"\",\"\",Financial!K$13)","v":"Counsel's office"},{"$f":"IF(ForPrint!H49=\"\",\"\",ForPrint!H49)","v":"Adequately controlled"},{"$f":"IF(ForPrint!Q49=\"\",\"\",ForPrint!Q49)","v":9}]
[{"$f":"IF(Intro!$F$10=\"\",\"\",VLOOKUP(Intro!$F$10,Lists!$A$1:$B$19,2,FALSE))","v":""},{"$f":"IF(Intro!$F$11=\"\",\"\",Intro!$F$11)","v":""},{"$f":"IF(Intro!$F$12=\"\",\"\",Intro!$F$12)","v":"John Doe"},{"$f":"IF(Intro!$F$13=\"\",\"\",Intro!$F$13)","v":"Jane Doe"},{"$f":"IF(Intro!$F$14=\"\",\"\",Intro!$F$14)","v":""},{"$f":"IF(Intro!$F$15=\"\",\"\",Intro!$F$15)","v":44867},{"$f":"IF(Intro!$F$5=\"\",\"\",\"Financial\")","v":"Financial"},null,{"$f":"IF(Financial!$D$14=\"\",\"\",Financial!$D$14)","v":"Workers' compensation claims"},{"$f":"IF(Financial!$E$14=\"\",\"\",Financial!$E$14)","v":"Moderate"},{"$f":"IF(Financial!$F$14=\"\",\"\",Financial!$F$14)","v":"Moderate"},{"$f":"IF(Financial!$G$14=\"\",\"\",Financial!$G$14)","v":"Make Safety Happen Program; Claims Management (TPA); Policies "},{"$f":"IF(Financial!$H$14=\"\",\"\",Financial!$H$14)","v":"Semi-annually"},{"$f":"IF(Financial!I$14=\"\",\"\",Financial!I$14)","v":"Significant"},{"$f":"IF(Financial!J$14=\"\",\"\",Financial!J$14)","v":"Business Intelligence System; Retroactive Reviews"},{"$f":"IF(Financial!K$14=\"\",\"\",Financial!K$14)","v":"Risk Management"},{"$f":"IF(ForPrint!H50=\"\",\"\",ForPrint!H50)","v":"Adequately controlled"},{"$f":"IF(ForPrint!Q50=\"\",\"\",ForPrint!Q50)","v":9}]
[{"$f":"IF(Intro!$F$10=\"\",\"\",VLOOKUP(Intro!$F$10,Lists!$A$1:$B$19,2,FALSE))","v":""},{"$f":"IF(Intro!$F$11=\"\",\"\",Intro!$F$11)","v":""},{"$f":"IF(Intro!$F$12=\"\",\"\",Intro!$F$12)","v":"John Doe"},{"$f":"IF(Intro!$F$13=\"\",\"\",Intro!$F$13)","v":"Jane Doe"},{"$f":"IF(Intro!$F$14=\"\",\"\",Intro!$F$14)","v":""},{"$f":"IF(Intro!$F$15=\"\",\"\",Intro!$F$15)","v":44867},{"$f":"IF(Intro!$F$5=\"\",\"\",\"Financial\")","v":"Financial"},null,{"$f":"IF(Financial!$D$15=\"\",\"\",Financial!$D$15)","v":"Technology Acquisition Redundancy "},{"$f":"IF(Financial!$E$15=\"\",\"\",Financial!$E$15)","v":"Very High"},{"$f":"IF(Financial!$F$15=\"\",\"\",Financial!$F$15)","v":"High"},{"$f":"IF(Financial!$G$15=\"\",\"\",Financial!$G$15)","v":"Drafted a cloud computing practice directive; developed and implemented a Technology Acquisition Review process to review all IT acquisitions for Security and Accessibility compliance; duplicative acquisitions are deterred. Proposed mitigation: be more coordinated - effort on tools that are used on campus; better stakeholder involvement in selection process, too many systems; should be streamlined to eliminate redundancy. "},{"$f":"IF(Financial!$H$15=\"\",\"\",Financial!$H$15)","v":"Daily"},{"$f":"IF(Financial!I$15=\"\",\"\",Financial!I$15)","v":"Significant"},{"$f":"IF(Financial!J$15=\"\",\"\",Financial!J$15)","v":"Ticketing system records all technology acquisition reviews. Reports can be prepared using criteria"},{"$f":"IF(Financial!K$15=\"\",\"\",Financial!K$15)","v":"Information Technology Services, Procurement, Accounts Payable, Disability Programs and Resource Center"},{"$f":"IF(ForPrint!H51=\"\",\"\",ForPrint!H51)","v":"Potentially poorly controlled"},{"$f":"IF(ForPrint!Q51=\"\",\"\",ForPrint!Q51)","v":20}]
[{"$f":"IF(Intro!$F$10=\"\",\"\",VLOOKUP(Intro!$F$10,Lists!$A$1:$B$19,2,FALSE))","v":""},{"$f":"IF(Intro!$F$11=\"\",\"\",Intro!$F$11)","v":""},{"$f":"IF(Intro!$F$12=\"\",\"\",Intro!$F$12)","v":"John Doe"},{"$f":"IF(Intro!$F$13=\"\",\"\",Intro!$F$13)","v":"Jane Doe"},{"$f":"IF(Intro!$F$14=\"\",\"\",Intro!$F$14)","v":""},{"$f":"IF(Intro!$F$15=\"\",\"\",Intro!$F$15)","v":44867},{"$f":"IF(Intro!$F$5=\"\",\"\",\"Financial\")","v":"Financial"},null,{"$f":"IF(Financial!$D$16=\"\",\"\",Financial!$D$16)","v":"Capacity for Project Enforcement "},{"$f":"IF(Financial!$E$16=\"\",\"\",Financial!$E$16)","v":"Moderate"},{"$f":"IF(Financial!$F$16=\"\",\"\",Financial!$F$16)","v":"Moderate"},{"$f":"IF(Financial!$G$16=\"\",\"\",Financial!$G$16)","v":"Capital Planning unit; Project management team; Internal Audit; Admin Affairs Town Hall Presentation; Campus Master Plan; "},{"$f":"IF(Financial!$H$16=\"\",\"\",Financial!$H$16)","v":"Unsure/Don't know"},{"$f":"IF(Financial!I$16=\"\",\"\",Financial!I$16)","v":"Moderate"},{"$f":"IF(Financial!J$16=\"\",\"\",Financial!J$16)","v":"Reports on campus websites; Audit review "},{"$f":"IF(Financial!K$16=\"\",\"\",Financial!K$16)","v":"Capital Planning, Physical Planning & Development"},{"$f":"IF(ForPrint!H52=\"\",\"\",ForPrint!H52)","v":"Adequately controlled"},{"$f":"IF(ForPrint!Q52=\"\",\"\",ForPrint!Q52)","v":18}]
[{"$f":"IF(Intro!$F$10=\"\",\"\",VLOOKUP(Intro!$F$10,Lists!$A$1:$B$19,2,FALSE))","v":""},{"$f":"IF(Intro!$F$11=\"\",\"\",Intro!$F$11)","v":""},{"$f":"IF(Intro!$F$12=\"\",\"\",Intro!$F$12)","v":"John Doe"},{"$f":"IF(Intro!$F$13=\"\",\"\",Intro!$F$13)","v":"Jane Doe"},{"$f":"IF(Intro!$F$14=\"\",\"\",Intro!$F$14)","v":""},{"$f":"IF(Intro!$F$15=\"\",\"\",Intro!$F$15)","v":44867},{"$f":"IF(Intro!$F$5=\"\",\"\",\"Financial\")","v":"Financial"},null,{"$f":"IF(Financial!$D$17=\"\",\"\",Financial!$D$17)","v":""},{"$f":"IF(Financial!$E$17=\"\",\"\",Financial!$E$17)","v":""},{"$f":"IF(Financial!$F$17=\"\",\"\",Financial!$F$17)","v":""},{"$f":"IF(Financial!$G$17=\"\",\"\",Financial!$G$17)","v":""},{"$f":"IF(Financial!$H$17=\"\",\"\",Financial!$H$17)","v":""},{"$f":"IF(Financial!I$17=\"\",\"\",Financial!I$17)","v":""},{"$f":"IF(Financial!J$17=\"\",\"\",Financial!J$17)","v":""},{"$f":"IF(Financial!K$17=\"\",\"\",Financial!K$17)","v":""},{"$f":"IF(ForPrint!H53=\"\",\"\",ForPrint!H53)","v":""},{"$f":"IF(ForPrint!Q53=\"\",\"\",ForPrint!Q53)","v":""}]
[{"$f":"IF(Intro!$F$10=\"\",\"\",VLOOKUP(Intro!$F$10,Lists!$A$1:$B$19,2,FALSE))","v":""},{"$f":"IF(Intro!$F$11=\"\",\"\",Intro!$F$11)","v":""},{"$f":"IF(Intro!$F$12=\"\",\"\",Intro!$F$12)","v":"John Doe"},{"$f":"IF(Intro!$F$13=\"\",\"\",Intro!$F$13)","v":"Jane Doe"},{"$f":"IF(Intro!$F$14=\"\",\"\",Intro!$F$14)","v":""},{"$f":"IF(Intro!$F$15=\"\",\"\",Intro!$F$15)","v":44867},{"$f":"IF(Intro!$F$5=\"\",\"\",\"Financial\")","v":"Financial"},null,{"$f":"IF(Financial!$D$18=\"\",\"\",Financial!$D$18)","v":""},{"$f":"IF(Financial!$E$18=\"\",\"\",Financial!$E$18)","v":""},{"$f":"IF(Financial!$F$18=\"\",\"\",Financial!$F$18)","v":""},{"$f":"IF(Financial!$G$18=\"\",\"\",Financial!$G$18)","v":""},{"$f":"IF(Financial!$H$18=\"\",\"\",Financial!$H$18)","v":""},{"$f":"IF(Financial!I$18=\"\",\"\",Financial!I$18)","v":""},{"$f":"IF(Financial!J$18=\"\",\"\",Financial!J$18)","v":""},{"$f":"IF(Financial!K$18=\"\",\"\",Financial!K$18)","v":""},{"$f":"IF(ForPrint!H54=\"\",\"\",ForPrint!H54)","v":""},{"$f":"IF(ForPrint!Q54=\"\",\"\",ForPrint!Q54)","v":""}]
[{"$f":"IF(Intro!$F$10=\"\",\"\",VLOOKUP(Intro!$F$10,Lists!$A$1:$B$19,2,FALSE))","v":""},{"$f":"IF(Intro!$F$11=\"\",\"\",Intro!$F$11)","v":""},{"$f":"IF(Intro!$F$12=\"\",\"\",Intro!$F$12)","v":"John Doe"},{"$f":"IF(Intro!$F$13=\"\",\"\",Intro!$F$13)","v":"Jane Doe"},{"$f":"IF(Intro!$F$14=\"\",\"\",Intro!$F$14)","v":""},{"$f":"IF(Intro!$F$15=\"\",\"\",Intro!$F$15)","v":44867},{"$f":"IF(Intro!$F$5=\"\",\"\",\"Financial\")","v":"Financial"},null,{"$f":"IF(Financial!$D$19=\"\",\"\",Financial!$D$19)","v":""},{"$f":"IF(Financial!$E$19=\"\",\"\",Financial!$E$19)","v":""},{"$f":"IF(Financial!$F$19=\"\",\"\",Financial!$F$19)","v":""},{"$f":"IF(Financial!$G$19=\"\",\"\",Financial!$G$19)","v":""},{"$f":"IF(Financial!$H$19=\"\",\"\",Financial!$H$19)","v":""},{"$f":"IF(Financial!I$19=\"\",\"\",Financial!I$19)","v":""},{"$f":"IF(Financial!J$19=\"\",\"\",Financial!J$19)","v":""},{"$f":"IF(Financial!K$19=\"\",\"\",Financial!K$19)","v":""},{"$f":"IF(ForPrint!H55=\"\",\"\",ForPrint!H55)","v":""},{"$f":"IF(ForPrint!Q55=\"\",\"\",ForPrint!Q55)","v":""}]
[{"$f":"IF(Intro!$F$10=\"\",\"\",VLOOKUP(Intro!$F$10,Lists!$A$1:$B$19,2,FALSE))","v":""},{"$f":"IF(Intro!$F$11=\"\",\"\",Intro!$F$11)","v":""},{"$f":"IF(Intro!$F$12=\"\",\"\",Intro!$F$12)","v":"John Doe"},{"$f":"IF(Intro!$F$13=\"\",\"\",Intro!$F$13)","v":"Jane Doe"},{"$f":"IF(Intro!$F$14=\"\",\"\",Intro!$F$14)","v":""},{"$f":"IF(Intro!$F$15=\"\",\"\",Intro!$F$15)","v":44867},{"$f":"IF(Intro!$F$5=\"\",\"\",\"Financial\")","v":"Financial"},null,{"$f":"IF(Financial!$D$20=\"\",\"\",Financial!$D$20)","v":""},{"$f":"IF(Financial!$E$20=\"\",\"\",Financial!$E$20)","v":""},{"$f":"IF(Financial!$F$20=\"\",\"\",Financial!$F$20)","v":""},{"$f":"IF(Financial!$G$20=\"\",\"\",Financial!$G$20)","v":""},{"$f":"IF(Financial!$H$20=\"\",\"\",Financial!$H$20)","v":""},{"$f":"IF(Financial!I$20=\"\",\"\",Financial!I$20)","v":""},{"$f":"IF(Financial!J$20=\"\",\"\",Financial!J$20)","v":""},{"$f":"IF(Financial!K$20=\"\",\"\",Financial!K$20)","v":""},{"$f":"IF(ForPrint!H56=\"\",\"\",ForPrint!H56)","v":""},{"$f":"IF(ForPrint!Q56=\"\",\"\",ForPrint!Q56)","v":""}]
[{"$f":"IF(Intro!$F$10=\"\",\"\",VLOOKUP(Intro!$F$10,Lists!$A$1:$B$19,2,FALSE))","v":""},{"$f":"IF(Intro!$F$11=\"\",\"\",Intro!$F$11)","v":""},{"$f":"IF(Intro!$F$12=\"\",\"\",Intro!$F$12)","v":"John Doe"},{"$f":"IF(Intro!$F$13=\"\",\"\",Intro!$F$13)","v":"Jane Doe"},{"$f":"IF(Intro!$F$14=\"\",\"\",Intro!$F$14)","v":""},{"$f":"IF(Intro!$F$15=\"\",\"\",Intro!$F$15)","v":44867},{"$f":"IF(Intro!$F$5=\"\",\"\",\"Compliance\")","v":"Compliance"},{"$f":"IF(Objectives!F18=\"\",\"\",Objectives!F18)","v":"Implement a comprehensive strategic enrollment plan."}]
[{"$f":"IF(Intro!$F$10=\"\",\"\",VLOOKUP(Intro!$F$10,Lists!$A$1:$B$19,2,FALSE))","v":""},{"$f":"IF(Intro!$F$11=\"\",\"\",Intro!$F$11)","v":""},{"$f":"IF(Intro!$F$12=\"\",\"\",Intro!$F$12)","v":"John Doe"},{"$f":"IF(Intro!$F$13=\"\",\"\",Intro!$F$13)","v":"Jane Doe"},{"$f":"IF(Intro!$F$14=\"\",\"\",Intro!$F$14)","v":""},{"$f":"IF(Intro!$F$15=\"\",\"\",Intro!$F$15)","v":44867},{"$f":"IF(Intro!$F$5=\"\",\"\",\"Compliance\")","v":"Compliance"},{"$f":"IF(Objectives!F19=\"\",\"\",Objectives!F19)","v":"To continually improve internal process to realize efficiencies."}]
[{"$f":"IF(Intro!$F$10=\"\",\"\",VLOOKUP(Intro!$F$10,Lists!$A$1:$B$19,2,FALSE))","v":""},{"$f":"IF(Intro!$F$11=\"\",\"\",Intro!$F$11)","v":""},{"$f":"IF(Intro!$F$12=\"\",\"\",Intro!$F$12)","v":"John Doe"},{"$f":"IF(Intro!$F$13=\"\",\"\",Intro!$F$13)","v":"Jane Doe"},{"$f":"IF(Intro!$F$14=\"\",\"\",Intro!$F$14)","v":""},{"$f":"IF(Intro!$F$15=\"\",\"\",Intro!$F$15)","v":44867},{"$f":"IF(Intro!$F$5=\"\",\"\",\"Compliance\")","v":"Compliance"},{"$f":"IF(Objectives!F20=\"\",\"\",Objectives!F20)","v":"Capitalize on physical facilities (location, capacity, etc.)."}]
[{"$f":"IF(Intro!$F$10=\"\",\"\",VLOOKUP(Intro!$F$10,Lists!$A$1:$B$19,2,FALSE))","v":""},{"$f":"IF(Intro!$F$11=\"\",\"\",Intro!$F$11)","v":""},{"$f":"IF(Intro!$F$12=\"\",\"\",Intro!$F$12)","v":"John Doe"},{"$f":"IF(Intro!$F$13=\"\",\"\",Intro!$F$13)","v":"Jane Doe"},{"$f":"IF(Intro!$F$14=\"\",\"\",Intro!$F$14)","v":""},{"$f":"IF(Intro!$F$15=\"\",\"\",Intro!$F$15)","v":44867},{"$f":"IF(Intro!$F$5=\"\",\"\",\"Compliance\")","v":"Compliance"},{"$f":"IF(Objectives!F21=\"\",\"\",Objectives!F21)","v":"Redirect or restructure available resources."}]
[{"$f":"IF(Intro!$F$10=\"\",\"\",VLOOKUP(Intro!$F$10,Lists!$A$1:$B$19,2,FALSE))","v":""},{"$f":"IF(Intro!$F$11=\"\",\"\",Intro!$F$11)","v":""},{"$f":"IF(Intro!$F$12=\"\",\"\",Intro!$F$12)","v":"John Doe"},{"$f":"IF(Intro!$F$13=\"\",\"\",Intro!$F$13)","v":"Jane Doe"},{"$f":"IF(Intro!$F$14=\"\",\"\",Intro!$F$14)","v":""},{"$f":"IF(Intro!$F$15=\"\",\"\",Intro!$F$15)","v":44867},{"$f":"IF(Intro!$F$5=\"\",\"\",\"Compliance\")","v":"Compliance"},{"$f":"IF(Objectives!F22=\"\",\"\",Objectives!F22)","v":"Develop programs to support faculty and students."}]
[{"$f":"IF(Intro!$F$10=\"\",\"\",VLOOKUP(Intro!$F$10,Lists!$A$1:$B$19,2,FALSE))","v":""},{"$f":"IF(Intro!$F$11=\"\",\"\",Intro!$F$11)","v":""},{"$f":"IF(Intro!$F$12=\"\",\"\",Intro!$F$12)","v":"John Doe"},{"$f":"IF(Intro!$F$13=\"\",\"\",Intro!$F$13)","v":"Jane Doe"},{"$f":"IF(Intro!$F$14=\"\",\"\",Intro!$F$14)","v":""},{"$f":"IF(Intro!$F$15=\"\",\"\",Intro!$F$15)","v":44867},{"$f":"IF(Intro!$F$5=\"\",\"\",\"Compliance\")","v":"Compliance"},null,{"$f":"IF(Operational!$D$6=\"\",\"\",Operational!$D$6)","v":"Catastrophic natural event (tornado, fire, etc.)"},{"$f":"IF(Operational!$E$6=\"\",\"\",Operational!$E$6)","v":"Very high"},{"$f":"IF(Operational!$F$6=\"\",\"\",Operational!$F$6)","v":"Moderate"},{"$f":"IF(Operational!$G$6=\"\",\"\",Operational!$G$6)","v":"Mission continuity; emergency management; Concern re utility systems, lack generator connections to buildings, also risk of flooding, ice and accessibility challenges."},{"$f":"IF(Operational!$H$6=\"\",\"\",Operational!$H$6)","v":"Semi-annually"},{"$f":"IF(Operational!I$6=\"\",\"\",Operational!I$6)","v":"Moderate"},{"$f":"IF(Operational!J$6=\"\",\"\",Operational!J$6)","v":"Capital Planning documents; Regular University wide participation drills, documentation thereof."},{"$f":"IF(Operational!K$6=\"\",\"\",Operational!K$6)","v":"Risk Management/ARCE"},{"$f":"IF(ForPrint!H69=\"\",\"\",ForPrint!H69)","v":"Potentially poorly controlled"},{"$f":"IF(ForPrint!Q69=\"\",\"\",ForPrint!Q69)","v":30}]
[{"$f":"IF(Intro!$F$10=\"\",\"\",VLOOKUP(Intro!$F$10,Lists!$A$1:$B$19,2,FALSE))","v":""},{"$f":"IF(Intro!$F$11=\"\",\"\",Intro!$F$11)","v":""},{"$f":"IF(Intro!$F$12=\"\",\"\",Intro!$F$12)","v":"John Doe"},{"$f":"IF(Intro!$F$13=\"\",\"\",Intro!$F$13)","v":"Jane Doe"},{"$f":"IF(Intro!$F$14=\"\",\"\",Intro!$F$14)","v":""},{"$f":"IF(Intro!$F$15=\"\",\"\",Intro!$F$15)","v":44867},{"$f":"IF(Intro!$F$5=\"\",\"\",\"Compliance\")","v":"Compliance"},null,{"$f":"IF(Operational!$D$7=\"\",\"\",Operational!$D$7)","v":"Pandemic"},{"$f":"IF(Operational!$E$7=\"\",\"\",Operational!$E$7)","v":"Moderate"},{"$f":"IF(Operational!$F$7=\"\",\"\",Operational!$F$7)","v":"Low"},{"$f":"IF(Operational!$G$7=\"\",\"\",Operational!$G$7)","v":"Mission continuity; emergency management; lack of masks and IC supplies; No Pandemic plan"},{"$f":"IF(Operational!$H$7=\"\",\"\",Operational!$H$7)","v":"Ad-hoc"},{"$f":"IF(Operational!I$7=\"\",\"\",Operational!I$7)","v":"Minor"},{"$f":"IF(Operational!J$7=\"\",\"\",Operational!J$7)","v":"Communication and tracking program"},{"$f":"IF(Operational!K$7=\"\",\"\",Operational!K$7)","v":"Risk Management/ARCE"},{"$f":"IF(ForPrint!H70=\"\",\"\",ForPrint!H70)","v":"Potentially poorly controlled"},{"$f":"IF(ForPrint!Q70=\"\",\"\",ForPrint!Q70)","v":18}]
[{"$f":"IF(Intro!$F$10=\"\",\"\",VLOOKUP(Intro!$F$10,Lists!$A$1:$B$19,2,FALSE))","v":""},{"$f":"IF(Intro!$F$11=\"\",\"\",Intro!$F$11)","v":""},{"$f":"IF(Intro!$F$12=\"\",\"\",Intro!$F$12)","v":"John Doe"},{"$f":"IF(Intro!$F$13=\"\",\"\",Intro!$F$13)","v":"Jane Doe"},{"$f":"IF(Intro!$F$14=\"\",\"\",Intro!$F$14)","v":""},{"$f":"IF(Intro!$F$15=\"\",\"\",Intro!$F$15)","v":44867},{"$f":"IF(Intro!$F$5=\"\",\"\",\"Compliance\")","v":"Compliance"},null,{"$f":"IF(Operational!$D$8=\"\",\"\",Operational!$D$8)","v":"Domestic terrorism (animal rights activists, eco-terrorists, stem-cell research opponents, etc.)"},{"$f":"IF(Operational!$E$8=\"\",\"\",Operational!$E$8)","v":"Moderate"},{"$f":"IF(Operational!$F$8=\"\",\"\",Operational!$F$8)","v":"Very low"},{"$f":"IF(Operational!$G$8=\"\",\"\",Operational!$G$8)","v":"Campus PD liaison with law enforcement; additional training of campus law enforcement; improved security measures; hardening of buildings; communication and response protocols"},{"$f":"IF(Operational!$H$8=\"\",\"\",Operational!$H$8)","v":"Ad-hoc"},{"$f":"IF(Operational!I$8=\"\",\"\",Operational!I$8)","v":"None"},{"$f":"IF(Operational!J$8=\"\",\"\",Operational!J$8)","v":"Tracked in claims system"},{"$f":"IF(Operational!K$8=\"\",\"\",Operational!K$8)","v":" Police"},{"$f":"IF(ForPrint!H71=\"\",\"\",ForPrint!H71)","v":"Potentially poorly controlled"},{"$f":"IF(ForPrint!Q71=\"\",\"\",ForPrint!Q71)","v":12}]
[{"$f":"IF(Intro!$F$10=\"\",\"\",VLOOKUP(Intro!$F$10,Lists!$A$1:$B$19,2,FALSE))","v":""},{"$f":"IF(Intro!$F$11=\"\",\"\",Intro!$F$11)","v":""},{"$f":"IF(Intro!$F$12=\"\",\"\",Intro!$F$12)","v":"John Doe"},{"$f":"IF(Intro!$F$13=\"\",\"\",Intro!$F$13)","v":"Jane Doe"},{"$f":"IF(Intro!$F$14=\"\",\"\",Intro!$F$14)","v":""},{"$f":"IF(Intro!$F$15=\"\",\"\",Intro!$F$15)","v":44867},{"$f":"IF(Intro!$F$5=\"\",\"\",\"Compliance\")","v":"Compliance"},null,{"$f":"IF(Operational!$D$9=\"\",\"\",Operational!$D$9)","v":"Facilities, grounds, and pedestrian safety"},{"$f":"IF(Operational!$E$9=\"\",\"\",Operational!$E$9)","v":"High"},{"$f":"IF(Operational!$F$9=\"\",\"\",Operational!$F$9)","v":"High"},{"$f":"IF(Operational!$G$9=\"\",\"\",Operational!$G$9)","v":"Building Maintenance Services; Grounds and Landscape Service; Backlog, but program to reduce walkway ADA grading issues is part of annual Deferred Maintenance program."},{"$f":"IF(Operational!$H$9=\"\",\"\",Operational!$H$9)","v":"Daily"},{"$f":"IF(Operational!I$9=\"\",\"\",Operational!I$9)","v":"Significant"},{"$f":"IF(Operational!J$9=\"\",\"\",Operational!J$9)","v":"Independent documentation and inspection records needed"},{"$f":"IF(Operational!K$9=\"\",\"\",Operational!K$9)","v":"Facilities Planning Management and Risk Management"},{"$f":"IF(ForPrint!H72=\"\",\"\",ForPrint!H72)","v":"Adequately controlled"},{"$f":"IF(ForPrint!Q72=\"\",\"\",ForPrint!Q72)","v":16}]
[{"$f":"IF(Intro!$F$10=\"\",\"\",VLOOKUP(Intro!$F$10,Lists!$A$1:$B$19,2,FALSE))","v":""},{"$f":"IF(Intro!$F$11=\"\",\"\",Intro!$F$11)","v":""},{"$f":"IF(Intro!$F$12=\"\",\"\",Intro!$F$12)","v":"John Doe"},{"$f":"IF(Intro!$F$13=\"\",\"\",Intro!$F$13)","v":"Jane Doe"},{"$f":"IF(Intro!$F$14=\"\",\"\",Intro!$F$14)","v":""},{"$f":"IF(Intro!$F$15=\"\",\"\",Intro!$F$15)","v":44867},{"$f":"IF(Intro!$F$5=\"\",\"\",\"Compliance\")","v":"Compliance"},null,{"$f":"IF(Operational!$D$10=\"\",\"\",Operational!$D$10)","v":"Laboratory Safety"},{"$f":"IF(Operational!$E$10=\"\",\"\",Operational!$E$10)","v":"High"},{"$f":"IF(Operational!$F$10=\"\",\"\",Operational!$F$10)","v":"High"},{"$f":"IF(Operational!$G$10=\"\",\"\",Operational!$G$10)","v":"IIPP Policy; ARCE Program; Lab Safety Committee"},{"$f":"IF(Operational!$H$10=\"\",\"\",Operational!$H$10)","v":"Annually"},{"$f":"IF(Operational!I$10=\"\",\"\",Operational!I$10)","v":"Minor"},{"$f":"IF(Operational!J$10=\"\",\"\",Operational!J$10)","v":"Self-Assessment Tool"},{"$f":"IF(Operational!K$10=\"\",\"\",Operational!K$10)","v":"Lab Safety Committee, Risk Management, ORSP"},{"$f":"IF(ForPrint!H73=\"\",\"\",ForPrint!H73)","v":"Poorly controlled"},{"$f":"IF(ForPrint!Q73=\"\",\"\",ForPrint!Q73)","v":48}]
[{"$f":"IF(Intro!$F$10=\"\",\"\",VLOOKUP(Intro!$F$10,Lists!$A$1:$B$19,2,FALSE))","v":""},{"$f":"IF(Intro!$F$11=\"\",\"\",Intro!$F$11)","v":""},{"$f":"IF(Intro!$F$12=\"\",\"\",Intro!$F$12)","v":"John Doe"},{"$f":"IF(Intro!$F$13=\"\",\"\",Intro!$F$13)","v":"Jane Doe"},{"$f":"IF(Intro!$F$14=\"\",\"\",Intro!$F$14)","v":""},{"$f":"IF(Intro!$F$15=\"\",\"\",Intro!$F$15)","v":44867},{"$f":"IF(Intro!$F$5=\"\",\"\",\"Compliance\")","v":"Compliance"},null,{"$f":"IF(Operational!$D$11=\"\",\"\",Operational!$D$11)","v":"Safety concerns regarding cash transportation to/from off campus events  "},{"$f":"IF(Operational!$E$11=\"\",\"\",Operational!$E$11)","v":"High"},{"$f":"IF(Operational!$F$11=\"\",\"\",Operational!$F$11)","v":"Low"},{"$f":"IF(Operational!$G$11=\"\",\"\",Operational!$G$11)","v":"UWS and  Cashiering and Handling Guideline; UCorp Fundraising Policy; Associated Students, Inc. Cash and Check Receipt Handling Policy; University Police Department provides services on-campus event. Note: Associated Students, Inc. Cash and Check receipt Handling Policy is reviewed annually"},{"$f":"IF(Operational!$H$11=\"\",\"\",Operational!$H$11)","v":"Annually"},{"$f":"IF(Operational!I$11=\"\",\"\",Operational!I$11)","v":"Minor"},{"$f":"IF(Operational!J$11=\"\",\"\",Operational!J$11)","v":""},{"$f":"IF(Operational!K$11=\"\",\"\",Operational!K$11)","v":"Administration"},{"$f":"IF(ForPrint!H74=\"\",\"\",ForPrint!H74)","v":"Potentially poorly controlled"},{"$f":"IF(ForPrint!Q74=\"\",\"\",ForPrint!Q74)","v":24}]
[{"$f":"IF(Intro!$F$10=\"\",\"\",VLOOKUP(Intro!$F$10,Lists!$A$1:$B$19,2,FALSE))","v":""},{"$f":"IF(Intro!$F$11=\"\",\"\",Intro!$F$11)","v":""},{"$f":"IF(Intro!$F$12=\"\",\"\",Intro!$F$12)","v":"John Doe"},{"$f":"IF(Intro!$F$13=\"\",\"\",Intro!$F$13)","v":"Jane Doe"},{"$f":"IF(Intro!$F$14=\"\",\"\",Intro!$F$14)","v":""},{"$f":"IF(Intro!$F$15=\"\",\"\",Intro!$F$15)","v":44867},{"$f":"IF(Intro!$F$5=\"\",\"\",\"Compliance\")","v":"Compliance"},null,{"$f":"IF(Operational!$D$12=\"\",\"\",Operational!$D$12)","v":"Campus Building Fire Safety"},{"$f":"IF(Operational!$E$12=\"\",\"\",Operational!$E$12)","v":"Very High"},{"$f":"IF(Operational!$F$12=\"\",\"\",Operational!$F$12)","v":"Moderate"},{"$f":"IF(Operational!$G$12=\"\",\"\",Operational!$G$12)","v":"State Fire Marshal inspection and approval; installation of fire alarms, sprinklers, centralized fire alarm connection system to campus buildings; Internal and External Audit Review"},{"$f":"IF(Operational!$H$12=\"\",\"\",Operational!$H$12)","v":""},{"$f":"IF(Operational!I$12=\"\",\"\",Operational!I$12)","v":""},{"$f":"IF(Operational!J$12=\"\",\"\",Operational!J$12)","v":"Audit reviews and reports"},{"$f":"IF(Operational!K$12=\"\",\"\",Operational!K$12)","v":"Physical Planning & Development"},{"$f":"IF(ForPrint!H75=\"\",\"\",ForPrint!H75)","v":""},{"$f":"IF(ForPrint!Q75=\"\",\"\",ForPrint!Q75)","v":""}]
[{"$f":"IF(Intro!$F$10=\"\",\"\",VLOOKUP(Intro!$F$10,Lists!$A$1:$B$19,2,FALSE))","v":""},{"$f":"IF(Intro!$F$11=\"\",\"\",Intro!$F$11)","v":""},{"$f":"IF(Intro!$F$12=\"\",\"\",Intro!$F$12)","v":"John Doe"},{"$f":"IF(Intro!$F$13=\"\",\"\",Intro!$F$13)","v":"Jane Doe"},{"$f":"IF(Intro!$F$14=\"\",\"\",Intro!$F$14)","v":""},{"$f":"IF(Intro!$F$15=\"\",\"\",Intro!$F$15)","v":44867},{"$f":"IF(Intro!$F$5=\"\",\"\",\"Compliance\")","v":"Compliance"},null,{"$f":"IF(Operational!$D$13=\"\",\"\",Operational!$D$13)","v":"Equipment/facility malfunction"},{"$f":"IF(Operational!$E$13=\"\",\"\",Operational!$E$13)","v":"Very high"},{"$f":"IF(Operational!$F$13=\"\",\"\",Operational!$F$13)","v":"Moderate"},{"$f":"IF(Operational!$G$13=\"\",\"\",Operational!$G$13)","v":"Equipment inventory database system-wide; Building Maintenance Services. Many building subsystems and equipment are well beyond industry standard renewal intervals.  Elevator systems, although well maintained, are beyond obsolescence dates, and cannot be repaired in a timely manner upon failure."},{"$f":"IF(Operational!$H$13=\"\",\"\",Operational!$H$13)","v":"Semi-annually"},{"$f":"IF(Operational!I$13=\"\",\"\",Operational!I$13)","v":"Minor"},{"$f":"IF(Operational!J$13=\"\",\"\",Operational!J$13)","v":"Maintenance database; Claims system"},{"$f":"IF(Operational!K$13=\"\",\"\",Operational!K$13)","v":"Facilities Planning and Management & Risk Management"},{"$f":"IF(ForPrint!H76=\"\",\"\",ForPrint!H76)","v":"Poorly controlled"},{"$f":"IF(ForPrint!Q76=\"\",\"\",ForPrint!Q76)","v":45}]
[{"$f":"IF(Intro!$F$10=\"\",\"\",VLOOKUP(Intro!$F$10,Lists!$A$1:$B$19,2,FALSE))","v":""},{"$f":"IF(Intro!$F$11=\"\",\"\",Intro!$F$11)","v":""},{"$f":"IF(Intro!$F$12=\"\",\"\",Intro!$F$12)","v":"John Doe"},{"$f":"IF(Intro!$F$13=\"\",\"\",Intro!$F$13)","v":"Jane Doe"},{"$f":"IF(Intro!$F$14=\"\",\"\",Intro!$F$14)","v":""},{"$f":"IF(Intro!$F$15=\"\",\"\",Intro!$F$15)","v":44867},{"$f":"IF(Intro!$F$5=\"\",\"\",\"Compliance\")","v":"Compliance"},null,{"$f":"IF(Operational!$D$14=\"\",\"\",Operational!$D$14)","v":"Key stakeholder is unclear of details pertaining to campus/utility infrastructure"},{"$f":"IF(Operational!$E$14=\"\",\"\",Operational!$E$14)","v":"Moderate"},{"$f":"IF(Operational!$F$14=\"\",\"\",Operational!$F$14)","v":"Low"},{"$f":"IF(Operational!$G$14=\"\",\"\",Operational!$G$14)","v":" Campus Master Plan; Focused Tiered Draft Environmental Impact Report; Routine & emergency maintenance/repair service; Campus sustainable initiative. "},{"$f":"IF(Operational!$H$14=\"\",\"\",Operational!$H$14)","v":"Unsure"},{"$f":"IF(Operational!I$14=\"\",\"\",Operational!I$14)","v":"Moderate"},{"$f":"IF(Operational!J$14=\"\",\"\",Operational!J$14)","v":"Reports on campus websites"},{"$f":"IF(Operational!K$14=\"\",\"\",Operational!K$14)","v":"Physical Planning & Development, Administration, Facilities and Service Enterprises"},{"$f":"IF(ForPrint!H77=\"\",\"\",ForPrint!H77)","v":"Adequately controlled"},{"$f":"IF(ForPrint!Q77=\"\",\"\",ForPrint!Q77)","v":12}]
[{"$f":"IF(Intro!$F$10=\"\",\"\",VLOOKUP(Intro!$F$10,Lists!$A$1:$B$19,2,FALSE))","v":""},{"$f":"IF(Intro!$F$11=\"\",\"\",Intro!$F$11)","v":""},{"$f":"IF(Intro!$F$12=\"\",\"\",Intro!$F$12)","v":"John Doe"},{"$f":"IF(Intro!$F$13=\"\",\"\",Intro!$F$13)","v":"Jane Doe"},{"$f":"IF(Intro!$F$14=\"\",\"\",Intro!$F$14)","v":""},{"$f":"IF(Intro!$F$15=\"\",\"\",Intro!$F$15)","v":44867},{"$f":"IF(Intro!$F$5=\"\",\"\",\"Compliance\")","v":"Compliance"},null,{"$f":"IF(Operational!$D$15=\"\",\"\",Operational!$D$15)","v":"Insufficient oversight over third-party vendors"},{"$f":"IF(Operational!$E$15=\"\",\"\",Operational!$E$15)","v":"Very low"},{"$f":"IF(Operational!$F$15=\"\",\"\",Operational!$F$15)","v":"Low"},{"$f":"IF(Operational!$G$15=\"\",\"\",Operational!$G$15)","v":"Contractual obligations for all third-party vendors within leased and rented space"},{"$f":"IF(Operational!$H$15=\"\",\"\",Operational!$H$15)","v":"Weekly"},{"$f":"IF(Operational!I$15=\"\",\"\",Operational!I$15)","v":"Significant"},{"$f":"IF(Operational!J$15=\"\",\"\",Operational!J$15)","v":"Working with lessor and sub-lessors"},{"$f":"IF(Operational!K$15=\"\",\"\",Operational!K$15)","v":"University Property Management Business Development"},{"$f":"IF(ForPrint!H78=\"\",\"\",ForPrint!H78)","v":"Potentially over-controlled"},{"$f":"IF(ForPrint!Q78=\"\",\"\",ForPrint!Q78)","v":2}]
[{"$f":"IF(Intro!$F$10=\"\",\"\",VLOOKUP(Intro!$F$10,Lists!$A$1:$B$19,2,FALSE))","v":""},{"$f":"IF(Intro!$F$11=\"\",\"\",Intro!$F$11)","v":""},{"$f":"IF(Intro!$F$12=\"\",\"\",Intro!$F$12)","v":"John Doe"},{"$f":"IF(Intro!$F$13=\"\",\"\",Intro!$F$13)","v":"Jane Doe"},{"$f":"IF(Intro!$F$14=\"\",\"\",Intro!$F$14)","v":""},{"$f":"IF(Intro!$F$15=\"\",\"\",Intro!$F$15)","v":44867},{"$f":"IF(Intro!$F$5=\"\",\"\",\"Compliance\")","v":"Compliance"},null,{"$f":"IF(Operational!$D$16=\"\",\"\",Operational!$D$16)","v":"Employee designation as Emergency Service Workers"},{"$f":"IF(Operational!$E$16=\"\",\"\",Operational!$E$16)","v":"Low"},{"$f":"IF(Operational!$F$16=\"\",\"\",Operational!$F$16)","v":"Low"},{"$f":"IF(Operational!$G$16=\"\",\"\",Operational!$G$16)","v":"Per Wisconsin statute, University employees should be noticed & confirmed that they are all disaster Service Workers, and may be called in to work during designated emergencies.  Such notice has not occurred."},{"$f":"IF(Operational!$H$16=\"\",\"\",Operational!$H$16)","v":"Annually"},{"$f":"IF(Operational!I$16=\"\",\"\",Operational!I$16)","v":"None"},{"$f":"IF(Operational!J$16=\"\",\"\",Operational!J$16)","v":"Position descriptions should be updated to include this requirement"},{"$f":"IF(Operational!K$16=\"\",\"\",Operational!K$16)","v":"HR & Diversity"},{"$f":"IF(ForPrint!H79=\"\",\"\",ForPrint!H79)","v":"Potentially poorly controlled"},{"$f":"IF(ForPrint!Q79=\"\",\"\",ForPrint!Q79)","v":16}]
[{"$f":"IF(Intro!$F$10=\"\",\"\",VLOOKUP(Intro!$F$10,Lists!$A$1:$B$19,2,FALSE))","v":""},{"$f":"IF(Intro!$F$11=\"\",\"\",Intro!$F$11)","v":""},{"$f":"IF(Intro!$F$12=\"\",\"\",Intro!$F$12)","v":"John Doe"},{"$f":"IF(Intro!$F$13=\"\",\"\",Intro!$F$13)","v":"Jane Doe"},{"$f":"IF(Intro!$F$14=\"\",\"\",Intro!$F$14)","v":""},{"$f":"IF(Intro!$F$15=\"\",\"\",Intro!$F$15)","v":44867},{"$f":"IF(Intro!$F$5=\"\",\"\",\"Compliance\")","v":"Compliance"},null,{"$f":"IF(Operational!$D$17=\"\",\"\",Operational!$D$17)","v":"Campus Physical Security"},{"$f":"IF(Operational!$E$17=\"\",\"\",Operational!$E$17)","v":"High"},{"$f":"IF(Operational!$F$17=\"\",\"\",Operational!$F$17)","v":"Very Low"},{"$f":"IF(Operational!$G$17=\"\",\"\",Operational!$G$17)","v":"Campus lacks perimeter fence that can be closed up. Campus lacks remote locking ability of all exterior doors. For use in active shooter, or mass civil unrest"},{"$f":"IF(Operational!$H$17=\"\",\"\",Operational!$H$17)","v":"Ad-hoc"},{"$f":"IF(Operational!I$17=\"\",\"\",Operational!I$17)","v":"Minor"},{"$f":"IF(Operational!J$17=\"\",\"\",Operational!J$17)","v":"System installation, monitoring and regular testing. Recommendation on feasibility of increased physical security and hardening."},{"$f":"IF(Operational!K$17=\"\",\"\",Operational!K$17)","v":"PP&D/University Police Department"},{"$f":"IF(ForPrint!H80=\"\",\"\",ForPrint!H80)","v":"Potentially poorly controlled"},{"$f":"IF(ForPrint!Q80=\"\",\"\",ForPrint!Q80)","v":12}]
[{"$f":"IF(Intro!$F$10=\"\",\"\",VLOOKUP(Intro!$F$10,Lists!$A$1:$B$19,2,FALSE))","v":""},{"$f":"IF(Intro!$F$11=\"\",\"\",Intro!$F$11)","v":""},{"$f":"IF(Intro!$F$12=\"\",\"\",Intro!$F$12)","v":"John Doe"},{"$f":"IF(Intro!$F$13=\"\",\"\",Intro!$F$13)","v":"Jane Doe"},{"$f":"IF(Intro!$F$14=\"\",\"\",Intro!$F$14)","v":""},{"$f":"IF(Intro!$F$15=\"\",\"\",Intro!$F$15)","v":44867},{"$f":"IF(Intro!$F$5=\"\",\"\",\"Compliance\")","v":"Compliance"},null,{"$f":"IF(Operational!$D$18=\"\",\"\",Operational!$D$18)","v":"Active Threats - Injuries to persons: Loss of Life"},{"$f":"IF(Operational!$E$18=\"\",\"\",Operational!$E$18)","v":"Very High"},{"$f":"IF(Operational!$F$18=\"\",\"\",Operational!$F$18)","v":"Moderate"},{"$f":"IF(Operational!$G$18=\"\",\"\",Operational!$G$18)","v":"Equip and train University Police Department personnel.  Train students/faculty/staff  on what to do in the event of active threat. On going engagement/dialogue regarding this potential scenario."},{"$f":"IF(Operational!$H$18=\"\",\"\",Operational!$H$18)","v":"Monthly"},{"$f":"IF(Operational!I$18=\"\",\"\",Operational!I$18)","v":"Significant"},{"$f":"IF(Operational!J$18=\"\",\"\",Operational!J$18)","v":"University Police Department represented in the Action Crisis Team as conduit for early tracking and notification of potential indication of violent behavior. Direct reporting of active threats to University Police Department.  University Police Department is a 24/7/365 operation. Use of email for campus-wide notification."},{"$f":"IF(Operational!K$18=\"\",\"\",Operational!K$18)","v":"University Police Department"},{"$f":"IF(ForPrint!H81=\"\",\"\",ForPrint!H81)","v":"Adequately controlled"},{"$f":"IF(ForPrint!Q81=\"\",\"\",ForPrint!Q81)","v":15}]
[{"$f":"IF(Intro!$F$10=\"\",\"\",VLOOKUP(Intro!$F$10,Lists!$A$1:$B$19,2,FALSE))","v":""},{"$f":"IF(Intro!$F$11=\"\",\"\",Intro!$F$11)","v":""},{"$f":"IF(Intro!$F$12=\"\",\"\",Intro!$F$12)","v":"John Doe"},{"$f":"IF(Intro!$F$13=\"\",\"\",Intro!$F$13)","v":"Jane Doe"},{"$f":"IF(Intro!$F$14=\"\",\"\",Intro!$F$14)","v":""},{"$f":"IF(Intro!$F$15=\"\",\"\",Intro!$F$15)","v":44867},{"$f":"IF(Intro!$F$5=\"\",\"\",\"Compliance\")","v":"Compliance"},null,{"$f":"IF(Operational!$D$19=\"\",\"\",Operational!$D$19)","v":"Emergency Planning & Preparedness - Immanent threat to public safety; damage to property; disruptions to university programs and public services"},{"$f":"IF(Operational!$E$19=\"\",\"\",Operational!$E$19)","v":"Moderate"},{"$f":"IF(Operational!$F$19=\"\",\"\",Operational!$F$19)","v":"Moderate"},{"$f":"IF(Operational!$G$19=\"\",\"\",Operational!$G$19)","v":"Activation of the Emergency Operations Plan and the Emergency Operations Center. assigned personnel to serve as the E-Prep Coordinator."},{"$f":"IF(Operational!$H$19=\"\",\"\",Operational!$H$19)","v":"Monthly"},{"$f":"IF(Operational!I$19=\"\",\"\",Operational!I$19)","v":"Significant"},{"$f":"IF(Operational!J$19=\"\",\"\",Operational!J$19)","v":"The EOC is under the direction of University Police Department. University Police Department is a 24/7/365 operation. Use of email for campus-wide notification."},{"$f":"IF(Operational!K$19=\"\",\"\",Operational!K$19)","v":"University Police Department"},{"$f":"IF(ForPrint!H82=\"\",\"\",ForPrint!H82)","v":"Adequately controlled"},{"$f":"IF(ForPrint!Q82=\"\",\"\",ForPrint!Q82)","v":9}]
[{"$f":"IF(Intro!$F$10=\"\",\"\",VLOOKUP(Intro!$F$10,Lists!$A$1:$B$19,2,FALSE))","v":""},{"$f":"IF(Intro!$F$11=\"\",\"\",Intro!$F$11)","v":""},{"$f":"IF(Intro!$F$12=\"\",\"\",Intro!$F$12)","v":"John Doe"},{"$f":"IF(Intro!$F$13=\"\",\"\",Intro!$F$13)","v":"Jane Doe"},{"$f":"IF(Intro!$F$14=\"\",\"\",Intro!$F$14)","v":""},{"$f":"IF(Intro!$F$15=\"\",\"\",Intro!$F$15)","v":44867},{"$f":"IF(Intro!$F$5=\"\",\"\",\"Compliance\")","v":"Compliance"},null,{"$f":"IF(Operational!$D$20=\"\",\"\",Operational!$D$20)","v":"Inability to recover from system loss or extended downtime"},{"$f":"IF(Operational!$E$20=\"\",\"\",Operational!$E$20)","v":"Moderate"},{"$f":"IF(Operational!$F$20=\"\",\"\",Operational!$F$20)","v":"Very low"},{"$f":"IF(Operational!$G$20=\"\",\"\",Operational!$G$20)","v":"Mission Continuity Plan Rollout; Disaster Recovery Plans; System wide and local backup and recovery policies and procedures; Electronic Information Security: Incident Response Planning and Notification Procedures"},{"$f":"IF(Operational!$H$20=\"\",\"\",Operational!$H$20)","v":"Semi-annually"},{"$f":"IF(Operational!I$20=\"\",\"\",Operational!I$20)","v":"Minor"},{"$f":"IF(Operational!J$20=\"\",\"\",Operational!J$20)","v":"Emergency plan testing documentation"},{"$f":"IF(Operational!K$20=\"\",\"\",Operational!K$20)","v":"Administrative Affairs"},{"$f":"IF(ForPrint!H83=\"\",\"\",ForPrint!H83)","v":"Adequately controlled"},{"$f":"IF(ForPrint!Q83=\"\",\"\",ForPrint!Q83)","v":9}]
[{"$f":"IF(Intro!$F$10=\"\",\"\",VLOOKUP(Intro!$F$10,Lists!$A$1:$B$19,2,FALSE))","v":""},{"$f":"IF(Intro!$F$11=\"\",\"\",Intro!$F$11)","v":""},{"$f":"IF(Intro!$F$12=\"\",\"\",Intro!$F$12)","v":"John Doe"},{"$f":"IF(Intro!$F$13=\"\",\"\",Intro!$F$13)","v":"Jane Doe"},{"$f":"IF(Intro!$F$14=\"\",\"\",Intro!$F$14)","v":""},{"$f":"IF(Intro!$F$15=\"\",\"\",Intro!$F$15)","v":44867},{"$f":"IF(Intro!$F$5=\"\",\"\",\"Reputational\")","v":"Reputational"},{"$f":"IF(Objectives!F25=\"\",\"\",Objectives!F25)","v":"Adhere to legal and policy obligations."}]
[{"$f":"IF(Intro!$F$10=\"\",\"\",VLOOKUP(Intro!$F$10,Lists!$A$1:$B$19,2,FALSE))","v":""},{"$f":"IF(Intro!$F$11=\"\",\"\",Intro!$F$11)","v":""},{"$f":"IF(Intro!$F$12=\"\",\"\",Intro!$F$12)","v":"John Doe"},{"$f":"IF(Intro!$F$13=\"\",\"\",Intro!$F$13)","v":"Jane Doe"},{"$f":"IF(Intro!$F$14=\"\",\"\",Intro!$F$14)","v":""},{"$f":"IF(Intro!$F$15=\"\",\"\",Intro!$F$15)","v":44867},{"$f":"IF(Intro!$F$5=\"\",\"\",\"Reputational\")","v":"Reputational"},{"$f":"IF(Objectives!F26=\"\",\"\",Objectives!F26)","v":"Respond to all required audits in a timely manner."}]
[{"$f":"IF(Intro!$F$10=\"\",\"\",VLOOKUP(Intro!$F$10,Lists!$A$1:$B$19,2,FALSE))","v":""},{"$f":"IF(Intro!$F$11=\"\",\"\",Intro!$F$11)","v":""},{"$f":"IF(Intro!$F$12=\"\",\"\",Intro!$F$12)","v":"John Doe"},{"$f":"IF(Intro!$F$13=\"\",\"\",Intro!$F$13)","v":"Jane Doe"},{"$f":"IF(Intro!$F$14=\"\",\"\",Intro!$F$14)","v":""},{"$f":"IF(Intro!$F$15=\"\",\"\",Intro!$F$15)","v":44867},{"$f":"IF(Intro!$F$5=\"\",\"\",\"Reputational\")","v":"Reputational"},{"$f":"IF(Objectives!F27=\"\",\"\",Objectives!F27)","v":"Reduce time to remediate detected issues."}]
[{"$f":"IF(Intro!$F$10=\"\",\"\",VLOOKUP(Intro!$F$10,Lists!$A$1:$B$19,2,FALSE))","v":""},{"$f":"IF(Intro!$F$11=\"\",\"\",Intro!$F$11)","v":""},{"$f":"IF(Intro!$F$12=\"\",\"\",Intro!$F$12)","v":"John Doe"},{"$f":"IF(Intro!$F$13=\"\",\"\",Intro!$F$13)","v":"Jane Doe"},{"$f":"IF(Intro!$F$14=\"\",\"\",Intro!$F$14)","v":""},{"$f":"IF(Intro!$F$15=\"\",\"\",Intro!$F$15)","v":44867},{"$f":"IF(Intro!$F$5=\"\",\"\",\"Reputational\")","v":"Reputational"},{"$f":"IF(Objectives!F28=\"\",\"\",Objectives!F28)","v":"Reduce the time required for detecting, documenting, and fixing exceptions."}]
[{"$f":"IF(Intro!$F$10=\"\",\"\",VLOOKUP(Intro!$F$10,Lists!$A$1:$B$19,2,FALSE))","v":""},{"$f":"IF(Intro!$F$11=\"\",\"\",Intro!$F$11)","v":""},{"$f":"IF(Intro!$F$12=\"\",\"\",Intro!$F$12)","v":"John Doe"},{"$f":"IF(Intro!$F$13=\"\",\"\",Intro!$F$13)","v":"Jane Doe"},{"$f":"IF(Intro!$F$14=\"\",\"\",Intro!$F$14)","v":""},{"$f":"IF(Intro!$F$15=\"\",\"\",Intro!$F$15)","v":44867},{"$f":"IF(Intro!$F$5=\"\",\"\",\"Reputational\")","v":"Reputational"},{"$f":"IF(Objectives!F29=\"\",\"\",Objectives!F29)","v":""}]
[{"$f":"IF(Intro!$F$10=\"\",\"\",VLOOKUP(Intro!$F$10,Lists!$A$1:$B$19,2,FALSE))","v":""},{"$f":"IF(Intro!$F$11=\"\",\"\",Intro!$F$11)","v":""},{"$f":"IF(Intro!$F$12=\"\",\"\",Intro!$F$12)","v":"John Doe"},{"$f":"IF(Intro!$F$13=\"\",\"\",Intro!$F$13)","v":"Jane Doe"},{"$f":"IF(Intro!$F$14=\"\",\"\",Intro!$F$14)","v":""},{"$f":"IF(Intro!$F$15=\"\",\"\",Intro!$F$15)","v":44867},{"$f":"IF(Intro!$F$5=\"\",\"\",\"Reputational\")","v":"Reputational"},null,{"$f":"IF(Compliance!$D$6=\"\",\"\",Compliance!$D$6)","v":"Conflicts of interest in financial transactions and agreements"},{"$f":"IF(Compliance!$E$6=\"\",\"\",Compliance!$E$6)","v":"Very low"},{"$f":"IF(Compliance!$F$6=\"\",\"\",Compliance!$F$6)","v":"Low"},{"$f":"IF(Compliance!$G$6=\"\",\"\",Compliance!$G$6)","v":"Annual system wide Outside Activities Reporting (OAR)/Conflict of Interest (COI) Reporting for Designated Officials; Business Contract Policies; Whistle Blower system; Employee Handbook (Ch. 8 Code of Ethics)"},{"$f":"IF(Compliance!$H$6=\"\",\"\",Compliance!$H$6)","v":"Annually"},{"$f":"IF(Compliance!I$6=\"\",\"\",Compliance!I$6)","v":"Minor"},{"$f":"IF(Compliance!J$6=\"\",\"\",Compliance!J$6)","v":"Annual Outside Activities Reporting (OAR)/Conflict of Interest (COI) Reports by Designated Officials; Whistle blower system; Code of Ethics"},{"$f":"IF(Compliance!K$6=\"\",\"\",Compliance!K$6)","v":"Administration"},{"$f":"IF(ForPrint!H96=\"\",\"\",ForPrint!H96)","v":"Adequately controlled"},{"$f":"IF(ForPrint!Q96=\"\",\"\",ForPrint!Q96)","v":6}]
[{"$f":"IF(Intro!$F$10=\"\",\"\",VLOOKUP(Intro!$F$10,Lists!$A$1:$B$19,2,FALSE))","v":""},{"$f":"IF(Intro!$F$11=\"\",\"\",Intro!$F$11)","v":""},{"$f":"IF(Intro!$F$12=\"\",\"\",Intro!$F$12)","v":"John Doe"},{"$f":"IF(Intro!$F$13=\"\",\"\",Intro!$F$13)","v":"Jane Doe"},{"$f":"IF(Intro!$F$14=\"\",\"\",Intro!$F$14)","v":""},{"$f":"IF(Intro!$F$15=\"\",\"\",Intro!$F$15)","v":44867},{"$f":"IF(Intro!$F$5=\"\",\"\",\"Reputational\")","v":"Reputational"},null,{"$f":"IF(Compliance!$D$7=\"\",\"\",Compliance!$D$7)","v":"Handling of Native American Graves Protection and Repatriation Act artifacts"},{"$f":"IF(Compliance!$E$7=\"\",\"\",Compliance!$E$7)","v":"Moderate"},{"$f":"IF(Compliance!$F$7=\"\",\"\",Compliance!$F$7)","v":"High"},{"$f":"IF(Compliance!$G$7=\"\",\"\",Compliance!$G$7)","v":"NAGPRA Federal Register; "},{"$f":"IF(Compliance!$H$7=\"\",\"\",Compliance!$H$7)","v":"Ad-Hoc"},{"$f":"IF(Compliance!I$7=\"\",\"\",Compliance!I$7)","v":"Moderate"},{"$f":"IF(Compliance!J$7=\"\",\"\",Compliance!J$7)","v":"NAGPRA Federal Register"},{"$f":"IF(Compliance!K$7=\"\",\"\",Compliance!K$7)","v":"American Indians Department, Associated Students, Inc. "},{"$f":"IF(ForPrint!H97=\"\",\"\",ForPrint!H97)","v":"Potentially poorly controlled"},{"$f":"IF(ForPrint!Q97=\"\",\"\",ForPrint!Q97)","v":24}]
[{"$f":"IF(Intro!$F$10=\"\",\"\",VLOOKUP(Intro!$F$10,Lists!$A$1:$B$19,2,FALSE))","v":""},{"$f":"IF(Intro!$F$11=\"\",\"\",Intro!$F$11)","v":""},{"$f":"IF(Intro!$F$12=\"\",\"\",Intro!$F$12)","v":"John Doe"},{"$f":"IF(Intro!$F$13=\"\",\"\",Intro!$F$13)","v":"Jane Doe"},{"$f":"IF(Intro!$F$14=\"\",\"\",Intro!$F$14)","v":""},{"$f":"IF(Intro!$F$15=\"\",\"\",Intro!$F$15)","v":44867},{"$f":"IF(Intro!$F$5=\"\",\"\",\"Reputational\")","v":"Reputational"},null,{"$f":"IF(Compliance!$D$8=\"\",\"\",Compliance!$D$8)","v":"Cost sharing procedures are not compliant with federal requirements"},{"$f":"IF(Compliance!$E$8=\"\",\"\",Compliance!$E$8)","v":"Unsure/Don't know"},{"$f":"IF(Compliance!$F$8=\"\",\"\",Compliance!$F$8)","v":"Very low"},{"$f":"IF(Compliance!$G$8=\"\",\"\",Compliance!$G$8)","v":"Cost Sharing Procedures; Effort Reporting and Cost Share Tracking System"},{"$f":"IF(Compliance!$H$8=\"\",\"\",Compliance!$H$8)","v":"Semi-annually"},{"$f":"IF(Compliance!I$8=\"\",\"\",Compliance!I$8)","v":"Minor"},{"$f":"IF(Compliance!J$8=\"\",\"\",Compliance!J$8)","v":"Cost Sharing System (CSS)"},{"$f":"IF(Compliance!K$8=\"\",\"\",Compliance!K$8)","v":"Administration"},{"$f":"IF(ForPrint!H98=\"\",\"\",ForPrint!H98)","v":"Adequately controlled"},{"$f":"IF(ForPrint!Q98=\"\",\"\",ForPrint!Q98)","v":7.5}]
[{"$f":"IF(Intro!$F$10=\"\",\"\",VLOOKUP(Intro!$F$10,Lists!$A$1:$B$19,2,FALSE))","v":""},{"$f":"IF(Intro!$F$11=\"\",\"\",Intro!$F$11)","v":""},{"$f":"IF(Intro!$F$12=\"\",\"\",Intro!$F$12)","v":"John Doe"},{"$f":"IF(Intro!$F$13=\"\",\"\",Intro!$F$13)","v":"Jane Doe"},{"$f":"IF(Intro!$F$14=\"\",\"\",Intro!$F$14)","v":""},{"$f":"IF(Intro!$F$15=\"\",\"\",Intro!$F$15)","v":44867},{"$f":"IF(Intro!$F$5=\"\",\"\",\"Reputational\")","v":"Reputational"},null,{"$f":"IF(Compliance!$D$9=\"\",\"\",Compliance!$D$9)","v":"Noncompliance with UWS requirements for auxiliary organization policies and procedures"},{"$f":"IF(Compliance!$E$9=\"\",\"\",Compliance!$E$9)","v":"Moderate"},{"$f":"IF(Compliance!$F$9=\"\",\"\",Compliance!$F$9)","v":"Moderate"},{"$f":"IF(Compliance!$G$9=\"\",\"\",Compliance!$G$9)","v":"Associated Students Business & Finance Department; Corp.; UWS Audit Department"},{"$f":"IF(Compliance!$H$9=\"\",\"\",Compliance!$H$9)","v":"Annually"},{"$f":"IF(Compliance!I$9=\"\",\"\",Compliance!I$9)","v":"Moderate"},{"$f":"IF(Compliance!J$9=\"\",\"\",Compliance!J$9)","v":"UWS Auxiliary Organization Audit; Associated Students Board Governance Policy"},{"$f":"IF(Compliance!K$9=\"\",\"\",Compliance!K$9)","v":"Associated Students Board of Directors; UCorp Board and Leadership"},{"$f":"IF(ForPrint!H99=\"\",\"\",ForPrint!H99)","v":"Adequately controlled"},{"$f":"IF(ForPrint!Q99=\"\",\"\",ForPrint!Q99)","v":18}]
[{"$f":"IF(Intro!$F$10=\"\",\"\",VLOOKUP(Intro!$F$10,Lists!$A$1:$B$19,2,FALSE))","v":""},{"$f":"IF(Intro!$F$11=\"\",\"\",Intro!$F$11)","v":""},{"$f":"IF(Intro!$F$12=\"\",\"\",Intro!$F$12)","v":"John Doe"},{"$f":"IF(Intro!$F$13=\"\",\"\",Intro!$F$13)","v":"Jane Doe"},{"$f":"IF(Intro!$F$14=\"\",\"\",Intro!$F$14)","v":""},{"$f":"IF(Intro!$F$15=\"\",\"\",Intro!$F$15)","v":44867},{"$f":"IF(Intro!$F$5=\"\",\"\",\"Reputational\")","v":"Reputational"},null,{"$f":"IF(Compliance!$D$10=\"\",\"\",Compliance!$D$10)","v":"Agreement terms and conditions not met, but funds used"},{"$f":"IF(Compliance!$E$10=\"\",\"\",Compliance!$E$10)","v":"Very low"},{"$f":"IF(Compliance!$F$10=\"\",\"\",Compliance!$F$10)","v":"Very low"},{"$f":"IF(Compliance!$G$10=\"\",\"\",Compliance!$G$10)","v":"Whistle Blower system; Ethics Compliance and Audit Program; Extramural Funds Accounting: Award Closeout Procedures and Checklist"},{"$f":"IF(Compliance!$H$10=\"\",\"\",Compliance!$H$10)","v":"Semi-annually"},{"$f":"IF(Compliance!I$10=\"\",\"\",Compliance!I$10)","v":"Nearly complete"},{"$f":"IF(Compliance!J$10=\"\",\"\",Compliance!J$10)","v":"Reported at department level; Project Closeout Reviews; General and Payroll Ledger Reviews "},{"$f":"IF(Compliance!K$10=\"\",\"\",Compliance!K$10)","v":"Administration"},{"$f":"IF(ForPrint!H100=\"\",\"\",ForPrint!H100)","v":"Potentially over-controlled"},{"$f":"IF(ForPrint!Q100=\"\",\"\",ForPrint!Q100)","v":0.20000000000000018}]
[{"$f":"IF(Intro!$F$10=\"\",\"\",VLOOKUP(Intro!$F$10,Lists!$A$1:$B$19,2,FALSE))","v":""},{"$f":"IF(Intro!$F$11=\"\",\"\",Intro!$F$11)","v":""},{"$f":"IF(Intro!$F$12=\"\",\"\",Intro!$F$12)","v":"John Doe"},{"$f":"IF(Intro!$F$13=\"\",\"\",Intro!$F$13)","v":"Jane Doe"},{"$f":"IF(Intro!$F$14=\"\",\"\",Intro!$F$14)","v":""},{"$f":"IF(Intro!$F$15=\"\",\"\",Intro!$F$15)","v":44867},{"$f":"IF(Intro!$F$5=\"\",\"\",\"Reputational\")","v":"Reputational"},null,{"$f":"IF(Compliance!$D$11=\"\",\"\",Compliance!$D$11)","v":"General Regulatory fines or penalties"},{"$f":"IF(Compliance!$E$11=\"\",\"\",Compliance!$E$11)","v":"Moderate"},{"$f":"IF(Compliance!$F$11=\"\",\"\",Compliance!$F$11)","v":"Unsure/Don't know"},{"$f":"IF(Compliance!$G$11=\"\",\"\",Compliance!$G$11)","v":"Sponsored projects offices and extramural funds accounting offices; Whistle Blower system; Ethics Compliance and Audit Program; Internal Control Program; Administrative Responsibilities Handbook - Principles of Regulatory Compliance"},{"$f":"IF(Compliance!$H$11=\"\",\"\",Compliance!$H$11)","v":"Quarterly"},{"$f":"IF(Compliance!I$11=\"\",\"\",Compliance!I$11)","v":"Moderate"},{"$f":"IF(Compliance!J$11=\"\",\"\",Compliance!J$11)","v":"Working on including in Business Intelligence System; "},{"$f":"IF(Compliance!K$11=\"\",\"\",Compliance!K$11)","v":"Administration"},{"$f":"IF(ForPrint!H101=\"\",\"\",ForPrint!H101)","v":"Adequately controlled"},{"$f":"IF(ForPrint!Q101=\"\",\"\",ForPrint!Q101)","v":15}]
[{"$f":"IF(Intro!$F$10=\"\",\"\",VLOOKUP(Intro!$F$10,Lists!$A$1:$B$19,2,FALSE))","v":""},{"$f":"IF(Intro!$F$11=\"\",\"\",Intro!$F$11)","v":""},{"$f":"IF(Intro!$F$12=\"\",\"\",Intro!$F$12)","v":"John Doe"},{"$f":"IF(Intro!$F$13=\"\",\"\",Intro!$F$13)","v":"Jane Doe"},{"$f":"IF(Intro!$F$14=\"\",\"\",Intro!$F$14)","v":""},{"$f":"IF(Intro!$F$15=\"\",\"\",Intro!$F$15)","v":44867},{"$f":"IF(Intro!$F$5=\"\",\"\",\"Reputational\")","v":"Reputational"},null,{"$f":"IF(Compliance!$D$12=\"\",\"\",Compliance!$D$12)","v":"Intellectual property infringement"},{"$f":"IF(Compliance!$E$12=\"\",\"\",Compliance!$E$12)","v":"Low"},{"$f":"IF(Compliance!$F$12=\"\",\"\",Compliance!$F$12)","v":"Very low"},{"$f":"IF(Compliance!$G$12=\"\",\"\",Compliance!$G$12)","v":"Office of Research and Sponsored Programs: Divisions of Innovation Access and Research Technology & Industrial Alliances, and Intellectual Property Officers; Industry collaboration guides; Web-based resources; Administrative Responsibilities Handbook -Research Affairs: Intellectual Property; Regent Policy Documents"},{"$f":"IF(Compliance!$H$12=\"\",\"\",Compliance!$H$12)","v":"Annually"},{"$f":"IF(Compliance!I$12=\"\",\"\",Compliance!I$12)","v":"Minor"},{"$f":"IF(Compliance!J$12=\"\",\"\",Compliance!J$12)","v":"Claims System; Web-based resources"},{"$f":"IF(Compliance!K$12=\"\",\"\",Compliance!K$12)","v":"University Counsel"},{"$f":"IF(ForPrint!H102=\"\",\"\",ForPrint!H102)","v":"Adequately controlled"},{"$f":"IF(ForPrint!Q102=\"\",\"\",ForPrint!Q102)","v":6}]
[{"$f":"IF(Intro!$F$10=\"\",\"\",VLOOKUP(Intro!$F$10,Lists!$A$1:$B$19,2,FALSE))","v":""},{"$f":"IF(Intro!$F$11=\"\",\"\",Intro!$F$11)","v":""},{"$f":"IF(Intro!$F$12=\"\",\"\",Intro!$F$12)","v":"John Doe"},{"$f":"IF(Intro!$F$13=\"\",\"\",Intro!$F$13)","v":"Jane Doe"},{"$f":"IF(Intro!$F$14=\"\",\"\",Intro!$F$14)","v":""},{"$f":"IF(Intro!$F$15=\"\",\"\",Intro!$F$15)","v":44867},{"$f":"IF(Intro!$F$5=\"\",\"\",\"Reputational\")","v":"Reputational"},null,{"$f":"IF(Compliance!$D$13=\"\",\"\",Compliance!$D$13)","v":"Resignation of Sr. Deputy Title IX Coordinator for Employees and Third Parties resulting in EP&C having a larger role in responding to employee and third party Executive Order 1096 matters"},{"$f":"IF(Compliance!$E$13=\"\",\"\",Compliance!$E$13)","v":"High"},{"$f":"IF(Compliance!$F$13=\"\",\"\",Compliance!$F$13)","v":"High"},{"$f":"IF(Compliance!$G$13=\"\",\"\",Compliance!$G$13)","v":"Duties were re-assigned to EP&C, and Executive Order 1096 investigations were no longer assigned to Labor Relations. Risk will be mitigated with the hiring of the Dean of Equity Initiatives who will serve in the Sr. Deputy capacity. "},{"$f":"IF(Compliance!$H$13=\"\",\"\",Compliance!$H$13)","v":"Daily "},{"$f":"IF(Compliance!I$13=\"\",\"\",Compliance!I$13)","v":"Significant"},{"$f":"IF(Compliance!J$13=\"\",\"\",Compliance!J$13)","v":"Internal tracking by EP&C, and reported to the Title IX Coordinator and DHR Administrator"},{"$f":"IF(Compliance!K$13=\"\",\"\",Compliance!K$13)","v":"Student Affairs & Enrollment Management (Equity Programs & Compliance), Human Resources"},{"$f":"IF(ForPrint!H103=\"\",\"\",ForPrint!H103)","v":"Adequately controlled"},{"$f":"IF(ForPrint!Q103=\"\",\"\",ForPrint!Q103)","v":16}]
[{"$f":"IF(Intro!$F$10=\"\",\"\",VLOOKUP(Intro!$F$10,Lists!$A$1:$B$19,2,FALSE))","v":""},{"$f":"IF(Intro!$F$11=\"\",\"\",Intro!$F$11)","v":""},{"$f":"IF(Intro!$F$12=\"\",\"\",Intro!$F$12)","v":"John Doe"},{"$f":"IF(Intro!$F$13=\"\",\"\",Intro!$F$13)","v":"Jane Doe"},{"$f":"IF(Intro!$F$14=\"\",\"\",Intro!$F$14)","v":""},{"$f":"IF(Intro!$F$15=\"\",\"\",Intro!$F$15)","v":44867},{"$f":"IF(Intro!$F$5=\"\",\"\",\"Reputational\")","v":"Reputational"},null,{"$f":"IF(Compliance!$D$14=\"\",\"\",Compliance!$D$14)","v":"Title IX  and sexual violence prevention efforts  - An area of concern is that the new federal administration may reinterpret Title IX to include a higher standard of proof for investigations of sexual misconduct, as well as the invalidation of campus judicial hearings for sexual misconduct situations in favor of civil court proceedings for all cases."},{"$f":"IF(Compliance!$E$14=\"\",\"\",Compliance!$E$14)","v":"Moderate"},{"$f":"IF(Compliance!$F$14=\"\",\"\",Compliance!$F$14)","v":"High"},{"$f":"IF(Compliance!$G$14=\"\",\"\",Compliance!$G$14)","v":"Monitor federal guidelines related to Title IX"},{"$f":"IF(Compliance!$H$14=\"\",\"\",Compliance!$H$14)","v":"Monthly"},{"$f":"IF(Compliance!I$14=\"\",\"\",Compliance!I$14)","v":"Moderate"},{"$f":"IF(Compliance!J$14=\"\",\"\",Compliance!J$14)","v":""},{"$f":"IF(Compliance!K$14=\"\",\"\",Compliance!K$14)","v":"Title IX Office, Equity Programs & Compliance, and Health Promotion and Wellness"},{"$f":"IF(ForPrint!H104=\"\",\"\",ForPrint!H104)","v":"Potentially poorly controlled"},{"$f":"IF(ForPrint!Q104=\"\",\"\",ForPrint!Q104)","v":24}]
[{"$f":"IF(Intro!$F$10=\"\",\"\",VLOOKUP(Intro!$F$10,Lists!$A$1:$B$19,2,FALSE))","v":""},{"$f":"IF(Intro!$F$11=\"\",\"\",Intro!$F$11)","v":""},{"$f":"IF(Intro!$F$12=\"\",\"\",Intro!$F$12)","v":"John Doe"},{"$f":"IF(Intro!$F$13=\"\",\"\",Intro!$F$13)","v":"Jane Doe"},{"$f":"IF(Intro!$F$14=\"\",\"\",Intro!$F$14)","v":""},{"$f":"IF(Intro!$F$15=\"\",\"\",Intro!$F$15)","v":44867},{"$f":"IF(Intro!$F$5=\"\",\"\",\"Reputational\")","v":"Reputational"},null,{"$f":"IF(Compliance!$D$15=\"\",\"\",Compliance!$D$15)","v":"Effort reports inaccurate, insufficient, or incomplete"},{"$f":"IF(Compliance!$E$15=\"\",\"\",Compliance!$E$15)","v":"Very low"},{"$f":"IF(Compliance!$F$15=\"\",\"\",Compliance!$F$15)","v":"Very high"},{"$f":"IF(Compliance!$G$15=\"\",\"\",Compliance!$G$15)","v":"Effort Report Compliance Initiative; Effort Reporting and Cost Share Tracking System"},{"$f":"IF(Compliance!$H$15=\"\",\"\",Compliance!$H$15)","v":"Annually"},{"$f":"IF(Compliance!I$15=\"\",\"\",Compliance!I$15)","v":"Minor"},{"$f":"IF(Compliance!J$15=\"\",\"\",Compliance!J$15)","v":"Effort Reporting System (ERS); OMB Circular A-133 audits performed annually by external auditors"},{"$f":"IF(Compliance!K$15=\"\",\"\",Compliance!K$15)","v":"Individual Pis"},{"$f":"IF(ForPrint!H105=\"\",\"\",ForPrint!H105)","v":"Potentially poorly controlled"},{"$f":"IF(ForPrint!Q105=\"\",\"\",ForPrint!Q105)","v":15}]
[{"$f":"IF(Intro!$F$10=\"\",\"\",VLOOKUP(Intro!$F$10,Lists!$A$1:$B$19,2,FALSE))","v":""},{"$f":"IF(Intro!$F$11=\"\",\"\",Intro!$F$11)","v":""},{"$f":"IF(Intro!$F$12=\"\",\"\",Intro!$F$12)","v":"John Doe"},{"$f":"IF(Intro!$F$13=\"\",\"\",Intro!$F$13)","v":"Jane Doe"},{"$f":"IF(Intro!$F$14=\"\",\"\",Intro!$F$14)","v":""},{"$f":"IF(Intro!$F$15=\"\",\"\",Intro!$F$15)","v":44867},{"$f":"IF(Intro!$F$5=\"\",\"\",\"Reputational\")","v":"Reputational"},null,{"$f":"IF(Compliance!$D$16=\"\",\"\",Compliance!$D$16)","v":"Food Safety Violations"},{"$f":"IF(Compliance!$E$16=\"\",\"\",Compliance!$E$16)","v":"Very low"},{"$f":"IF(Compliance!$F$16=\"\",\"\",Compliance!$F$16)","v":"Very low"},{"$f":"IF(Compliance!$G$16=\"\",\"\",Compliance!$G$16)","v":"Routine equipment maintenance/repair and health and safety inspection; partner with EHS; Food service guidelines and operating standard. Note: compliance issues with lack of controls. Note: EHS is inspecting the Vista Room every semester - post notices to ensure people know about it. "},{"$f":"IF(Compliance!$H$16=\"\",\"\",Compliance!$H$16)","v":"Multiple times daily"},{"$f":"IF(Compliance!I$16=\"\",\"\",Compliance!I$16)","v":"Moderate"},{"$f":"IF(Compliance!J$16=\"\",\"\",Compliance!J$16)","v":"Risk Management, EHS Monitors and Reports, Dining"},{"$f":"IF(Compliance!K$16=\"\",\"\",Compliance!K$16)","v":"Risk Management, Dining Services"},{"$f":"IF(ForPrint!H106=\"\",\"\",ForPrint!H106)","v":"Potentially over-controlled"},{"$f":"IF(ForPrint!Q106=\"\",\"\",ForPrint!Q106)","v":2}]
[{"$f":"IF(Intro!$F$10=\"\",\"\",VLOOKUP(Intro!$F$10,Lists!$A$1:$B$19,2,FALSE))","v":""},{"$f":"IF(Intro!$F$11=\"\",\"\",Intro!$F$11)","v":""},{"$f":"IF(Intro!$F$12=\"\",\"\",Intro!$F$12)","v":"John Doe"},{"$f":"IF(Intro!$F$13=\"\",\"\",Intro!$F$13)","v":"Jane Doe"},{"$f":"IF(Intro!$F$14=\"\",\"\",Intro!$F$14)","v":""},{"$f":"IF(Intro!$F$15=\"\",\"\",Intro!$F$15)","v":44867},{"$f":"IF(Intro!$F$5=\"\",\"\",\"Reputational\")","v":"Reputational"},null,{"$f":"IF(Compliance!$D$17=\"\",\"\",Compliance!$D$17)","v":"Student Organization Activities"},{"$f":"IF(Compliance!$E$17=\"\",\"\",Compliance!$E$17)","v":"High"},{"$f":"IF(Compliance!$F$17=\"\",\"\",Compliance!$F$17)","v":"High"},{"$f":"IF(Compliance!$G$17=\"\",\"\",Compliance!$G$17)","v":"Student Activities and Events unit; Student Organization Handbook; Student Organization Conducts and Policies; Funding Requests; Fundraising Event Guideline; Student Event Planning Policies and Procedures; Internal Audit on-going review. We will also coordinate with associated Students to bring awareness of food safety to  students."},{"$f":"IF(Compliance!$H$17=\"\",\"\",Compliance!$H$17)","v":"Unsure/Don't know"},{"$f":"IF(Compliance!I$17=\"\",\"\",Compliance!I$17)","v":"Low"},{"$f":"IF(Compliance!J$17=\"\",\"\",Compliance!J$17)","v":"Records of Students Activities/Events on campus website,  Student Organization Directory"},{"$f":"IF(Compliance!K$17=\"\",\"\",Compliance!K$17)","v":"Student Affairs, Environmental Health and Safety, Student Activities and Events "},{"$f":"IF(ForPrint!H107=\"\",\"\",ForPrint!H107)","v":{"$error":"#N/A"}},{"$f":"IF(ForPrint!Q107=\"\",\"\",ForPrint!Q107)","v":{"$error":"#N/A"}}]
[{"$f":"IF(Intro!$F$10=\"\",\"\",VLOOKUP(Intro!$F$10,Lists!$A$1:$B$19,2,FALSE))","v":""},{"$f":"IF(Intro!$F$11=\"\",\"\",Intro!$F$11)","v":""},{"$f":"IF(Intro!$F$12=\"\",\"\",Intro!$F$12)","v":"John Doe"},{"$f":"IF(Intro!$F$13=\"\",\"\",Intro!$F$13)","v":"Jane Doe"},{"$f":"IF(Intro!$F$14=\"\",\"\",Intro!$F$14)","v":""},{"$f":"IF(Intro!$F$15=\"\",\"\",Intro!$F$15)","v":44867},{"$f":"IF(Intro!$F$5=\"\",\"\",\"Reputational\")","v":"Reputational"},null,{"$f":"IF(Compliance!$D$18=\"\",\"\",Compliance!$D$18)","v":"Moving to Medical Records - Concern for the confidentiality of students psychological records without adequate IT services when needed"},{"$f":"IF(Compliance!$E$18=\"\",\"\",Compliance!$E$18)","v":"Very High"},{"$f":"IF(Compliance!$F$18=\"\",\"\",Compliance!$F$18)","v":"Moderate"},{"$f":"IF(Compliance!$G$18=\"\",\"\",Compliance!$G$18)","v":"Concern is for breaching HIPPA and FERPA requirement if IT doesn't protect fire walls regularly."},{"$f":"IF(Compliance!$H$18=\"\",\"\",Compliance!$H$18)","v":"Unsure/Don't know"},{"$f":"IF(Compliance!I$18=\"\",\"\",Compliance!I$18)","v":"Nearly complete"},{"$f":"IF(Compliance!J$18=\"\",\"\",Compliance!J$18)","v":"IT support is will be responsible for  monitoring and reporting the system."},{"$f":"IF(Compliance!K$18=\"\",\"\",Compliance!K$18)","v":"Student Affairs & Enrollment Management  (Counseling and Psychological Services) and IT"},{"$f":"IF(ForPrint!H108=\"\",\"\",ForPrint!H108)","v":"Adequately controlled"},{"$f":"IF(ForPrint!Q108=\"\",\"\",ForPrint!Q108)","v":3.0000000000000027}]
[{"$f":"IF(Intro!$F$10=\"\",\"\",VLOOKUP(Intro!$F$10,Lists!$A$1:$B$19,2,FALSE))","v":""},{"$f":"IF(Intro!$F$11=\"\",\"\",Intro!$F$11)","v":""},{"$f":"IF(Intro!$F$12=\"\",\"\",Intro!$F$12)","v":"John Doe"},{"$f":"IF(Intro!$F$13=\"\",\"\",Intro!$F$13)","v":"Jane Doe"},{"$f":"IF(Intro!$F$14=\"\",\"\",Intro!$F$14)","v":""},{"$f":"IF(Intro!$F$15=\"\",\"\",Intro!$F$15)","v":44867},{"$f":"IF(Intro!$F$5=\"\",\"\",\"Reputational\")","v":"Reputational"},null,{"$f":"IF(Compliance!$D$19=\"\",\"\",Compliance!$D$19)","v":"Clarification needed about campus policy on departments paying for costs of hiring an international faculty"},{"$f":"IF(Compliance!$E$19=\"\",\"\",Compliance!$E$19)","v":"High"},{"$f":"IF(Compliance!$F$19=\"\",\"\",Compliance!$F$19)","v":"Moderate"},{"$f":"IF(Compliance!$G$19=\"\",\"\",Compliance!$G$19)","v":"Fiscal Affairs and Professional Development unit; Faculty Manual; Faculty Recruitment and Hiring Handbook; Retention, Tenure, and Promotion Policy. Note: lack of consistency with guidelines (Homeland Security Process with Office of International Programs), complicated and expensive rules on what can be paid. "},{"$f":"IF(Compliance!$H$19=\"\",\"\",Compliance!$H$19)","v":"Unsure/Don't know"},{"$f":"IF(Compliance!I$19=\"\",\"\",Compliance!I$19)","v":"Minor"},{"$f":"IF(Compliance!J$19=\"\",\"\",Compliance!J$19)","v":"Faculty Recruitment and Hiring Handbook"},{"$f":"IF(Compliance!K$19=\"\",\"\",Compliance!K$19)","v":"HR, Faculty Affairs, Office of International Programs"},{"$f":"IF(ForPrint!H109=\"\",\"\",ForPrint!H109)","v":"Poorly controlled"},{"$f":"IF(ForPrint!Q109=\"\",\"\",ForPrint!Q109)","v":36}]
[{"$f":"IF(Intro!$F$10=\"\",\"\",VLOOKUP(Intro!$F$10,Lists!$A$1:$B$19,2,FALSE))","v":""},{"$f":"IF(Intro!$F$11=\"\",\"\",Intro!$F$11)","v":""},{"$f":"IF(Intro!$F$12=\"\",\"\",Intro!$F$12)","v":"John Doe"},{"$f":"IF(Intro!$F$13=\"\",\"\",Intro!$F$13)","v":"Jane Doe"},{"$f":"IF(Intro!$F$14=\"\",\"\",Intro!$F$14)","v":""},{"$f":"IF(Intro!$F$15=\"\",\"\",Intro!$F$15)","v":44867},{"$f":"IF(Intro!$F$5=\"\",\"\",\"Reputational\")","v":"Reputational"},null,{"$f":"IF(Compliance!$D$20=\"\",\"\",Compliance!$D$20)","v":"Disclosure of confidential information (personally identifying information (PII) or health care info)"},{"$f":"IF(Compliance!$E$20=\"\",\"\",Compliance!$E$20)","v":"Very low"},{"$f":"IF(Compliance!$F$20=\"\",\"\",Compliance!$F$20)","v":"Unsure/Don't know"},{"$f":"IF(Compliance!$G$20=\"\",\"\",Compliance!$G$20)","v":"Electronic Information Security; Encryption of sensitive information, especially on laptops; Department policies limiting downloads and storage of personal information; Removal of partial information (e.g., partial SSNs); Audit, Risk, Compliance and Ethics Program; Export Controls"},{"$f":"IF(Compliance!$H$20=\"\",\"\",Compliance!$H$20)","v":"Weekly"},{"$f":"IF(Compliance!I$20=\"\",\"\",Compliance!I$20)","v":"Minor"},{"$f":"IF(Compliance!J$20=\"\",\"\",Compliance!J$20)","v":"Monitored and reported at department level.  Notifications to impacted parties generated in compliance with policy; Health Compliance Monitoring"},{"$f":"IF(Compliance!K$20=\"\",\"\",Compliance!K$20)","v":"HR&D, ORSP, iCIT"},{"$f":"IF(ForPrint!H110=\"\",\"\",ForPrint!H110)","v":"Adequately controlled"},{"$f":"IF(ForPrint!Q110=\"\",\"\",ForPrint!Q110)","v":7.5}]
[{"$f":"IF(Intro!$F$10=\"\",\"\",VLOOKUP(Intro!$F$10,Lists!$A$1:$B$19,2,FALSE))","v":""},{"$f":"IF(Intro!$F$11=\"\",\"\",Intro!$F$11)","v":""},{"$f":"IF(Intro!$F$12=\"\",\"\",Intro!$F$12)","v":"John Doe"},{"$f":"IF(Intro!$F$13=\"\",\"\",Intro!$F$13)","v":"Jane Doe"},{"$f":"IF(Intro!$F$14=\"\",\"\",Intro!$F$14)","v":""},{"$f":"IF(Intro!$F$15=\"\",\"\",Intro!$F$15)","v":44867},{"$f":"IF(Intro!$F$5=\"\",\"\",\"Operational\")","v":"Operational"},{"$f":"IF(Objectives!F32=\"\",\"\",Objectives!F32)","v":"Increase community outreach."}]
[{"$f":"IF(Intro!$F$10=\"\",\"\",VLOOKUP(Intro!$F$10,Lists!$A$1:$B$19,2,FALSE))","v":""},{"$f":"IF(Intro!$F$11=\"\",\"\",Intro!$F$11)","v":""},{"$f":"IF(Intro!$F$12=\"\",\"\",Intro!$F$12)","v":"John Doe"},{"$f":"IF(Intro!$F$13=\"\",\"\",Intro!$F$13)","v":"Jane Doe"},{"$f":"IF(Intro!$F$14=\"\",\"\",Intro!$F$14)","v":""},{"$f":"IF(Intro!$F$15=\"\",\"\",Intro!$F$15)","v":44867},{"$f":"IF(Intro!$F$5=\"\",\"\",\"Operational\")","v":"Operational"},{"$f":"IF(Objectives!F33=\"\",\"\",Objectives!F33)","v":"Improve marketing, advertising and public relations."}]
[{"$f":"IF(Intro!$F$10=\"\",\"\",VLOOKUP(Intro!$F$10,Lists!$A$1:$B$19,2,FALSE))","v":""},{"$f":"IF(Intro!$F$11=\"\",\"\",Intro!$F$11)","v":""},{"$f":"IF(Intro!$F$12=\"\",\"\",Intro!$F$12)","v":"John Doe"},{"$f":"IF(Intro!$F$13=\"\",\"\",Intro!$F$13)","v":"Jane Doe"},{"$f":"IF(Intro!$F$14=\"\",\"\",Intro!$F$14)","v":""},{"$f":"IF(Intro!$F$15=\"\",\"\",Intro!$F$15)","v":44867},{"$f":"IF(Intro!$F$5=\"\",\"\",\"Operational\")","v":"Operational"},{"$f":"IF(Objectives!F34=\"\",\"\",Objectives!F34)","v":"Optimize messaging to achieve strategic and other objectives"}]
[{"$f":"IF(Intro!$F$10=\"\",\"\",VLOOKUP(Intro!$F$10,Lists!$A$1:$B$19,2,FALSE))","v":""},{"$f":"IF(Intro!$F$11=\"\",\"\",Intro!$F$11)","v":""},{"$f":"IF(Intro!$F$12=\"\",\"\",Intro!$F$12)","v":"John Doe"},{"$f":"IF(Intro!$F$13=\"\",\"\",Intro!$F$13)","v":"Jane Doe"},{"$f":"IF(Intro!$F$14=\"\",\"\",Intro!$F$14)","v":""},{"$f":"IF(Intro!$F$15=\"\",\"\",Intro!$F$15)","v":44867},{"$f":"IF(Intro!$F$5=\"\",\"\",\"Operational\")","v":"Operational"},{"$f":"IF(Objectives!F35=\"\",\"\",Objectives!F35)","v":"Enhance relationships with alumni, professors emeriti, friends"}]
[{"$f":"IF(Intro!$F$10=\"\",\"\",VLOOKUP(Intro!$F$10,Lists!$A$1:$B$19,2,FALSE))","v":""},{"$f":"IF(Intro!$F$11=\"\",\"\",Intro!$F$11)","v":""},{"$f":"IF(Intro!$F$12=\"\",\"\",Intro!$F$12)","v":"John Doe"},{"$f":"IF(Intro!$F$13=\"\",\"\",Intro!$F$13)","v":"Jane Doe"},{"$f":"IF(Intro!$F$14=\"\",\"\",Intro!$F$14)","v":""},{"$f":"IF(Intro!$F$15=\"\",\"\",Intro!$F$15)","v":44867},{"$f":"IF(Intro!$F$5=\"\",\"\",\"Operational\")","v":"Operational"},{"$f":"IF(Objectives!F36=\"\",\"\",Objectives!F36)","v":""}]
[{"$f":"IF(Intro!$F$10=\"\",\"\",VLOOKUP(Intro!$F$10,Lists!$A$1:$B$19,2,FALSE))","v":""},{"$f":"IF(Intro!$F$11=\"\",\"\",Intro!$F$11)","v":""},{"$f":"IF(Intro!$F$12=\"\",\"\",Intro!$F$12)","v":"John Doe"},{"$f":"IF(Intro!$F$13=\"\",\"\",Intro!$F$13)","v":"Jane Doe"},{"$f":"IF(Intro!$F$14=\"\",\"\",Intro!$F$14)","v":""},{"$f":"IF(Intro!$F$15=\"\",\"\",Intro!$F$15)","v":44867},{"$f":"IF(Intro!$F$5=\"\",\"\",\"Operational\")","v":"Operational"},null,{"$f":"IF(Reputational!$D$6=\"\",\"\",Reputational!$D$6)","v":"Research misconduct, such as falsification of data or results, or non-disclosure of research dangers"},{"$f":"IF(Reputational!$E$6=\"\",\"\",Reputational!$E$6)","v":"Very low"},{"$f":"IF(Reputational!$F$6=\"\",\"\",Reputational!$F$6)","v":"Moderate"},{"$f":"IF(Reputational!$G$6=\"\",\"\",Reputational!$G$6)","v":"Research Compliance and Integrity Offices; Research Compliance Policies (Certifications and Manuals); ARCE; Internal Control Program; Whistle Blower Program; Mandatory Ethics Training"},{"$f":"IF(Reputational!$H$6=\"\",\"\",Reputational!$H$6)","v":"Weekly"},{"$f":"IF(Reputational!I$6=\"\",\"\",Reputational!I$6)","v":"Significant"},{"$f":"IF(Reputational!J$6=\"\",\"\",Reputational!J$6)","v":"Whistle blower system; Claims System; Investigations of allegations of research misconduct"},{"$f":"IF(Reputational!K$6=\"\",\"\",Reputational!K$6)","v":"Individual Pis"},{"$f":"IF(ForPrint!H123=\"\",\"\",ForPrint!H123)","v":"Potentially over-controlled"},{"$f":"IF(ForPrint!Q123=\"\",\"\",ForPrint!Q123)","v":3}]
[{"$f":"IF(Intro!$F$10=\"\",\"\",VLOOKUP(Intro!$F$10,Lists!$A$1:$B$19,2,FALSE))","v":""},{"$f":"IF(Intro!$F$11=\"\",\"\",Intro!$F$11)","v":""},{"$f":"IF(Intro!$F$12=\"\",\"\",Intro!$F$12)","v":"John Doe"},{"$f":"IF(Intro!$F$13=\"\",\"\",Intro!$F$13)","v":"Jane Doe"},{"$f":"IF(Intro!$F$14=\"\",\"\",Intro!$F$14)","v":""},{"$f":"IF(Intro!$F$15=\"\",\"\",Intro!$F$15)","v":44867},{"$f":"IF(Intro!$F$5=\"\",\"\",\"Operational\")","v":"Operational"},null,{"$f":"IF(Reputational!$D$7=\"\",\"\",Reputational!$D$7)","v":"Unethical/unapproved human/animal subject research"},{"$f":"IF(Reputational!$E$7=\"\",\"\",Reputational!$E$7)","v":"Moderate"},{"$f":"IF(Reputational!$F$7=\"\",\"\",Reputational!$F$7)","v":"Moderate"},{"$f":"IF(Reputational!$G$7=\"\",\"\",Reputational!$G$7)","v":"Whistle Blower Program; Institutional Review Boards (IRBs); Institutional Animal Care and Use Policies and Committees; Centers for Animal Alternatives; Education Certification in use of animals or human subjects"},{"$f":"IF(Reputational!$H$7=\"\",\"\",Reputational!$H$7)","v":"Weekly"},{"$f":"IF(Reputational!I$7=\"\",\"\",Reputational!I$7)","v":"Minor"},{"$f":"IF(Reputational!J$7=\"\",\"\",Reputational!J$7)","v":"Protocol review and approval process for human and animal subjects.  Claims System for misusing Human Subject or Animals"},{"$f":"IF(Reputational!K$7=\"\",\"\",Reputational!K$7)","v":"Counsel's office"},{"$f":"IF(ForPrint!H124=\"\",\"\",ForPrint!H124)","v":"Potentially poorly controlled"},{"$f":"IF(ForPrint!Q124=\"\",\"\",ForPrint!Q124)","v":27}]
[{"$f":"IF(Intro!$F$10=\"\",\"\",VLOOKUP(Intro!$F$10,Lists!$A$1:$B$19,2,FALSE))","v":""},{"$f":"IF(Intro!$F$11=\"\",\"\",Intro!$F$11)","v":""},{"$f":"IF(Intro!$F$12=\"\",\"\",Intro!$F$12)","v":"John Doe"},{"$f":"IF(Intro!$F$13=\"\",\"\",Intro!$F$13)","v":"Jane Doe"},{"$f":"IF(Intro!$F$14=\"\",\"\",Intro!$F$14)","v":""},{"$f":"IF(Intro!$F$15=\"\",\"\",Intro!$F$15)","v":44867},{"$f":"IF(Intro!$F$5=\"\",\"\",\"Operational\")","v":"Operational"},null,{"$f":"IF(Reputational!$D$8=\"\",\"\",Reputational!$D$8)","v":"Personnel issues or workplace violence"},{"$f":"IF(Reputational!$E$8=\"\",\"\",Reputational!$E$8)","v":"Very low"},{"$f":"IF(Reputational!$F$8=\"\",\"\",Reputational!$F$8)","v":"Very low"},{"$f":"IF(Reputational!$G$8=\"\",\"\",Reputational!$G$8)","v":"Police services; Threat Management Teams and Programs; Employee assistance programs; Mediation Services; Workplace Violence Prevention programs; Policies and training"},{"$f":"IF(Reputational!$H$8=\"\",\"\",Reputational!$H$8)","v":"Annually"},{"$f":"IF(Reputational!I$8=\"\",\"\",Reputational!I$8)","v":"None"},{"$f":"IF(Reputational!J$8=\"\",\"\",Reputational!J$8)","v":"Security alarm monitoring; Claims systems; Law Enforcement Systems; Clery Crime Statistics; Other Crime Statistics"},{"$f":"IF(Reputational!K$8=\"\",\"\",Reputational!K$8)","v":"HR&D,  Police"},{"$f":"IF(ForPrint!H125=\"\",\"\",ForPrint!H125)","v":"Adequately controlled"},{"$f":"IF(ForPrint!Q125=\"\",\"\",ForPrint!Q125)","v":4}]
[{"$f":"IF(Intro!$F$10=\"\",\"\",VLOOKUP(Intro!$F$10,Lists!$A$1:$B$19,2,FALSE))","v":""},{"$f":"IF(Intro!$F$11=\"\",\"\",Intro!$F$11)","v":""},{"$f":"IF(Intro!$F$12=\"\",\"\",Intro!$F$12)","v":"John Doe"},{"$f":"IF(Intro!$F$13=\"\",\"\",Intro!$F$13)","v":"Jane Doe"},{"$f":"IF(Intro!$F$14=\"\",\"\",Intro!$F$14)","v":""},{"$f":"IF(Intro!$F$15=\"\",\"\",Intro!$F$15)","v":44867},{"$f":"IF(Intro!$F$5=\"\",\"\",\"Operational\")","v":"Operational"},null,{"$f":"IF(Reputational!$D$9=\"\",\"\",Reputational!$D$9)","v":"Sports/public event disturbances"},{"$f":"IF(Reputational!$E$9=\"\",\"\",Reputational!$E$9)","v":"Moderate"},{"$f":"IF(Reputational!$F$9=\"\",\"\",Reputational!$F$9)","v":"Low"},{"$f":"IF(Reputational!$G$9=\"\",\"\",Reputational!$G$9)","v":"Safety & Security programs; Emergency Management; Safety programs such as Safe Party Initiatives, and Community Safety Programs"},{"$f":"IF(Reputational!$H$9=\"\",\"\",Reputational!$H$9)","v":"Weekly"},{"$f":"IF(Reputational!I$9=\"\",\"\",Reputational!I$9)","v":"Significant"},{"$f":"IF(Reputational!J$9=\"\",\"\",Reputational!J$9)","v":"Campus Police Departments; Claims System"},{"$f":"IF(Reputational!K$9=\"\",\"\",Reputational!K$9)","v":" Police"},{"$f":"IF(ForPrint!H126=\"\",\"\",ForPrint!H126)","v":"Potentially over-controlled"},{"$f":"IF(ForPrint!Q126=\"\",\"\",ForPrint!Q126)","v":6}]
[{"$f":"IF(Intro!$F$10=\"\",\"\",VLOOKUP(Intro!$F$10,Lists!$A$1:$B$19,2,FALSE))","v":""},{"$f":"IF(Intro!$F$11=\"\",\"\",Intro!$F$11)","v":""},{"$f":"IF(Intro!$F$12=\"\",\"\",Intro!$F$12)","v":"John Doe"},{"$f":"IF(Intro!$F$13=\"\",\"\",Intro!$F$13)","v":"Jane Doe"},{"$f":"IF(Intro!$F$14=\"\",\"\",Intro!$F$14)","v":""},{"$f":"IF(Intro!$F$15=\"\",\"\",Intro!$F$15)","v":44867},{"$f":"IF(Intro!$F$5=\"\",\"\",\"Operational\")","v":"Operational"},null,{"$f":"IF(Reputational!$D$10=\"\",\"\",Reputational!$D$10)","v":"Student mental health - changing emotional climate"},{"$f":"IF(Reputational!$E$10=\"\",\"\",Reputational!$E$10)","v":"Very low"},{"$f":"IF(Reputational!$F$10=\"\",\"\",Reputational!$F$10)","v":"Unsure/Don't know"},{"$f":"IF(Reputational!$G$10=\"\",\"\",Reputational!$G$10)","v":"Student Health Clinics; Threat Management Team; Student Affairs"},{"$f":"IF(Reputational!$H$10=\"\",\"\",Reputational!$H$10)","v":"Multiple times daily"},{"$f":"IF(Reputational!I$10=\"\",\"\",Reputational!I$10)","v":"Moderate"},{"$f":"IF(Reputational!J$10=\"\",\"\",Reputational!J$10)","v":"Reported at a department level"},{"$f":"IF(Reputational!K$10=\"\",\"\",Reputational!K$10)","v":"Medical services, Dean of Students, Student Affairs"},{"$f":"IF(ForPrint!H127=\"\",\"\",ForPrint!H127)","v":"Potentially over-controlled"},{"$f":"IF(ForPrint!Q127=\"\",\"\",ForPrint!Q127)","v":5}]
[{"$f":"IF(Intro!$F$10=\"\",\"\",VLOOKUP(Intro!$F$10,Lists!$A$1:$B$19,2,FALSE))","v":""},{"$f":"IF(Intro!$F$11=\"\",\"\",Intro!$F$11)","v":""},{"$f":"IF(Intro!$F$12=\"\",\"\",Intro!$F$12)","v":"John Doe"},{"$f":"IF(Intro!$F$13=\"\",\"\",Intro!$F$13)","v":"Jane Doe"},{"$f":"IF(Intro!$F$14=\"\",\"\",Intro!$F$14)","v":""},{"$f":"IF(Intro!$F$15=\"\",\"\",Intro!$F$15)","v":44867},{"$f":"IF(Intro!$F$5=\"\",\"\",\"Operational\")","v":"Operational"},null,{"$f":"IF(Reputational!$D$11=\"\",\"\",Reputational!$D$11)","v":"Inappropriate athletic recruiting"},{"$f":"IF(Reputational!$E$11=\"\",\"\",Reputational!$E$11)","v":"Very low"},{"$f":"IF(Reputational!$F$11=\"\",\"\",Reputational!$F$11)","v":"Low"},{"$f":"IF(Reputational!$G$11=\"\",\"\",Reputational!$G$11)","v":"Conflict of Interest Policies; NCAA Regulations; Internal Audit Review"},{"$f":"IF(Reputational!$H$11=\"\",\"\",Reputational!$H$11)","v":"Ad-hoc"},{"$f":"IF(Reputational!I$11=\"\",\"\",Reputational!I$11)","v":"Nearly complete"},{"$f":"IF(Reputational!J$11=\"\",\"\",Reputational!J$11)","v":"Claims System,  Action"},{"$f":"IF(Reputational!K$11=\"\",\"\",Reputational!K$11)","v":"Sports and Recreation, HR&D"},{"$f":"IF(ForPrint!H128=\"\",\"\",ForPrint!H128)","v":"Potentially over-controlled"},{"$f":"IF(ForPrint!Q128=\"\",\"\",ForPrint!Q128)","v":0.40000000000000036}]
[{"$f":"IF(Intro!$F$10=\"\",\"\",VLOOKUP(Intro!$F$10,Lists!$A$1:$B$19,2,FALSE))","v":""},{"$f":"IF(Intro!$F$11=\"\",\"\",Intro!$F$11)","v":""},{"$f":"IF(Intro!$F$12=\"\",\"\",Intro!$F$12)","v":"John Doe"},{"$f":"IF(Intro!$F$13=\"\",\"\",Intro!$F$13)","v":"Jane Doe"},{"$f":"IF(Intro!$F$14=\"\",\"\",Intro!$F$14)","v":""},{"$f":"IF(Intro!$F$15=\"\",\"\",Intro!$F$15)","v":44867},{"$f":"IF(Intro!$F$5=\"\",\"\",\"Operational\")","v":"Operational"},null,{"$f":"IF(Reputational!$D$12=\"\",\"\",Reputational!$D$12)","v":"Protest Response by University"},{"$f":"IF(Reputational!$E$12=\"\",\"\",Reputational!$E$12)","v":"Very High"},{"$f":"IF(Reputational!$F$12=\"\",\"\",Reputational!$F$12)","v":"Moderate"},{"$f":"IF(Reputational!$G$12=\"\",\"\",Reputational!$G$12)","v":" Police Department Policies;  Police Department personnel are trained and equipped for civil unrest. Work collaboratively with other  departments, such as Student Affairs."},{"$f":"IF(Reputational!$H$12=\"\",\"\",Reputational!$H$12)","v":"Monthly"},{"$f":"IF(Reputational!I$12=\"\",\"\",Reputational!I$12)","v":"Significant"},{"$f":"IF(Reputational!J$12=\"\",\"\",Reputational!J$12)","v":" Police Department Security and Fire Safety Annual Report.  Police Department is a 24/7/365 operation. Direct reporting of civil unrest to  Police Department."},{"$f":"IF(Reputational!K$12=\"\",\"\",Reputational!K$12)","v":" Police, Student Affairs"},{"$f":"IF(ForPrint!H129=\"\",\"\",ForPrint!H129)","v":"Adequately controlled"},{"$f":"IF(ForPrint!Q129=\"\",\"\",ForPrint!Q129)","v":15}]
[{"$f":"IF(Intro!$F$10=\"\",\"\",VLOOKUP(Intro!$F$10,Lists!$A$1:$B$19,2,FALSE))","v":""},{"$f":"IF(Intro!$F$11=\"\",\"\",Intro!$F$11)","v":""},{"$f":"IF(Intro!$F$12=\"\",\"\",Intro!$F$12)","v":"John Doe"},{"$f":"IF(Intro!$F$13=\"\",\"\",Intro!$F$13)","v":"Jane Doe"},{"$f":"IF(Intro!$F$14=\"\",\"\",Intro!$F$14)","v":""},{"$f":"IF(Intro!$F$15=\"\",\"\",Intro!$F$15)","v":44867},{"$f":"IF(Intro!$F$5=\"\",\"\",\"Operational\")","v":"Operational"},null,{"$f":"IF(Reputational!$D$13=\"\",\"\",Reputational!$D$13)","v":"General safety and security OFF campus, i.e. International Field Research, Foreign Travel"},{"$f":"IF(Reputational!$E$13=\"\",\"\",Reputational!$E$13)","v":"High"},{"$f":"IF(Reputational!$F$13=\"\",\"\",Reputational!$F$13)","v":"High"},{"$f":"IF(Reputational!$G$13=\"\",\"\",Reputational!$G$13)","v":"Safety & Security programs; Emergency Management; Travel Insurance Program"},{"$f":"IF(Reputational!$H$13=\"\",\"\",Reputational!$H$13)","v":"Ad-hoc"},{"$f":"IF(Reputational!I$13=\"\",\"\",Reputational!I$13)","v":"Significant"},{"$f":"IF(Reputational!J$13=\"\",\"\",Reputational!J$13)","v":" Travel system"},{"$f":"IF(Reputational!K$13=\"\",\"\",Reputational!K$13)","v":"Risk Management"},{"$f":"IF(ForPrint!H130=\"\",\"\",ForPrint!H130)","v":"Adequately controlled"},{"$f":"IF(ForPrint!Q130=\"\",\"\",ForPrint!Q130)","v":16}]
[{"$f":"IF(Intro!$F$10=\"\",\"\",VLOOKUP(Intro!$F$10,Lists!$A$1:$B$19,2,FALSE))","v":""},{"$f":"IF(Intro!$F$11=\"\",\"\",Intro!$F$11)","v":""},{"$f":"IF(Intro!$F$12=\"\",\"\",Intro!$F$12)","v":"John Doe"},{"$f":"IF(Intro!$F$13=\"\",\"\",Intro!$F$13)","v":"Jane Doe"},{"$f":"IF(Intro!$F$14=\"\",\"\",Intro!$F$14)","v":""},{"$f":"IF(Intro!$F$15=\"\",\"\",Intro!$F$15)","v":44867},{"$f":"IF(Intro!$F$5=\"\",\"\",\"Operational\")","v":"Operational"},null,{"$f":"IF(Reputational!$D$14=\"\",\"\",Reputational!$D$14)","v":"General safety and security, on campus"},{"$f":"IF(Reputational!$E$14=\"\",\"\",Reputational!$E$14)","v":"High"},{"$f":"IF(Reputational!$F$14=\"\",\"\",Reputational!$F$14)","v":"High"},{"$f":"IF(Reputational!$G$14=\"\",\"\",Reputational!$G$14)","v":"Safety & Security programs; Emergency Management; Make Safety Happen Programs; Background checks; Safety programs such as Safe Party Initiatives, and Community Safety Programs"},{"$f":"IF(Reputational!$H$14=\"\",\"\",Reputational!$H$14)","v":"Ad-hoc"},{"$f":"IF(Reputational!I$14=\"\",\"\",Reputational!I$14)","v":"Significant"},{"$f":"IF(Reputational!J$14=\"\",\"\",Reputational!J$14)","v":"Business Intelligence System; looking to deploy People Locator System wide; Claims and Incident Reporting System"},{"$f":"IF(Reputational!K$14=\"\",\"\",Reputational!K$14)","v":" Police, Risk Management"},{"$f":"IF(ForPrint!H131=\"\",\"\",ForPrint!H131)","v":"Adequately controlled"},{"$f":"IF(ForPrint!Q131=\"\",\"\",ForPrint!Q131)","v":16}]
[{"$f":"IF(Intro!$F$10=\"\",\"\",VLOOKUP(Intro!$F$10,Lists!$A$1:$B$19,2,FALSE))","v":""},{"$f":"IF(Intro!$F$11=\"\",\"\",Intro!$F$11)","v":""},{"$f":"IF(Intro!$F$12=\"\",\"\",Intro!$F$12)","v":"John Doe"},{"$f":"IF(Intro!$F$13=\"\",\"\",Intro!$F$13)","v":"Jane Doe"},{"$f":"IF(Intro!$F$14=\"\",\"\",Intro!$F$14)","v":""},{"$f":"IF(Intro!$F$15=\"\",\"\",Intro!$F$15)","v":44867},{"$f":"IF(Intro!$F$5=\"\",\"\",\"Operational\")","v":"Operational"},null,{"$f":"IF(Reputational!$D$15=\"\",\"\",Reputational!$D$15)","v":"Minors on Campus and Off Campus"},{"$f":"IF(Reputational!$E$15=\"\",\"\",Reputational!$E$15)","v":"High"},{"$f":"IF(Reputational!$F$15=\"\",\"\",Reputational!$F$15)","v":"Moderate"},{"$f":"IF(Reputational!$G$15=\"\",\"\",Reputational!$G$15)","v":"For summer camps and similar events maintain due diligence, pre-departure orientation, appropriate Risk Management procedure (insurance, waiver, etc.) and background check chaperones."},{"$f":"IF(Reputational!$H$15=\"\",\"\",Reputational!$H$15)","v":"Annually"},{"$f":"IF(Reputational!I$15=\"\",\"\",Reputational!I$15)","v":"Significant"},{"$f":"IF(Reputational!J$15=\"\",\"\",Reputational!J$15)","v":"Records maintained by  Camps and Conferences.  Students may not depart until they participate in the orientation, purchase the required insurance, and their parents/guardians signed the Release of Liability Form."},{"$f":"IF(Reputational!K$15=\"\",\"\",Reputational!K$15)","v":" Police, Risk Management, Continuing Education"},{"$f":"IF(ForPrint!H132=\"\",\"\",ForPrint!H132)","v":"Adequately controlled"},{"$f":"IF(ForPrint!Q132=\"\",\"\",ForPrint!Q132)","v":12}]
[{"$f":"IF(Intro!$F$10=\"\",\"\",VLOOKUP(Intro!$F$10,Lists!$A$1:$B$19,2,FALSE))","v":""},{"$f":"IF(Intro!$F$11=\"\",\"\",Intro!$F$11)","v":""},{"$f":"IF(Intro!$F$12=\"\",\"\",Intro!$F$12)","v":"John Doe"},{"$f":"IF(Intro!$F$13=\"\",\"\",Intro!$F$13)","v":"Jane Doe"},{"$f":"IF(Intro!$F$14=\"\",\"\",Intro!$F$14)","v":""},{"$f":"IF(Intro!$F$15=\"\",\"\",Intro!$F$15)","v":44867},{"$f":"IF(Intro!$F$5=\"\",\"\",\"Operational\")","v":"Operational"},null,{"$f":"IF(Reputational!$D$16=\"\",\"\",Reputational!$D$16)","v":""},{"$f":"IF(Reputational!$E$16=\"\",\"\",Reputational!$E$16)","v":""},{"$f":"IF(Reputational!$F$16=\"\",\"\",Reputational!$F$16)","v":""},{"$f":"IF(Reputational!$G$16=\"\",\"\",Reputational!$G$16)","v":""},{"$f":"IF(Reputational!$H$16=\"\",\"\",Reputational!$H$16)","v":""},{"$f":"IF(Reputational!I$16=\"\",\"\",Reputational!I$16)","v":""},{"$f":"IF(Reputational!J$16=\"\",\"\",Reputational!J$16)","v":""},{"$f":"IF(Reputational!K$16=\"\",\"\",Reputational!K$16)","v":""},{"$f":"IF(ForPrint!H133=\"\",\"\",ForPrint!H133)","v":""},{"$f":"IF(ForPrint!Q133=\"\",\"\",ForPrint!Q133)","v":""}]
[{"$f":"IF(Intro!$F$10=\"\",\"\",VLOOKUP(Intro!$F$10,Lists!$A$1:$B$19,2,FALSE))","v":""},{"$f":"IF(Intro!$F$11=\"\",\"\",Intro!$F$11)","v":""},{"$f":"IF(Intro!$F$12=\"\",\"\",Intro!$F$12)","v":"John Doe"},{"$f":"IF(Intro!$F$13=\"\",\"\",Intro!$F$13)","v":"Jane Doe"},{"$f":"IF(Intro!$F$14=\"\",\"\",Intro!$F$14)","v":""},{"$f":"IF(Intro!$F$15=\"\",\"\",Intro!$F$15)","v":44867},{"$f":"IF(Intro!$F$5=\"\",\"\",\"Operational\")","v":"Operational"},null,{"$f":"IF(Reputational!$D$17=\"\",\"\",Reputational!$D$17)","v":""},{"$f":"IF(Reputational!$E$17=\"\",\"\",Reputational!$E$17)","v":""},{"$f":"IF(Reputational!$F$17=\"\",\"\",Reputational!$F$17)","v":""},{"$f":"IF(Reputational!$G$17=\"\",\"\",Reputational!$G$17)","v":""},{"$f":"IF(Reputational!$H$17=\"\",\"\",Reputational!$H$17)","v":""},{"$f":"IF(Reputational!I$17=\"\",\"\",Reputational!I$17)","v":""},{"$f":"IF(Reputational!J$17=\"\",\"\",Reputational!J$17)","v":""},{"$f":"IF(Reputational!K$17=\"\",\"\",Reputational!K$17)","v":""},{"$f":"IF(ForPrint!H134=\"\",\"\",ForPrint!H134)","v":""},{"$f":"IF(ForPrint!Q134=\"\",\"\",ForPrint!Q134)","v":""}]
[{"$f":"IF(Intro!$F$10=\"\",\"\",VLOOKUP(Intro!$F$10,Lists!$A$1:$B$19,2,FALSE))","v":""},{"$f":"IF(Intro!$F$11=\"\",\"\",Intro!$F$11)","v":""},{"$f":"IF(Intro!$F$12=\"\",\"\",Intro!$F$12)","v":"John Doe"},{"$f":"IF(Intro!$F$13=\"\",\"\",Intro!$F$13)","v":"Jane Doe"},{"$f":"IF(Intro!$F$14=\"\",\"\",Intro!$F$14)","v":""},{"$f":"IF(Intro!$F$15=\"\",\"\",Intro!$F$15)","v":44867},{"$f":"IF(Intro!$F$5=\"\",\"\",\"Operational\")","v":"Operational"},null,{"$f":"IF(Reputational!$D$18=\"\",\"\",Reputational!$D$18)","v":""},{"$f":"IF(Reputational!$E$18=\"\",\"\",Reputational!$E$18)","v":""},{"$f":"IF(Reputational!$F$18=\"\",\"\",Reputational!$F$18)","v":""},{"$f":"IF(Reputational!$G$18=\"\",\"\",Reputational!$G$18)","v":""},{"$f":"IF(Reputational!$H$18=\"\",\"\",Reputational!$H$18)","v":""},{"$f":"IF(Reputational!I$18=\"\",\"\",Reputational!I$18)","v":""},{"$f":"IF(Reputational!J$18=\"\",\"\",Reputational!J$18)","v":""},{"$f":"IF(Reputational!K$18=\"\",\"\",Reputational!K$18)","v":""},{"$f":"IF(ForPrint!H135=\"\",\"\",ForPrint!H135)","v":""},{"$f":"IF(ForPrint!Q135=\"\",\"\",ForPrint!Q135)","v":""}]
[{"$f":"IF(Intro!$F$10=\"\",\"\",VLOOKUP(Intro!$F$10,Lists!$A$1:$B$19,2,FALSE))","v":""},{"$f":"IF(Intro!$F$11=\"\",\"\",Intro!$F$11)","v":""},{"$f":"IF(Intro!$F$12=\"\",\"\",Intro!$F$12)","v":"John Doe"},{"$f":"IF(Intro!$F$13=\"\",\"\",Intro!$F$13)","v":"Jane Doe"},{"$f":"IF(Intro!$F$14=\"\",\"\",Intro!$F$14)","v":""},{"$f":"IF(Intro!$F$15=\"\",\"\",Intro!$F$15)","v":44867},{"$f":"IF(Intro!$F$5=\"\",\"\",\"Operational\")","v":"Operational"},null,{"$f":"IF(Reputational!$D$19=\"\",\"\",Reputational!$D$19)","v":""},{"$f":"IF(Reputational!$E$19=\"\",\"\",Reputational!$E$19)","v":""},{"$f":"IF(Reputational!$F$19=\"\",\"\",Reputational!$F$19)","v":""},{"$f":"IF(Reputational!$G$19=\"\",\"\",Reputational!$G$19)","v":""},{"$f":"IF(Reputational!$H$19=\"\",\"\",Reputational!$H$19)","v":""},{"$f":"IF(Reputational!I$19=\"\",\"\",Reputational!I$19)","v":""},{"$f":"IF(Reputational!J$19=\"\",\"\",Reputational!J$19)","v":""},{"$f":"IF(Reputational!K$19=\"\",\"\",Reputational!K$19)","v":""},{"$f":"IF(ForPrint!H136=\"\",\"\",ForPrint!H136)","v":""},{"$f":"IF(ForPrint!Q136=\"\",\"\",ForPrint!Q136)","v":""}]
[{"$f":"IF(Intro!$F$10=\"\",\"\",VLOOKUP(Intro!$F$10,Lists!$A$1:$B$19,2,FALSE))","v":""},{"$f":"IF(Intro!$F$11=\"\",\"\",Intro!$F$11)","v":""},{"$f":"IF(Intro!$F$12=\"\",\"\",Intro!$F$12)","v":"John Doe"},{"$f":"IF(Intro!$F$13=\"\",\"\",Intro!$F$13)","v":"Jane Doe"},{"$f":"IF(Intro!$F$14=\"\",\"\",Intro!$F$14)","v":""},{"$f":"IF(Intro!$F$15=\"\",\"\",Intro!$F$15)","v":44867},{"$f":"IF(Intro!$F$5=\"\",\"\",\"Operational\")","v":"Operational"},null,{"$f":"IF(Reputational!$D$20=\"\",\"\",Reputational!$D$20)","v":""},{"$f":"IF(Reputational!$E$20=\"\",\"\",Reputational!$E$20)","v":""},{"$f":"IF(Reputational!$F$20=\"\",\"\",Reputational!$F$20)","v":""},{"$f":"IF(Reputational!$G$20=\"\",\"\",Reputational!$G$20)","v":""},{"$f":"IF(Reputational!$H$20=\"\",\"\",Reputational!$H$20)","v":""},{"$f":"IF(Reputational!I$20=\"\",\"\",Reputational!I$20)","v":""},{"$f":"IF(Reputational!J$20=\"\",\"\",Reputational!J$20)","v":""},{"$f":"IF(Reputational!K$20=\"\",\"\",Reputational!K$20)","v":""},{"$f":"IF(ForPrint!H137=\"\",\"\",ForPrint!H137)","v":""},{"$f":"IF(ForPrint!Q137=\"\",\"\",ForPrint!Q137)","v":""}]
[{"$f":"IF(Intro!$F$10=\"\",\"\",VLOOKUP(Intro!$F$10,Lists!$A$1:$B$19,2,FALSE))","v":""},{"$f":"IF(Intro!$F$11=\"\",\"\",Intro!$F$11)","v":""},{"$f":"IF(Intro!$F$12=\"\",\"\",Intro!$F$12)","v":"John Doe"},{"$f":"IF(Intro!$F$13=\"\",\"\",Intro!$F$13)","v":"Jane Doe"},{"$f":"IF(Intro!$F$14=\"\",\"\",Intro!$F$14)","v":""},{"$f":"IF(Intro!$F$15=\"\",\"\",Intro!$F$15)","v":44867},{"$f":"IF(Intro!$F$5=\"\",\"\",\"Reporting\")","v":"Reporting"},{"$f":"IF(Objectives!F39=\"\",\"\",Objectives!F39)","v":"Complete and accurate social responsibility reporting to reputational stakeholders."}]
[{"$f":"IF(Intro!$F$10=\"\",\"\",VLOOKUP(Intro!$F$10,Lists!$A$1:$B$19,2,FALSE))","v":""},{"$f":"IF(Intro!$F$11=\"\",\"\",Intro!$F$11)","v":""},{"$f":"IF(Intro!$F$12=\"\",\"\",Intro!$F$12)","v":"John Doe"},{"$f":"IF(Intro!$F$13=\"\",\"\",Intro!$F$13)","v":"Jane Doe"},{"$f":"IF(Intro!$F$14=\"\",\"\",Intro!$F$14)","v":""},{"$f":"IF(Intro!$F$15=\"\",\"\",Intro!$F$15)","v":44867},{"$f":"IF(Intro!$F$5=\"\",\"\",\"Reporting\")","v":"Reporting"},{"$f":"IF(Objectives!F40=\"\",\"\",Objectives!F40)","v":"Complete and accurate environmental reporting."}]
[{"$f":"IF(Intro!$F$10=\"\",\"\",VLOOKUP(Intro!$F$10,Lists!$A$1:$B$19,2,FALSE))","v":""},{"$f":"IF(Intro!$F$11=\"\",\"\",Intro!$F$11)","v":""},{"$f":"IF(Intro!$F$12=\"\",\"\",Intro!$F$12)","v":"John Doe"},{"$f":"IF(Intro!$F$13=\"\",\"\",Intro!$F$13)","v":"Jane Doe"},{"$f":"IF(Intro!$F$14=\"\",\"\",Intro!$F$14)","v":""},{"$f":"IF(Intro!$F$15=\"\",\"\",Intro!$F$15)","v":44867},{"$f":"IF(Intro!$F$5=\"\",\"\",\"Reporting\")","v":"Reporting"},{"$f":"IF(Objectives!F41=\"\",\"\",Objectives!F41)","v":"Complete and accurate sustainable development reporting to environmental and reputational stakeholders."}]
[{"$f":"IF(Intro!$F$10=\"\",\"\",VLOOKUP(Intro!$F$10,Lists!$A$1:$B$19,2,FALSE))","v":""},{"$f":"IF(Intro!$F$11=\"\",\"\",Intro!$F$11)","v":""},{"$f":"IF(Intro!$F$12=\"\",\"\",Intro!$F$12)","v":"John Doe"},{"$f":"IF(Intro!$F$13=\"\",\"\",Intro!$F$13)","v":"Jane Doe"},{"$f":"IF(Intro!$F$14=\"\",\"\",Intro!$F$14)","v":""},{"$f":"IF(Intro!$F$15=\"\",\"\",Intro!$F$15)","v":44867},{"$f":"IF(Intro!$F$5=\"\",\"\",\"Reporting\")","v":"Reporting"},{"$f":"IF(Objectives!F42=\"\",\"\",Objectives!F42)","v":"Timely health, safety, and environment reporting to OSHA and internal stakeholders."}]
[{"$f":"IF(Intro!$F$10=\"\",\"\",VLOOKUP(Intro!$F$10,Lists!$A$1:$B$19,2,FALSE))","v":""},{"$f":"IF(Intro!$F$11=\"\",\"\",Intro!$F$11)","v":""},{"$f":"IF(Intro!$F$12=\"\",\"\",Intro!$F$12)","v":"John Doe"},{"$f":"IF(Intro!$F$13=\"\",\"\",Intro!$F$13)","v":"Jane Doe"},{"$f":"IF(Intro!$F$14=\"\",\"\",Intro!$F$14)","v":""},{"$f":"IF(Intro!$F$15=\"\",\"\",Intro!$F$15)","v":44867},{"$f":"IF(Intro!$F$5=\"\",\"\",\"Reporting\")","v":"Reporting"},{"$f":"IF(Objectives!F43=\"\",\"\",Objectives!F43)","v":""}]
[{"$f":"IF(Intro!$F$10=\"\",\"\",VLOOKUP(Intro!$F$10,Lists!$A$1:$B$19,2,FALSE))","v":""},{"$f":"IF(Intro!$F$11=\"\",\"\",Intro!$F$11)","v":""},{"$f":"IF(Intro!$F$12=\"\",\"\",Intro!$F$12)","v":"John Doe"},{"$f":"IF(Intro!$F$13=\"\",\"\",Intro!$F$13)","v":"Jane Doe"},{"$f":"IF(Intro!$F$14=\"\",\"\",Intro!$F$14)","v":""},{"$f":"IF(Intro!$F$15=\"\",\"\",Intro!$F$15)","v":44867},{"$f":"IF(Intro!$F$5=\"\",\"\",\"Reporting\")","v":"Reporting"},null,{"$f":"IF(Reporting!$D$6=\"\",\"\",Reporting!$D$6)","v":"Failure to maintain equipment inventories"},{"$f":"IF(Reporting!$E$6=\"\",\"\",Reporting!$E$6)","v":"Unsure/Don't know"},{"$f":"IF(Reporting!$F$6=\"\",\"\",Reporting!$F$6)","v":"Very low"},{"$f":"IF(Reporting!$G$6=\"\",\"\",Reporting!$G$6)","v":"Equipment Management Policies; Internal Audit Review "},{"$f":"IF(Reporting!$H$6=\"\",\"\",Reporting!$H$6)","v":"Weekly"},{"$f":"IF(Reporting!I$6=\"\",\"\",Reporting!I$6)","v":"Nearly complete"},{"$f":"IF(Reporting!J$6=\"\",\"\",Reporting!J$6)","v":"Maintenance Insurance Program; looking to deploy the included equipment inventory database system-wide; Periodic physical inventories and certifications of equipment"},{"$f":"IF(Reporting!K$6=\"\",\"\",Reporting!K$6)","v":"Individual Pis"},{"$f":"IF(ForPrint!H150=\"\",\"\",ForPrint!H150)","v":"Potentially over-controlled"},{"$f":"IF(ForPrint!Q150=\"\",\"\",ForPrint!Q150)","v":0.50000000000000044}]
[{"$f":"IF(Intro!$F$10=\"\",\"\",VLOOKUP(Intro!$F$10,Lists!$A$1:$B$19,2,FALSE))","v":""},{"$f":"IF(Intro!$F$11=\"\",\"\",Intro!$F$11)","v":""},{"$f":"IF(Intro!$F$12=\"\",\"\",Intro!$F$12)","v":"John Doe"},{"$f":"IF(Intro!$F$13=\"\",\"\",Intro!$F$13)","v":"Jane Doe"},{"$f":"IF(Intro!$F$14=\"\",\"\",Intro!$F$14)","v":""},{"$f":"IF(Intro!$F$15=\"\",\"\",Intro!$F$15)","v":44867},{"$f":"IF(Intro!$F$5=\"\",\"\",\"Reporting\")","v":"Reporting"},null,{"$f":"IF(Reporting!$D$7=\"\",\"\",Reporting!$D$7)","v":"Sub-recipients not managed appropriately"},{"$f":"IF(Reporting!$E$7=\"\",\"\",Reporting!$E$7)","v":"Unsure/Don't know"},{"$f":"IF(Reporting!$F$7=\"\",\"\",Reporting!$F$7)","v":"Very high"},{"$f":"IF(Reporting!$G$7=\"\",\"\",Reporting!$G$7)","v":" Operating Guidance (Contracts and Grants Manual on Subrecipient Monitoring); Training and Best Practices documents; Internal Audit Review;"},{"$f":"IF(Reporting!$H$7=\"\",\"\",Reporting!$H$7)","v":"Ad-hoc"},{"$f":"IF(Reporting!I$7=\"\",\"\",Reporting!I$7)","v":"Nearly complete"},{"$f":"IF(Reporting!J$7=\"\",\"\",Reporting!J$7)","v":"Reported at department level; OMB Circular A-133 Audit performed annually by external auditors"},{"$f":"IF(Reporting!K$7=\"\",\"\",Reporting!K$7)","v":"Administration"},{"$f":"IF(ForPrint!H151=\"\",\"\",ForPrint!H151)","v":"Adequately controlled"},{"$f":"IF(ForPrint!Q151=\"\",\"\",ForPrint!Q151)","v":2.5000000000000022}]
[{"$f":"IF(Intro!$F$10=\"\",\"\",VLOOKUP(Intro!$F$10,Lists!$A$1:$B$19,2,FALSE))","v":""},{"$f":"IF(Intro!$F$11=\"\",\"\",Intro!$F$11)","v":""},{"$f":"IF(Intro!$F$12=\"\",\"\",Intro!$F$12)","v":"John Doe"},{"$f":"IF(Intro!$F$13=\"\",\"\",Intro!$F$13)","v":"Jane Doe"},{"$f":"IF(Intro!$F$14=\"\",\"\",Intro!$F$14)","v":""},{"$f":"IF(Intro!$F$15=\"\",\"\",Intro!$F$15)","v":44867},{"$f":"IF(Intro!$F$5=\"\",\"\",\"Reporting\")","v":"Reporting"},null,{"$f":"IF(Reporting!$D$8=\"\",\"\",Reporting!$D$8)","v":"Obsolescence of systems/technology"},{"$f":"IF(Reporting!$E$8=\"\",\"\",Reporting!$E$8)","v":"Moderate"},{"$f":"IF(Reporting!$F$8=\"\",\"\",Reporting!$F$8)","v":"High"},{"$f":"IF(Reporting!$G$8=\"\",\"\",Reporting!$G$8)","v":"Institutional Data Management and Governance Initiative; Local computer replacement cycles; Systems life cycle management. Aged electrical infrastructure with many single failure points exist.  Battery backup has insufficient time for \"graceful shutdown\" should single generator fail to function.  system lacks rental generator connection point."},{"$f":"IF(Reporting!$H$8=\"\",\"\",Reporting!$H$8)","v":"Weekly"},{"$f":"IF(Reporting!I$8=\"\",\"\",Reporting!I$8)","v":"None"},{"$f":"IF(Reporting!J$8=\"\",\"\",Reporting!J$8)","v":"Reported at department level; Help Desk reports; system performance monitoring"},{"$f":"IF(Reporting!K$8=\"\",\"\",Reporting!K$8)","v":"iCIT"},{"$f":"IF(ForPrint!H152=\"\",\"\",ForPrint!H152)","v":"Poorly controlled"},{"$f":"IF(ForPrint!Q152=\"\",\"\",ForPrint!Q152)","v":48}]
[{"$f":"IF(Intro!$F$10=\"\",\"\",VLOOKUP(Intro!$F$10,Lists!$A$1:$B$19,2,FALSE))","v":""},{"$f":"IF(Intro!$F$11=\"\",\"\",Intro!$F$11)","v":""},{"$f":"IF(Intro!$F$12=\"\",\"\",Intro!$F$12)","v":"John Doe"},{"$f":"IF(Intro!$F$13=\"\",\"\",Intro!$F$13)","v":"Jane Doe"},{"$f":"IF(Intro!$F$14=\"\",\"\",Intro!$F$14)","v":""},{"$f":"IF(Intro!$F$15=\"\",\"\",Intro!$F$15)","v":44867},{"$f":"IF(Intro!$F$5=\"\",\"\",\"Reporting\")","v":"Reporting"},null,{"$f":"IF(Reporting!$D$9=\"\",\"\",Reporting!$D$9)","v":"Intellectual property infringement"},{"$f":"IF(Reporting!$E$9=\"\",\"\",Reporting!$E$9)","v":"Unsure/Don't know"},{"$f":"IF(Reporting!$F$9=\"\",\"\",Reporting!$F$9)","v":"Very low"},{"$f":"IF(Reporting!$G$9=\"\",\"\",Reporting!$G$9)","v":"Industry collaboration guides; Web-based resources; Administrative Responsibilities Handbook -Research Affairs: Intellectual Property"},{"$f":"IF(Reporting!$H$9=\"\",\"\",Reporting!$H$9)","v":"Annually"},{"$f":"IF(Reporting!I$9=\"\",\"\",Reporting!I$9)","v":"Minor"},{"$f":"IF(Reporting!J$9=\"\",\"\",Reporting!J$9)","v":"Claims System; Web-based resources "},{"$f":"IF(Reporting!K$9=\"\",\"\",Reporting!K$9)","v":"Counsel's office"},{"$f":"IF(ForPrint!H153=\"\",\"\",ForPrint!H153)","v":"Adequately controlled"},{"$f":"IF(ForPrint!Q153=\"\",\"\",ForPrint!Q153)","v":7.5}]
[{"$f":"IF(Intro!$F$10=\"\",\"\",VLOOKUP(Intro!$F$10,Lists!$A$1:$B$19,2,FALSE))","v":""},{"$f":"IF(Intro!$F$11=\"\",\"\",Intro!$F$11)","v":""},{"$f":"IF(Intro!$F$12=\"\",\"\",Intro!$F$12)","v":"John Doe"},{"$f":"IF(Intro!$F$13=\"\",\"\",Intro!$F$13)","v":"Jane Doe"},{"$f":"IF(Intro!$F$14=\"\",\"\",Intro!$F$14)","v":""},{"$f":"IF(Intro!$F$15=\"\",\"\",Intro!$F$15)","v":44867},{"$f":"IF(Intro!$F$5=\"\",\"\",\"Reporting\")","v":"Reporting"},null,{"$f":"IF(Reporting!$D$10=\"\",\"\",Reporting!$D$10)","v":"Unauthorized modification of data"},{"$f":"IF(Reporting!$E$10=\"\",\"\",Reporting!$E$10)","v":"Moderate"},{"$f":"IF(Reporting!$F$10=\"\",\"\",Reporting!$F$10)","v":"Very low"},{"$f":"IF(Reporting!$G$10=\"\",\"\",Reporting!$G$10)","v":"Management Guide for Information Security Guidelines and iCIT Policies; Electronic Information Security policy; Cyber-Safety Programs and work groups; Internal Control Program;  Network Security Programs including firewall services; User training and roles management; Web application security (e.g., standard coding practices)"},{"$f":"IF(Reporting!$H$10=\"\",\"\",Reporting!$H$10)","v":"Daily"},{"$f":"IF(Reporting!I$10=\"\",\"\",Reporting!I$10)","v":"None"},{"$f":"IF(Reporting!J$10=\"\",\"\",Reporting!J$10)","v":"Reported at local level; Annual Security Reports; Monitoring of activities by application super users, database administrators and systems administrators; General and Payroll Ledger Reviews; Systems logs monitoring; Intrusion Detection Systems"},{"$f":"IF(Reporting!K$10=\"\",\"\",Reporting!K$10)","v":"iCIT"},{"$f":"IF(ForPrint!H154=\"\",\"\",ForPrint!H154)","v":"Potentially poorly controlled"},{"$f":"IF(ForPrint!Q154=\"\",\"\",ForPrint!Q154)","v":12}]
[{"$f":"IF(Intro!$F$10=\"\",\"\",VLOOKUP(Intro!$F$10,Lists!$A$1:$B$19,2,FALSE))","v":""},{"$f":"IF(Intro!$F$11=\"\",\"\",Intro!$F$11)","v":""},{"$f":"IF(Intro!$F$12=\"\",\"\",Intro!$F$12)","v":"John Doe"},{"$f":"IF(Intro!$F$13=\"\",\"\",Intro!$F$13)","v":"Jane Doe"},{"$f":"IF(Intro!$F$14=\"\",\"\",Intro!$F$14)","v":""},{"$f":"IF(Intro!$F$15=\"\",\"\",Intro!$F$15)","v":44867},{"$f":"IF(Intro!$F$5=\"\",\"\",\"Reporting\")","v":"Reporting"},null,{"$f":"IF(Reporting!$D$11=\"\",\"\",Reporting!$D$11)","v":"Decentralization of systems leading to data inconsistencies and fragmentation"},{"$f":"IF(Reporting!$E$11=\"\",\"\",Reporting!$E$11)","v":"Moderate"},{"$f":"IF(Reporting!$F$11=\"\",\"\",Reporting!$F$11)","v":"Very low"},{"$f":"IF(Reporting!$G$11=\"\",\"\",Reporting!$G$11)","v":"iCIT implementation of the Shared Drive system"},{"$f":"IF(Reporting!$H$11=\"\",\"\",Reporting!$H$11)","v":"Multiple times daily"},{"$f":"IF(Reporting!I$11=\"\",\"\",Reporting!I$11)","v":"None"},{"$f":"IF(Reporting!J$11=\"\",\"\",Reporting!J$11)","v":"Reported at local level; Programming quality assurance and testing; Approvals by programming managers and users before moving new systems or changes to production"},{"$f":"IF(Reporting!K$11=\"\",\"\",Reporting!K$11)","v":"iCIT"},{"$f":"IF(ForPrint!H155=\"\",\"\",ForPrint!H155)","v":"Potentially poorly controlled"},{"$f":"IF(ForPrint!Q155=\"\",\"\",ForPrint!Q155)","v":12}]
[{"$f":"IF(Intro!$F$10=\"\",\"\",VLOOKUP(Intro!$F$10,Lists!$A$1:$B$19,2,FALSE))","v":""},{"$f":"IF(Intro!$F$11=\"\",\"\",Intro!$F$11)","v":""},{"$f":"IF(Intro!$F$12=\"\",\"\",Intro!$F$12)","v":"John Doe"},{"$f":"IF(Intro!$F$13=\"\",\"\",Intro!$F$13)","v":"Jane Doe"},{"$f":"IF(Intro!$F$14=\"\",\"\",Intro!$F$14)","v":""},{"$f":"IF(Intro!$F$15=\"\",\"\",Intro!$F$15)","v":44867},{"$f":"IF(Intro!$F$5=\"\",\"\",\"Reporting\")","v":"Reporting"},null,{"$f":"IF(Reporting!$D$12=\"\",\"\",Reporting!$D$12)","v":"Lack of common data definitions"},{"$f":"IF(Reporting!$E$12=\"\",\"\",Reporting!$E$12)","v":"Very low"},{"$f":"IF(Reporting!$F$12=\"\",\"\",Reporting!$F$12)","v":"Very low"},{"$f":"IF(Reporting!$G$12=\"\",\"\",Reporting!$G$12)","v":"Institutional Data Management and Governance Initiative; UWSA Systems Development and Maintenance Standards; Electronic Information Security: Change Management "},{"$f":"IF(Reporting!$H$12=\"\",\"\",Reporting!$H$12)","v":"Ad-hoc"},{"$f":"IF(Reporting!I$12=\"\",\"\",Reporting!I$12)","v":"Significant"},{"$f":"IF(Reporting!J$12=\"\",\"\",Reporting!J$12)","v":"Reported at local level; Systems Development reviews and approvals; Audit Reports"},{"$f":"IF(Reporting!K$12=\"\",\"\",Reporting!K$12)","v":"iCIT"},{"$f":"IF(ForPrint!H156=\"\",\"\",ForPrint!H156)","v":"Potentially over-controlled"},{"$f":"IF(ForPrint!Q156=\"\",\"\",ForPrint!Q156)","v":1}]
[{"$f":"IF(Intro!$F$10=\"\",\"\",VLOOKUP(Intro!$F$10,Lists!$A$1:$B$19,2,FALSE))","v":""},{"$f":"IF(Intro!$F$11=\"\",\"\",Intro!$F$11)","v":""},{"$f":"IF(Intro!$F$12=\"\",\"\",Intro!$F$12)","v":"John Doe"},{"$f":"IF(Intro!$F$13=\"\",\"\",Intro!$F$13)","v":"Jane Doe"},{"$f":"IF(Intro!$F$14=\"\",\"\",Intro!$F$14)","v":""},{"$f":"IF(Intro!$F$15=\"\",\"\",Intro!$F$15)","v":44867},{"$f":"IF(Intro!$F$5=\"\",\"\",\"Reporting\")","v":"Reporting"},null,{"$f":"IF(Reporting!$D$13=\"\",\"\",Reporting!$D$13)","v":""},{"$f":"IF(Reporting!$E$13=\"\",\"\",Reporting!$E$13)","v":""},{"$f":"IF(Reporting!$F$13=\"\",\"\",Reporting!$F$13)","v":""},{"$f":"IF(Reporting!$G$13=\"\",\"\",Reporting!$G$13)","v":""},{"$f":"IF(Reporting!$H$13=\"\",\"\",Reporting!$H$13)","v":""},{"$f":"IF(Reporting!I$13=\"\",\"\",Reporting!I$13)","v":""},{"$f":"IF(Reporting!J$13=\"\",\"\",Reporting!J$13)","v":""},{"$f":"IF(Reporting!K$13=\"\",\"\",Reporting!K$13)","v":""},{"$f":"IF(ForPrint!H157=\"\",\"\",ForPrint!H157)","v":""},{"$f":"IF(ForPrint!Q157=\"\",\"\",ForPrint!Q157)","v":""}]
[{"$f":"IF(Intro!$F$10=\"\",\"\",VLOOKUP(Intro!$F$10,Lists!$A$1:$B$19,2,FALSE))","v":""},{"$f":"IF(Intro!$F$11=\"\",\"\",Intro!$F$11)","v":""},{"$f":"IF(Intro!$F$12=\"\",\"\",Intro!$F$12)","v":"John Doe"},{"$f":"IF(Intro!$F$13=\"\",\"\",Intro!$F$13)","v":"Jane Doe"},{"$f":"IF(Intro!$F$14=\"\",\"\",Intro!$F$14)","v":""},{"$f":"IF(Intro!$F$15=\"\",\"\",Intro!$F$15)","v":44867},{"$f":"IF(Intro!$F$5=\"\",\"\",\"Reporting\")","v":"Reporting"},null,{"$f":"IF(Reporting!$D$14=\"\",\"\",Reporting!$D$14)","v":""},{"$f":"IF(Reporting!$E$14=\"\",\"\",Reporting!$E$14)","v":""},{"$f":"IF(Reporting!$F$14=\"\",\"\",Reporting!$F$14)","v":""},{"$f":"IF(Reporting!$G$14=\"\",\"\",Reporting!$G$14)","v":""},{"$f":"IF(Reporting!$H$14=\"\",\"\",Reporting!$H$14)","v":""},{"$f":"IF(Reporting!I$14=\"\",\"\",Reporting!I$14)","v":""},{"$f":"IF(Reporting!J$14=\"\",\"\",Reporting!J$14)","v":""},{"$f":"IF(Reporting!K$14=\"\",\"\",Reporting!K$14)","v":""},{"$f":"IF(ForPrint!H158=\"\",\"\",ForPrint!H158)","v":""},{"$f":"IF(ForPrint!Q158=\"\",\"\",ForPrint!Q158)","v":""}]
[{"$f":"IF(Intro!$F$10=\"\",\"\",VLOOKUP(Intro!$F$10,Lists!$A$1:$B$19,2,FALSE))","v":""},{"$f":"IF(Intro!$F$11=\"\",\"\",Intro!$F$11)","v":""},{"$f":"IF(Intro!$F$12=\"\",\"\",Intro!$F$12)","v":"John Doe"},{"$f":"IF(Intro!$F$13=\"\",\"\",Intro!$F$13)","v":"Jane Doe"},{"$f":"IF(Intro!$F$14=\"\",\"\",Intro!$F$14)","v":""},{"$f":"IF(Intro!$F$15=\"\",\"\",Intro!$F$15)","v":44867},{"$f":"IF(Intro!$F$5=\"\",\"\",\"Reporting\")","v":"Reporting"},null,{"$f":"IF(Reporting!$D$15=\"\",\"\",Reporting!$D$15)","v":""},{"$f":"IF(Reporting!$E$15=\"\",\"\",Reporting!$E$15)","v":""},{"$f":"IF(Reporting!$F$15=\"\",\"\",Reporting!$F$15)","v":""},{"$f":"IF(Reporting!$G$15=\"\",\"\",Reporting!$G$15)","v":""},{"$f":"IF(Reporting!$H$15=\"\",\"\",Reporting!$H$15)","v":""},{"$f":"IF(Reporting!I$15=\"\",\"\",Reporting!I$15)","v":""},{"$f":"IF(Reporting!J$15=\"\",\"\",Reporting!J$15)","v":""},{"$f":"IF(Reporting!K$15=\"\",\"\",Reporting!K$15)","v":""},{"$f":"IF(ForPrint!H159=\"\",\"\",ForPrint!H159)","v":""},{"$f":"IF(ForPrint!Q159=\"\",\"\",ForPrint!Q159)","v":""}]
[{"$f":"IF(Intro!$F$10=\"\",\"\",VLOOKUP(Intro!$F$10,Lists!$A$1:$B$19,2,FALSE))","v":""},{"$f":"IF(Intro!$F$11=\"\",\"\",Intro!$F$11)","v":""},{"$f":"IF(Intro!$F$12=\"\",\"\",Intro!$F$12)","v":"John Doe"},{"$f":"IF(Intro!$F$13=\"\",\"\",Intro!$F$13)","v":"Jane Doe"},{"$f":"IF(Intro!$F$14=\"\",\"\",Intro!$F$14)","v":""},{"$f":"IF(Intro!$F$15=\"\",\"\",Intro!$F$15)","v":44867},{"$f":"IF(Intro!$F$5=\"\",\"\",\"Reporting\")","v":"Reporting"},null,{"$f":"IF(Reporting!$D$16=\"\",\"\",Reporting!$D$16)","v":""},{"$f":"IF(Reporting!$E$16=\"\",\"\",Reporting!$E$16)","v":""},{"$f":"IF(Reporting!$F$16=\"\",\"\",Reporting!$F$16)","v":""},{"$f":"IF(Reporting!$G$16=\"\",\"\",Reporting!$G$16)","v":""},{"$f":"IF(Reporting!$H$16=\"\",\"\",Reporting!$H$16)","v":""},{"$f":"IF(Reporting!I$16=\"\",\"\",Reporting!I$16)","v":""},{"$f":"IF(Reporting!J$16=\"\",\"\",Reporting!J$16)","v":""},{"$f":"IF(Reporting!K$16=\"\",\"\",Reporting!K$16)","v":""},{"$f":"IF(ForPrint!H160=\"\",\"\",ForPrint!H160)","v":""},{"$f":"IF(ForPrint!Q160=\"\",\"\",ForPrint!Q160)","v":""}]
[{"$f":"IF(Intro!$F$10=\"\",\"\",VLOOKUP(Intro!$F$10,Lists!$A$1:$B$19,2,FALSE))","v":""},{"$f":"IF(Intro!$F$11=\"\",\"\",Intro!$F$11)","v":""},{"$f":"IF(Intro!$F$12=\"\",\"\",Intro!$F$12)","v":"John Doe"},{"$f":"IF(Intro!$F$13=\"\",\"\",Intro!$F$13)","v":"Jane Doe"},{"$f":"IF(Intro!$F$14=\"\",\"\",Intro!$F$14)","v":""},{"$f":"IF(Intro!$F$15=\"\",\"\",Intro!$F$15)","v":44867},{"$f":"IF(Intro!$F$5=\"\",\"\",\"Reporting\")","v":"Reporting"},null,{"$f":"IF(Reporting!$D$17=\"\",\"\",Reporting!$D$17)","v":""},{"$f":"IF(Reporting!$E$17=\"\",\"\",Reporting!$E$17)","v":""},{"$f":"IF(Reporting!$F$17=\"\",\"\",Reporting!$F$17)","v":""},{"$f":"IF(Reporting!$G$17=\"\",\"\",Reporting!$G$17)","v":""},{"$f":"IF(Reporting!$H$17=\"\",\"\",Reporting!$H$17)","v":""},{"$f":"IF(Reporting!I$17=\"\",\"\",Reporting!I$17)","v":""},{"$f":"IF(Reporting!J$17=\"\",\"\",Reporting!J$17)","v":""},{"$f":"IF(Reporting!K$17=\"\",\"\",Reporting!K$17)","v":""},{"$f":"IF(ForPrint!H161=\"\",\"\",ForPrint!H161)","v":""},{"$f":"IF(ForPrint!Q161=\"\",\"\",ForPrint!Q161)","v":""}]
[{"$f":"IF(Intro!$F$10=\"\",\"\",VLOOKUP(Intro!$F$10,Lists!$A$1:$B$19,2,FALSE))","v":""},{"$f":"IF(Intro!$F$11=\"\",\"\",Intro!$F$11)","v":""},{"$f":"IF(Intro!$F$12=\"\",\"\",Intro!$F$12)","v":"John Doe"},{"$f":"IF(Intro!$F$13=\"\",\"\",Intro!$F$13)","v":"Jane Doe"},{"$f":"IF(Intro!$F$14=\"\",\"\",Intro!$F$14)","v":""},{"$f":"IF(Intro!$F$15=\"\",\"\",Intro!$F$15)","v":44867},{"$f":"IF(Intro!$F$5=\"\",\"\",\"Reporting\")","v":"Reporting"},null,{"$f":"IF(Reporting!$D$18=\"\",\"\",Reporting!$D$18)","v":""},{"$f":"IF(Reporting!$E$18=\"\",\"\",Reporting!$E$18)","v":""},{"$f":"IF(Reporting!$F$18=\"\",\"\",Reporting!$F$18)","v":""},{"$f":"IF(Reporting!$G$18=\"\",\"\",Reporting!$G$18)","v":""},{"$f":"IF(Reporting!$H$18=\"\",\"\",Reporting!$H$18)","v":""},{"$f":"IF(Reporting!I$18=\"\",\"\",Reporting!I$18)","v":""},{"$f":"IF(Reporting!J$18=\"\",\"\",Reporting!J$18)","v":""},{"$f":"IF(Reporting!K$18=\"\",\"\",Reporting!K$18)","v":""},{"$f":"IF(ForPrint!H162=\"\",\"\",ForPrint!H162)","v":""},{"$f":"IF(ForPrint!Q162=\"\",\"\",ForPrint!Q162)","v":""}]
[{"$f":"IF(Intro!$F$10=\"\",\"\",VLOOKUP(Intro!$F$10,Lists!$A$1:$B$19,2,FALSE))","v":""},{"$f":"IF(Intro!$F$11=\"\",\"\",Intro!$F$11)","v":""},{"$f":"IF(Intro!$F$12=\"\",\"\",Intro!$F$12)","v":"John Doe"},{"$f":"IF(Intro!$F$13=\"\",\"\",Intro!$F$13)","v":"Jane Doe"},{"$f":"IF(Intro!$F$14=\"\",\"\",Intro!$F$14)","v":""},{"$f":"IF(Intro!$F$15=\"\",\"\",Intro!$F$15)","v":44867},{"$f":"IF(Intro!$F$5=\"\",\"\",\"Reporting\")","v":"Reporting"},null,{"$f":"IF(Reporting!$D$19=\"\",\"\",Reporting!$D$19)","v":""},{"$f":"IF(Reporting!$E$19=\"\",\"\",Reporting!$E$19)","v":""},{"$f":"IF(Reporting!$F$19=\"\",\"\",Reporting!$F$19)","v":""},{"$f":"IF(Reporting!$G$19=\"\",\"\",Reporting!$G$19)","v":""},{"$f":"IF(Reporting!$H$19=\"\",\"\",Reporting!$H$19)","v":""},{"$f":"IF(Reporting!I$19=\"\",\"\",Reporting!I$19)","v":""},{"$f":"IF(Reporting!J$19=\"\",\"\",Reporting!J$19)","v":""},{"$f":"IF(Reporting!K$19=\"\",\"\",Reporting!K$19)","v":""},{"$f":"IF(ForPrint!H163=\"\",\"\",ForPrint!H163)","v":""},{"$f":"IF(ForPrint!Q163=\"\",\"\",ForPrint!Q163)","v":""}]
[{"$f":"IF(Intro!$F$10=\"\",\"\",VLOOKUP(Intro!$F$10,Lists!$A$1:$B$19,2,FALSE))","v":""},{"$f":"IF(Intro!$F$11=\"\",\"\",Intro!$F$11)","v":""},{"$f":"IF(Intro!$F$12=\"\",\"\",Intro!$F$12)","v":"John Doe"},{"$f":"IF(Intro!$F$13=\"\",\"\",Intro!$F$13)","v":"Jane Doe"},{"$f":"IF(Intro!$F$14=\"\",\"\",Intro!$F$14)","v":""},{"$f":"IF(Intro!$F$15=\"\",\"\",Intro!$F$15)","v":44867},{"$f":"IF(Intro!$F$5=\"\",\"\",\"Reporting\")","v":"Reporting"},null,{"$f":"IF(Reporting!$D$20=\"\",\"\",Reporting!$D$20)","v":""},{"$f":"IF(Reporting!$E$20=\"\",\"\",Reporting!$E$20)","v":""},{"$f":"IF(Reporting!$F$20=\"\",\"\",Reporting!$F$20)","v":""},{"$f":"IF(Reporting!$G$20=\"\",\"\",Reporting!$G$20)","v":""},{"$f":"IF(Reporting!$H$20=\"\",\"\",Reporting!$H$20)","v":""},{"$f":"IF(Reporting!I$20=\"\",\"\",Reporting!I$20)","v":""},{"$f":"IF(Reporting!J$20=\"\",\"\",Reporting!J$20)","v":""},{"$f":"IF(Reporting!K$20=\"\",\"\",Reporting!K$20)","v":""},{"$f":"IF(ForPrint!H164=\"\",\"\",ForPrint!H164)","v":""},{"$f":"IF(ForPrint!Q164=\"\",\"\",ForPrint!Q164)","v":""}]